Workbook

Sheet mapping (hidden)
B1: Mapping Sheet | G1: Source: Xrates on 6/21/2012 | H1: and xe.com
B2: Currency Mapping | L2: Country Mapping
B3: Currency | C3: in USD | G3: Value of 1 American Dollar | L3: Actual | M3: Mapping
B4: USD | C4: 1 | G4: Argentine Peso | H4: 4.49273 | I4: ARS | L4: USA | M4: USA
B5: EUR | C5: =1/INDEX($H$4:$H$64,MATCH(tblXrate[[#This Row],[Currency]],$I$4:$I$64,0)) -> 1.270399439 | G5: Australian Dollar | H5: 0.980479 | I5: AUD | L5: India | M5: India
B6: PKR | C6: =1/INDEX($H$4:$H$64,MATCH(tblXrate[[#This Row],[Currency]],$I$4:$I$64,0)) -> 0.01061408872 | G6: Botswana Pula | H6: 7.65697 | I6: BWP | L6: UK | M6: UK
B7: INR | C7: =1/INDEX($H$4:$H$64,MATCH(tblXrate[[#This Row],[Currency]],$I$4:$I$64,0)) -> 0.01780791669 | G7: Brazilian Real | H7: 2.02314 | I7: BRL | L7: Australia | M7: Australia
B8: GBP | C8: =1/INDEX($H$4:$H$64,MATCH(tblXrate[[#This Row],[Currency]],$I$4:$I$64,0)) -> 1.576178272 | G8: British Pound | H8: 0.634446 | I8: GBP | L8: Canada | M8: Canada
B9: AUD | C9: =1/INDEX($H$4:$H$64,MATCH(tblXrate[[#This Row],[Currency]],$I$4:$I$64,0)) -> 1.019909656 | G9: Brunei dollar | H9: 1.2687 | I9: BND | L9: Pakistan | M9: Pakistan
B10: CAD | C10: =1/INDEX($H$4:$H$64,MATCH(tblXrate[[#This Row],[Currency]],$I$4:$I$64,0)) -> 0.983361523 | G10: Bulgarian Lev | H10: 1.53952 | I10: BGN | L10: South Africa | M10: South Africa
B11: PHP | C11: =1/INDEX($H$4:$H$64,MATCH(tblXrate[[#This Row],[Currency]],$I$4:$I$64,0)) -> 0.02370505226 | G11: Canadian Dollar | H11: 1.01692 | I11: CAD | L11: Germany | M11: Germany
B12: AED | C12: =1/INDEX($H$4:$H$64,MATCH(tblXrate[[#This Row],[Currency]],$I$4:$I$64,0)) -> 0.2722192127 | G12: Chilean Peso | H12: 497.268 | I12: CLP | L12: UAE | M12: UAE
B13: MXN | C13: =1/INDEX($H$4:$H$64,MATCH(tblXrate[[#This Row],[Currency]],$I$4:$I$64,0)) -> 0.07304655257 | G13: Chinese Yuan | H13: 6.36091 | I13: CNY | L13: Brazil | M13: Brazil
B14: SEK | C14: =1/INDEX($H$4:$H$64,MATCH(tblXrate[[#This Row],[Currency]],$I$4:$I$64,0)) -> 0.1436552504 | G14: Colombian Peso | H14: 1769.79 | I14: COP | L14: Netherlands | M14: Netherlands
B15: BDT | C15: =1/INDEX($H$4:$H$64,MATCH(tblXrate[[#This Row],[Currency]],$I$4:$I$64,0)) -> 0.01222084534 | G15: Croatian Kuna | H15: 5.93671 | I15: HRK | L15: Singapore | M15: Singapore
B16: COSTARICAN | C16: =1/INDEX($H$4:$H$64,MATCH(tblXrate[[#This Row],[Currency]],$I$4:$I$64,0)) -> 0.002007830539 | G16: Danish Krone | H16: 5.85123 | I16: DKK | L16: Philippines | M16: Philippines
B17: ZAR | C17: =1/INDEX($H$4:$H$64,MATCH(tblXrate[[#This Row],[Currency]],$I$4:$I$64,0)) -> 0.1219217799 | G17: Euro | H17: 0.787154 | I17: EUR | L17: Portugal | M17: Portugal
B18: NZD | C18: =1/INDEX($H$4:$H$64,MATCH(tblXrate[[#This Row],[Currency]],$I$4:$I$64,0)) -> 0.7975880936 | G18: Hong Kong Dollar | H18: 7.75889 | I18: HKD | L18: Spain | M18: Spain
B19: CNY | C19: =1/INDEX($H$4:$H$64,MATCH(tblXrate[[#This Row],[Currency]],$I$4:$I$64,0)) -> 0.1572102105 | G19: Hungarian Forint | H19: 225.874 | I19: HUF | L19: New Zealand | M19: New Zealand
B20: EGYPT | C20: =1/INDEX($H$4:$H$64,MATCH(tblXrate[[#This Row],[Currency]],$I$4:$I$64,0)) -> 0.1652619402 | G20: Iceland Krona | H20: 124.697 | I20: ISK | L20: Russia | M20: Russia
B21: NAIRA | C21: =1/INDEX($H$4:$H$64,MATCH(tblXrate[[#This Row],[Currency]],$I$4:$I$64,0)) -> 0.006163328197 | G21: Indian Rupee | H21: 56.1548 | I21: INR | L21: Saudi Arabia | M21: Saudi Arabia
B22: AED | C22: =1/INDEX($H$4:$H$64,MATCH(tblXrate[[#This Row],[Currency]],$I$4:$I$64,0)) -> 0.2722192127 | G22: Indonesian Rupiah | H22: 9443.81 | I22: IDR | L22: Mexico | M22: Mexico
B23: BRL | C23: =1/INDEX($H$4:$H$64,MATCH(tblXrate[[#This Row],[Currency]],$I$4:$I$64,0)) -> 0.4942811669 | G23: Israeli New Shekel | H23: 3.86721 | I23: ILS | L23: Indonesia | M23: Indonesia
B24: RON | C24: =1/INDEX($H$4:$H$64,MATCH(tblXrate[[#This Row],[Currency]],$I$4:$I$64,0)) -> 0.2846132391 | G24: Japanese Yen | H24: 78.9043 | I24: JPY | L24: Norway | M24: Norway
B25: USD | C25: 1 | G25: Kazakhstani Tenge | H25: 148.88 | I25: KZT | L25: malaysia | M25: Malaysia
B26: MYR | C26: =1/INDEX($H$4:$H$64,MATCH(tblXrate[[#This Row],[Currency]],$I$4:$I$64,0)) -> 0.3168005677 | G26: Kuwaiti Dinar | H26: 0.2794 | I26: KWD | L26: The Netherlands | M26: Netherlands
B27: LKR | C27: =1/INDEX($H$4:$H$64,MATCH(tblXrate[[#This Row],[Currency]],$I$4:$I$64,0)) -> 0.007524058176 | G27: Latvian Lat | H27: 0.548489 | I27: LVL | L27: Romania | M27: Romania
B28: SGD | C28: =1/INDEX($H$4:$H$64,MATCH(tblXrate[[#This Row],[Currency]],$I$4:$I$64,0)) -> 0.7888239424 | G28: Libyan Dinar | H28: 1.9324 | I28: LYD | L28: Poland | M28: Poland
B29: GBP | C29: =1/INDEX($H$4:$H$64,MATCH(tblXrate[[#This Row],[Currency]],$I$4:$I$64,0)) -> 1.576178272 | G29: Lithuanian Litas | H29: 2.71788 | I29: LTL | L29: italy | M29: Italy
B30: DOP | C30: =1/INDEX($H$4:$H$64,MATCH(tblXrate[[#This Row],[Currency]],$I$4:$I$64,0)) -> 0.02567394095 | G30: Malaysian Ringgit | H30: 3.15656 | I30: MYR | L30: Hungary | M30: Hungary
B31: PLN | C31: =1/INDEX($H$4:$H$64,MATCH(tblXrate[[#This Row],[Currency]],$I$4:$I$64,0)) -> 0.3003147298 | G31: Mauritius Rupee | H31: 30.7159 | I31: MUR | L31: Denmark | M31: Denmark
B32: KENYA | C32: =1/INDEX($H$4:$H$64,MATCH(tblXrate[[#This Row],[Currency]],$I$4:$I$64,0)) -> 0.0119760479 | G32: Mexican Peso | H32: 13.6899 | I32: MXN | L32: Ireland | M32: Ireland
B33: DKK | C33: =1/INDEX($H$4:$H$64,MATCH(tblXrate[[#This Row],[Currency]],$I$4:$I$64,0)) -> 0.1709042372 | G33: Nepalese Rupee | H33: 89.65 | I33: NPR | L33: Israel | M33: Israel
B34: IDR | C34: =1/INDEX($H$4:$H$64,MATCH(tblXrate[[#This Row],[Currency]],$I$4:$I$64,0)) -> 0.0001058894662 | G34: New Zealand Dollar | H34: 1.25378 | I34: NZD | L34: France | M34: France
B35: MONGOLIAN | C35: =1/INDEX($H$4:$H$64,MATCH(tblXrate[[#This Row],[Currency]],$I$4:$I$64,0)) -> 0.000756429652 | G35: Norwegian Kroner | H35: 5.90838 | I35: NOK | L35: Colombia | M35: Colombia
B36: JPY | C36: =1/INDEX($H$4:$H$64,MATCH(tblXrate[[#This Row],[Currency]],$I$4:$I$64,0)) -> 0.01267358053 | G36: Omani Rial | H36: 0.3845 | I36: OMR | L36: Switzerland | M36: Switzerland
B37: SAR | C37: =1/INDEX($H$4:$H$64,MATCH(tblXrate[[#This Row],[Currency]],$I$4:$I$64,0)) -> 0.2666666667 | G37: Pakistan Rupee | H37: 94.2144 | I37: PKR | L37: Sri Lanka | M37: Sri Lanka
B38: MAD | C38: =1/INDEX($H$4:$H$64,MATCH(tblXrate[[#This Row],[Currency]],$I$4:$I$64,0)) -> 0.1145475372 | G38: Philippine Peso | H38: 42.1851 | I38: PHP | L38: Belgium | M38: Belgium
B39: MUR | C39: =1/INDEX($H$4:$H$64,MATCH(tblXrate[[#This Row],[Currency]],$I$4:$I$64,0)) -> 0.03255642843 | G39: Qatari Rial | H39: 3.64 | I39: QAR | L39: Dubai | M39: Dubai
B40: NOK | C40: =1/INDEX($H$4:$H$64,MATCH(tblXrate[[#This Row],[Currency]],$I$4:$I$64,0)) -> 0.1692511314 | G40: Romanian Leu | H40: 3.51354 | I40: RON | L40: Ukraine | M40: Ukraine
B41: CHF | C41: =1/INDEX($H$4:$H$64,MATCH(tblXrate[[#This Row],[Currency]],$I$4:$I$64,0)) -> 1.057873062 | G41: Russian Ruble | H41: 32.5458 | I41: RUB | L41: Kuwait | M41: Kuwait
B42: ETB | C42: =1/INDEX($H$4:$H$64,MATCH(tblXrate[[#This Row],[Currency]],$I$4:$I$64,0)) -> 0.05656108597 | G42: Saudi Riyal | H42: 3.75 | I42: SAR | L42: iran | M42: Iran
G43: Singapore Dollar | H43: 1.26771 | I43: SGD | L43: Qatar | M43: Qatar
G44: South African Rand | H44: 8.20198 | I44: ZAR | L44: Nigeria | M44: Nigeria
G45: South Korean Won | H45: 1151.09 | I45: KRW | L45: Finland | M45: Finland
G46: Sri Lanka Rupee | H46: 132.907 | I46: LKR | L46: Europe | M46: Europe
G47: Swedish Krona | H47: 6.96111 | I47: SEK | L47: Japan | M47: Japan
G48: Swiss Franc | H48: 0.945293 | I48: CHF | L48: Brasil | M48: Brazil
G49: Taiwan Dollar | H49: 29.8594 | I49: TWD | L49: nz | M49: New Zealand
G50: Thai Baht | H50: 31.5003 | I50: THB | L50: Greece | M50: Greece
G51: Trinidad/Tobago Dollar | H51: 6.39122 | I51: TTD | L51: ksa | M51: USA
G52: Turkish Lira | H52: 1.79447 | I52: TRY | L52: Panama | M52: Panama
G53: Venezuelan Bolivar | H53: 4.29402 | I53: VEF | L53: Turkey | M53: Turkey
G54: UAE Dirham | H54: 3.67351 | I54: AED | L54: Sweden | M54: Sweden
G55: Bangladesh Takha | H55: 81.8274 | I55: BDT | L55: china | M55: China
G56: Costarican CRC | H56: 498.05 | I56: Costarican | L56: Bangladesh | M56: Bangladesh
G57: Egyptian Pound | H57: 6.051 | I57: Egypt | L57: Croatia | M57: Croatia
G58: Nigerian Naira | H58: 162.25 | I58: NAIRA | L58: United Arab Emirates | M58: UAE
G59: Dominican Peso | H59: 38.95 | I59: DOP | L59: MÃ©xico | M59: Mexico
G60: Polish Zloty | H60: 3.32984 | I60: PLN | L60: Zambia | M60: Zambia
G61: Kenyan Shilling | H61: 83.5 | I61: Kenya | L61: Tunisia | M61: Tunisia
G62: Mongolian Tughrik | H62: 1322 | I62: Mongolian | L62: Saudi Arabai | M62: Saudi Arabia
G63: Moroccan Dirham | H63: 8.73 | I63: MAD | L63: Ethiopia | M63: Ethiopia
G64: Ethiopian Birr | H64: 17.68 | I64: ETB | L64: CEE | M64: CEE
L65: SouthAfrica | M65: South Africa
L66: Central America | M66: Central America
L67: Uruguay | M67: Uruguay
L68: Kenya | M68: Kenya
L69: Republica Dominicana | M69: Republica Dominicana
L70: Kingdom of Saudi Arabia | M70: Saudi Arabia
L71: Slovakia | M71: Slovakia
L72: Austria | M72: Austria
L73: Guyana | M73: Guyana
L74: Azerbaijan | M74: Azerbaijan
L75: Bulgaria | M75: Bulgaria
L76: Kuwait | M76: Kuwait
L77: Peru | M77: Peru
L78: Vietnam | M78: Vietnam
L79: Armenia | M79: Armenia
L80: Zimbabwe | M80: Zimbabwe
L81: RSA | M81: South Africa
L82: Libya | M82: Libya
L83: self-employed | M83: self-employed
L84: Lithuania | M84: Lithuania
L85: Somalia | M85: Somalia
L86: Colombia - South America | M86: Colombia
L87: BRA | M87: Brazil
L88: mainland Europe (Euro zone) | M88: Europe
L89: Thailand | M89: Thailand
L90: Continental Europe | M90: CEE
L91: Asia | M91: Asia
L92: Mauritius | M92: Mauritius
L93: Cambodia | M93: Cambodia
L94: Costa Rica | M94: Costa Rica
L95: Viet Nam | M95: Viet Nam
L96: Mongolia | M96: Mongolia
L97: Estonia | M97: Estonia
L98: Montenegro | M98: Montenegro
L99: EU | M99: Europe
L100: Morocco | M100: Morocco
L101: Republic of Georgia | M101: Republic of Georgia
L102: mozambique | M102: mozambique
L103: europe/Croatia | M103: Croatia
L104: Myanmar | M104: Myanmar
L105: Bermuda | M105: Bermuda
L106: Myanmar [Burma] | M106: Myanmar
L107: FR | M107: France
L108: MYS | M108: MYS
L109: Bhutan | M109: Bhutan
L110: Baltic | M110: Baltic
L111: Slovenia | M111: Slovenia
L112: New Zealand | M112: New Zealand
L113: Bolivia | M113: Bolivia
L114: Czech Republic | M114: Czech Republic
L115: Ghana | M115: Ghana
L116: bangkok | M116: Thailand
L117: srilanka | M117: Sri Lanka
L118: NL | M118: Netherlands
L119: Hong Kong | M119: Hong Kong
L120: nld | M120: New Zealand
L121: Aruba | M121: Aruba
L122: DK | M122: Denmark
L123: Iceland | M123: Iceland
L124: Dominican Republic | M124: Dominican Republic
L125: Uganda | M125: Uganda
L126: Oman | M126: Oman
L127: Inonesia | M127: Indonesia
L128: Argentina | M128: Argentina
L129: United Arab Emriate | M129: UAE
L130: Pakistan, Angola | M130: Pakistan
L131: Canad | M131: Canada
L132: Egypt | M132: Egypt
L133: arabian Gulf | M133: Arabian Gulf
L134: Paraguay | M134: Paraguay
L135: Latin America | M135: Latin America
L136: Albania | M136: Albania
L137: Lesotho | M137: Lesotho

Sheet Data
B1: Excel Salary Survey Data
B3: Note: Experience data is not available for first few hundred rows.
B5: Unique ID | C5: Timestamp | D5: Your Salary | E5: clean Salary (in local currency) | F5: Currency | G5: Salary in USD | H5: Your Job Title | I5: Job Type | J5: Where do you work | K5: clean Country | L5: How many hours of a day you work on Excel | M5: Years of Experience | N5: 0-2 Years | O5: 3-5 Years | P5: 5-10 Years | Q5: 11-15 Years | R5: 16-20 Years | S5: 20+ Years | T5: YearsExpGroup | U5: Accountant | V5: Analyst | W5: Consultant | X5: Controller | Y5: CXO or Top Mgmt. | Z5: Engineer | AA5: Manager | AB5: Misc. | AC5: Reporting | AD5: Specialist
B6: ID0001 | C6: 2012-05-25T03:11:32 | D6: 5846 | E6: 5846 | F6: USD | G6: =tblSalaries[[#This Row],[clean Salary (in local currency)]]*VLOOKUP(tblSalaries[[#This Row],[Currency]],tblXrate[],2,FALSE) -> 5846 | H6: MIS Analyst | I6: Analyst | J6: India | K6: =VLOOKUP(tblSalaries[[#This Row],[Where do you work]],tblCountries[[Actual]:[Mapping]],2,FALSE) -> India | L6: 4 to 6 hours a day | N6: =IF(tblSalaries[[#This Row],[Years of Experience]]="","",IF(tblSalaries[[#This Row],[Years of Experience]]<=2,1,"")) ->  | O6: =IF(tblSalaries[[#This Row],[Years of Experience]]="","",IF(AND(tblSalaries[[#This Row],[Years of Experience]]>2,tblSalaries[[#This Row],[Years of Experience]]<=5),1,"")) ->  | P6: =IF(tblSalaries[[#This Row],[Years of Experience]]="","",IF(AND(tblSalaries[[#This Row],[Years of Experience]]>5,tblSalaries[[#This Row],[Years of Experience]]<=10),1,"")) ->  | Q6: =IF(tblSalaries[[#This Row],[Years of Experience]]="","",IF(AND(tblSalaries[[#This Row],[Years of Experience]]>10,tblSalaries[[#This Row],[Years of Experience]]<=15),1,"")) ->  | R6: =IF(tblSalaries[[#This Row],[Years of Experience]]="","",IF(AND(tblSalaries[[#This Row],[Years of Experience]]>16,tblSalaries[[#This Row],[Years of Experience]]<=20),1,"")) ->  | S6: =IF(tblSalaries[[#This Row],[Years of Experience]]="","",IF(tblSalaries[[#This Row],[Years of Experience]]>20,1,"")) ->  | T6: =IF(tblSalaries[[#This Row],[0-2 Years]]=1,tblSalaries[[#Headers],[0-2 Years]],IF(tblSalaries[[#This Row],[3-5 Years]]=1,tblSalaries[[#Headers],[3-5 Years]],IF(tblSalaries[[#This Row],[5-10 Years]]=1,tblSalaries[[#Headers],[5-10 Years]],IF(tblSalaries[[#This Row],[11-15 Years]]=1,tblSalaries[[#Headers],[11-15 Years]],IF(tblSalaries[[#This Row],[16-20 Years]]=1,tblSalaries[[#Headers],[16-20 Years]],IF(tblSalaries[[#This Row],[20+ Years]]=1,tblSalaries[[#Headers],[20+ Years]],"")))))) ->  | U6: =IF(tblSalaries[[#This Row],[Job Type]]=tblSalaries[[#Headers],[Accountant]],tblSalaries[[#This Row],[Salary in USD]],"") ->  | V6: =IF(tblSalaries[[#This Row],[Job Type]]=tblSalaries[[#Headers],[Analyst]],tblSalaries[[#This Row],[Salary in USD]],"") -> 5846 | W6: =IF(tblSalaries[[#This Row],[Job Type]]=tblSalaries[[#Headers],[Consultant]],tblSalaries[[#This Row],[Salary in USD]],"") ->  | X6: =IF(tblSalaries[[#This Row],[Job Type]]=tblSalaries[[#Headers],[Controller]],tblSalaries[[#This Row],[Salary in USD]],"") ->  | Y6: =IF(tblSalaries[[#This Row],[Job Type]]=tblSalaries[[#Headers],[CXO or Top Mgmt.]],tblSalaries[[#This Row],[clean Salary (in local currency)]],"") ->  | Z6: =IF(tblSalaries[[#This Row],[Job Type]]=tblSalaries[[#Headers],[Engineer]],tblSalaries[[#This Row],[Salary in USD]],"") ->  | AA6: =IF(tblSalaries[[#This Row],[Job Type]]=tblSalaries[[#Headers],[Manager]],tblSalaries[[#This Row],[Salary in USD]],"") ->  | AB6: =IF(tblSalaries[[#This Row],[Job Type]]=tblSalaries[[#Headers],[Misc.]],tblSalaries[[#This Row],[Salary in USD]],"") ->  | AC6: =IF(tblSalaries[[#This Row],[Job Type]]=tblSalaries[[#Headers],[Reporting]],tblSalaries[[#This Row],[Salary in USD]],"") ->  | AD6: =IF(tblSalaries[[#This Row],[Job Type]]=tblSalaries[[#Headers],[Specialist]],tblSalaries[[#This Row],[Salary in USD]],"") -> 
B7: ID0002 | C7: 2012-05-25T03:13:13 | D7: 15000 usd | E7: 15000 | F7: USD | G7: =tblSalaries[[#This Row],[clean Salary (in local currency)]]*VLOOKUP(tblSalaries[[#This Row],[Currency]],tblXrate[],2,FALSE) -> 15000 | H7: cost control | I7: Controller | J7: europe/Croatia | K7: =VLOOKUP(tblSalaries[[#This Row],[Where do you work]],tblCountries[[Actual]:[Mapping]],2,FALSE) -> Croatia | L7: All the 8 hours baby, all the 8! | N7: =IF(tblSalaries[[#This Row],[Years of Experience]]="","",IF(tblSalaries[[#This Row],[Years of Experience]]<=2,1,"")) ->  | O7: =IF(tblSalaries[[#This Row],[Years of Experience]]="","",IF(AND(tblSalaries[[#This Row],[Years of Experience]]>2,tblSalaries[[#This Row],[Years of Experience]]<=5),1,"")) ->  | P7: =IF(tblSalaries[[#This Row],[Years of Experience]]="","",IF(AND(tblSalaries[[#This Row],[Years of Experience]]>5,tblSalaries[[#This Row],[Years of Experience]]<=10),1,"")) ->  | Q7: =IF(tblSalaries[[#This Row],[Years of Experience]]="","",IF(AND(tblSalaries[[#This Row],[Years of Experience]]>10,tblSalaries[[#This Row],[Years of Experience]]<=15),1,"")) ->  | R7: =IF(tblSalaries[[#This Row],[Years of Experience]]="","",IF(AND(tblSalaries[[#This Row],[Years of Experience]]>16,tblSalaries[[#This Row],[Years of Experience]]<=20),1,"")) ->  | S7: =IF(tblSalaries[[#This Row],[Years of Experience]]="","",IF(tblSalaries[[#This Row],[Years of Experience]]>20,1,"")) ->  | T7: =IF(tblSalaries[[#This Row],[0-2 Years]]=1,tblSalaries[[#Headers],[0-2 Years]],IF(tblSalaries[[#This Row],[3-5 Years]]=1,tblSalaries[[#Headers],[3-5 Years]],IF(tblSalaries[[#This Row],[5-10 Years]]=1,tblSalaries[[#Headers],[5-10 Years]],IF(tblSalaries[[#This Row],[11-15 Years]]=1,tblSalaries[[#Headers],[11-15 Years]],IF(tblSalaries[[#This Row],[16-20 Years]]=1,tblSalaries[[#Headers],[16-20 Years]],IF(tblSalaries[[#This Row],[20+ Years]]=1,tblSalaries[[#Headers],[20+ Years]],"")))))) ->  | U7: =IF(tblSalaries[[#This Row],[Job Type]]=tblSalaries[[#Headers],[Accountant]],tblSalaries[[#This Row],[Salary in USD]],"") ->  | V7: =IF(tblSalaries[[#This Row],[Job Type]]=tblSalaries[[#Headers],[Analyst]],tblSalaries[[#This Row],[Salary in USD]],"") ->  | W7: =IF(tblSalaries[[#This Row],[Job Type]]=tblSalaries[[#Headers],[Consultant]],tblSalaries[[#This Row],[Salary in USD]],"") ->  | X7: =IF(tblSalaries[[#This Row],[Job Type]]=tblSalaries[[#Headers],[Controller]],tblSalaries[[#This Row],[Salary in USD]],"") -> 15000 | Y7: =IF(tblSalaries[[#This Row],[Job Type]]=tblSalaries[[#Headers],[CXO or Top Mgmt.]],tblSalaries[[#This Row],[clean Salary (in local currency)]],"") ->  | Z7: =IF(tblSalaries[[#This Row],[Job Type]]=tblSalaries[[#Headers],[Engineer]],tblSalaries[[#This Row],[Salary in USD]],"") ->  | AA7: =IF(tblSalaries[[#This Row],[Job Type]]=tblSalaries[[#Headers],[Manager]],tblSalaries[[#This Row],[Salary in USD]],"") ->  | AB7: =IF(tblSalaries[[#This Row],[Job Type]]=tblSalaries[[#Headers],[Misc.]],tblSalaries[[#This Row],[Salary in USD]],"") ->  | AC7: =IF(tblSalaries[[#This Row],[Job Type]]=tblSalaries[[#Headers],[Reporting]],tblSalaries[[#This Row],[Salary in USD]],"") ->  | AD7: =IF(tblSalaries[[#This Row],[Job Type]]=tblSalaries[[#Headers],[Specialist]],tblSalaries[[#This Row],[Salary in USD]],"") -> 
B8: ID0003 | C8: 2012-05-25T03:16:26 | D8: 58000 | E8: 58000 | F8: USD | G8: =tblSalaries[[#This Row],[clean Salary (in local currency)]]*VLOOKUP(tblSalaries[[#This Row],[Currency]],tblXrate[],2,FALSE) -> 58000 | H8: Financial Analyst | I8: Analyst | J8: USA | K8: =VLOOKUP(tblSalaries[[#This Row],[Where do you work]],tblCountries[[Actual]:[Mapping]],2,FALSE) -> USA | L8: All the 8 hours baby, all the 8! | N8: =IF(tblSalaries[[#This Row],[Years of Experience]]="","",IF(tblSalaries[[#This Row],[Years of Experience]]<=2,1,"")) ->  | O8: =IF(tblSalaries[[#This Row],[Years of Experience]]="","",IF(AND(tblSalaries[[#This Row],[Years of Experience]]>2,tblSalaries[[#This Row],[Years of Experience]]<=5),1,"")) ->  | P8: =IF(tblSalaries[[#This Row],[Years of Experience]]="","",IF(AND(tblSalaries[[#This Row],[Years of Experience]]>5,tblSalaries[[#This Row],[Years of Experience]]<=10),1,"")) ->  | Q8: =IF(tblSalaries[[#This Row],[Years of Experience]]="","",IF(AND(tblSalaries[[#This Row],[Years of Experience]]>10,tblSalaries[[#This Row],[Years of Experience]]<=15),1,"")) ->  | R8: =IF(tblSalaries[[#This Row],[Years of Experience]]="","",IF(AND(tblSalaries[[#This Row],[Years of Experience]]>16,tblSalaries[[#This Row],[Years of Experience]]<=20),1,"")) ->  | S8: =IF(tblSalaries[[#This Row],[Years of Experience]]="","",IF(tblSalaries[[#This Row],[Years of Experience]]>20,1,"")) ->  | T8: =IF(tblSalaries[[#This Row],[0-2 Years]]=1,tblSalaries[[#Headers],[0-2 Years]],IF(tblSalaries[[#This Row],[3-5 Years]]=1,tblSalaries[[#Headers],[3-5 Years]],IF(tblSalaries[[#This Row],[5-10 Years]]=1,tblSalaries[[#Headers],[5-10 Years]],IF(tblSalaries[[#This Row],[11-15 Years]]=1,tblSalaries[[#Headers],[11-15 Years]],IF(tblSalaries[[#This Row],[16-20 Years]]=1,tblSalaries[[#Headers],[16-20 Years]],IF(tblSalaries[[#This Row],[20+ Years]]=1,tblSalaries[[#Headers],[20+ Years]],"")))))) ->  | U8: =IF(tblSalaries[[#This Row],[Job Type]]=tblSalaries[[#Headers],[Accountant]],tblSalaries[[#This Row],[Salary in USD]],"") ->  | V8: =IF(tblSalaries[[#This Row],[Job Type]]=tblSalaries[[#Headers],[Analyst]],tblSalaries[[#This Row],[Salary in USD]],"") -> 58000 | W8: =IF(tblSalaries[[#This Row],[Job Type]]=tblSalaries[[#Headers],[Consultant]],tblSalaries[[#This Row],[Salary in USD]],"") ->  | X8: =IF(tblSalaries[[#This Row],[Job Type]]=tblSalaries[[#Headers],[Controller]],tblSalaries[[#This Row],[Salary in USD]],"") ->  | Y8: =IF(tblSalaries[[#This Row],[Job Type]]=tblSalaries[[#Headers],[CXO or Top Mgmt.]],tblSalaries[[#This Row],[clean Salary (in local currency)]],"") ->  | Z8: =IF(tblSalaries[[#This Row],[Job Type]]=tblSalaries[[#Headers],[Engineer]],tblSalaries[[#This Row],[Salary in USD]],"") ->  | AA8: =IF(tblSalaries[[#This Row],[Job Type]]=tblSalaries[[#Headers],[Manager]],tblSalaries[[#This Row],[Salary in USD]],"") ->  | AB8: =IF(tblSalaries[[#This Row],[Job Type]]=tblSalaries[[#Headers],[Misc.]],tblSalaries[[#This Row],[Salary in USD]],"") ->  | AC8: =IF(tblSalaries[[#This Row],[Job Type]]=tblSalaries[[#Headers],[Reporting]],tblSalaries[[#This Row],[Salary in USD]],"") ->  | AD8: =IF(tblSalaries[[#This Row],[Job Type]]=tblSalaries[[#Headers],[Specialist]],tblSalaries[[#This Row],[Salary in USD]],"") -> 
B9: ID0004 | C9: 2012-05-25T03:23:42 | D9: 48000 | E9: 48000 | F9: USD | G9: =tblSalaries[[#This Row],[clean Salary (in local currency)]]*VLOOKUP(tblSalaries[[#This Row],[Currency]],tblXrate[],2,FALSE) -> 48000 | H9: Quality Control | I9: Controller | J9: Pakistan | K9: =VLOOKUP(tblSalaries[[#This Row],[Where do you work]],tblCountries[[Actual]:[Mapping]],2,FALSE) -> Pakistan | L9: 2 to 3 hours per day | N9: =IF(tblSalaries[[#This Row],[Years of Experience]]="","",IF(tblSalaries[[#This Row],[Years of Experience]]<=2,1,"")) ->  | O9: =IF(tblSalaries[[#This Row],[Years of Experience]]="","",IF(AND(tblSalaries[[#This Row],[Years of Experience]]>2,tblSalaries[[#This Row],[Years of Experience]]<=5),1,"")) ->  | P9: =IF(tblSalaries[[#This Row],[Years of Experience]]="","",IF(AND(tblSalaries[[#This Row],[Years of Experience]]>5,tblSalaries[[#This Row],[Years of Experience]]<=10),1,"")) ->  | Q9: =IF(tblSalaries[[#This Row],[Years of Experience]]="","",IF(AND(tblSalaries[[#This Row],[Years of Experience]]>10,tblSalaries[[#This Row],[Years of Experience]]<=15),1,"")) ->  | R9: =IF(tblSalaries[[#This Row],[Years of Experience]]="","",IF(AND(tblSalaries[[#This Row],[Years of Experience]]>16,tblSalaries[[#This Row],[Years of Experience]]<=20),1,"")) ->  | S9: =IF(tblSalaries[[#This Row],[Years of Experience]]="","",IF(tblSalaries[[#This Row],[Years of Experience]]>20,1,"")) ->  | T9: =IF(tblSalaries[[#This Row],[0-2 Years]]=1,tblSalaries[[#Headers],[0-2 Years]],IF(tblSalaries[[#This Row],[3-5 Years]]=1,tblSalaries[[#Headers],[3-5 Years]],IF(tblSalaries[[#This Row],[5-10 Years]]=1,tblSalaries[[#Headers],[5-10 Years]],IF(tblSalaries[[#This Row],[11-15 Years]]=1,tblSalaries[[#Headers],[11-15 Years]],IF(tblSalaries[[#This Row],[16-20 Years]]=1,tblSalaries[[#Headers],[16-20 Years]],IF(tblSalaries[[#This Row],[20+ Years]]=1,tblSalaries[[#Headers],[20+ Years]],"")))))) ->  | U9: =IF(tblSalaries[[#This Row],[Job Type]]=tblSalaries[[#Headers],[Accountant]],tblSalaries[[#This Row],[Salary in USD]],"") ->  | V9: =IF(tblSalaries[[#This Row],[Job Type]]=tblSalaries[[#Headers],[Analyst]],tblSalaries[[#This Row],[Salary in USD]],"") ->  | W9: =IF(tblSalaries[[#This Row],[Job Type]]=tblSalaries[[#Headers],[Consultant]],tblSalaries[[#This Row],[Salary in USD]],"") ->  | X9: =IF(tblSalaries[[#This Row],[Job Type]]=tblSalaries[[#Headers],[Controller]],tblSalaries[[#This Row],[Salary in USD]],"") -> 48000 | Y9: =IF(tblSalaries[[#This Row],[Job Type]]=tblSalaries[[#Headers],[CXO or Top Mgmt.]],tblSalaries[[#This Row],[clean Salary (in local currency)]],"") ->  | Z9: =IF(tblSalaries[[#This Row],[Job Type]]=tblSalaries[[#Headers],[Engineer]],tblSalaries[[#This Row],[Salary in USD]],"") ->  | AA9: =IF(tblSalaries[[#This Row],[Job Type]]=tblSalaries[[#Headers],[Manager]],tblSalaries[[#This Row],[Salary in USD]],"") ->  | AB9: =IF(tblSalaries[[#This Row],[Job Type]]=tblSalaries[[#Headers],[Misc.]],tblSalaries[[#This Row],[Salary in USD]],"") ->  | AC9: =IF(tblSalaries[[#This Row],[Job Type]]=tblSalaries[[#Headers],[Reporting]],tblSalaries[[#This Row],[Salary in USD]],"") ->  | AD9: =IF(tblSalaries[[#This Row],[Job Type]]=tblSalaries[[#Headers],[Specialist]],tblSalaries[[#This Row],[Salary in USD]],"") -> 
B10: ID0005 | C10: 2012-05-25T03:27:04 | D10: 54000 | E10: 54000 | F10: USD | G10: =tblSalaries[[#This Row],[clean Salary (in local currency)]]*VLOOKUP(tblSalaries[[#This Row],[Currency]],tblXrate[],2,FALSE) -> 54000 | H10: Quality Engineer | I10: Engineer | J10: USA | K10: =VLOOKUP(tblSalaries[[#This Row],[Where do you work]],tblCountries[[Actual]:[Mapping]],2,FALSE) -> USA | L10: All the 8 hours baby, all the 8! | N10: =IF(tblSalaries[[#This Row],[Years of Experience]]="","",IF(tblSalaries[[#This Row],[Years of Experience]]<=2,1,"")) ->  | O10: =IF(tblSalaries[[#This Row],[Years of Experience]]="","",IF(AND(tblSalaries[[#This Row],[Years of Experience]]>2,tblSalaries[[#This Row],[Years of Experience]]<=5),1,"")) ->  | P10: =IF(tblSalaries[[#This Row],[Years of Experience]]="","",IF(AND(tblSalaries[[#This Row],[Years of Experience]]>5,tblSalaries[[#This Row],[Years of Experience]]<=10),1,"")) ->  | Q10: =IF(tblSalaries[[#This Row],[Years of Experience]]="","",IF(AND(tblSalaries[[#This Row],[Years of Experience]]>10,tblSalaries[[#This Row],[Years of Experience]]<=15),1,"")) ->  | R10: =IF(tblSalaries[[#This Row],[Years of Experience]]="","",IF(AND(tblSalaries[[#This Row],[Years of Experience]]>16,tblSalaries[[#This Row],[Years of Experience]]<=20),1,"")) ->  | S10: =IF(tblSalaries[[#This Row],[Years of Experience]]="","",IF(tblSalaries[[#This Row],[Years of Experience]]>20,1,"")) ->  | T10: =IF(tblSalaries[[#This Row],[0-2 Years]]=1,tblSalaries[[#Headers],[0-2 Years]],IF(tblSalaries[[#This Row],[3-5 Years]]=1,tblSalaries[[#Headers],[3-5 Years]],IF(tblSalaries[[#This Row],[5-10 Years]]=1,tblSalaries[[#Headers],[5-10 Years]],IF(tblSalaries[[#This Row],[11-15 Years]]=1,tblSalaries[[#Headers],[11-15 Years]],IF(tblSalaries[[#This Row],[16-20 Years]]=1,tblSalaries[[#Headers],[16-20 Years]],IF(tblSalaries[[#This Row],[20+ Years]]=1,tblSalaries[[#Headers],[20+ Years]],"")))))) ->  | U10: =IF(tblSalaries[[#This Row],[Job Type]]=tblSalaries[[#Headers],[Accountant]],tblSalaries[[#This Row],[Salary in USD]],"") ->  | V10: =IF(tblSalaries[[#This Row],[Job Type]]=tblSalaries[[#Headers],[Analyst]],tblSalaries[[#This Row],[Salary in USD]],"") ->  | W10: =IF(tblSalaries[[#This Row],[Job Type]]=tblSalaries[[#Headers],[Consultant]],tblSalaries[[#This Row],[Salary in USD]],"") ->  | X10: =IF(tblSalaries[[#This Row],[Job Type]]=tblSalaries[[#Headers],[Controller]],tblSalaries[[#This Row],[Salary in USD]],"") ->  | Y10: =IF(tblSalaries[[#This Row],[Job Type]]=tblSalaries[[#Headers],[CXO or Top Mgmt.]],tblSalaries[[#This Row],[clean Salary (in local currency)]],"") ->  | Z10: =IF(tblSalaries[[#This Row],[Job Type]]=tblSalaries[[#Headers],[Engineer]],tblSalaries[[#This Row],[Salary in USD]],"") -> 54000 | AA10: =IF(tblSalaries[[#This Row],[Job Type]]=tblSalaries[[#Headers],[Manager]],tblSalaries[[#This Row],[Salary in USD]],"") ->  | AB10: =IF(tblSalaries[[#This Row],[Job Type]]=tblSalaries[[#Headers],[Misc.]],tblSalaries[[#This Row],[Salary in USD]],"") ->  | AC10: =IF(tblSalaries[[#This Row],[Job Type]]=tblSalaries[[#Headers],[Reporting]],tblSalaries[[#This Row],[Salary in USD]],"") ->  | AD10: =IF(tblSalaries[[#This Row],[Job Type]]=tblSalaries[[#Headers],[Specialist]],tblSalaries[[#This Row],[Salary in USD]],"") -> 
B11: ID0006 | C11: 2012-05-25T03:28:28 | D11: 41731 | E11: 41731 | F11: USD | G11: =tblSalaries[[#This Row],[clean Salary (in local currency)]]*VLOOKUP(tblSalaries[[#This Row],[Currency]],tblXrate[],2,FALSE) -> 41731 | H11: Analyst | I11: Analyst | J11: Iceland | K11: =VLOOKUP(tblSalaries[[#This Row],[Where do you work]],tblCountries[[Actual]:[Mapping]],2,FALSE) -> Iceland | L11: All the 8 hours baby, all the 8! | N11: =IF(tblSalaries[[#This Row],[Years of Experience]]="","",IF(tblSalaries[[#This Row],[Years of Experience]]<=2,1,"")) ->  | O11: =IF(tblSalaries[[#This Row],[Years of Experience]]="","",IF(AND(tblSalaries[[#This Row],[Years of Experience]]>2,tblSalaries[[#This Row],[Years of Experience]]<=5),1,"")) ->  | P11: =IF(tblSalaries[[#This Row],[Years of Experience]]="","",IF(AND(tblSalaries[[#This Row],[Years of Experience]]>5,tblSalaries[[#This Row],[Years of Experience]]<=10),1,"")) ->  | Q11: =IF(tblSalaries[[#This Row],[Years of Experience]]="","",IF(AND(tblSalaries[[#This Row],[Years of Experience]]>10,tblSalaries[[#This Row],[Years of Experience]]<=15),1,"")) ->  | R11: =IF(tblSalaries[[#This Row],[Years of Experience]]="","",IF(AND(tblSalaries[[#This Row],[Years of Experience]]>16,tblSalaries[[#This Row],[Years of Experience]]<=20),1,"")) ->  | S11: =IF(tblSalaries[[#This Row],[Years of Experience]]="","",IF(tblSalaries[[#This Row],[Years of Experience]]>20,1,"")) ->  | T11: =IF(tblSalaries[[#This Row],[0-2 Years]]=1,tblSalaries[[#Headers],[0-2 Years]],IF(tblSalaries[[#This Row],[3-5 Years]]=1,tblSalaries[[#Headers],[3-5 Years]],IF(tblSalaries[[#This Row],[5-10 Years]]=1,tblSalaries[[#Headers],[5-10 Years]],IF(tblSalaries[[#This Row],[11-15 Years]]=1,tblSalaries[[#Headers],[11-15 Years]],IF(tblSalaries[[#This Row],[16-20 Years]]=1,tblSalaries[[#Headers],[16-20 Years]],IF(tblSalaries[[#This Row],[20+ Years]]=1,tblSalaries[[#Headers],[20+ Years]],"")))))) ->  | U11: =IF(tblSalaries[[#This Row],[Job Type]]=tblSalaries[[#Headers],[Accountant]],tblSalaries[[#This Row],[Salary in USD]],"") ->  | V11: =IF(tblSalaries[[#This Row],[Job Type]]=tblSalaries[[#Headers],[Analyst]],tblSalaries[[#This Row],[Salary in USD]],"") -> 41731 | W11: =IF(tblSalaries[[#This Row],[Job Type]]=tblSalaries[[#Headers],[Consultant]],tblSalaries[[#This Row],[Salary in USD]],"") ->  | X11: =IF(tblSalaries[[#This Row],[Job Type]]=tblSalaries[[#Headers],[Controller]],tblSalaries[[#This Row],[Salary in USD]],"") ->  | Y11: =IF(tblSalaries[[#This Row],[Job Type]]=tblSalaries[[#Headers],[CXO or Top Mgmt.]],tblSalaries[[#This Row],[clean Salary (in local currency)]],"") ->  | Z11: =IF(tblSalaries[[#This Row],[Job Type]]=tblSalaries[[#Headers],[Engineer]],tblSalaries[[#This Row],[Salary in USD]],"") ->  | AA11: =IF(tblSalaries[[#This Row],[Job Type]]=tblSalaries[[#Headers],[Manager]],tblSalaries[[#This Row],[Salary in USD]],"") ->  | AB11: =IF(tblSalaries[[#This Row],[Job Type]]=tblSalaries[[#Headers],[Misc.]],tblSalaries[[#This Row],[Salary in USD]],"") ->  | AC11: =IF(tblSalaries[[#This Row],[Job Type]]=tblSalaries[[#Headers],[Reporting]],tblSalaries[[#This Row],[Salary in USD]],"") ->  | AD11: =IF(tblSalaries[[#This Row],[Job Type]]=tblSalaries[[#Headers],[Specialist]],tblSalaries[[#This Row],[Salary in USD]],"") -> 
B12: ID0007 | C12: 2012-05-25T03:33:51 | D12: 145000 | E12: 145000 | F12: EUR | G12: =tblSalaries[[#This Row],[clean Salary (in local currency)]]*VLOOKUP(tblSalaries[[#This Row],[Currency]],tblXrate[],2,FALSE) -> 184207.9187 | H12: senior project manager | I12: Manager | J12: Germany | K12: =VLOOKUP(tblSalaries[[#This Row],[Where do you work]],tblCountries[[Actual]:[Mapping]],2,FALSE) -> Germany | L12: 1 or 2 hours a day | N12: =IF(tblSalaries[[#This Row],[Years of Experience]]="","",IF(tblSalaries[[#This Row],[Years of Experience]]<=2,1,"")) ->  | O12: =IF(tblSalaries[[#This Row],[Years of Experience]]="","",IF(AND(tblSalaries[[#This Row],[Years of Experience]]>2,tblSalaries[[#This Row],[Years of Experience]]<=5),1,"")) ->  | P12: =IF(tblSalaries[[#This Row],[Years of Experience]]="","",IF(AND(tblSalaries[[#This Row],[Years of Experience]]>5,tblSalaries[[#This Row],[Years of Experience]]<=10),1,"")) ->  | Q12: =IF(tblSalaries[[#This Row],[Years of Experience]]="","",IF(AND(tblSalaries[[#This Row],[Years of Experience]]>10,tblSalaries[[#This Row],[Years of Experience]]<=15),1,"")) ->  | R12: =IF(tblSalaries[[#This Row],[Years of Experience]]="","",IF(AND(tblSalaries[[#This Row],[Years of Experience]]>16,tblSalaries[[#This Row],[Years of Experience]]<=20),1,"")) ->  | S12: =IF(tblSalaries[[#This Row],[Years of Experience]]="","",IF(tblSalaries[[#This Row],[Years of Experience]]>20,1,"")) ->  | T12: =IF(tblSalaries[[#This Row],[0-2 Years]]=1,tblSalaries[[#Headers],[0-2 Years]],IF(tblSalaries[[#This Row],[3-5 Years]]=1,tblSalaries[[#Headers],[3-5 Years]],IF(tblSalaries[[#This Row],[5-10 Years]]=1,tblSalaries[[#Headers],[5-10 Years]],IF(tblSalaries[[#This Row],[11-15 Years]]=1,tblSalaries[[#Headers],[11-15 Years]],IF(tblSalaries[[#This Row],[16-20 Years]]=1,tblSalaries[[#Headers],[16-20 Years]],IF(tblSalaries[[#This Row],[20+ Years]]=1,tblSalaries[[#Headers],[20+ Years]],"")))))) ->  | U12: =IF(tblSalaries[[#This Row],[Job Type]]=tblSalaries[[#Headers],[Accountant]],tblSalaries[[#This Row],[Salary in USD]],"") ->  | V12: =IF(tblSalaries[[#This Row],[Job Type]]=tblSalaries[[#Headers],[Analyst]],tblSalaries[[#This Row],[Salary in USD]],"") ->  | W12: =IF(tblSalaries[[#This Row],[Job Type]]=tblSalaries[[#Headers],[Consultant]],tblSalaries[[#This Row],[Salary in USD]],"") ->  | X12: =IF(tblSalaries[[#This Row],[Job Type]]=tblSalaries[[#Headers],[Controller]],tblSalaries[[#This Row],[Salary in USD]],"") ->  | Y12: =IF(tblSalaries[[#This Row],[Job Type]]=tblSalaries[[#Headers],[CXO or Top Mgmt.]],tblSalaries[[#This Row],[clean Salary (in local currency)]],"") ->  | Z12: =IF(tblSalaries[[#This Row],[Job Type]]=tblSalaries[[#Headers],[Engineer]],tblSalaries[[#This Row],[Salary in USD]],"") ->  | AA12: =IF(tblSalaries[[#This Row],[Job Type]]=tblSalaries[[#Headers],[Manager]],tblSalaries[[#This Row],[Salary in USD]],"") -> 184207.9187 | AB12: =IF(tblSalaries[[#This Row],[Job Type]]=tblSalaries[[#Headers],[Misc.]],tblSalaries[[#This Row],[Salary in USD]],"") ->  | AC12: =IF(tblSalaries[[#This Row],[Job Type]]=tblSalaries[[#Headers],[Reporting]],tblSalaries[[#This Row],[Salary in USD]],"") ->  | AD12: =IF(tblSalaries[[#This Row],[Job Type]]=tblSalaries[[#Headers],[Specialist]],tblSalaries[[#This Row],[Salary in USD]],"") -> 
B13: ID0008 | C13: 2012-05-25T03:36:37 | D13: 12000 | E13: 12000 | F13: USD | G13: =tblSalaries[[#This Row],[clean Salary (in local currency)]]*VLOOKUP(tblSalaries[[#This Row],[Currency]],tblXrate[],2,FALSE) -> 12000 | H13: Assistant SP&A | I13: Analyst | J13: Ukraine | K13: =VLOOKUP(tblSalaries[[#This Row],[Where do you work]],tblCountries[[Actual]:[Mapping]],2,FALSE) -> Ukraine | L13: All the 8 hours baby, all the 8! | N13: =IF(tblSalaries[[#This Row],[Years of Experience]]="","",IF(tblSalaries[[#This Row],[Years of Experience]]<=2,1,"")) ->  | O13: =IF(tblSalaries[[#This Row],[Years of Experience]]="","",IF(AND(tblSalaries[[#This Row],[Years of Experience]]>2,tblSalaries[[#This Row],[Years of Experience]]<=5),1,"")) ->  | P13: =IF(tblSalaries[[#This Row],[Years of Experience]]="","",IF(AND(tblSalaries[[#This Row],[Years of Experience]]>5,tblSalaries[[#This Row],[Years of Experience]]<=10),1,"")) ->  | Q13: =IF(tblSalaries[[#This Row],[Years of Experience]]="","",IF(AND(tblSalaries[[#This Row],[Years of Experience]]>10,tblSalaries[[#This Row],[Years of Experience]]<=15),1,"")) ->  | R13: =IF(tblSalaries[[#This Row],[Years of Experience]]="","",IF(AND(tblSalaries[[#This Row],[Years of Experience]]>16,tblSalaries[[#This Row],[Years of Experience]]<=20),1,"")) ->  | S13: =IF(tblSalaries[[#This Row],[Years of Experience]]="","",IF(tblSalaries[[#This Row],[Years of Experience]]>20,1,"")) ->  | T13: =IF(tblSalaries[[#This Row],[0-2 Years]]=1,tblSalaries[[#Headers],[0-2 Years]],IF(tblSalaries[[#This Row],[3-5 Years]]=1,tblSalaries[[#Headers],[3-5 Years]],IF(tblSalaries[[#This Row],[5-10 Years]]=1,tblSalaries[[#Headers],[5-10 Years]],IF(tblSalaries[[#This Row],[11-15 Years]]=1,tblSalaries[[#Headers],[11-15 Years]],IF(tblSalaries[[#This Row],[16-20 Years]]=1,tblSalaries[[#Headers],[16-20 Years]],IF(tblSalaries[[#This Row],[20+ Years]]=1,tblSalaries[[#Headers],[20+ Years]],"")))))) ->  | U13: =IF(tblSalaries[[#This Row],[Job Type]]=tblSalaries[[#Headers],[Accountant]],tblSalaries[[#This Row],[Salary in USD]],"") ->  | V13: =IF(tblSalaries[[#This Row],[Job Type]]=tblSalaries[[#Headers],[Analyst]],tblSalaries[[#This Row],[Salary in USD]],"") -> 12000 | W13: =IF(tblSalaries[[#This Row],[Job Type]]=tblSalaries[[#Headers],[Consultant]],tblSalaries[[#This Row],[Salary in USD]],"") ->  | X13: =IF(tblSalaries[[#This Row],[Job Type]]=tblSalaries[[#Headers],[Controller]],tblSalaries[[#This Row],[Salary in USD]],"") ->  | Y13: =IF(tblSalaries[[#This Row],[Job Type]]=tblSalaries[[#Headers],[CXO or Top Mgmt.]],tblSalaries[[#This Row],[clean Salary (in local currency)]],"") ->  | Z13: =IF(tblSalaries[[#This Row],[Job Type]]=tblSalaries[[#Headers],[Engineer]],tblSalaries[[#This Row],[Salary in USD]],"") ->  | AA13: =IF(tblSalaries[[#This Row],[Job Type]]=tblSalaries[[#Headers],[Manager]],tblSalaries[[#This Row],[Salary in USD]],"") ->  | AB13: =IF(tblSalaries[[#This Row],[Job Type]]=tblSalaries[[#Headers],[Misc.]],tblSalaries[[#This Row],[Salary in USD]],"") ->  | AC13: =IF(tblSalaries[[#This Row],[Job Type]]=tblSalaries[[#Headers],[Reporting]],tblSalaries[[#This Row],[Salary in USD]],"") ->  | AD13: =IF(tblSalaries[[#This Row],[Job Type]]=tblSalaries[[#Headers],[Specialist]],tblSalaries[[#This Row],[Salary in USD]],"") -> 
B14: ID0009 | C14: 2012-05-25T03:37:17 | D14: 44000 $ | E14: 44000 | F14: USD | G14: =tblSalaries[[#This Row],[clean Salary (in local currency)]]*VLOOKUP(tblSalaries[[#This Row],[Currency]],tblXrate[],2,FALSE) -> 44000 | H14: CFO | I14: CXO or Top Mgmt. | J14: Portugal | K14: =VLOOKUP(tblSalaries[[#This Row],[Where do you work]],tblCountries[[Actual]:[Mapping]],2,FALSE) -> Portugal | L14: 1 or 2 hours a day | N14: =IF(tblSalaries[[#This Row],[Years of Experience]]="","",IF(tblSalaries[[#This Row],[Years of Experience]]<=2,1,"")) ->  | O14: =IF(tblSalaries[[#This Row],[Years of Experience]]="","",IF(AND(tblSalaries[[#This Row],[Years of Experience]]>2,tblSalaries[[#This Row],[Years of Experience]]<=5),1,"")) ->  | P14: =IF(tblSalaries[[#This Row],[Years of Experience]]="","",IF(AND(tblSalaries[[#This Row],[Years of Experience]]>5,tblSalaries[[#This Row],[Years of Experience]]<=10),1,"")) ->  | Q14: =IF(tblSalaries[[#This Row],[Years of Experience]]="","",IF(AND(tblSalaries[[#This Row],[Years of Experience]]>10,tblSalaries[[#This Row],[Years of Experience]]<=15),1,"")) ->  | R14: =IF(tblSalaries[[#This Row],[Years of Experience]]="","",IF(AND(tblSalaries[[#This Row],[Years of Experience]]>16,tblSalaries[[#This Row],[Years of Experience]]<=20),1,"")) ->  | S14: =IF(tblSalaries[[#This Row],[Years of Experience]]="","",IF(tblSalaries[[#This Row],[Years of Experience]]>20,1,"")) ->  | T14: =IF(tblSalaries[[#This Row],[0-2 Years]]=1,tblSalaries[[#Headers],[0-2 Years]],IF(tblSalaries[[#This Row],[3-5 Years]]=1,tblSalaries[[#Headers],[3-5 Years]],IF(tblSalaries[[#This Row],[5-10 Years]]=1,tblSalaries[[#Headers],[5-10 Years]],IF(tblSalaries[[#This Row],[11-15 Years]]=1,tblSalaries[[#Headers],[11-15 Years]],IF(tblSalaries[[#This Row],[16-20 Years]]=1,tblSalaries[[#Headers],[16-20 Years]],IF(tblSalaries[[#This Row],[20+ Years]]=1,tblSalaries[[#Headers],[20+ Years]],"")))))) ->  | U14: =IF(tblSalaries[[#This Row],[Job Type]]=tblSalaries[[#Headers],[Accountant]],tblSalaries[[#This Row],[Salary in USD]],"") ->  | V14: =IF(tblSalaries[[#This Row],[Job Type]]=tblSalaries[[#Headers],[Analyst]],tblSalaries[[#This Row],[Salary in USD]],"") ->  | W14: =IF(tblSalaries[[#This Row],[Job Type]]=tblSalaries[[#Headers],[Consultant]],tblSalaries[[#This Row],[Salary in USD]],"") ->  | X14: =IF(tblSalaries[[#This Row],[Job Type]]=tblSalaries[[#Headers],[Controller]],tblSalaries[[#This Row],[Salary in USD]],"") ->  | Y14: =IF(tblSalaries[[#This Row],[Job Type]]=tblSalaries[[#Headers],[CXO or Top Mgmt.]],tblSalaries[[#This Row],[clean Salary (in local currency)]],"") -> 44000 | Z14: =IF(tblSalaries[[#This Row],[Job Type]]=tblSalaries[[#Headers],[Engineer]],tblSalaries[[#This Row],[Salary in USD]],"") ->  | AA14: =IF(tblSalaries[[#This Row],[Job Type]]=tblSalaries[[#Headers],[Manager]],tblSalaries[[#This Row],[Salary in USD]],"") ->  | AB14: =IF(tblSalaries[[#This Row],[Job Type]]=tblSalaries[[#Headers],[Misc.]],tblSalaries[[#This Row],[Salary in USD]],"") ->  | AC14: =IF(tblSalaries[[#This Row],[Job Type]]=tblSalaries[[#Headers],[Reporting]],tblSalaries[[#This Row],[Salary in USD]],"") ->  | AD14: =IF(tblSalaries[[#This Row],[Job Type]]=tblSalaries[[#Headers],[Specialist]],tblSalaries[[#This Row],[Salary in USD]],"") -> 
B15: ID0010 | C15: 2012-05-25T03:38:57 | D15: PKR 8,000 | E15: 1152000 | F15: PKR | G15: =tblSalaries[[#This Row],[clean Salary (in local currency)]]*VLOOKUP(tblSalaries[[#This Row],[Currency]],tblXrate[],2,FALSE) -> 12227.4302 | H15: Audit Trainee | I15: Accountant | J15: Pakistan | K15: =VLOOKUP(tblSalaries[[#This Row],[Where do you work]],tblCountries[[Actual]:[Mapping]],2,FALSE) -> Pakistan | L15: All the 8 hours baby, all the 8! | N15: =IF(tblSalaries[[#This Row],[Years of Experience]]="","",IF(tblSalaries[[#This Row],[Years of Experience]]<=2,1,"")) ->  | O15: =IF(tblSalaries[[#This Row],[Years of Experience]]="","",IF(AND(tblSalaries[[#This Row],[Years of Experience]]>2,tblSalaries[[#This Row],[Years of Experience]]<=5),1,"")) ->  | P15: =IF(tblSalaries[[#This Row],[Years of Experience]]="","",IF(AND(tblSalaries[[#This Row],[Years of Experience]]>5,tblSalaries[[#This Row],[Years of Experience]]<=10),1,"")) ->  | Q15: =IF(tblSalaries[[#This Row],[Years of Experience]]="","",IF(AND(tblSalaries[[#This Row],[Years of Experience]]>10,tblSalaries[[#This Row],[Years of Experience]]<=15),1,"")) ->  | R15: =IF(tblSalaries[[#This Row],[Years of Experience]]="","",IF(AND(tblSalaries[[#This Row],[Years of Experience]]>16,tblSalaries[[#This Row],[Years of Experience]]<=20),1,"")) ->  | S15: =IF(tblSalaries[[#This Row],[Years of Experience]]="","",IF(tblSalaries[[#This Row],[Years of Experience]]>20,1,"")) ->  | T15: =IF(tblSalaries[[#This Row],[0-2 Years]]=1,tblSalaries[[#Headers],[0-2 Years]],IF(tblSalaries[[#This Row],[3-5 Years]]=1,tblSalaries[[#Headers],[3-5 Years]],IF(tblSalaries[[#This Row],[5-10 Years]]=1,tblSalaries[[#Headers],[5-10 Years]],IF(tblSalaries[[#This Row],[11-15 Years]]=1,tblSalaries[[#Headers],[11-15 Years]],IF(tblSalaries[[#This Row],[16-20 Years]]=1,tblSalaries[[#Headers],[16-20 Years]],IF(tblSalaries[[#This Row],[20+ Years]]=1,tblSalaries[[#Headers],[20+ Years]],"")))))) ->  | U15: =IF(tblSalaries[[#This Row],[Job Type]]=tblSalaries[[#Headers],[Accountant]],tblSalaries[[#This Row],[Salary in USD]],"") -> 12227.4302 | V15: =IF(tblSalaries[[#This Row],[Job Type]]=tblSalaries[[#Headers],[Analyst]],tblSalaries[[#This Row],[Salary in USD]],"") ->  | W15: =IF(tblSalaries[[#This Row],[Job Type]]=tblSalaries[[#Headers],[Consultant]],tblSalaries[[#This Row],[Salary in USD]],"") ->  | X15: =IF(tblSalaries[[#This Row],[Job Type]]=tblSalaries[[#Headers],[Controller]],tblSalaries[[#This Row],[Salary in USD]],"") ->  | Y15: =IF(tblSalaries[[#This Row],[Job Type]]=tblSalaries[[#Headers],[CXO or Top Mgmt.]],tblSalaries[[#This Row],[clean Salary (in local currency)]],"") ->  | Z15: =IF(tblSalaries[[#This Row],[Job Type]]=tblSalaries[[#Headers],[Engineer]],tblSalaries[[#This Row],[Salary in USD]],"") ->  | AA15: =IF(tblSalaries[[#This Row],[Job Type]]=tblSalaries[[#Headers],[Manager]],tblSalaries[[#This Row],[Salary in USD]],"") ->  | AB15: =IF(tblSalaries[[#This Row],[Job Type]]=tblSalaries[[#Headers],[Misc.]],tblSalaries[[#This Row],[Salary in USD]],"") ->  | AC15: =IF(tblSalaries[[#This Row],[Job Type]]=tblSalaries[[#Headers],[Reporting]],tblSalaries[[#This Row],[Salary in USD]],"") ->  | AD15: =IF(tblSalaries[[#This Row],[Job Type]]=tblSalaries[[#Headers],[Specialist]],tblSalaries[[#This Row],[Salary in USD]],"") -> 
B16: ID0011 | C16: 2012-05-25T03:43:45 | D16: â‚¬ 51650 | E16: 51650 | F16: EUR | G16: =tblSalaries[[#This Row],[clean Salary (in local currency)]]*VLOOKUP(tblSalaries[[#This Row],[Currency]],tblXrate[],2,FALSE) -> 65616.13102 | H16: Training Specialist | I16: Specialist | J16: Ireland | K16: =VLOOKUP(tblSalaries[[#This Row],[Where do you work]],tblCountries[[Actual]:[Mapping]],2,FALSE) -> Ireland | L16: 2 to 3 hours per day | N16: =IF(tblSalaries[[#This Row],[Years of Experience]]="","",IF(tblSalaries[[#This Row],[Years of Experience]]<=2,1,"")) ->  | O16: =IF(tblSalaries[[#This Row],[Years of Experience]]="","",IF(AND(tblSalaries[[#This Row],[Years of Experience]]>2,tblSalaries[[#This Row],[Years of Experience]]<=5),1,"")) ->  | P16: =IF(tblSalaries[[#This Row],[Years of Experience]]="","",IF(AND(tblSalaries[[#This Row],[Years of Experience]]>5,tblSalaries[[#This Row],[Years of Experience]]<=10),1,"")) ->  | Q16: =IF(tblSalaries[[#This Row],[Years of Experience]]="","",IF(AND(tblSalaries[[#This Row],[Years of Experience]]>10,tblSalaries[[#This Row],[Years of Experience]]<=15),1,"")) ->  | R16: =IF(tblSalaries[[#This Row],[Years of Experience]]="","",IF(AND(tblSalaries[[#This Row],[Years of Experience]]>16,tblSalaries[[#This Row],[Years of Experience]]<=20),1,"")) ->  | S16: =IF(tblSalaries[[#This Row],[Years of Experience]]="","",IF(tblSalaries[[#This Row],[Years of Experience]]>20,1,"")) ->  | T16: =IF(tblSalaries[[#This Row],[0-2 Years]]=1,tblSalaries[[#Headers],[0-2 Years]],IF(tblSalaries[[#This Row],[3-5 Years]]=1,tblSalaries[[#Headers],[3-5 Years]],IF(tblSalaries[[#This Row],[5-10 Years]]=1,tblSalaries[[#Headers],[5-10 Years]],IF(tblSalaries[[#This Row],[11-15 Years]]=1,tblSalaries[[#Headers],[11-15 Years]],IF(tblSalaries[[#This Row],[16-20 Years]]=1,tblSalaries[[#Headers],[16-20 Years]],IF(tblSalaries[[#This Row],[20+ Years]]=1,tblSalaries[[#Headers],[20+ Years]],"")))))) ->  | U16: =IF(tblSalaries[[#This Row],[Job Type]]=tblSalaries[[#Headers],[Accountant]],tblSalaries[[#This Row],[Salary in USD]],"") ->  | V16: =IF(tblSalaries[[#This Row],[Job Type]]=tblSalaries[[#Headers],[Analyst]],tblSalaries[[#This Row],[Salary in USD]],"") ->  | W16: =IF(tblSalaries[[#This Row],[Job Type]]=tblSalaries[[#Headers],[Consultant]],tblSalaries[[#This Row],[Salary in USD]],"") ->  | X16: =IF(tblSalaries[[#This Row],[Job Type]]=tblSalaries[[#Headers],[Controller]],tblSalaries[[#This Row],[Salary in USD]],"") ->  | Y16: =IF(tblSalaries[[#This Row],[Job Type]]=tblSalaries[[#Headers],[CXO or Top Mgmt.]],tblSalaries[[#This Row],[clean Salary (in local currency)]],"") ->  | Z16: =IF(tblSalaries[[#This Row],[Job Type]]=tblSalaries[[#Headers],[Engineer]],tblSalaries[[#This Row],[Salary in USD]],"") ->  | AA16: =IF(tblSalaries[[#This Row],[Job Type]]=tblSalaries[[#Headers],[Manager]],tblSalaries[[#This Row],[Salary in USD]],"") ->  | AB16: =IF(tblSalaries[[#This Row],[Job Type]]=tblSalaries[[#Headers],[Misc.]],tblSalaries[[#This Row],[Salary in USD]],"") ->  | AC16: =IF(tblSalaries[[#This Row],[Job Type]]=tblSalaries[[#Headers],[Reporting]],tblSalaries[[#This Row],[Salary in USD]],"") ->  | AD16: =IF(tblSalaries[[#This Row],[Job Type]]=tblSalaries[[#Headers],[Specialist]],tblSalaries[[#This Row],[Salary in USD]],"") -> 65616.13102
B17: ID0012 | C17: 2012-05-25T03:43:56 | D17: 14000 | E17: 14000 | F17: USD | G17: =tblSalaries[[#This Row],[clean Salary (in local currency)]]*VLOOKUP(tblSalaries[[#This Row],[Currency]],tblXrate[],2,FALSE) -> 14000 | H17: quality engineer | I17: Engineer | J17: Hungary | K17: =VLOOKUP(tblSalaries[[#This Row],[Where do you work]],tblCountries[[Actual]:[Mapping]],2,FALSE) -> Hungary | L17: 4 to 6 hours a day | N17: =IF(tblSalaries[[#This Row],[Years of Experience]]="","",IF(tblSalaries[[#This Row],[Years of Experience]]<=2,1,"")) ->  | O17: =IF(tblSalaries[[#This Row],[Years of Experience]]="","",IF(AND(tblSalaries[[#This Row],[Years of Experience]]>2,tblSalaries[[#This Row],[Years of Experience]]<=5),1,"")) ->  | P17: =IF(tblSalaries[[#This Row],[Years of Experience]]="","",IF(AND(tblSalaries[[#This Row],[Years of Experience]]>5,tblSalaries[[#This Row],[Years of Experience]]<=10),1,"")) ->  | Q17: =IF(tblSalaries[[#This Row],[Years of Experience]]="","",IF(AND(tblSalaries[[#This Row],[Years of Experience]]>10,tblSalaries[[#This Row],[Years of Experience]]<=15),1,"")) ->  | R17: =IF(tblSalaries[[#This Row],[Years of Experience]]="","",IF(AND(tblSalaries[[#This Row],[Years of Experience]]>16,tblSalaries[[#This Row],[Years of Experience]]<=20),1,"")) ->  | S17: =IF(tblSalaries[[#This Row],[Years of Experience]]="","",IF(tblSalaries[[#This Row],[Years of Experience]]>20,1,"")) ->  | T17: =IF(tblSalaries[[#This Row],[0-2 Years]]=1,tblSalaries[[#Headers],[0-2 Years]],IF(tblSalaries[[#This Row],[3-5 Years]]=1,tblSalaries[[#Headers],[3-5 Years]],IF(tblSalaries[[#This Row],[5-10 Years]]=1,tblSalaries[[#Headers],[5-10 Years]],IF(tblSalaries[[#This Row],[11-15 Years]]=1,tblSalaries[[#Headers],[11-15 Years]],IF(tblSalaries[[#This Row],[16-20 Years]]=1,tblSalaries[[#Headers],[16-20 Years]],IF(tblSalaries[[#This Row],[20+ Years]]=1,tblSalaries[[#Headers],[20+ Years]],"")))))) ->  | U17: =IF(tblSalaries[[#This Row],[Job Type]]=tblSalaries[[#Headers],[Accountant]],tblSalaries[[#This Row],[Salary in USD]],"") ->  | V17: =IF(tblSalaries[[#This Row],[Job Type]]=tblSalaries[[#Headers],[Analyst]],tblSalaries[[#This Row],[Salary in USD]],"") ->  | W17: =IF(tblSalaries[[#This Row],[Job Type]]=tblSalaries[[#Headers],[Consultant]],tblSalaries[[#This Row],[Salary in USD]],"") ->  | X17: =IF(tblSalaries[[#This Row],[Job Type]]=tblSalaries[[#Headers],[Controller]],tblSalaries[[#This Row],[Salary in USD]],"") ->  | Y17: =IF(tblSalaries[[#This Row],[Job Type]]=tblSalaries[[#Headers],[CXO or Top Mgmt.]],tblSalaries[[#This Row],[clean Salary (in local currency)]],"") ->  | Z17: =IF(tblSalaries[[#This Row],[Job Type]]=tblSalaries[[#Headers],[Engineer]],tblSalaries[[#This Row],[Salary in USD]],"") -> 14000 | AA17: =IF(tblSalaries[[#This Row],[Job Type]]=tblSalaries[[#Headers],[Manager]],tblSalaries[[#This Row],[Salary in USD]],"") ->  | AB17: =IF(tblSalaries[[#This Row],[Job Type]]=tblSalaries[[#Headers],[Misc.]],tblSalaries[[#This Row],[Salary in USD]],"") ->  | AC17: =IF(tblSalaries[[#This Row],[Job Type]]=tblSalaries[[#Headers],[Reporting]],tblSalaries[[#This Row],[Salary in USD]],"") ->  | AD17: =IF(tblSalaries[[#This Row],[Job Type]]=tblSalaries[[#Headers],[Specialist]],tblSalaries[[#This Row],[Salary in USD]],"") -> 
B18: ID0013 | C18: 2012-05-25T03:48:53 | D18: 749000 INR | E18: 749000 | F18: INR | G18: =tblSalaries[[#This Row],[clean Salary (in local currency)]]*VLOOKUP(tblSalaries[[#This Row],[Currency]],tblXrate[],2,FALSE) -> 13338.1296 | H18: Senion Analyst | I18: Analyst | J18: India | K18: =VLOOKUP(tblSalaries[[#This Row],[Where do you work]],tblCountries[[Actual]:[Mapping]],2,FALSE) -> India | L18: All the 8 hours baby, all the 8! | N18: =IF(tblSalaries[[#This Row],[Years of Experience]]="","",IF(tblSalaries[[#This Row],[Years of Experience]]<=2,1,"")) ->  | O18: =IF(tblSalaries[[#This Row],[Years of Experience]]="","",IF(AND(tblSalaries[[#This Row],[Years of Experience]]>2,tblSalaries[[#This Row],[Years of Experience]]<=5),1,"")) ->  | P18: =IF(tblSalaries[[#This Row],[Years of Experience]]="","",IF(AND(tblSalaries[[#This Row],[Years of Experience]]>5,tblSalaries[[#This Row],[Years of Experience]]<=10),1,"")) ->  | Q18: =IF(tblSalaries[[#This Row],[Years of Experience]]="","",IF(AND(tblSalaries[[#This Row],[Years of Experience]]>10,tblSalaries[[#This Row],[Years of Experience]]<=15),1,"")) ->  | R18: =IF(tblSalaries[[#This Row],[Years of Experience]]="","",IF(AND(tblSalaries[[#This Row],[Years of Experience]]>16,tblSalaries[[#This Row],[Years of Experience]]<=20),1,"")) ->  | S18: =IF(tblSalaries[[#This Row],[Years of Experience]]="","",IF(tblSalaries[[#This Row],[Years of Experience]]>20,1,"")) ->  | T18: =IF(tblSalaries[[#This Row],[0-2 Years]]=1,tblSalaries[[#Headers],[0-2 Years]],IF(tblSalaries[[#This Row],[3-5 Years]]=1,tblSalaries[[#Headers],[3-5 Years]],IF(tblSalaries[[#This Row],[5-10 Years]]=1,tblSalaries[[#Headers],[5-10 Years]],IF(tblSalaries[[#This Row],[11-15 Years]]=1,tblSalaries[[#Headers],[11-15 Years]],IF(tblSalaries[[#This Row],[16-20 Years]]=1,tblSalaries[[#Headers],[16-20 Years]],IF(tblSalaries[[#This Row],[20+ Years]]=1,tblSalaries[[#Headers],[20+ Years]],"")))))) ->  | U18: =IF(tblSalaries[[#This Row],[Job Type]]=tblSalaries[[#Headers],[Accountant]],tblSalaries[[#This Row],[Salary in USD]],"") ->  | V18: =IF(tblSalaries[[#This Row],[Job Type]]=tblSalaries[[#Headers],[Analyst]],tblSalaries[[#This Row],[Salary in USD]],"") -> 13338.1296 | W18: =IF(tblSalaries[[#This Row],[Job Type]]=tblSalaries[[#Headers],[Consultant]],tblSalaries[[#This Row],[Salary in USD]],"") ->  | X18: =IF(tblSalaries[[#This Row],[Job Type]]=tblSalaries[[#Headers],[Controller]],tblSalaries[[#This Row],[Salary in USD]],"") ->  | Y18: =IF(tblSalaries[[#This Row],[Job Type]]=tblSalaries[[#Headers],[CXO or Top Mgmt.]],tblSalaries[[#This Row],[clean Salary (in local currency)]],"") ->  | Z18: =IF(tblSalaries[[#This Row],[Job Type]]=tblSalaries[[#Headers],[Engineer]],tblSalaries[[#This Row],[Salary in USD]],"") ->  | AA18: =IF(tblSalaries[[#This Row],[Job Type]]=tblSalaries[[#Headers],[Manager]],tblSalaries[[#This Row],[Salary in USD]],"") ->  | AB18: =IF(tblSalaries[[#This Row],[Job Type]]=tblSalaries[[#Headers],[Misc.]],tblSalaries[[#This Row],[Salary in USD]],"") ->  | AC18: =IF(tblSalaries[[#This Row],[Job Type]]=tblSalaries[[#Headers],[Reporting]],tblSalaries[[#This Row],[Salary in USD]],"") ->  | AD18: =IF(tblSalaries[[#This Row],[Job Type]]=tblSalaries[[#Headers],[Specialist]],tblSalaries[[#This Row],[Salary in USD]],"") -> 
B19: ID0014 | C19: 2012-05-25T03:50:58 | D19: 49000 | E19: 49000 | F19: USD | G19: =tblSalaries[[#This Row],[clean Salary (in local currency)]]*VLOOKUP(tblSalaries[[#This Row],[Currency]],tblXrate[],2,FALSE) -> 49000 | H19: business analyst | I19: Analyst | J19: USA | K19: =VLOOKUP(tblSalaries[[#This Row],[Where do you work]],tblCountries[[Actual]:[Mapping]],2,FALSE) -> USA | L19: All the 8 hours baby, all the 8! | N19: =IF(tblSalaries[[#This Row],[Years of Experience]]="","",IF(tblSalaries[[#This Row],[Years of Experience]]<=2,1,"")) ->  | O19: =IF(tblSalaries[[#This Row],[Years of Experience]]="","",IF(AND(tblSalaries[[#This Row],[Years of Experience]]>2,tblSalaries[[#This Row],[Years of Experience]]<=5),1,"")) ->  | P19: =IF(tblSalaries[[#This Row],[Years of Experience]]="","",IF(AND(tblSalaries[[#This Row],[Years of Experience]]>5,tblSalaries[[#This Row],[Years of Experience]]<=10),1,"")) ->  | Q19: =IF(tblSalaries[[#This Row],[Years of Experience]]="","",IF(AND(tblSalaries[[#This Row],[Years of Experience]]>10,tblSalaries[[#This Row],[Years of Experience]]<=15),1,"")) ->  | R19: =IF(tblSalaries[[#This Row],[Years of Experience]]="","",IF(AND(tblSalaries[[#This Row],[Years of Experience]]>16,tblSalaries[[#This Row],[Years of Experience]]<=20),1,"")) ->  | S19: =IF(tblSalaries[[#This Row],[Years of Experience]]="","",IF(tblSalaries[[#This Row],[Years of Experience]]>20,1,"")) ->  | T19: =IF(tblSalaries[[#This Row],[0-2 Years]]=1,tblSalaries[[#Headers],[0-2 Years]],IF(tblSalaries[[#This Row],[3-5 Years]]=1,tblSalaries[[#Headers],[3-5 Years]],IF(tblSalaries[[#This Row],[5-10 Years]]=1,tblSalaries[[#Headers],[5-10 Years]],IF(tblSalaries[[#This Row],[11-15 Years]]=1,tblSalaries[[#Headers],[11-15 Years]],IF(tblSalaries[[#This Row],[16-20 Years]]=1,tblSalaries[[#Headers],[16-20 Years]],IF(tblSalaries[[#This Row],[20+ Years]]=1,tblSalaries[[#Headers],[20+ Years]],"")))))) ->  | U19: =IF(tblSalaries[[#This Row],[Job Type]]=tblSalaries[[#Headers],[Accountant]],tblSalaries[[#This Row],[Salary in USD]],"") ->  | V19: =IF(tblSalaries[[#This Row],[Job Type]]=tblSalaries[[#Headers],[Analyst]],tblSalaries[[#This Row],[Salary in USD]],"") -> 49000 | W19: =IF(tblSalaries[[#This Row],[Job Type]]=tblSalaries[[#Headers],[Consultant]],tblSalaries[[#This Row],[Salary in USD]],"") ->  | X19: =IF(tblSalaries[[#This Row],[Job Type]]=tblSalaries[[#Headers],[Controller]],tblSalaries[[#This Row],[Salary in USD]],"") ->  | Y19: =IF(tblSalaries[[#This Row],[Job Type]]=tblSalaries[[#Headers],[CXO or Top Mgmt.]],tblSalaries[[#This Row],[clean Salary (in local currency)]],"") ->  | Z19: =IF(tblSalaries[[#This Row],[Job Type]]=tblSalaries[[#Headers],[Engineer]],tblSalaries[[#This Row],[Salary in USD]],"") ->  | AA19: =IF(tblSalaries[[#This Row],[Job Type]]=tblSalaries[[#Headers],[Manager]],tblSalaries[[#This Row],[Salary in USD]],"") ->  | AB19: =IF(tblSalaries[[#This Row],[Job Type]]=tblSalaries[[#Headers],[Misc.]],tblSalaries[[#This Row],[Salary in USD]],"") ->  | AC19: =IF(tblSalaries[[#This Row],[Job Type]]=tblSalaries[[#Headers],[Reporting]],tblSalaries[[#This Row],[Salary in USD]],"") ->  | AD19: =IF(tblSalaries[[#This Row],[Job Type]]=tblSalaries[[#Headers],[Specialist]],tblSalaries[[#This Row],[Salary in USD]],"") -> 
B20: ID0015 | C20: 2012-05-25T03:53:22 | D20: 85000 | E20: 85000 | F20: USD | G20: =tblSalaries[[#This Row],[clean Salary (in local currency)]]*VLOOKUP(tblSalaries[[#This Row],[Currency]],tblXrate[],2,FALSE) -> 85000 | H20: Project Engineer | I20: Engineer | J20: USA | K20: =VLOOKUP(tblSalaries[[#This Row],[Where do you work]],tblCountries[[Actual]:[Mapping]],2,FALSE) -> USA | L20: 1 or 2 hours a day | N20: =IF(tblSalaries[[#This Row],[Years of Experience]]="","",IF(tblSalaries[[#This Row],[Years of Experience]]<=2,1,"")) ->  | O20: =IF(tblSalaries[[#This Row],[Years of Experience]]="","",IF(AND(tblSalaries[[#This Row],[Years of Experience]]>2,tblSalaries[[#This Row],[Years of Experience]]<=5),1,"")) ->  | P20: =IF(tblSalaries[[#This Row],[Years of Experience]]="","",IF(AND(tblSalaries[[#This Row],[Years of Experience]]>5,tblSalaries[[#This Row],[Years of Experience]]<=10),1,"")) ->  | Q20: =IF(tblSalaries[[#This Row],[Years of Experience]]="","",IF(AND(tblSalaries[[#This Row],[Years of Experience]]>10,tblSalaries[[#This Row],[Years of Experience]]<=15),1,"")) ->  | R20: =IF(tblSalaries[[#This Row],[Years of Experience]]="","",IF(AND(tblSalaries[[#This Row],[Years of Experience]]>16,tblSalaries[[#This Row],[Years of Experience]]<=20),1,"")) ->  | S20: =IF(tblSalaries[[#This Row],[Years of Experience]]="","",IF(tblSalaries[[#This Row],[Years of Experience]]>20,1,"")) ->  | T20: =IF(tblSalaries[[#This Row],[0-2 Years]]=1,tblSalaries[[#Headers],[0-2 Years]],IF(tblSalaries[[#This Row],[3-5 Years]]=1,tblSalaries[[#Headers],[3-5 Years]],IF(tblSalaries[[#This Row],[5-10 Years]]=1,tblSalaries[[#Headers],[5-10 Years]],IF(tblSalaries[[#This Row],[11-15 Years]]=1,tblSalaries[[#Headers],[11-15 Years]],IF(tblSalaries[[#This Row],[16-20 Years]]=1,tblSalaries[[#Headers],[16-20 Years]],IF(tblSalaries[[#This Row],[20+ Years]]=1,tblSalaries[[#Headers],[20+ Years]],"")))))) ->  | U20: =IF(tblSalaries[[#This Row],[Job Type]]=tblSalaries[[#Headers],[Accountant]],tblSalaries[[#This Row],[Salary in USD]],"") ->  | V20: =IF(tblSalaries[[#This Row],[Job Type]]=tblSalaries[[#Headers],[Analyst]],tblSalaries[[#This Row],[Salary in USD]],"") ->  | W20: =IF(tblSalaries[[#This Row],[Job Type]]=tblSalaries[[#Headers],[Consultant]],tblSalaries[[#This Row],[Salary in USD]],"") ->  | X20: =IF(tblSalaries[[#This Row],[Job Type]]=tblSalaries[[#Headers],[Controller]],tblSalaries[[#This Row],[Salary in USD]],"") ->  | Y20: =IF(tblSalaries[[#This Row],[Job Type]]=tblSalaries[[#Headers],[CXO or Top Mgmt.]],tblSalaries[[#This Row],[clean Salary (in local currency)]],"") ->  | Z20: =IF(tblSalaries[[#This Row],[Job Type]]=tblSalaries[[#Headers],[Engineer]],tblSalaries[[#This Row],[Salary in USD]],"") -> 85000 | AA20: =IF(tblSalaries[[#This Row],[Job Type]]=tblSalaries[[#Headers],[Manager]],tblSalaries[[#This Row],[Salary in USD]],"") ->  | AB20: =IF(tblSalaries[[#This Row],[Job Type]]=tblSalaries[[#Headers],[Misc.]],tblSalaries[[#This Row],[Salary in USD]],"") ->  | AC20: =IF(tblSalaries[[#This Row],[Job Type]]=tblSalaries[[#Headers],[Reporting]],tblSalaries[[#This Row],[Salary in USD]],"") ->  | AD20: =IF(tblSalaries[[#This Row],[Job Type]]=tblSalaries[[#Headers],[Specialist]],tblSalaries[[#This Row],[Salary in USD]],"") -> 
B21: ID0016 | C21: 2012-05-25T03:56:40 | D21: 75000 | E21: 75000 | F21: USD | G21: =tblSalaries[[#This Row],[clean Salary (in local currency)]]*VLOOKUP(tblSalaries[[#This Row],[Currency]],tblXrate[],2,FALSE) -> 75000 | H21: Sr Project Engineer | I21: Engineer | J21: USA | K21: =VLOOKUP(tblSalaries[[#This Row],[Where do you work]],tblCountries[[Actual]:[Mapping]],2,FALSE) -> USA | L21: All the 8 hours baby, all the 8! | N21: =IF(tblSalaries[[#This Row],[Years of Experience]]="","",IF(tblSalaries[[#This Row],[Years of Experience]]<=2,1,"")) ->  | O21: =IF(tblSalaries[[#This Row],[Years of Experience]]="","",IF(AND(tblSalaries[[#This Row],[Years of Experience]]>2,tblSalaries[[#This Row],[Years of Experience]]<=5),1,"")) ->  | P21: =IF(tblSalaries[[#This Row],[Years of Experience]]="","",IF(AND(tblSalaries[[#This Row],[Years of Experience]]>5,tblSalaries[[#This Row],[Years of Experience]]<=10),1,"")) ->  | Q21: =IF(tblSalaries[[#This Row],[Years of Experience]]="","",IF(AND(tblSalaries[[#This Row],[Years of Experience]]>10,tblSalaries[[#This Row],[Years of Experience]]<=15),1,"")) ->  | R21: =IF(tblSalaries[[#This Row],[Years of Experience]]="","",IF(AND(tblSalaries[[#This Row],[Years of Experience]]>16,tblSalaries[[#This Row],[Years of Experience]]<=20),1,"")) ->  | S21: =IF(tblSalaries[[#This Row],[Years of Experience]]="","",IF(tblSalaries[[#This Row],[Years of Experience]]>20,1,"")) ->  | T21: =IF(tblSalaries[[#This Row],[0-2 Years]]=1,tblSalaries[[#Headers],[0-2 Years]],IF(tblSalaries[[#This Row],[3-5 Years]]=1,tblSalaries[[#Headers],[3-5 Years]],IF(tblSalaries[[#This Row],[5-10 Years]]=1,tblSalaries[[#Headers],[5-10 Years]],IF(tblSalaries[[#This Row],[11-15 Years]]=1,tblSalaries[[#Headers],[11-15 Years]],IF(tblSalaries[[#This Row],[16-20 Years]]=1,tblSalaries[[#Headers],[16-20 Years]],IF(tblSalaries[[#This Row],[20+ Years]]=1,tblSalaries[[#Headers],[20+ Years]],"")))))) ->  | U21: =IF(tblSalaries[[#This Row],[Job Type]]=tblSalaries[[#Headers],[Accountant]],tblSalaries[[#This Row],[Salary in USD]],"") ->  | V21: =IF(tblSalaries[[#This Row],[Job Type]]=tblSalaries[[#Headers],[Analyst]],tblSalaries[[#This Row],[Salary in USD]],"") ->  | W21: =IF(tblSalaries[[#This Row],[Job Type]]=tblSalaries[[#Headers],[Consultant]],tblSalaries[[#This Row],[Salary in USD]],"") ->  | X21: =IF(tblSalaries[[#This Row],[Job Type]]=tblSalaries[[#Headers],[Controller]],tblSalaries[[#This Row],[Salary in USD]],"") ->  | Y21: =IF(tblSalaries[[#This Row],[Job Type]]=tblSalaries[[#Headers],[CXO or Top Mgmt.]],tblSalaries[[#This Row],[clean Salary (in local currency)]],"") ->  | Z21: =IF(tblSalaries[[#This Row],[Job Type]]=tblSalaries[[#Headers],[Engineer]],tblSalaries[[#This Row],[Salary in USD]],"") -> 75000 | AA21: =IF(tblSalaries[[#This Row],[Job Type]]=tblSalaries[[#Headers],[Manager]],tblSalaries[[#This Row],[Salary in USD]],"") ->  | AB21: =IF(tblSalaries[[#This Row],[Job Type]]=tblSalaries[[#Headers],[Misc.]],tblSalaries[[#This Row],[Salary in USD]],"") ->  | AC21: =IF(tblSalaries[[#This Row],[Job Type]]=tblSalaries[[#Headers],[Reporting]],tblSalaries[[#This Row],[Salary in USD]],"") ->  | AD21: =IF(tblSalaries[[#This Row],[Job Type]]=tblSalaries[[#Headers],[Specialist]],tblSalaries[[#This Row],[Salary in USD]],"") -> 
B22: ID0017 | C22: 2012-05-25T04:10:11 | D22: 107000 | E22: 107000 | F22: USD | G22: =tblSalaries[[#This Row],[clean Salary (in local currency)]]*VLOOKUP(tblSalaries[[#This Row],[Currency]],tblXrate[],2,FALSE) -> 107000 | H22: Business Development | I22: Manager | J22: Switzerland | K22: =VLOOKUP(tblSalaries[[#This Row],[Where do you work]],tblCountries[[Actual]:[Mapping]],2,FALSE) -> Switzerland | L22: 4 to 6 hours a day | N22: =IF(tblSalaries[[#This Row],[Years of Experience]]="","",IF(tblSalaries[[#This Row],[Years of Experience]]<=2,1,"")) ->  | O22: =IF(tblSalaries[[#This Row],[Years of Experience]]="","",IF(AND(tblSalaries[[#This Row],[Years of Experience]]>2,tblSalaries[[#This Row],[Years of Experience]]<=5),1,"")) ->  | P22: =IF(tblSalaries[[#This Row],[Years of Experience]]="","",IF(AND(tblSalaries[[#This Row],[Years of Experience]]>5,tblSalaries[[#This Row],[Years of Experience]]<=10),1,"")) ->  | Q22: =IF(tblSalaries[[#This Row],[Years of Experience]]="","",IF(AND(tblSalaries[[#This Row],[Years of Experience]]>10,tblSalaries[[#This Row],[Years of Experience]]<=15),1,"")) ->  | R22: =IF(tblSalaries[[#This Row],[Years of Experience]]="","",IF(AND(tblSalaries[[#This Row],[Years of Experience]]>16,tblSalaries[[#This Row],[Years of Experience]]<=20),1,"")) ->  | S22: =IF(tblSalaries[[#This Row],[Years of Experience]]="","",IF(tblSalaries[[#This Row],[Years of Experience]]>20,1,"")) ->  | T22: =IF(tblSalaries[[#This Row],[0-2 Years]]=1,tblSalaries[[#Headers],[0-2 Years]],IF(tblSalaries[[#This Row],[3-5 Years]]=1,tblSalaries[[#Headers],[3-5 Years]],IF(tblSalaries[[#This Row],[5-10 Years]]=1,tblSalaries[[#Headers],[5-10 Years]],IF(tblSalaries[[#This Row],[11-15 Years]]=1,tblSalaries[[#Headers],[11-15 Years]],IF(tblSalaries[[#This Row],[16-20 Years]]=1,tblSalaries[[#Headers],[16-20 Years]],IF(tblSalaries[[#This Row],[20+ Years]]=1,tblSalaries[[#Headers],[20+ Years]],"")))))) ->  | U22: =IF(tblSalaries[[#This Row],[Job Type]]=tblSalaries[[#Headers],[Accountant]],tblSalaries[[#This Row],[Salary in USD]],"") ->  | V22: =IF(tblSalaries[[#This Row],[Job Type]]=tblSalaries[[#Headers],[Analyst]],tblSalaries[[#This Row],[Salary in USD]],"") ->  | W22: =IF(tblSalaries[[#This Row],[Job Type]]=tblSalaries[[#Headers],[Consultant]],tblSalaries[[#This Row],[Salary in USD]],"") ->  | X22: =IF(tblSalaries[[#This Row],[Job Type]]=tblSalaries[[#Headers],[Controller]],tblSalaries[[#This Row],[Salary in USD]],"") ->  | Y22: =IF(tblSalaries[[#This Row],[Job Type]]=tblSalaries[[#Headers],[CXO or Top Mgmt.]],tblSalaries[[#This Row],[clean Salary (in local currency)]],"") ->  | Z22: =IF(tblSalaries[[#This Row],[Job Type]]=tblSalaries[[#Headers],[Engineer]],tblSalaries[[#This Row],[Salary in USD]],"") ->  | AA22: =IF(tblSalaries[[#This Row],[Job Type]]=tblSalaries[[#Headers],[Manager]],tblSalaries[[#This Row],[Salary in USD]],"") -> 107000 | AB22: =IF(tblSalaries[[#This Row],[Job Type]]=tblSalaries[[#Headers],[Misc.]],tblSalaries[[#This Row],[Salary in USD]],"") ->  | AC22: =IF(tblSalaries[[#This Row],[Job Type]]=tblSalaries[[#Headers],[Reporting]],tblSalaries[[#This Row],[Salary in USD]],"") ->  | AD22: =IF(tblSalaries[[#This Row],[Job Type]]=tblSalaries[[#Headers],[Specialist]],tblSalaries[[#This Row],[Salary in USD]],"") -> 
B23: ID0018 | C23: 2012-05-25T04:10:44 | D23: 45000 | E23: 45000 | F23: USD | G23: =tblSalaries[[#This Row],[clean Salary (in local currency)]]*VLOOKUP(tblSalaries[[#This Row],[Currency]],tblXrate[],2,FALSE) -> 45000 | H23: Excel Report Writer | I23: Reporting | J23: South Africa | K23: =VLOOKUP(tblSalaries[[#This Row],[Where do you work]],tblCountries[[Actual]:[Mapping]],2,FALSE) -> South Africa | L23: All the 8 hours baby, all the 8! | N23: =IF(tblSalaries[[#This Row],[Years of Experience]]="","",IF(tblSalaries[[#This Row],[Years of Experience]]<=2,1,"")) ->  | O23: =IF(tblSalaries[[#This Row],[Years of Experience]]="","",IF(AND(tblSalaries[[#This Row],[Years of Experience]]>2,tblSalaries[[#This Row],[Years of Experience]]<=5),1,"")) ->  | P23: =IF(tblSalaries[[#This Row],[Years of Experience]]="","",IF(AND(tblSalaries[[#This Row],[Years of Experience]]>5,tblSalaries[[#This Row],[Years of Experience]]<=10),1,"")) ->  | Q23: =IF(tblSalaries[[#This Row],[Years of Experience]]="","",IF(AND(tblSalaries[[#This Row],[Years of Experience]]>10,tblSalaries[[#This Row],[Years of Experience]]<=15),1,"")) ->  | R23: =IF(tblSalaries[[#This Row],[Years of Experience]]="","",IF(AND(tblSalaries[[#This Row],[Years of Experience]]>16,tblSalaries[[#This Row],[Years of Experience]]<=20),1,"")) ->  | S23: =IF(tblSalaries[[#This Row],[Years of Experience]]="","",IF(tblSalaries[[#This Row],[Years of Experience]]>20,1,"")) ->  | T23: =IF(tblSalaries[[#This Row],[0-2 Years]]=1,tblSalaries[[#Headers],[0-2 Years]],IF(tblSalaries[[#This Row],[3-5 Years]]=1,tblSalaries[[#Headers],[3-5 Years]],IF(tblSalaries[[#This Row],[5-10 Years]]=1,tblSalaries[[#Headers],[5-10 Years]],IF(tblSalaries[[#This Row],[11-15 Years]]=1,tblSalaries[[#Headers],[11-15 Years]],IF(tblSalaries[[#This Row],[16-20 Years]]=1,tblSalaries[[#Headers],[16-20 Years]],IF(tblSalaries[[#This Row],[20+ Years]]=1,tblSalaries[[#Headers],[20+ Years]],"")))))) ->  | U23: =IF(tblSalaries[[#This Row],[Job Type]]=tblSalaries[[#Headers],[Accountant]],tblSalaries[[#This Row],[Salary in USD]],"") ->  | V23: =IF(tblSalaries[[#This Row],[Job Type]]=tblSalaries[[#Headers],[Analyst]],tblSalaries[[#This Row],[Salary in USD]],"") ->  | W23: =IF(tblSalaries[[#This Row],[Job Type]]=tblSalaries[[#Headers],[Consultant]],tblSalaries[[#This Row],[Salary in USD]],"") ->  | X23: =IF(tblSalaries[[#This Row],[Job Type]]=tblSalaries[[#Headers],[Controller]],tblSalaries[[#This Row],[Salary in USD]],"") ->  | Y23: =IF(tblSalaries[[#This Row],[Job Type]]=tblSalaries[[#Headers],[CXO or Top Mgmt.]],tblSalaries[[#This Row],[clean Salary (in local currency)]],"") ->  | Z23: =IF(tblSalaries[[#This Row],[Job Type]]=tblSalaries[[#Headers],[Engineer]],tblSalaries[[#This Row],[Salary in USD]],"") ->  | AA23: =IF(tblSalaries[[#This Row],[Job Type]]=tblSalaries[[#Headers],[Manager]],tblSalaries[[#This Row],[Salary in USD]],"") ->  | AB23: =IF(tblSalaries[[#This Row],[Job Type]]=tblSalaries[[#Headers],[Misc.]],tblSalaries[[#This Row],[Salary in USD]],"") ->  | AC23: =IF(tblSalaries[[#This Row],[Job Type]]=tblSalaries[[#Headers],[Reporting]],tblSalaries[[#This Row],[Salary in USD]],"") -> 45000 | AD23: =IF(tblSalaries[[#This Row],[Job Type]]=tblSalaries[[#Headers],[Specialist]],tblSalaries[[#This Row],[Salary in USD]],"") -> 
B24: ID0019 | C24: 2012-05-25T04:16:32 | D24: 550000 | E24: 550000 | F24: INR | G24: =tblSalaries[[#This Row],[clean Salary (in local currency)]]*VLOOKUP(tblSalaries[[#This Row],[Currency]],tblXrate[],2,FALSE) -> 9794.354178 | H24: AGM | I24: Manager | J24: India | K24: =VLOOKUP(tblSalaries[[#This Row],[Where do you work]],tblCountries[[Actual]:[Mapping]],2,FALSE) -> India | L24: 2 to 3 hours per day | N24: =IF(tblSalaries[[#This Row],[Years of Experience]]="","",IF(tblSalaries[[#This Row],[Years of Experience]]<=2,1,"")) ->  | O24: =IF(tblSalaries[[#This Row],[Years of Experience]]="","",IF(AND(tblSalaries[[#This Row],[Years of Experience]]>2,tblSalaries[[#This Row],[Years of Experience]]<=5),1,"")) ->  | P24: =IF(tblSalaries[[#This Row],[Years of Experience]]="","",IF(AND(tblSalaries[[#This Row],[Years of Experience]]>5,tblSalaries[[#This Row],[Years of Experience]]<=10),1,"")) ->  | Q24: =IF(tblSalaries[[#This Row],[Years of Experience]]="","",IF(AND(tblSalaries[[#This Row],[Years of Experience]]>10,tblSalaries[[#This Row],[Years of Experience]]<=15),1,"")) ->  | R24: =IF(tblSalaries[[#This Row],[Years of Experience]]="","",IF(AND(tblSalaries[[#This Row],[Years of Experience]]>16,tblSalaries[[#This Row],[Years of Experience]]<=20),1,"")) ->  | S24: =IF(tblSalaries[[#This Row],[Years of Experience]]="","",IF(tblSalaries[[#This Row],[Years of Experience]]>20,1,"")) ->  | T24: =IF(tblSalaries[[#This Row],[0-2 Years]]=1,tblSalaries[[#Headers],[0-2 Years]],IF(tblSalaries[[#This Row],[3-5 Years]]=1,tblSalaries[[#Headers],[3-5 Years]],IF(tblSalaries[[#This Row],[5-10 Years]]=1,tblSalaries[[#Headers],[5-10 Years]],IF(tblSalaries[[#This Row],[11-15 Years]]=1,tblSalaries[[#Headers],[11-15 Years]],IF(tblSalaries[[#This Row],[16-20 Years]]=1,tblSalaries[[#Headers],[16-20 Years]],IF(tblSalaries[[#This Row],[20+ Years]]=1,tblSalaries[[#Headers],[20+ Years]],"")))))) ->  | U24: =IF(tblSalaries[[#This Row],[Job Type]]=tblSalaries[[#Headers],[Accountant]],tblSalaries[[#This Row],[Salary in USD]],"") ->  | V24: =IF(tblSalaries[[#This Row],[Job Type]]=tblSalaries[[#Headers],[Analyst]],tblSalaries[[#This Row],[Salary in USD]],"") ->  | W24: =IF(tblSalaries[[#This Row],[Job Type]]=tblSalaries[[#Headers],[Consultant]],tblSalaries[[#This Row],[Salary in USD]],"") ->  | X24: =IF(tblSalaries[[#This Row],[Job Type]]=tblSalaries[[#Headers],[Controller]],tblSalaries[[#This Row],[Salary in USD]],"") ->  | Y24: =IF(tblSalaries[[#This Row],[Job Type]]=tblSalaries[[#Headers],[CXO or Top Mgmt.]],tblSalaries[[#This Row],[clean Salary (in local currency)]],"") ->  | Z24: =IF(tblSalaries[[#This Row],[Job Type]]=tblSalaries[[#Headers],[Engineer]],tblSalaries[[#This Row],[Salary in USD]],"") ->  | AA24: =IF(tblSalaries[[#This Row],[Job Type]]=tblSalaries[[#Headers],[Manager]],tblSalaries[[#This Row],[Salary in USD]],"") -> 9794.354178 | AB24: =IF(tblSalaries[[#This Row],[Job Type]]=tblSalaries[[#Headers],[Misc.]],tblSalaries[[#This Row],[Salary in USD]],"") ->  | AC24: =IF(tblSalaries[[#This Row],[Job Type]]=tblSalaries[[#Headers],[Reporting]],tblSalaries[[#This Row],[Salary in USD]],"") ->  | AD24: =IF(tblSalaries[[#This Row],[Job Type]]=tblSalaries[[#Headers],[Specialist]],tblSalaries[[#This Row],[Salary in USD]],"") -> 
B25: ID0020 | C25: 2012-05-25T04:19:22 | D25: 50000 | E25: 50000 | F25: USD | G25: =tblSalaries[[#This Row],[clean Salary (in local currency)]]*VLOOKUP(tblSalaries[[#This Row],[Currency]],tblXrate[],2,FALSE) -> 50000 | H25: GM | I25: Manager | J25: India | K25: =VLOOKUP(tblSalaries[[#This Row],[Where do you work]],tblCountries[[Actual]:[Mapping]],2,FALSE) -> India | L25: 1 or 2 hours a day | N25: =IF(tblSalaries[[#This Row],[Years of Experience]]="","",IF(tblSalaries[[#This Row],[Years of Experience]]<=2,1,"")) ->  | O25: =IF(tblSalaries[[#This Row],[Years of Experience]]="","",IF(AND(tblSalaries[[#This Row],[Years of Experience]]>2,tblSalaries[[#This Row],[Years of Experience]]<=5),1,"")) ->  | P25: =IF(tblSalaries[[#This Row],[Years of Experience]]="","",IF(AND(tblSalaries[[#This Row],[Years of Experience]]>5,tblSalaries[[#This Row],[Years of Experience]]<=10),1,"")) ->  | Q25: =IF(tblSalaries[[#This Row],[Years of Experience]]="","",IF(AND(tblSalaries[[#This Row],[Years of Experience]]>10,tblSalaries[[#This Row],[Years of Experience]]<=15),1,"")) ->  | R25: =IF(tblSalaries[[#This Row],[Years of Experience]]="","",IF(AND(tblSalaries[[#This Row],[Years of Experience]]>16,tblSalaries[[#This Row],[Years of Experience]]<=20),1,"")) ->  | S25: =IF(tblSalaries[[#This Row],[Years of Experience]]="","",IF(tblSalaries[[#This Row],[Years of Experience]]>20,1,"")) ->  | T25: =IF(tblSalaries[[#This Row],[0-2 Years]]=1,tblSalaries[[#Headers],[0-2 Years]],IF(tblSalaries[[#This Row],[3-5 Years]]=1,tblSalaries[[#Headers],[3-5 Years]],IF(tblSalaries[[#This Row],[5-10 Years]]=1,tblSalaries[[#Headers],[5-10 Years]],IF(tblSalaries[[#This Row],[11-15 Years]]=1,tblSalaries[[#Headers],[11-15 Years]],IF(tblSalaries[[#This Row],[16-20 Years]]=1,tblSalaries[[#Headers],[16-20 Years]],IF(tblSalaries[[#This Row],[20+ Years]]=1,tblSalaries[[#Headers],[20+ Years]],"")))))) ->  | U25: =IF(tblSalaries[[#This Row],[Job Type]]=tblSalaries[[#Headers],[Accountant]],tblSalaries[[#This Row],[Salary in USD]],"") ->  | V25: =IF(tblSalaries[[#This Row],[Job Type]]=tblSalaries[[#Headers],[Analyst]],tblSalaries[[#This Row],[Salary in USD]],"") ->  | W25: =IF(tblSalaries[[#This Row],[Job Type]]=tblSalaries[[#Headers],[Consultant]],tblSalaries[[#This Row],[Salary in USD]],"") ->  | X25: =IF(tblSalaries[[#This Row],[Job Type]]=tblSalaries[[#Headers],[Controller]],tblSalaries[[#This Row],[Salary in USD]],"") ->  | Y25: =IF(tblSalaries[[#This Row],[Job Type]]=tblSalaries[[#Headers],[CXO or Top Mgmt.]],tblSalaries[[#This Row],[clean Salary (in local currency)]],"") ->  | Z25: =IF(tblSalaries[[#This Row],[Job Type]]=tblSalaries[[#Headers],[Engineer]],tblSalaries[[#This Row],[Salary in USD]],"") ->  | AA25: =IF(tblSalaries[[#This Row],[Job Type]]=tblSalaries[[#Headers],[Manager]],tblSalaries[[#This Row],[Salary in USD]],"") -> 50000 | AB25: =IF(tblSalaries[[#This Row],[Job Type]]=tblSalaries[[#Headers],[Misc.]],tblSalaries[[#This Row],[Salary in USD]],"") ->  | AC25: =IF(tblSalaries[[#This Row],[Job Type]]=tblSalaries[[#Headers],[Reporting]],tblSalaries[[#This Row],[Salary in USD]],"") ->  | AD25: =IF(tblSalaries[[#This Row],[Job Type]]=tblSalaries[[#Headers],[Specialist]],tblSalaries[[#This Row],[Salary in USD]],"") -> 
B26: ID0021 | C26: 2012-05-25T04:24:01 | D26: 13500 | E26: 13500 | F26: USD | G26: =tblSalaries[[#This Row],[clean Salary (in local currency)]]*VLOOKUP(tblSalaries[[#This Row],[Currency]],tblXrate[],2,FALSE) -> 13500 | H26: DSE Co-ordinator | I26: Manager | J26: India | K26: =VLOOKUP(tblSalaries[[#This Row],[Where do you work]],tblCountries[[Actual]:[Mapping]],2,FALSE) -> India | L26: 4 to 6 hours a day | N26: =IF(tblSalaries[[#This Row],[Years of Experience]]="","",IF(tblSalaries[[#This Row],[Years of Experience]]<=2,1,"")) ->  | O26: =IF(tblSalaries[[#This Row],[Years of Experience]]="","",IF(AND(tblSalaries[[#This Row],[Years of Experience]]>2,tblSalaries[[#This Row],[Years of Experience]]<=5),1,"")) ->  | P26: =IF(tblSalaries[[#This Row],[Years of Experience]]="","",IF(AND(tblSalaries[[#This Row],[Years of Experience]]>5,tblSalaries[[#This Row],[Years of Experience]]<=10),1,"")) ->  | Q26: =IF(tblSalaries[[#This Row],[Years of Experience]]="","",IF(AND(tblSalaries[[#This Row],[Years of Experience]]>10,tblSalaries[[#This Row],[Years of Experience]]<=15),1,"")) ->  | R26: =IF(tblSalaries[[#This Row],[Years of Experience]]="","",IF(AND(tblSalaries[[#This Row],[Years of Experience]]>16,tblSalaries[[#This Row],[Years of Experience]]<=20),1,"")) ->  | S26: =IF(tblSalaries[[#This Row],[Years of Experience]]="","",IF(tblSalaries[[#This Row],[Years of Experience]]>20,1,"")) ->  | T26: =IF(tblSalaries[[#This Row],[0-2 Years]]=1,tblSalaries[[#Headers],[0-2 Years]],IF(tblSalaries[[#This Row],[3-5 Years]]=1,tblSalaries[[#Headers],[3-5 Years]],IF(tblSalaries[[#This Row],[5-10 Years]]=1,tblSalaries[[#Headers],[5-10 Years]],IF(tblSalaries[[#This Row],[11-15 Years]]=1,tblSalaries[[#Headers],[11-15 Years]],IF(tblSalaries[[#This Row],[16-20 Years]]=1,tblSalaries[[#Headers],[16-20 Years]],IF(tblSalaries[[#This Row],[20+ Years]]=1,tblSalaries[[#Headers],[20+ Years]],"")))))) ->  | U26: =IF(tblSalaries[[#This Row],[Job Type]]=tblSalaries[[#Headers],[Accountant]],tblSalaries[[#This Row],[Salary in USD]],"") ->  | V26: =IF(tblSalaries[[#This Row],[Job Type]]=tblSalaries[[#Headers],[Analyst]],tblSalaries[[#This Row],[Salary in USD]],"") ->  | W26: =IF(tblSalaries[[#This Row],[Job Type]]=tblSalaries[[#Headers],[Consultant]],tblSalaries[[#This Row],[Salary in USD]],"") ->  | X26: =IF(tblSalaries[[#This Row],[Job Type]]=tblSalaries[[#Headers],[Controller]],tblSalaries[[#This Row],[Salary in USD]],"") ->  | Y26: =IF(tblSalaries[[#This Row],[Job Type]]=tblSalaries[[#Headers],[CXO or Top Mgmt.]],tblSalaries[[#This Row],[clean Salary (in local currency)]],"") ->  | Z26: =IF(tblSalaries[[#This Row],[Job Type]]=tblSalaries[[#Headers],[Engineer]],tblSalaries[[#This Row],[Salary in USD]],"") ->  | AA26: =IF(tblSalaries[[#This Row],[Job Type]]=tblSalaries[[#Headers],[Manager]],tblSalaries[[#This Row],[Salary in USD]],"") -> 13500 | AB26: =IF(tblSalaries[[#This Row],[Job Type]]=tblSalaries[[#Headers],[Misc.]],tblSalaries[[#This Row],[Salary in USD]],"") ->  | AC26: =IF(tblSalaries[[#This Row],[Job Type]]=tblSalaries[[#Headers],[Reporting]],tblSalaries[[#This Row],[Salary in USD]],"") ->  | AD26: =IF(tblSalaries[[#This Row],[Job Type]]=tblSalaries[[#Headers],[Specialist]],tblSalaries[[#This Row],[Salary in USD]],"") -> 
B27: ID0022 | C27: 2012-05-25T04:24:12 | D27: 96000 | E27: 96000 | F27: USD | G27: =tblSalaries[[#This Row],[clean Salary (in local currency)]]*VLOOKUP(tblSalaries[[#This Row],[Currency]],tblXrate[],2,FALSE) -> 96000 | H27: Analyst | I27: Analyst | J27: USA | K27: =VLOOKUP(tblSalaries[[#This Row],[Where do you work]],tblCountries[[Actual]:[Mapping]],2,FALSE) -> USA | L27: 2 to 3 hours per day | N27: =IF(tblSalaries[[#This Row],[Years of Experience]]="","",IF(tblSalaries[[#This Row],[Years of Experience]]<=2,1,"")) ->  | O27: =IF(tblSalaries[[#This Row],[Years of Experience]]="","",IF(AND(tblSalaries[[#This Row],[Years of Experience]]>2,tblSalaries[[#This Row],[Years of Experience]]<=5),1,"")) ->  | P27: =IF(tblSalaries[[#This Row],[Years of Experience]]="","",IF(AND(tblSalaries[[#This Row],[Years of Experience]]>5,tblSalaries[[#This Row],[Years of Experience]]<=10),1,"")) ->  | Q27: =IF(tblSalaries[[#This Row],[Years of Experience]]="","",IF(AND(tblSalaries[[#This Row],[Years of Experience]]>10,tblSalaries[[#This Row],[Years of Experience]]<=15),1,"")) ->  | R27: =IF(tblSalaries[[#This Row],[Years of Experience]]="","",IF(AND(tblSalaries[[#This Row],[Years of Experience]]>16,tblSalaries[[#This Row],[Years of Experience]]<=20),1,"")) ->  | S27: =IF(tblSalaries[[#This Row],[Years of Experience]]="","",IF(tblSalaries[[#This Row],[Years of Experience]]>20,1,"")) ->  | T27: =IF(tblSalaries[[#This Row],[0-2 Years]]=1,tblSalaries[[#Headers],[0-2 Years]],IF(tblSalaries[[#This Row],[3-5 Years]]=1,tblSalaries[[#Headers],[3-5 Years]],IF(tblSalaries[[#This Row],[5-10 Years]]=1,tblSalaries[[#Headers],[5-10 Years]],IF(tblSalaries[[#This Row],[11-15 Years]]=1,tblSalaries[[#Headers],[11-15 Years]],IF(tblSalaries[[#This Row],[16-20 Years]]=1,tblSalaries[[#Headers],[16-20 Years]],IF(tblSalaries[[#This Row],[20+ Years]]=1,tblSalaries[[#Headers],[20+ Years]],"")))))) ->  | U27: =IF(tblSalaries[[#This Row],[Job Type]]=tblSalaries[[#Headers],[Accountant]],tblSalaries[[#This Row],[Salary in USD]],"") ->  | V27: =IF(tblSalaries[[#This Row],[Job Type]]=tblSalaries[[#Headers],[Analyst]],tblSalaries[[#This Row],[Salary in USD]],"") -> 96000 | W27: =IF(tblSalaries[[#This Row],[Job Type]]=tblSalaries[[#Headers],[Consultant]],tblSalaries[[#This Row],[Salary in USD]],"") ->  | X27: =IF(tblSalaries[[#This Row],[Job Type]]=tblSalaries[[#Headers],[Controller]],tblSalaries[[#This Row],[Salary in USD]],"") ->  | Y27: =IF(tblSalaries[[#This Row],[Job Type]]=tblSalaries[[#Headers],[CXO or Top Mgmt.]],tblSalaries[[#This Row],[clean Salary (in local currency)]],"") ->  | Z27: =IF(tblSalaries[[#This Row],[Job Type]]=tblSalaries[[#Headers],[Engineer]],tblSalaries[[#This Row],[Salary in USD]],"") ->  | AA27: =IF(tblSalaries[[#This Row],[Job Type]]=tblSalaries[[#Headers],[Manager]],tblSalaries[[#This Row],[Salary in USD]],"") ->  | AB27: =IF(tblSalaries[[#This Row],[Job Type]]=tblSalaries[[#Headers],[Misc.]],tblSalaries[[#This Row],[Salary in USD]],"") ->  | AC27: =IF(tblSalaries[[#This Row],[Job Type]]=tblSalaries[[#Headers],[Reporting]],tblSalaries[[#This Row],[Salary in USD]],"") ->  | AD27: =IF(tblSalaries[[#This Row],[Job Type]]=tblSalaries[[#Headers],[Specialist]],tblSalaries[[#This Row],[Salary in USD]],"") -> 
B28: ID0023 | C28: 2012-05-25T04:31:41 | D28: 1000000 | E28: 1000000 | F28: INR | G28: =tblSalaries[[#This Row],[clean Salary (in local currency)]]*VLOOKUP(tblSalaries[[#This Row],[Currency]],tblXrate[],2,FALSE) -> 17807.91669 | H28: Manager | I28: Manager | J28: India | K28: =VLOOKUP(tblSalaries[[#This Row],[Where do you work]],tblCountries[[Actual]:[Mapping]],2,FALSE) -> India | L28: 4 to 6 hours a day | N28: =IF(tblSalaries[[#This Row],[Years of Experience]]="","",IF(tblSalaries[[#This Row],[Years of Experience]]<=2,1,"")) ->  | O28: =IF(tblSalaries[[#This Row],[Years of Experience]]="","",IF(AND(tblSalaries[[#This Row],[Years of Experience]]>2,tblSalaries[[#This Row],[Years of Experience]]<=5),1,"")) ->  | P28: =IF(tblSalaries[[#This Row],[Years of Experience]]="","",IF(AND(tblSalaries[[#This Row],[Years of Experience]]>5,tblSalaries[[#This Row],[Years of Experience]]<=10),1,"")) ->  | Q28: =IF(tblSalaries[[#This Row],[Years of Experience]]="","",IF(AND(tblSalaries[[#This Row],[Years of Experience]]>10,tblSalaries[[#This Row],[Years of Experience]]<=15),1,"")) ->  | R28: =IF(tblSalaries[[#This Row],[Years of Experience]]="","",IF(AND(tblSalaries[[#This Row],[Years of Experience]]>16,tblSalaries[[#This Row],[Years of Experience]]<=20),1,"")) ->  | S28: =IF(tblSalaries[[#This Row],[Years of Experience]]="","",IF(tblSalaries[[#This Row],[Years of Experience]]>20,1,"")) ->  | T28: =IF(tblSalaries[[#This Row],[0-2 Years]]=1,tblSalaries[[#Headers],[0-2 Years]],IF(tblSalaries[[#This Row],[3-5 Years]]=1,tblSalaries[[#Headers],[3-5 Years]],IF(tblSalaries[[#This Row],[5-10 Years]]=1,tblSalaries[[#Headers],[5-10 Years]],IF(tblSalaries[[#This Row],[11-15 Years]]=1,tblSalaries[[#Headers],[11-15 Years]],IF(tblSalaries[[#This Row],[16-20 Years]]=1,tblSalaries[[#Headers],[16-20 Years]],IF(tblSalaries[[#This Row],[20+ Years]]=1,tblSalaries[[#Headers],[20+ Years]],"")))))) ->  | U28: =IF(tblSalaries[[#This Row],[Job Type]]=tblSalaries[[#Headers],[Accountant]],tblSalaries[[#This Row],[Salary in USD]],"") ->  | V28: =IF(tblSalaries[[#This Row],[Job Type]]=tblSalaries[[#Headers],[Analyst]],tblSalaries[[#This Row],[Salary in USD]],"") ->  | W28: =IF(tblSalaries[[#This Row],[Job Type]]=tblSalaries[[#Headers],[Consultant]],tblSalaries[[#This Row],[Salary in USD]],"") ->  | X28: =IF(tblSalaries[[#This Row],[Job Type]]=tblSalaries[[#Headers],[Controller]],tblSalaries[[#This Row],[Salary in USD]],"") ->  | Y28: =IF(tblSalaries[[#This Row],[Job Type]]=tblSalaries[[#Headers],[CXO or Top Mgmt.]],tblSalaries[[#This Row],[clean Salary (in local currency)]],"") ->  | Z28: =IF(tblSalaries[[#This Row],[Job Type]]=tblSalaries[[#Headers],[Engineer]],tblSalaries[[#This Row],[Salary in USD]],"") ->  | AA28: =IF(tblSalaries[[#This Row],[Job Type]]=tblSalaries[[#Headers],[Manager]],tblSalaries[[#This Row],[Salary in USD]],"") -> 17807.91669 | AB28: =IF(tblSalaries[[#This Row],[Job Type]]=tblSalaries[[#Headers],[Misc.]],tblSalaries[[#This Row],[Salary in USD]],"") ->  | AC28: =IF(tblSalaries[[#This Row],[Job Type]]=tblSalaries[[#Headers],[Reporting]],tblSalaries[[#This Row],[Salary in USD]],"") ->  | AD28: =IF(tblSalaries[[#This Row],[Job Type]]=tblSalaries[[#Headers],[Specialist]],tblSalaries[[#This Row],[Salary in USD]],"") -> 
B29: ID0024 | C29: 2012-05-25T04:32:49 | D29: 75000 | E29: 75000 | F29: USD | G29: =tblSalaries[[#This Row],[clean Salary (in local currency)]]*VLOOKUP(tblSalaries[[#This Row],[Currency]],tblXrate[],2,FALSE) -> 75000 | H29: Marketing Director | I29: CXO or Top Mgmt. | J29: USA | K29: =VLOOKUP(tblSalaries[[#This Row],[Where do you work]],tblCountries[[Actual]:[Mapping]],2,FALSE) -> USA | L29: 4 to 6 hours a day | N29: =IF(tblSalaries[[#This Row],[Years of Experience]]="","",IF(tblSalaries[[#This Row],[Years of Experience]]<=2,1,"")) ->  | O29: =IF(tblSalaries[[#This Row],[Years of Experience]]="","",IF(AND(tblSalaries[[#This Row],[Years of Experience]]>2,tblSalaries[[#This Row],[Years of Experience]]<=5),1,"")) ->  | P29: =IF(tblSalaries[[#This Row],[Years of Experience]]="","",IF(AND(tblSalaries[[#This Row],[Years of Experience]]>5,tblSalaries[[#This Row],[Years of Experience]]<=10),1,"")) ->  | Q29: =IF(tblSalaries[[#This Row],[Years of Experience]]="","",IF(AND(tblSalaries[[#This Row],[Years of Experience]]>10,tblSalaries[[#This Row],[Years of Experience]]<=15),1,"")) ->  | R29: =IF(tblSalaries[[#This Row],[Years of Experience]]="","",IF(AND(tblSalaries[[#This Row],[Years of Experience]]>16,tblSalaries[[#This Row],[Years of Experience]]<=20),1,"")) ->  | S29: =IF(tblSalaries[[#This Row],[Years of Experience]]="","",IF(tblSalaries[[#This Row],[Years of Experience]]>20,1,"")) ->  | T29: =IF(tblSalaries[[#This Row],[0-2 Years]]=1,tblSalaries[[#Headers],[0-2 Years]],IF(tblSalaries[[#This Row],[3-5 Years]]=1,tblSalaries[[#Headers],[3-5 Years]],IF(tblSalaries[[#This Row],[5-10 Years]]=1,tblSalaries[[#Headers],[5-10 Years]],IF(tblSalaries[[#This Row],[11-15 Years]]=1,tblSalaries[[#Headers],[11-15 Years]],IF(tblSalaries[[#This Row],[16-20 Years]]=1,tblSalaries[[#Headers],[16-20 Years]],IF(tblSalaries[[#This Row],[20+ Years]]=1,tblSalaries[[#Headers],[20+ Years]],"")))))) ->  | U29: =IF(tblSalaries[[#This Row],[Job Type]]=tblSalaries[[#Headers],[Accountant]],tblSalaries[[#This Row],[Salary in USD]],"") ->  | V29: =IF(tblSalaries[[#This Row],[Job Type]]=tblSalaries[[#Headers],[Analyst]],tblSalaries[[#This Row],[Salary in USD]],"") ->  | W29: =IF(tblSalaries[[#This Row],[Job Type]]=tblSalaries[[#Headers],[Consultant]],tblSalaries[[#This Row],[Salary in USD]],"") ->  | X29: =IF(tblSalaries[[#This Row],[Job Type]]=tblSalaries[[#Headers],[Controller]],tblSalaries[[#This Row],[Salary in USD]],"") ->  | Y29: =IF(tblSalaries[[#This Row],[Job Type]]=tblSalaries[[#Headers],[CXO or Top Mgmt.]],tblSalaries[[#This Row],[clean Salary (in local currency)]],"") -> 75000 | Z29: =IF(tblSalaries[[#This Row],[Job Type]]=tblSalaries[[#Headers],[Engineer]],tblSalaries[[#This Row],[Salary in USD]],"") ->  | AA29: =IF(tblSalaries[[#This Row],[Job Type]]=tblSalaries[[#Headers],[Manager]],tblSalaries[[#This Row],[Salary in USD]],"") ->  | AB29: =IF(tblSalaries[[#This Row],[Job Type]]=tblSalaries[[#Headers],[Misc.]],tblSalaries[[#This Row],[Salary in USD]],"") ->  | AC29: =IF(tblSalaries[[#This Row],[Job Type]]=tblSalaries[[#Headers],[Reporting]],tblSalaries[[#This Row],[Salary in USD]],"") ->  | AD29: =IF(tblSalaries[[#This Row],[Job Type]]=tblSalaries[[#Headers],[Specialist]],tblSalaries[[#This Row],[Salary in USD]],"") -> 
B30: ID0025 | C30: 2012-05-25T04:43:51 | D30: 40000 us | E30: 40000 | F30: USD | G30: =tblSalaries[[#This Row],[clean Salary (in local currency)]]*VLOOKUP(tblSalaries[[#This Row],[Currency]],tblXrate[],2,FALSE) -> 40000 | H30: sales and marketing | I30: Manager | J30: USA | K30: =VLOOKUP(tblSalaries[[#This Row],[Where do you work]],tblCountries[[Actual]:[Mapping]],2,FALSE) -> USA | L30: 2 to 3 hours per day | N30: =IF(tblSalaries[[#This Row],[Years of Experience]]="","",IF(tblSalaries[[#This Row],[Years of Experience]]<=2,1,"")) ->  | O30: =IF(tblSalaries[[#This Row],[Years of Experience]]="","",IF(AND(tblSalaries[[#This Row],[Years of Experience]]>2,tblSalaries[[#This Row],[Years of Experience]]<=5),1,"")) ->  | P30: =IF(tblSalaries[[#This Row],[Years of Experience]]="","",IF(AND(tblSalaries[[#This Row],[Years of Experience]]>5,tblSalaries[[#This Row],[Years of Experience]]<=10),1,"")) ->  | Q30: =IF(tblSalaries[[#This Row],[Years of Experience]]="","",IF(AND(tblSalaries[[#This Row],[Years of Experience]]>10,tblSalaries[[#This Row],[Years of Experience]]<=15),1,"")) ->  | R30: =IF(tblSalaries[[#This Row],[Years of Experience]]="","",IF(AND(tblSalaries[[#This Row],[Years of Experience]]>16,tblSalaries[[#This Row],[Years of Experience]]<=20),1,"")) ->  | S30: =IF(tblSalaries[[#This Row],[Years of Experience]]="","",IF(tblSalaries[[#This Row],[Years of Experience]]>20,1,"")) ->  | T30: =IF(tblSalaries[[#This Row],[0-2 Years]]=1,tblSalaries[[#Headers],[0-2 Years]],IF(tblSalaries[[#This Row],[3-5 Years]]=1,tblSalaries[[#Headers],[3-5 Years]],IF(tblSalaries[[#This Row],[5-10 Years]]=1,tblSalaries[[#Headers],[5-10 Years]],IF(tblSalaries[[#This Row],[11-15 Years]]=1,tblSalaries[[#Headers],[11-15 Years]],IF(tblSalaries[[#This Row],[16-20 Years]]=1,tblSalaries[[#Headers],[16-20 Years]],IF(tblSalaries[[#This Row],[20+ Years]]=1,tblSalaries[[#Headers],[20+ Years]],"")))))) ->  | U30: =IF(tblSalaries[[#This Row],[Job Type]]=tblSalaries[[#Headers],[Accountant]],tblSalaries[[#This Row],[Salary in USD]],"") ->  | V30: =IF(tblSalaries[[#This Row],[Job Type]]=tblSalaries[[#Headers],[Analyst]],tblSalaries[[#This Row],[Salary in USD]],"") ->  | W30: =IF(tblSalaries[[#This Row],[Job Type]]=tblSalaries[[#Headers],[Consultant]],tblSalaries[[#This Row],[Salary in USD]],"") ->  | X30: =IF(tblSalaries[[#This Row],[Job Type]]=tblSalaries[[#Headers],[Controller]],tblSalaries[[#This Row],[Salary in USD]],"") ->  | Y30: =IF(tblSalaries[[#This Row],[Job Type]]=tblSalaries[[#Headers],[CXO or Top Mgmt.]],tblSalaries[[#This Row],[clean Salary (in local currency)]],"") ->  | Z30: =IF(tblSalaries[[#This Row],[Job Type]]=tblSalaries[[#Headers],[Engineer]],tblSalaries[[#This Row],[Salary in USD]],"") ->  | AA30: =IF(tblSalaries[[#This Row],[Job Type]]=tblSalaries[[#Headers],[Manager]],tblSalaries[[#This Row],[Salary in USD]],"") -> 40000 | AB30: =IF(tblSalaries[[#This Row],[Job Type]]=tblSalaries[[#Headers],[Misc.]],tblSalaries[[#This Row],[Salary in USD]],"") ->  | AC30: =IF(tblSalaries[[#This Row],[Job Type]]=tblSalaries[[#Headers],[Reporting]],tblSalaries[[#This Row],[Salary in USD]],"") ->  | AD30: =IF(tblSalaries[[#This Row],[Job Type]]=tblSalaries[[#Headers],[Specialist]],tblSalaries[[#This Row],[Salary in USD]],"") -> 
B31: ID0026 | C31: 2012-05-25T04:45:01 | D31: 60000 | E31: 60000 | F31: USD | G31: =tblSalaries[[#This Row],[clean Salary (in local currency)]]*VLOOKUP(tblSalaries[[#This Row],[Currency]],tblXrate[],2,FALSE) -> 60000 | H31: Analyst II | I31: Analyst | J31: USA | K31: =VLOOKUP(tblSalaries[[#This Row],[Where do you work]],tblCountries[[Actual]:[Mapping]],2,FALSE) -> USA | L31: All the 8 hours baby, all the 8! | N31: =IF(tblSalaries[[#This Row],[Years of Experience]]="","",IF(tblSalaries[[#This Row],[Years of Experience]]<=2,1,"")) ->  | O31: =IF(tblSalaries[[#This Row],[Years of Experience]]="","",IF(AND(tblSalaries[[#This Row],[Years of Experience]]>2,tblSalaries[[#This Row],[Years of Experience]]<=5),1,"")) ->  | P31: =IF(tblSalaries[[#This Row],[Years of Experience]]="","",IF(AND(tblSalaries[[#This Row],[Years of Experience]]>5,tblSalaries[[#This Row],[Years of Experience]]<=10),1,"")) ->  | Q31: =IF(tblSalaries[[#This Row],[Years of Experience]]="","",IF(AND(tblSalaries[[#This Row],[Years of Experience]]>10,tblSalaries[[#This Row],[Years of Experience]]<=15),1,"")) ->  | R31: =IF(tblSalaries[[#This Row],[Years of Experience]]="","",IF(AND(tblSalaries[[#This Row],[Years of Experience]]>16,tblSalaries[[#This Row],[Years of Experience]]<=20),1,"")) ->  | S31: =IF(tblSalaries[[#This Row],[Years of Experience]]="","",IF(tblSalaries[[#This Row],[Years of Experience]]>20,1,"")) ->  | T31: =IF(tblSalaries[[#This Row],[0-2 Years]]=1,tblSalaries[[#Headers],[0-2 Years]],IF(tblSalaries[[#This Row],[3-5 Years]]=1,tblSalaries[[#Headers],[3-5 Years]],IF(tblSalaries[[#This Row],[5-10 Years]]=1,tblSalaries[[#Headers],[5-10 Years]],IF(tblSalaries[[#This Row],[11-15 Years]]=1,tblSalaries[[#Headers],[11-15 Years]],IF(tblSalaries[[#This Row],[16-20 Years]]=1,tblSalaries[[#Headers],[16-20 Years]],IF(tblSalaries[[#This Row],[20+ Years]]=1,tblSalaries[[#Headers],[20+ Years]],"")))))) ->  | U31: =IF(tblSalaries[[#This Row],[Job Type]]=tblSalaries[[#Headers],[Accountant]],tblSalaries[[#This Row],[Salary in USD]],"") ->  | V31: =IF(tblSalaries[[#This Row],[Job Type]]=tblSalaries[[#Headers],[Analyst]],tblSalaries[[#This Row],[Salary in USD]],"") -> 60000 | W31: =IF(tblSalaries[[#This Row],[Job Type]]=tblSalaries[[#Headers],[Consultant]],tblSalaries[[#This Row],[Salary in USD]],"") ->  | X31: =IF(tblSalaries[[#This Row],[Job Type]]=tblSalaries[[#Headers],[Controller]],tblSalaries[[#This Row],[Salary in USD]],"") ->  | Y31: =IF(tblSalaries[[#This Row],[Job Type]]=tblSalaries[[#Headers],[CXO or Top Mgmt.]],tblSalaries[[#This Row],[clean Salary (in local currency)]],"") ->  | Z31: =IF(tblSalaries[[#This Row],[Job Type]]=tblSalaries[[#Headers],[Engineer]],tblSalaries[[#This Row],[Salary in USD]],"") ->  | AA31: =IF(tblSalaries[[#This Row],[Job Type]]=tblSalaries[[#Headers],[Manager]],tblSalaries[[#This Row],[Salary in USD]],"") ->  | AB31: =IF(tblSalaries[[#This Row],[Job Type]]=tblSalaries[[#Headers],[Misc.]],tblSalaries[[#This Row],[Salary in USD]],"") ->  | AC31: =IF(tblSalaries[[#This Row],[Job Type]]=tblSalaries[[#Headers],[Reporting]],tblSalaries[[#This Row],[Salary in USD]],"") ->  | AD31: =IF(tblSalaries[[#This Row],[Job Type]]=tblSalaries[[#Headers],[Specialist]],tblSalaries[[#This Row],[Salary in USD]],"") -> 
B32: ID0028 | C32: 2012-05-25T04:48:33 | D32: 2700 | E32: 32400 | F32: EUR | G32: =tblSalaries[[#This Row],[clean Salary (in local currency)]]*VLOOKUP(tblSalaries[[#This Row],[Currency]],tblXrate[],2,FALSE) -> 41160.94182 | H32: Project Leader | I32: Manager | J32: Belgium | K32: =VLOOKUP(tblSalaries[[#This Row],[Where do you work]],tblCountries[[Actual]:[Mapping]],2,FALSE) -> Belgium | L32: 4 to 6 hours a day | N32: =IF(tblSalaries[[#This Row],[Years of Experience]]="","",IF(tblSalaries[[#This Row],[Years of Experience]]<=2,1,"")) ->  | O32: =IF(tblSalaries[[#This Row],[Years of Experience]]="","",IF(AND(tblSalaries[[#This Row],[Years of Experience]]>2,tblSalaries[[#This Row],[Years of Experience]]<=5),1,"")) ->  | P32: =IF(tblSalaries[[#This Row],[Years of Experience]]="","",IF(AND(tblSalaries[[#This Row],[Years of Experience]]>5,tblSalaries[[#This Row],[Years of Experience]]<=10),1,"")) ->  | Q32: =IF(tblSalaries[[#This Row],[Years of Experience]]="","",IF(AND(tblSalaries[[#This Row],[Years of Experience]]>10,tblSalaries[[#This Row],[Years of Experience]]<=15),1,"")) ->  | R32: =IF(tblSalaries[[#This Row],[Years of Experience]]="","",IF(AND(tblSalaries[[#This Row],[Years of Experience]]>16,tblSalaries[[#This Row],[Years of Experience]]<=20),1,"")) ->  | S32: =IF(tblSalaries[[#This Row],[Years of Experience]]="","",IF(tblSalaries[[#This Row],[Years of Experience]]>20,1,"")) ->  | T32: =IF(tblSalaries[[#This Row],[0-2 Years]]=1,tblSalaries[[#Headers],[0-2 Years]],IF(tblSalaries[[#This Row],[3-5 Years]]=1,tblSalaries[[#Headers],[3-5 Years]],IF(tblSalaries[[#This Row],[5-10 Years]]=1,tblSalaries[[#Headers],[5-10 Years]],IF(tblSalaries[[#This Row],[11-15 Years]]=1,tblSalaries[[#Headers],[11-15 Years]],IF(tblSalaries[[#This Row],[16-20 Years]]=1,tblSalaries[[#Headers],[16-20 Years]],IF(tblSalaries[[#This Row],[20+ Years]]=1,tblSalaries[[#Headers],[20+ Years]],"")))))) ->  | U32: =IF(tblSalaries[[#This Row],[Job Type]]=tblSalaries[[#Headers],[Accountant]],tblSalaries[[#This Row],[Salary in USD]],"") ->  | V32: =IF(tblSalaries[[#This Row],[Job Type]]=tblSalaries[[#Headers],[Analyst]],tblSalaries[[#This Row],[Salary in USD]],"") ->  | W32: =IF(tblSalaries[[#This Row],[Job Type]]=tblSalaries[[#Headers],[Consultant]],tblSalaries[[#This Row],[Salary in USD]],"") ->  | X32: =IF(tblSalaries[[#This Row],[Job Type]]=tblSalaries[[#Headers],[Controller]],tblSalaries[[#This Row],[Salary in USD]],"") ->  | Y32: =IF(tblSalaries[[#This Row],[Job Type]]=tblSalaries[[#Headers],[CXO or Top Mgmt.]],tblSalaries[[#This Row],[clean Salary (in local currency)]],"") ->  | Z32: =IF(tblSalaries[[#This Row],[Job Type]]=tblSalaries[[#Headers],[Engineer]],tblSalaries[[#This Row],[Salary in USD]],"") ->  | AA32: =IF(tblSalaries[[#This Row],[Job Type]]=tblSalaries[[#Headers],[Manager]],tblSalaries[[#This Row],[Salary in USD]],"") -> 41160.94182 | AB32: =IF(tblSalaries[[#This Row],[Job Type]]=tblSalaries[[#Headers],[Misc.]],tblSalaries[[#This Row],[Salary in USD]],"") ->  | AC32: =IF(tblSalaries[[#This Row],[Job Type]]=tblSalaries[[#Headers],[Reporting]],tblSalaries[[#This Row],[Salary in USD]],"") ->  | AD32: =IF(tblSalaries[[#This Row],[Job Type]]=tblSalaries[[#Headers],[Specialist]],tblSalaries[[#This Row],[Salary in USD]],"") -> 
B33: ID0029 | C33: 2012-05-25T04:52:23 | D33: 900000 INR | E33: 900000 | F33: INR | G33: =tblSalaries[[#This Row],[clean Salary (in local currency)]]*VLOOKUP(tblSalaries[[#This Row],[Currency]],tblXrate[],2,FALSE) -> 16027.12502 | H33: Applications Engineer | I33: Engineer | J33: India | K33: =VLOOKUP(tblSalaries[[#This Row],[Where do you work]],tblCountries[[Actual]:[Mapping]],2,FALSE) -> India | L33: 1 or 2 hours a day | N33: =IF(tblSalaries[[#This Row],[Years of Experience]]="","",IF(tblSalaries[[#This Row],[Years of Experience]]<=2,1,"")) ->  | O33: =IF(tblSalaries[[#This Row],[Years of Experience]]="","",IF(AND(tblSalaries[[#This Row],[Years of Experience]]>2,tblSalaries[[#This Row],[Years of Experience]]<=5),1,"")) ->  | P33: =IF(tblSalaries[[#This Row],[Years of Experience]]="","",IF(AND(tblSalaries[[#This Row],[Years of Experience]]>5,tblSalaries[[#This Row],[Years of Experience]]<=10),1,"")) ->  | Q33: =IF(tblSalaries[[#This Row],[Years of Experience]]="","",IF(AND(tblSalaries[[#This Row],[Years of Experience]]>10,tblSalaries[[#This Row],[Years of Experience]]<=15),1,"")) ->  | R33: =IF(tblSalaries[[#This Row],[Years of Experience]]="","",IF(AND(tblSalaries[[#This Row],[Years of Experience]]>16,tblSalaries[[#This Row],[Years of Experience]]<=20),1,"")) ->  | S33: =IF(tblSalaries[[#This Row],[Years of Experience]]="","",IF(tblSalaries[[#This Row],[Years of Experience]]>20,1,"")) ->  | T33: =IF(tblSalaries[[#This Row],[0-2 Years]]=1,tblSalaries[[#Headers],[0-2 Years]],IF(tblSalaries[[#This Row],[3-5 Years]]=1,tblSalaries[[#Headers],[3-5 Years]],IF(tblSalaries[[#This Row],[5-10 Years]]=1,tblSalaries[[#Headers],[5-10 Years]],IF(tblSalaries[[#This Row],[11-15 Years]]=1,tblSalaries[[#Headers],[11-15 Years]],IF(tblSalaries[[#This Row],[16-20 Years]]=1,tblSalaries[[#Headers],[16-20 Years]],IF(tblSalaries[[#This Row],[20+ Years]]=1,tblSalaries[[#Headers],[20+ Years]],"")))))) ->  | U33: =IF(tblSalaries[[#This Row],[Job Type]]=tblSalaries[[#Headers],[Accountant]],tblSalaries[[#This Row],[Salary in USD]],"") ->  | V33: =IF(tblSalaries[[#This Row],[Job Type]]=tblSalaries[[#Headers],[Analyst]],tblSalaries[[#This Row],[Salary in USD]],"") ->  | W33: =IF(tblSalaries[[#This Row],[Job Type]]=tblSalaries[[#Headers],[Consultant]],tblSalaries[[#This Row],[Salary in USD]],"") ->  | X33: =IF(tblSalaries[[#This Row],[Job Type]]=tblSalaries[[#Headers],[Controller]],tblSalaries[[#This Row],[Salary in USD]],"") ->  | Y33: =IF(tblSalaries[[#This Row],[Job Type]]=tblSalaries[[#Headers],[CXO or Top Mgmt.]],tblSalaries[[#This Row],[clean Salary (in local currency)]],"") ->  | Z33: =IF(tblSalaries[[#This Row],[Job Type]]=tblSalaries[[#Headers],[Engineer]],tblSalaries[[#This Row],[Salary in USD]],"") -> 16027.12502 | AA33: =IF(tblSalaries[[#This Row],[Job Type]]=tblSalaries[[#Headers],[Manager]],tblSalaries[[#This Row],[Salary in USD]],"") ->  | AB33: =IF(tblSalaries[[#This Row],[Job Type]]=tblSalaries[[#Headers],[Misc.]],tblSalaries[[#This Row],[Salary in USD]],"") ->  | AC33: =IF(tblSalaries[[#This Row],[Job Type]]=tblSalaries[[#Headers],[Reporting]],tblSalaries[[#This Row],[Salary in USD]],"") ->  | AD33: =IF(tblSalaries[[#This Row],[Job Type]]=tblSalaries[[#Headers],[Specialist]],tblSalaries[[#This Row],[Salary in USD]],"") -> 
B34: ID0030 | C34: 2012-05-25T04:55:35 | D34: Rs 600000 | E34: 600000 | F34: INR | G34: =tblSalaries[[#This Row],[clean Salary (in local currency)]]*VLOOKUP(tblSalaries[[#This Row],[Currency]],tblXrate[],2,FALSE) -> 10684.75001 | H34: strategy manager | I34: Manager | J34: India | K34: =VLOOKUP(tblSalaries[[#This Row],[Where do you work]],tblCountries[[Actual]:[Mapping]],2,FALSE) -> India | L34: 4 to 6 hours a day | N34: =IF(tblSalaries[[#This Row],[Years of Experience]]="","",IF(tblSalaries[[#This Row],[Years of Experience]]<=2,1,"")) ->  | O34: =IF(tblSalaries[[#This Row],[Years of Experience]]="","",IF(AND(tblSalaries[[#This Row],[Years of Experience]]>2,tblSalaries[[#This Row],[Years of Experience]]<=5),1,"")) ->  | P34: =IF(tblSalaries[[#This Row],[Years of Experience]]="","",IF(AND(tblSalaries[[#This Row],[Years of Experience]]>5,tblSalaries[[#This Row],[Years of Experience]]<=10),1,"")) ->  | Q34: =IF(tblSalaries[[#This Row],[Years of Experience]]="","",IF(AND(tblSalaries[[#This Row],[Years of Experience]]>10,tblSalaries[[#This Row],[Years of Experience]]<=15),1,"")) ->  | R34: =IF(tblSalaries[[#This Row],[Years of Experience]]="","",IF(AND(tblSalaries[[#This Row],[Years of Experience]]>16,tblSalaries[[#This Row],[Years of Experience]]<=20),1,"")) ->  | S34: =IF(tblSalaries[[#This Row],[Years of Experience]]="","",IF(tblSalaries[[#This Row],[Years of Experience]]>20,1,"")) ->  | T34: =IF(tblSalaries[[#This Row],[0-2 Years]]=1,tblSalaries[[#Headers],[0-2 Years]],IF(tblSalaries[[#This Row],[3-5 Years]]=1,tblSalaries[[#Headers],[3-5 Years]],IF(tblSalaries[[#This Row],[5-10 Years]]=1,tblSalaries[[#Headers],[5-10 Years]],IF(tblSalaries[[#This Row],[11-15 Years]]=1,tblSalaries[[#Headers],[11-15 Years]],IF(tblSalaries[[#This Row],[16-20 Years]]=1,tblSalaries[[#Headers],[16-20 Years]],IF(tblSalaries[[#This Row],[20+ Years]]=1,tblSalaries[[#Headers],[20+ Years]],"")))))) ->  | U34: =IF(tblSalaries[[#This Row],[Job Type]]=tblSalaries[[#Headers],[Accountant]],tblSalaries[[#This Row],[Salary in USD]],"") ->  | V34: =IF(tblSalaries[[#This Row],[Job Type]]=tblSalaries[[#Headers],[Analyst]],tblSalaries[[#This Row],[Salary in USD]],"") ->  | W34: =IF(tblSalaries[[#This Row],[Job Type]]=tblSalaries[[#Headers],[Consultant]],tblSalaries[[#This Row],[Salary in USD]],"") ->  | X34: =IF(tblSalaries[[#This Row],[Job Type]]=tblSalaries[[#Headers],[Controller]],tblSalaries[[#This Row],[Salary in USD]],"") ->  | Y34: =IF(tblSalaries[[#This Row],[Job Type]]=tblSalaries[[#Headers],[CXO or Top Mgmt.]],tblSalaries[[#This Row],[clean Salary (in local currency)]],"") ->  | Z34: =IF(tblSalaries[[#This Row],[Job Type]]=tblSalaries[[#Headers],[Engineer]],tblSalaries[[#This Row],[Salary in USD]],"") ->  | AA34: =IF(tblSalaries[[#This Row],[Job Type]]=tblSalaries[[#Headers],[Manager]],tblSalaries[[#This Row],[Salary in USD]],"") -> 10684.75001 | AB34: =IF(tblSalaries[[#This Row],[Job Type]]=tblSalaries[[#Headers],[Misc.]],tblSalaries[[#This Row],[Salary in USD]],"") ->  | AC34: =IF(tblSalaries[[#This Row],[Job Type]]=tblSalaries[[#Headers],[Reporting]],tblSalaries[[#This Row],[Salary in USD]],"") ->  | AD34: =IF(tblSalaries[[#This Row],[Job Type]]=tblSalaries[[#Headers],[Specialist]],tblSalaries[[#This Row],[Salary in USD]],"") -> 
B35: ID0031 | C35: 2012-05-25T04:55:48 | D35: 41000 | E35: 41000 | F35: USD | G35: =tblSalaries[[#This Row],[clean Salary (in local currency)]]*VLOOKUP(tblSalaries[[#This Row],[Currency]],tblXrate[],2,FALSE) -> 41000 | H35: Chief of the department of public budget analisis and forecasting | I35: Manager | J35: Russia | K35: =VLOOKUP(tblSalaries[[#This Row],[Where do you work]],tblCountries[[Actual]:[Mapping]],2,FALSE) -> Russia | L35: All the 8 hours baby, all the 8! | N35: =IF(tblSalaries[[#This Row],[Years of Experience]]="","",IF(tblSalaries[[#This Row],[Years of Experience]]<=2,1,"")) ->  | O35: =IF(tblSalaries[[#This Row],[Years of Experience]]="","",IF(AND(tblSalaries[[#This Row],[Years of Experience]]>2,tblSalaries[[#This Row],[Years of Experience]]<=5),1,"")) ->  | P35: =IF(tblSalaries[[#This Row],[Years of Experience]]="","",IF(AND(tblSalaries[[#This Row],[Years of Experience]]>5,tblSalaries[[#This Row],[Years of Experience]]<=10),1,"")) ->  | Q35: =IF(tblSalaries[[#This Row],[Years of Experience]]="","",IF(AND(tblSalaries[[#This Row],[Years of Experience]]>10,tblSalaries[[#This Row],[Years of Experience]]<=15),1,"")) ->  | R35: =IF(tblSalaries[[#This Row],[Years of Experience]]="","",IF(AND(tblSalaries[[#This Row],[Years of Experience]]>16,tblSalaries[[#This Row],[Years of Experience]]<=20),1,"")) ->  | S35: =IF(tblSalaries[[#This Row],[Years of Experience]]="","",IF(tblSalaries[[#This Row],[Years of Experience]]>20,1,"")) ->  | T35: =IF(tblSalaries[[#This Row],[0-2 Years]]=1,tblSalaries[[#Headers],[0-2 Years]],IF(tblSalaries[[#This Row],[3-5 Years]]=1,tblSalaries[[#Headers],[3-5 Years]],IF(tblSalaries[[#This Row],[5-10 Years]]=1,tblSalaries[[#Headers],[5-10 Years]],IF(tblSalaries[[#This Row],[11-15 Years]]=1,tblSalaries[[#Headers],[11-15 Years]],IF(tblSalaries[[#This Row],[16-20 Years]]=1,tblSalaries[[#Headers],[16-20 Years]],IF(tblSalaries[[#This Row],[20+ Years]]=1,tblSalaries[[#Headers],[20+ Years]],"")))))) ->  | U35: =IF(tblSalaries[[#This Row],[Job Type]]=tblSalaries[[#Headers],[Accountant]],tblSalaries[[#This Row],[Salary in USD]],"") ->  | V35: =IF(tblSalaries[[#This Row],[Job Type]]=tblSalaries[[#Headers],[Analyst]],tblSalaries[[#This Row],[Salary in USD]],"") ->  | W35: =IF(tblSalaries[[#This Row],[Job Type]]=tblSalaries[[#Headers],[Consultant]],tblSalaries[[#This Row],[Salary in USD]],"") ->  | X35: =IF(tblSalaries[[#This Row],[Job Type]]=tblSalaries[[#Headers],[Controller]],tblSalaries[[#This Row],[Salary in USD]],"") ->  | Y35: =IF(tblSalaries[[#This Row],[Job Type]]=tblSalaries[[#Headers],[CXO or Top Mgmt.]],tblSalaries[[#This Row],[clean Salary (in local currency)]],"") ->  | Z35: =IF(tblSalaries[[#This Row],[Job Type]]=tblSalaries[[#Headers],[Engineer]],tblSalaries[[#This Row],[Salary in USD]],"") ->  | AA35: =IF(tblSalaries[[#This Row],[Job Type]]=tblSalaries[[#Headers],[Manager]],tblSalaries[[#This Row],[Salary in USD]],"") -> 41000 | AB35: =IF(tblSalaries[[#This Row],[Job Type]]=tblSalaries[[#Headers],[Misc.]],tblSalaries[[#This Row],[Salary in USD]],"") ->  | AC35: =IF(tblSalaries[[#This Row],[Job Type]]=tblSalaries[[#Headers],[Reporting]],tblSalaries[[#This Row],[Salary in USD]],"") ->  | AD35: =IF(tblSalaries[[#This Row],[Job Type]]=tblSalaries[[#Headers],[Specialist]],tblSalaries[[#This Row],[Salary in USD]],"") -> 
B36: ID0032 | C36: 2012-05-25T04:57:06 | D36: 360000 INR | E36: 360000 | F36: INR | G36: =tblSalaries[[#This Row],[clean Salary (in local currency)]]*VLOOKUP(tblSalaries[[#This Row],[Currency]],tblXrate[],2,FALSE) -> 6410.850007 | H36: Specialist | I36: Specialist | J36: India | K36: =VLOOKUP(tblSalaries[[#This Row],[Where do you work]],tblCountries[[Actual]:[Mapping]],2,FALSE) -> India | L36: 4 to 6 hours a day | N36: =IF(tblSalaries[[#This Row],[Years of Experience]]="","",IF(tblSalaries[[#This Row],[Years of Experience]]<=2,1,"")) ->  | O36: =IF(tblSalaries[[#This Row],[Years of Experience]]="","",IF(AND(tblSalaries[[#This Row],[Years of Experience]]>2,tblSalaries[[#This Row],[Years of Experience]]<=5),1,"")) ->  | P36: =IF(tblSalaries[[#This Row],[Years of Experience]]="","",IF(AND(tblSalaries[[#This Row],[Years of Experience]]>5,tblSalaries[[#This Row],[Years of Experience]]<=10),1,"")) ->  | Q36: =IF(tblSalaries[[#This Row],[Years of Experience]]="","",IF(AND(tblSalaries[[#This Row],[Years of Experience]]>10,tblSalaries[[#This Row],[Years of Experience]]<=15),1,"")) ->  | R36: =IF(tblSalaries[[#This Row],[Years of Experience]]="","",IF(AND(tblSalaries[[#This Row],[Years of Experience]]>16,tblSalaries[[#This Row],[Years of Experience]]<=20),1,"")) ->  | S36: =IF(tblSalaries[[#This Row],[Years of Experience]]="","",IF(tblSalaries[[#This Row],[Years of Experience]]>20,1,"")) ->  | T36: =IF(tblSalaries[[#This Row],[0-2 Years]]=1,tblSalaries[[#Headers],[0-2 Years]],IF(tblSalaries[[#This Row],[3-5 Years]]=1,tblSalaries[[#Headers],[3-5 Years]],IF(tblSalaries[[#This Row],[5-10 Years]]=1,tblSalaries[[#Headers],[5-10 Years]],IF(tblSalaries[[#This Row],[11-15 Years]]=1,tblSalaries[[#Headers],[11-15 Years]],IF(tblSalaries[[#This Row],[16-20 Years]]=1,tblSalaries[[#Headers],[16-20 Years]],IF(tblSalaries[[#This Row],[20+ Years]]=1,tblSalaries[[#Headers],[20+ Years]],"")))))) ->  | U36: =IF(tblSalaries[[#This Row],[Job Type]]=tblSalaries[[#Headers],[Accountant]],tblSalaries[[#This Row],[Salary in USD]],"") ->  | V36: =IF(tblSalaries[[#This Row],[Job Type]]=tblSalaries[[#Headers],[Analyst]],tblSalaries[[#This Row],[Salary in USD]],"") ->  | W36: =IF(tblSalaries[[#This Row],[Job Type]]=tblSalaries[[#Headers],[Consultant]],tblSalaries[[#This Row],[Salary in USD]],"") ->  | X36: =IF(tblSalaries[[#This Row],[Job Type]]=tblSalaries[[#Headers],[Controller]],tblSalaries[[#This Row],[Salary in USD]],"") ->  | Y36: =IF(tblSalaries[[#This Row],[Job Type]]=tblSalaries[[#Headers],[CXO or Top Mgmt.]],tblSalaries[[#This Row],[clean Salary (in local currency)]],"") ->  | Z36: =IF(tblSalaries[[#This Row],[Job Type]]=tblSalaries[[#Headers],[Engineer]],tblSalaries[[#This Row],[Salary in USD]],"") ->  | AA36: =IF(tblSalaries[[#This Row],[Job Type]]=tblSalaries[[#Headers],[Manager]],tblSalaries[[#This Row],[Salary in USD]],"") ->  | AB36: =IF(tblSalaries[[#This Row],[Job Type]]=tblSalaries[[#Headers],[Misc.]],tblSalaries[[#This Row],[Salary in USD]],"") ->  | AC36: =IF(tblSalaries[[#This Row],[Job Type]]=tblSalaries[[#Headers],[Reporting]],tblSalaries[[#This Row],[Salary in USD]],"") ->  | AD36: =IF(tblSalaries[[#This Row],[Job Type]]=tblSalaries[[#Headers],[Specialist]],tblSalaries[[#This Row],[Salary in USD]],"") -> 6410.850007
B37: ID0033 | C37: 2012-05-25T04:58:45 | D37: Â£35000 | E37: 35000 | F37: GBP | G37: =tblSalaries[[#This Row],[clean Salary (in local currency)]]*VLOOKUP(tblSalaries[[#This Row],[Currency]],tblXrate[],2,FALSE) -> 55166.23952 | H37: Management Information Analyst | I37: Analyst | J37: UK | K37: =VLOOKUP(tblSalaries[[#This Row],[Where do you work]],tblCountries[[Actual]:[Mapping]],2,FALSE) -> UK | L37: All the 8 hours baby, all the 8! | N37: =IF(tblSalaries[[#This Row],[Years of Experience]]="","",IF(tblSalaries[[#This Row],[Years of Experience]]<=2,1,"")) ->  | O37: =IF(tblSalaries[[#This Row],[Years of Experience]]="","",IF(AND(tblSalaries[[#This Row],[Years of Experience]]>2,tblSalaries[[#This Row],[Years of Experience]]<=5),1,"")) ->  | P37: =IF(tblSalaries[[#This Row],[Years of Experience]]="","",IF(AND(tblSalaries[[#This Row],[Years of Experience]]>5,tblSalaries[[#This Row],[Years of Experience]]<=10),1,"")) ->  | Q37: =IF(tblSalaries[[#This Row],[Years of Experience]]="","",IF(AND(tblSalaries[[#This Row],[Years of Experience]]>10,tblSalaries[[#This Row],[Years of Experience]]<=15),1,"")) ->  | R37: =IF(tblSalaries[[#This Row],[Years of Experience]]="","",IF(AND(tblSalaries[[#This Row],[Years of Experience]]>16,tblSalaries[[#This Row],[Years of Experience]]<=20),1,"")) ->  | S37: =IF(tblSalaries[[#This Row],[Years of Experience]]="","",IF(tblSalaries[[#This Row],[Years of Experience]]>20,1,"")) ->  | T37: =IF(tblSalaries[[#This Row],[0-2 Years]]=1,tblSalaries[[#Headers],[0-2 Years]],IF(tblSalaries[[#This Row],[3-5 Years]]=1,tblSalaries[[#Headers],[3-5 Years]],IF(tblSalaries[[#This Row],[5-10 Years]]=1,tblSalaries[[#Headers],[5-10 Years]],IF(tblSalaries[[#This Row],[11-15 Years]]=1,tblSalaries[[#Headers],[11-15 Years]],IF(tblSalaries[[#This Row],[16-20 Years]]=1,tblSalaries[[#Headers],[16-20 Years]],IF(tblSalaries[[#This Row],[20+ Years]]=1,tblSalaries[[#Headers],[20+ Years]],"")))))) ->  | U37: =IF(tblSalaries[[#This Row],[Job Type]]=tblSalaries[[#Headers],[Accountant]],tblSalaries[[#This Row],[Salary in USD]],"") ->  | V37: =IF(tblSalaries[[#This Row],[Job Type]]=tblSalaries[[#Headers],[Analyst]],tblSalaries[[#This Row],[Salary in USD]],"") -> 55166.23952 | W37: =IF(tblSalaries[[#This Row],[Job Type]]=tblSalaries[[#Headers],[Consultant]],tblSalaries[[#This Row],[Salary in USD]],"") ->  | X37: =IF(tblSalaries[[#This Row],[Job Type]]=tblSalaries[[#Headers],[Controller]],tblSalaries[[#This Row],[Salary in USD]],"") ->  | Y37: =IF(tblSalaries[[#This Row],[Job Type]]=tblSalaries[[#Headers],[CXO or Top Mgmt.]],tblSalaries[[#This Row],[clean Salary (in local currency)]],"") ->  | Z37: =IF(tblSalaries[[#This Row],[Job Type]]=tblSalaries[[#Headers],[Engineer]],tblSalaries[[#This Row],[Salary in USD]],"") ->  | AA37: =IF(tblSalaries[[#This Row],[Job Type]]=tblSalaries[[#Headers],[Manager]],tblSalaries[[#This Row],[Salary in USD]],"") ->  | AB37: =IF(tblSalaries[[#This Row],[Job Type]]=tblSalaries[[#Headers],[Misc.]],tblSalaries[[#This Row],[Salary in USD]],"") ->  | AC37: =IF(tblSalaries[[#This Row],[Job Type]]=tblSalaries[[#Headers],[Reporting]],tblSalaries[[#This Row],[Salary in USD]],"") ->  | AD37: =IF(tblSalaries[[#This Row],[Job Type]]=tblSalaries[[#Headers],[Specialist]],tblSalaries[[#This Row],[Salary in USD]],"") -> 
B38: ID0035 | C38: 2012-05-25T05:01:09 | D38: 1600 $ | E38: 19200 | F38: USD | G38: =tblSalaries[[#This Row],[clean Salary (in local currency)]]*VLOOKUP(tblSalaries[[#This Row],[Currency]],tblXrate[],2,FALSE) -> 19200 | H38: Analyst | I38: Analyst | J38: Poland | K38: =VLOOKUP(tblSalaries[[#This Row],[Where do you work]],tblCountries[[Actual]:[Mapping]],2,FALSE) -> Poland | L38: 2 to 3 hours per day | N38: =IF(tblSalaries[[#This Row],[Years of Experience]]="","",IF(tblSalaries[[#This Row],[Years of Experience]]<=2,1,"")) ->  | O38: =IF(tblSalaries[[#This Row],[Years of Experience]]="","",IF(AND(tblSalaries[[#This Row],[Years of Experience]]>2,tblSalaries[[#This Row],[Years of Experience]]<=5),1,"")) ->  | P38: =IF(tblSalaries[[#This Row],[Years of Experience]]="","",IF(AND(tblSalaries[[#This Row],[Years of Experience]]>5,tblSalaries[[#This Row],[Years of Experience]]<=10),1,"")) ->  | Q38: =IF(tblSalaries[[#This Row],[Years of Experience]]="","",IF(AND(tblSalaries[[#This Row],[Years of Experience]]>10,tblSalaries[[#This Row],[Years of Experience]]<=15),1,"")) ->  | R38: =IF(tblSalaries[[#This Row],[Years of Experience]]="","",IF(AND(tblSalaries[[#This Row],[Years of Experience]]>16,tblSalaries[[#This Row],[Years of Experience]]<=20),1,"")) ->  | S38: =IF(tblSalaries[[#This Row],[Years of Experience]]="","",IF(tblSalaries[[#This Row],[Years of Experience]]>20,1,"")) ->  | T38: =IF(tblSalaries[[#This Row],[0-2 Years]]=1,tblSalaries[[#Headers],[0-2 Years]],IF(tblSalaries[[#This Row],[3-5 Years]]=1,tblSalaries[[#Headers],[3-5 Years]],IF(tblSalaries[[#This Row],[5-10 Years]]=1,tblSalaries[[#Headers],[5-10 Years]],IF(tblSalaries[[#This Row],[11-15 Years]]=1,tblSalaries[[#Headers],[11-15 Years]],IF(tblSalaries[[#This Row],[16-20 Years]]=1,tblSalaries[[#Headers],[16-20 Years]],IF(tblSalaries[[#This Row],[20+ Years]]=1,tblSalaries[[#Headers],[20+ Years]],"")))))) ->  | U38: =IF(tblSalaries[[#This Row],[Job Type]]=tblSalaries[[#Headers],[Accountant]],tblSalaries[[#This Row],[Salary in USD]],"") ->  | V38: =IF(tblSalaries[[#This Row],[Job Type]]=tblSalaries[[#Headers],[Analyst]],tblSalaries[[#This Row],[Salary in USD]],"") -> 19200 | W38: =IF(tblSalaries[[#This Row],[Job Type]]=tblSalaries[[#Headers],[Consultant]],tblSalaries[[#This Row],[Salary in USD]],"") ->  | X38: =IF(tblSalaries[[#This Row],[Job Type]]=tblSalaries[[#Headers],[Controller]],tblSalaries[[#This Row],[Salary in USD]],"") ->  | Y38: =IF(tblSalaries[[#This Row],[Job Type]]=tblSalaries[[#Headers],[CXO or Top Mgmt.]],tblSalaries[[#This Row],[clean Salary (in local currency)]],"") ->  | Z38: =IF(tblSalaries[[#This Row],[Job Type]]=tblSalaries[[#Headers],[Engineer]],tblSalaries[[#This Row],[Salary in USD]],"") ->  | AA38: =IF(tblSalaries[[#This Row],[Job Type]]=tblSalaries[[#Headers],[Manager]],tblSalaries[[#This Row],[Salary in USD]],"") ->  | AB38: =IF(tblSalaries[[#This Row],[Job Type]]=tblSalaries[[#Headers],[Misc.]],tblSalaries[[#This Row],[Salary in USD]],"") ->  | AC38: =IF(tblSalaries[[#This Row],[Job Type]]=tblSalaries[[#Headers],[Reporting]],tblSalaries[[#This Row],[Salary in USD]],"") ->  | AD38: =IF(tblSalaries[[#This Row],[Job Type]]=tblSalaries[[#Headers],[Specialist]],tblSalaries[[#This Row],[Salary in USD]],"") -> 
B39: ID0036 | C39: 2012-05-25T05:04:12 | D39: 500000 | E39: 500000 | F39: INR | G39: =tblSalaries[[#This Row],[clean Salary (in local currency)]]*VLOOKUP(tblSalaries[[#This Row],[Currency]],tblXrate[],2,FALSE) -> 8903.958344 | H39: Senior Consultant | I39: Consultant | J39: India | K39: =VLOOKUP(tblSalaries[[#This Row],[Where do you work]],tblCountries[[Actual]:[Mapping]],2,FALSE) -> India | L39: All the 8 hours baby, all the 8! | N39: =IF(tblSalaries[[#This Row],[Years of Experience]]="","",IF(tblSalaries[[#This Row],[Years of Experience]]<=2,1,"")) ->  | O39: =IF(tblSalaries[[#This Row],[Years of Experience]]="","",IF(AND(tblSalaries[[#This Row],[Years of Experience]]>2,tblSalaries[[#This Row],[Years of Experience]]<=5),1,"")) ->  | P39: =IF(tblSalaries[[#This Row],[Years of Experience]]="","",IF(AND(tblSalaries[[#This Row],[Years of Experience]]>5,tblSalaries[[#This Row],[Years of Experience]]<=10),1,"")) ->  | Q39: =IF(tblSalaries[[#This Row],[Years of Experience]]="","",IF(AND(tblSalaries[[#This Row],[Years of Experience]]>10,tblSalaries[[#This Row],[Years of Experience]]<=15),1,"")) ->  | R39: =IF(tblSalaries[[#This Row],[Years of Experience]]="","",IF(AND(tblSalaries[[#This Row],[Years of Experience]]>16,tblSalaries[[#This Row],[Years of Experience]]<=20),1,"")) ->  | S39: =IF(tblSalaries[[#This Row],[Years of Experience]]="","",IF(tblSalaries[[#This Row],[Years of Experience]]>20,1,"")) ->  | T39: =IF(tblSalaries[[#This Row],[0-2 Years]]=1,tblSalaries[[#Headers],[0-2 Years]],IF(tblSalaries[[#This Row],[3-5 Years]]=1,tblSalaries[[#Headers],[3-5 Years]],IF(tblSalaries[[#This Row],[5-10 Years]]=1,tblSalaries[[#Headers],[5-10 Years]],IF(tblSalaries[[#This Row],[11-15 Years]]=1,tblSalaries[[#Headers],[11-15 Years]],IF(tblSalaries[[#This Row],[16-20 Years]]=1,tblSalaries[[#Headers],[16-20 Years]],IF(tblSalaries[[#This Row],[20+ Years]]=1,tblSalaries[[#Headers],[20+ Years]],"")))))) ->  | U39: =IF(tblSalaries[[#This Row],[Job Type]]=tblSalaries[[#Headers],[Accountant]],tblSalaries[[#This Row],[Salary in USD]],"") ->  | V39: =IF(tblSalaries[[#This Row],[Job Type]]=tblSalaries[[#Headers],[Analyst]],tblSalaries[[#This Row],[Salary in USD]],"") ->  | W39: =IF(tblSalaries[[#This Row],[Job Type]]=tblSalaries[[#Headers],[Consultant]],tblSalaries[[#This Row],[Salary in USD]],"") -> 8903.958344 | X39: =IF(tblSalaries[[#This Row],[Job Type]]=tblSalaries[[#Headers],[Controller]],tblSalaries[[#This Row],[Salary in USD]],"") ->  | Y39: =IF(tblSalaries[[#This Row],[Job Type]]=tblSalaries[[#Headers],[CXO or Top Mgmt.]],tblSalaries[[#This Row],[clean Salary (in local currency)]],"") ->  | Z39: =IF(tblSalaries[[#This Row],[Job Type]]=tblSalaries[[#Headers],[Engineer]],tblSalaries[[#This Row],[Salary in USD]],"") ->  | AA39: =IF(tblSalaries[[#This Row],[Job Type]]=tblSalaries[[#Headers],[Manager]],tblSalaries[[#This Row],[Salary in USD]],"") ->  | AB39: =IF(tblSalaries[[#This Row],[Job Type]]=tblSalaries[[#Headers],[Misc.]],tblSalaries[[#This Row],[Salary in USD]],"") ->  | AC39: =IF(tblSalaries[[#This Row],[Job Type]]=tblSalaries[[#Headers],[Reporting]],tblSalaries[[#This Row],[Salary in USD]],"") ->  | AD39: =IF(tblSalaries[[#This Row],[Job Type]]=tblSalaries[[#Headers],[Specialist]],tblSalaries[[#This Row],[Salary in USD]],"") -> 
B40: ID0037 | C40: 2012-05-25T05:07:31 | D40: 150000 | E40: 150000 | F40: USD | G40: =tblSalaries[[#This Row],[clean Salary (in local currency)]]*VLOOKUP(tblSalaries[[#This Row],[Currency]],tblXrate[],2,FALSE) -> 150000 | H40: Portfolio Manager | I40: Manager | J40: USA | K40: =VLOOKUP(tblSalaries[[#This Row],[Where do you work]],tblCountries[[Actual]:[Mapping]],2,FALSE) -> USA | L40: 2 to 3 hours per day | N40: =IF(tblSalaries[[#This Row],[Years of Experience]]="","",IF(tblSalaries[[#This Row],[Years of Experience]]<=2,1,"")) ->  | O40: =IF(tblSalaries[[#This Row],[Years of Experience]]="","",IF(AND(tblSalaries[[#This Row],[Years of Experience]]>2,tblSalaries[[#This Row],[Years of Experience]]<=5),1,"")) ->  | P40: =IF(tblSalaries[[#This Row],[Years of Experience]]="","",IF(AND(tblSalaries[[#This Row],[Years of Experience]]>5,tblSalaries[[#This Row],[Years of Experience]]<=10),1,"")) ->  | Q40: =IF(tblSalaries[[#This Row],[Years of Experience]]="","",IF(AND(tblSalaries[[#This Row],[Years of Experience]]>10,tblSalaries[[#This Row],[Years of Experience]]<=15),1,"")) ->  | R40: =IF(tblSalaries[[#This Row],[Years of Experience]]="","",IF(AND(tblSalaries[[#This Row],[Years of Experience]]>16,tblSalaries[[#This Row],[Years of Experience]]<=20),1,"")) ->  | S40: =IF(tblSalaries[[#This Row],[Years of Experience]]="","",IF(tblSalaries[[#This Row],[Years of Experience]]>20,1,"")) ->  | T40: =IF(tblSalaries[[#This Row],[0-2 Years]]=1,tblSalaries[[#Headers],[0-2 Years]],IF(tblSalaries[[#This Row],[3-5 Years]]=1,tblSalaries[[#Headers],[3-5 Years]],IF(tblSalaries[[#This Row],[5-10 Years]]=1,tblSalaries[[#Headers],[5-10 Years]],IF(tblSalaries[[#This Row],[11-15 Years]]=1,tblSalaries[[#Headers],[11-15 Years]],IF(tblSalaries[[#This Row],[16-20 Years]]=1,tblSalaries[[#Headers],[16-20 Years]],IF(tblSalaries[[#This Row],[20+ Years]]=1,tblSalaries[[#Headers],[20+ Years]],"")))))) ->  | U40: =IF(tblSalaries[[#This Row],[Job Type]]=tblSalaries[[#Headers],[Accountant]],tblSalaries[[#This Row],[Salary in USD]],"") ->  | V40: =IF(tblSalaries[[#This Row],[Job Type]]=tblSalaries[[#Headers],[Analyst]],tblSalaries[[#This Row],[Salary in USD]],"") ->  | W40: =IF(tblSalaries[[#This Row],[Job Type]]=tblSalaries[[#Headers],[Consultant]],tblSalaries[[#This Row],[Salary in USD]],"") ->  | X40: =IF(tblSalaries[[#This Row],[Job Type]]=tblSalaries[[#Headers],[Controller]],tblSalaries[[#This Row],[Salary in USD]],"") ->  | Y40: =IF(tblSalaries[[#This Row],[Job Type]]=tblSalaries[[#Headers],[CXO or Top Mgmt.]],tblSalaries[[#This Row],[clean Salary (in local currency)]],"") ->  | Z40: =IF(tblSalaries[[#This Row],[Job Type]]=tblSalaries[[#Headers],[Engineer]],tblSalaries[[#This Row],[Salary in USD]],"") ->  | AA40: =IF(tblSalaries[[#This Row],[Job Type]]=tblSalaries[[#Headers],[Manager]],tblSalaries[[#This Row],[Salary in USD]],"") -> 150000 | AB40: =IF(tblSalaries[[#This Row],[Job Type]]=tblSalaries[[#Headers],[Misc.]],tblSalaries[[#This Row],[Salary in USD]],"") ->  | AC40: =IF(tblSalaries[[#This Row],[Job Type]]=tblSalaries[[#Headers],[Reporting]],tblSalaries[[#This Row],[Salary in USD]],"") ->  | AD40: =IF(tblSalaries[[#This Row],[Job Type]]=tblSalaries[[#Headers],[Specialist]],tblSalaries[[#This Row],[Salary in USD]],"") -> 
B41: ID0038 | C41: 2012-05-25T05:10:29 | D41: 69000 | E41: 69000 | F41: USD | G41: =tblSalaries[[#This Row],[clean Salary (in local currency)]]*VLOOKUP(tblSalaries[[#This Row],[Currency]],tblXrate[],2,FALSE) -> 69000 | H41: Design Engineer | I41: Engineer | J41: USA | K41: =VLOOKUP(tblSalaries[[#This Row],[Where do you work]],tblCountries[[Actual]:[Mapping]],2,FALSE) -> USA | L41: 4 to 6 hours a day | N41: =IF(tblSalaries[[#This Row],[Years of Experience]]="","",IF(tblSalaries[[#This Row],[Years of Experience]]<=2,1,"")) ->  | O41: =IF(tblSalaries[[#This Row],[Years of Experience]]="","",IF(AND(tblSalaries[[#This Row],[Years of Experience]]>2,tblSalaries[[#This Row],[Years of Experience]]<=5),1,"")) ->  | P41: =IF(tblSalaries[[#This Row],[Years of Experience]]="","",IF(AND(tblSalaries[[#This Row],[Years of Experience]]>5,tblSalaries[[#This Row],[Years of Experience]]<=10),1,"")) ->  | Q41: =IF(tblSalaries[[#This Row],[Years of Experience]]="","",IF(AND(tblSalaries[[#This Row],[Years of Experience]]>10,tblSalaries[[#This Row],[Years of Experience]]<=15),1,"")) ->  | R41: =IF(tblSalaries[[#This Row],[Years of Experience]]="","",IF(AND(tblSalaries[[#This Row],[Years of Experience]]>16,tblSalaries[[#This Row],[Years of Experience]]<=20),1,"")) ->  | S41: =IF(tblSalaries[[#This Row],[Years of Experience]]="","",IF(tblSalaries[[#This Row],[Years of Experience]]>20,1,"")) ->  | T41: =IF(tblSalaries[[#This Row],[0-2 Years]]=1,tblSalaries[[#Headers],[0-2 Years]],IF(tblSalaries[[#This Row],[3-5 Years]]=1,tblSalaries[[#Headers],[3-5 Years]],IF(tblSalaries[[#This Row],[5-10 Years]]=1,tblSalaries[[#Headers],[5-10 Years]],IF(tblSalaries[[#This Row],[11-15 Years]]=1,tblSalaries[[#Headers],[11-15 Years]],IF(tblSalaries[[#This Row],[16-20 Years]]=1,tblSalaries[[#Headers],[16-20 Years]],IF(tblSalaries[[#This Row],[20+ Years]]=1,tblSalaries[[#Headers],[20+ Years]],"")))))) ->  | U41: =IF(tblSalaries[[#This Row],[Job Type]]=tblSalaries[[#Headers],[Accountant]],tblSalaries[[#This Row],[Salary in USD]],"") ->  | V41: =IF(tblSalaries[[#This Row],[Job Type]]=tblSalaries[[#Headers],[Analyst]],tblSalaries[[#This Row],[Salary in USD]],"") ->  | W41: =IF(tblSalaries[[#This Row],[Job Type]]=tblSalaries[[#Headers],[Consultant]],tblSalaries[[#This Row],[Salary in USD]],"") ->  | X41: =IF(tblSalaries[[#This Row],[Job Type]]=tblSalaries[[#Headers],[Controller]],tblSalaries[[#This Row],[Salary in USD]],"") ->  | Y41: =IF(tblSalaries[[#This Row],[Job Type]]=tblSalaries[[#Headers],[CXO or Top Mgmt.]],tblSalaries[[#This Row],[clean Salary (in local currency)]],"") ->  | Z41: =IF(tblSalaries[[#This Row],[Job Type]]=tblSalaries[[#Headers],[Engineer]],tblSalaries[[#This Row],[Salary in USD]],"") -> 69000 | AA41: =IF(tblSalaries[[#This Row],[Job Type]]=tblSalaries[[#Headers],[Manager]],tblSalaries[[#This Row],[Salary in USD]],"") ->  | AB41: =IF(tblSalaries[[#This Row],[Job Type]]=tblSalaries[[#Headers],[Misc.]],tblSalaries[[#This Row],[Salary in USD]],"") ->  | AC41: =IF(tblSalaries[[#This Row],[Job Type]]=tblSalaries[[#Headers],[Reporting]],tblSalaries[[#This Row],[Salary in USD]],"") ->  | AD41: =IF(tblSalaries[[#This Row],[Job Type]]=tblSalaries[[#Headers],[Specialist]],tblSalaries[[#This Row],[Salary in USD]],"") -> 
B42: ID0039 | C42: 2012-05-25T05:11:37 | D42: 30000 | E42: 30000 | F42: USD | G42: =tblSalaries[[#This Row],[clean Salary (in local currency)]]*VLOOKUP(tblSalaries[[#This Row],[Currency]],tblXrate[],2,FALSE) -> 30000 | H42: Academic Advisor | I42: Consultant | J42: USA | K42: =VLOOKUP(tblSalaries[[#This Row],[Where do you work]],tblCountries[[Actual]:[Mapping]],2,FALSE) -> USA | L42: 2 to 3 hours per day | N42: =IF(tblSalaries[[#This Row],[Years of Experience]]="","",IF(tblSalaries[[#This Row],[Years of Experience]]<=2,1,"")) ->  | O42: =IF(tblSalaries[[#This Row],[Years of Experience]]="","",IF(AND(tblSalaries[[#This Row],[Years of Experience]]>2,tblSalaries[[#This Row],[Years of Experience]]<=5),1,"")) ->  | P42: =IF(tblSalaries[[#This Row],[Years of Experience]]="","",IF(AND(tblSalaries[[#This Row],[Years of Experience]]>5,tblSalaries[[#This Row],[Years of Experience]]<=10),1,"")) ->  | Q42: =IF(tblSalaries[[#This Row],[Years of Experience]]="","",IF(AND(tblSalaries[[#This Row],[Years of Experience]]>10,tblSalaries[[#This Row],[Years of Experience]]<=15),1,"")) ->  | R42: =IF(tblSalaries[[#This Row],[Years of Experience]]="","",IF(AND(tblSalaries[[#This Row],[Years of Experience]]>16,tblSalaries[[#This Row],[Years of Experience]]<=20),1,"")) ->  | S42: =IF(tblSalaries[[#This Row],[Years of Experience]]="","",IF(tblSalaries[[#This Row],[Years of Experience]]>20,1,"")) ->  | T42: =IF(tblSalaries[[#This Row],[0-2 Years]]=1,tblSalaries[[#Headers],[0-2 Years]],IF(tblSalaries[[#This Row],[3-5 Years]]=1,tblSalaries[[#Headers],[3-5 Years]],IF(tblSalaries[[#This Row],[5-10 Years]]=1,tblSalaries[[#Headers],[5-10 Years]],IF(tblSalaries[[#This Row],[11-15 Years]]=1,tblSalaries[[#Headers],[11-15 Years]],IF(tblSalaries[[#This Row],[16-20 Years]]=1,tblSalaries[[#Headers],[16-20 Years]],IF(tblSalaries[[#This Row],[20+ Years]]=1,tblSalaries[[#Headers],[20+ Years]],"")))))) ->  | U42: =IF(tblSalaries[[#This Row],[Job Type]]=tblSalaries[[#Headers],[Accountant]],tblSalaries[[#This Row],[Salary in USD]],"") ->  | V42: =IF(tblSalaries[[#This Row],[Job Type]]=tblSalaries[[#Headers],[Analyst]],tblSalaries[[#This Row],[Salary in USD]],"") ->  | W42: =IF(tblSalaries[[#This Row],[Job Type]]=tblSalaries[[#Headers],[Consultant]],tblSalaries[[#This Row],[Salary in USD]],"") -> 30000 | X42: =IF(tblSalaries[[#This Row],[Job Type]]=tblSalaries[[#Headers],[Controller]],tblSalaries[[#This Row],[Salary in USD]],"") ->  | Y42: =IF(tblSalaries[[#This Row],[Job Type]]=tblSalaries[[#Headers],[CXO or Top Mgmt.]],tblSalaries[[#This Row],[clean Salary (in local currency)]],"") ->  | Z42: =IF(tblSalaries[[#This Row],[Job Type]]=tblSalaries[[#Headers],[Engineer]],tblSalaries[[#This Row],[Salary in USD]],"") ->  | AA42: =IF(tblSalaries[[#This Row],[Job Type]]=tblSalaries[[#Headers],[Manager]],tblSalaries[[#This Row],[Salary in USD]],"") ->  | AB42: =IF(tblSalaries[[#This Row],[Job Type]]=tblSalaries[[#Headers],[Misc.]],tblSalaries[[#This Row],[Salary in USD]],"") ->  | AC42: =IF(tblSalaries[[#This Row],[Job Type]]=tblSalaries[[#Headers],[Reporting]],tblSalaries[[#This Row],[Salary in USD]],"") ->  | AD42: =IF(tblSalaries[[#This Row],[Job Type]]=tblSalaries[[#Headers],[Specialist]],tblSalaries[[#This Row],[Salary in USD]],"") -> 
B43: ID0040 | C43: 2012-05-25T05:13:50 | D43: Rs. 400000 | E43: 400000 | F43: INR | G43: =tblSalaries[[#This Row],[clean Salary (in local currency)]]*VLOOKUP(tblSalaries[[#This Row],[Currency]],tblXrate[],2,FALSE) -> 7123.166675 | H43: Coordination | I43: Manager | J43: India | K43: =VLOOKUP(tblSalaries[[#This Row],[Where do you work]],tblCountries[[Actual]:[Mapping]],2,FALSE) -> India | L43: 4 to 6 hours a day | N43: =IF(tblSalaries[[#This Row],[Years of Experience]]="","",IF(tblSalaries[[#This Row],[Years of Experience]]<=2,1,"")) ->  | O43: =IF(tblSalaries[[#This Row],[Years of Experience]]="","",IF(AND(tblSalaries[[#This Row],[Years of Experience]]>2,tblSalaries[[#This Row],[Years of Experience]]<=5),1,"")) ->  | P43: =IF(tblSalaries[[#This Row],[Years of Experience]]="","",IF(AND(tblSalaries[[#This Row],[Years of Experience]]>5,tblSalaries[[#This Row],[Years of Experience]]<=10),1,"")) ->  | Q43: =IF(tblSalaries[[#This Row],[Years of Experience]]="","",IF(AND(tblSalaries[[#This Row],[Years of Experience]]>10,tblSalaries[[#This Row],[Years of Experience]]<=15),1,"")) ->  | R43: =IF(tblSalaries[[#This Row],[Years of Experience]]="","",IF(AND(tblSalaries[[#This Row],[Years of Experience]]>16,tblSalaries[[#This Row],[Years of Experience]]<=20),1,"")) ->  | S43: =IF(tblSalaries[[#This Row],[Years of Experience]]="","",IF(tblSalaries[[#This Row],[Years of Experience]]>20,1,"")) ->  | T43: =IF(tblSalaries[[#This Row],[0-2 Years]]=1,tblSalaries[[#Headers],[0-2 Years]],IF(tblSalaries[[#This Row],[3-5 Years]]=1,tblSalaries[[#Headers],[3-5 Years]],IF(tblSalaries[[#This Row],[5-10 Years]]=1,tblSalaries[[#Headers],[5-10 Years]],IF(tblSalaries[[#This Row],[11-15 Years]]=1,tblSalaries[[#Headers],[11-15 Years]],IF(tblSalaries[[#This Row],[16-20 Years]]=1,tblSalaries[[#Headers],[16-20 Years]],IF(tblSalaries[[#This Row],[20+ Years]]=1,tblSalaries[[#Headers],[20+ Years]],"")))))) ->  | U43: =IF(tblSalaries[[#This Row],[Job Type]]=tblSalaries[[#Headers],[Accountant]],tblSalaries[[#This Row],[Salary in USD]],"") ->  | V43: =IF(tblSalaries[[#This Row],[Job Type]]=tblSalaries[[#Headers],[Analyst]],tblSalaries[[#This Row],[Salary in USD]],"") ->  | W43: =IF(tblSalaries[[#This Row],[Job Type]]=tblSalaries[[#Headers],[Consultant]],tblSalaries[[#This Row],[Salary in USD]],"") ->  | X43: =IF(tblSalaries[[#This Row],[Job Type]]=tblSalaries[[#Headers],[Controller]],tblSalaries[[#This Row],[Salary in USD]],"") ->  | Y43: =IF(tblSalaries[[#This Row],[Job Type]]=tblSalaries[[#Headers],[CXO or Top Mgmt.]],tblSalaries[[#This Row],[clean Salary (in local currency)]],"") ->  | Z43: =IF(tblSalaries[[#This Row],[Job Type]]=tblSalaries[[#Headers],[Engineer]],tblSalaries[[#This Row],[Salary in USD]],"") ->  | AA43: =IF(tblSalaries[[#This Row],[Job Type]]=tblSalaries[[#Headers],[Manager]],tblSalaries[[#This Row],[Salary in USD]],"") -> 7123.166675 | AB43: =IF(tblSalaries[[#This Row],[Job Type]]=tblSalaries[[#Headers],[Misc.]],tblSalaries[[#This Row],[Salary in USD]],"") ->  | AC43: =IF(tblSalaries[[#This Row],[Job Type]]=tblSalaries[[#Headers],[Reporting]],tblSalaries[[#This Row],[Salary in USD]],"") ->  | AD43: =IF(tblSalaries[[#This Row],[Job Type]]=tblSalaries[[#Headers],[Specialist]],tblSalaries[[#This Row],[Salary in USD]],"") -> 
B44: ID0041 | C44: 2012-05-25T05:18:48 | D44: 70000 | E44: 70000 | F44: AUD | G44: =tblSalaries[[#This Row],[clean Salary (in local currency)]]*VLOOKUP(tblSalaries[[#This Row],[Currency]],tblXrate[],2,FALSE) -> 71393.67595 | H44: consultant | I44: Consultant | J44: Australia | K44: =VLOOKUP(tblSalaries[[#This Row],[Where do you work]],tblCountries[[Actual]:[Mapping]],2,FALSE) -> Australia | L44: 2 to 3 hours per day | N44: =IF(tblSalaries[[#This Row],[Years of Experience]]="","",IF(tblSalaries[[#This Row],[Years of Experience]]<=2,1,"")) ->  | O44: =IF(tblSalaries[[#This Row],[Years of Experience]]="","",IF(AND(tblSalaries[[#This Row],[Years of Experience]]>2,tblSalaries[[#This Row],[Years of Experience]]<=5),1,"")) ->  | P44: =IF(tblSalaries[[#This Row],[Years of Experience]]="","",IF(AND(tblSalaries[[#This Row],[Years of Experience]]>5,tblSalaries[[#This Row],[Years of Experience]]<=10),1,"")) ->  | Q44: =IF(tblSalaries[[#This Row],[Years of Experience]]="","",IF(AND(tblSalaries[[#This Row],[Years of Experience]]>10,tblSalaries[[#This Row],[Years of Experience]]<=15),1,"")) ->  | R44: =IF(tblSalaries[[#This Row],[Years of Experience]]="","",IF(AND(tblSalaries[[#This Row],[Years of Experience]]>16,tblSalaries[[#This Row],[Years of Experience]]<=20),1,"")) ->  | S44: =IF(tblSalaries[[#This Row],[Years of Experience]]="","",IF(tblSalaries[[#This Row],[Years of Experience]]>20,1,"")) ->  | T44: =IF(tblSalaries[[#This Row],[0-2 Years]]=1,tblSalaries[[#Headers],[0-2 Years]],IF(tblSalaries[[#This Row],[3-5 Years]]=1,tblSalaries[[#Headers],[3-5 Years]],IF(tblSalaries[[#This Row],[5-10 Years]]=1,tblSalaries[[#Headers],[5-10 Years]],IF(tblSalaries[[#This Row],[11-15 Years]]=1,tblSalaries[[#Headers],[11-15 Years]],IF(tblSalaries[[#This Row],[16-20 Years]]=1,tblSalaries[[#Headers],[16-20 Years]],IF(tblSalaries[[#This Row],[20+ Years]]=1,tblSalaries[[#Headers],[20+ Years]],"")))))) ->  | U44: =IF(tblSalaries[[#This Row],[Job Type]]=tblSalaries[[#Headers],[Accountant]],tblSalaries[[#This Row],[Salary in USD]],"") ->  | V44: =IF(tblSalaries[[#This Row],[Job Type]]=tblSalaries[[#Headers],[Analyst]],tblSalaries[[#This Row],[Salary in USD]],"") ->  | W44: =IF(tblSalaries[[#This Row],[Job Type]]=tblSalaries[[#Headers],[Consultant]],tblSalaries[[#This Row],[Salary in USD]],"") -> 71393.67595 | X44: =IF(tblSalaries[[#This Row],[Job Type]]=tblSalaries[[#Headers],[Controller]],tblSalaries[[#This Row],[Salary in USD]],"") ->  | Y44: =IF(tblSalaries[[#This Row],[Job Type]]=tblSalaries[[#Headers],[CXO or Top Mgmt.]],tblSalaries[[#This Row],[clean Salary (in local currency)]],"") ->  | Z44: =IF(tblSalaries[[#This Row],[Job Type]]=tblSalaries[[#Headers],[Engineer]],tblSalaries[[#This Row],[Salary in USD]],"") ->  | AA44: =IF(tblSalaries[[#This Row],[Job Type]]=tblSalaries[[#Headers],[Manager]],tblSalaries[[#This Row],[Salary in USD]],"") ->  | AB44: =IF(tblSalaries[[#This Row],[Job Type]]=tblSalaries[[#Headers],[Misc.]],tblSalaries[[#This Row],[Salary in USD]],"") ->  | AC44: =IF(tblSalaries[[#This Row],[Job Type]]=tblSalaries[[#Headers],[Reporting]],tblSalaries[[#This Row],[Salary in USD]],"") ->  | AD44: =IF(tblSalaries[[#This Row],[Job Type]]=tblSalaries[[#Headers],[Specialist]],tblSalaries[[#This Row],[Salary in USD]],"") -> 
B45: ID0042 | C45: 2012-05-25T05:20:10 | D45: 14500 | E45: 14500 | F45: USD | G45: =tblSalaries[[#This Row],[clean Salary (in local currency)]]*VLOOKUP(tblSalaries[[#This Row],[Currency]],tblXrate[],2,FALSE) -> 14500 | H45: Business Analsyt | I45: Analyst | J45: India | K45: =VLOOKUP(tblSalaries[[#This Row],[Where do you work]],tblCountries[[Actual]:[Mapping]],2,FALSE) -> India | L45: 4 to 6 hours a day | N45: =IF(tblSalaries[[#This Row],[Years of Experience]]="","",IF(tblSalaries[[#This Row],[Years of Experience]]<=2,1,"")) ->  | O45: =IF(tblSalaries[[#This Row],[Years of Experience]]="","",IF(AND(tblSalaries[[#This Row],[Years of Experience]]>2,tblSalaries[[#This Row],[Years of Experience]]<=5),1,"")) ->  | P45: =IF(tblSalaries[[#This Row],[Years of Experience]]="","",IF(AND(tblSalaries[[#This Row],[Years of Experience]]>5,tblSalaries[[#This Row],[Years of Experience]]<=10),1,"")) ->  | Q45: =IF(tblSalaries[[#This Row],[Years of Experience]]="","",IF(AND(tblSalaries[[#This Row],[Years of Experience]]>10,tblSalaries[[#This Row],[Years of Experience]]<=15),1,"")) ->  | R45: =IF(tblSalaries[[#This Row],[Years of Experience]]="","",IF(AND(tblSalaries[[#This Row],[Years of Experience]]>16,tblSalaries[[#This Row],[Years of Experience]]<=20),1,"")) ->  | S45: =IF(tblSalaries[[#This Row],[Years of Experience]]="","",IF(tblSalaries[[#This Row],[Years of Experience]]>20,1,"")) ->  | T45: =IF(tblSalaries[[#This Row],[0-2 Years]]=1,tblSalaries[[#Headers],[0-2 Years]],IF(tblSalaries[[#This Row],[3-5 Years]]=1,tblSalaries[[#Headers],[3-5 Years]],IF(tblSalaries[[#This Row],[5-10 Years]]=1,tblSalaries[[#Headers],[5-10 Years]],IF(tblSalaries[[#This Row],[11-15 Years]]=1,tblSalaries[[#Headers],[11-15 Years]],IF(tblSalaries[[#This Row],[16-20 Years]]=1,tblSalaries[[#Headers],[16-20 Years]],IF(tblSalaries[[#This Row],[20+ Years]]=1,tblSalaries[[#Headers],[20+ Years]],"")))))) ->  | U45: =IF(tblSalaries[[#This Row],[Job Type]]=tblSalaries[[#Headers],[Accountant]],tblSalaries[[#This Row],[Salary in USD]],"") ->  | V45: =IF(tblSalaries[[#This Row],[Job Type]]=tblSalaries[[#Headers],[Analyst]],tblSalaries[[#This Row],[Salary in USD]],"") -> 14500 | W45: =IF(tblSalaries[[#This Row],[Job Type]]=tblSalaries[[#Headers],[Consultant]],tblSalaries[[#This Row],[Salary in USD]],"") ->  | X45: =IF(tblSalaries[[#This Row],[Job Type]]=tblSalaries[[#Headers],[Controller]],tblSalaries[[#This Row],[Salary in USD]],"") ->  | Y45: =IF(tblSalaries[[#This Row],[Job Type]]=tblSalaries[[#Headers],[CXO or Top Mgmt.]],tblSalaries[[#This Row],[clean Salary (in local currency)]],"") ->  | Z45: =IF(tblSalaries[[#This Row],[Job Type]]=tblSalaries[[#Headers],[Engineer]],tblSalaries[[#This Row],[Salary in USD]],"") ->  | AA45: =IF(tblSalaries[[#This Row],[Job Type]]=tblSalaries[[#Headers],[Manager]],tblSalaries[[#This Row],[Salary in USD]],"") ->  | AB45: =IF(tblSalaries[[#This Row],[Job Type]]=tblSalaries[[#Headers],[Misc.]],tblSalaries[[#This Row],[Salary in USD]],"") ->  | AC45: =IF(tblSalaries[[#This Row],[Job Type]]=tblSalaries[[#Headers],[Reporting]],tblSalaries[[#This Row],[Salary in USD]],"") ->  | AD45: =IF(tblSalaries[[#This Row],[Job Type]]=tblSalaries[[#Headers],[Specialist]],tblSalaries[[#This Row],[Salary in USD]],"") -> 
B46: ID0043 | C46: 2012-05-25T05:30:39 | D46: 70000 | E46: 70000 | F46: CAD | G46: =tblSalaries[[#This Row],[clean Salary (in local currency)]]*VLOOKUP(tblSalaries[[#This Row],[Currency]],tblXrate[],2,FALSE) -> 68835.30661 | H46: Product Engineer | I46: Engineer | J46: Canada | K46: =VLOOKUP(tblSalaries[[#This Row],[Where do you work]],tblCountries[[Actual]:[Mapping]],2,FALSE) -> Canada | L46: 2 to 3 hours per day | N46: =IF(tblSalaries[[#This Row],[Years of Experience]]="","",IF(tblSalaries[[#This Row],[Years of Experience]]<=2,1,"")) ->  | O46: =IF(tblSalaries[[#This Row],[Years of Experience]]="","",IF(AND(tblSalaries[[#This Row],[Years of Experience]]>2,tblSalaries[[#This Row],[Years of Experience]]<=5),1,"")) ->  | P46: =IF(tblSalaries[[#This Row],[Years of Experience]]="","",IF(AND(tblSalaries[[#This Row],[Years of Experience]]>5,tblSalaries[[#This Row],[Years of Experience]]<=10),1,"")) ->  | Q46: =IF(tblSalaries[[#This Row],[Years of Experience]]="","",IF(AND(tblSalaries[[#This Row],[Years of Experience]]>10,tblSalaries[[#This Row],[Years of Experience]]<=15),1,"")) ->  | R46: =IF(tblSalaries[[#This Row],[Years of Experience]]="","",IF(AND(tblSalaries[[#This Row],[Years of Experience]]>16,tblSalaries[[#This Row],[Years of Experience]]<=20),1,"")) ->  | S46: =IF(tblSalaries[[#This Row],[Years of Experience]]="","",IF(tblSalaries[[#This Row],[Years of Experience]]>20,1,"")) ->  | T46: =IF(tblSalaries[[#This Row],[0-2 Years]]=1,tblSalaries[[#Headers],[0-2 Years]],IF(tblSalaries[[#This Row],[3-5 Years]]=1,tblSalaries[[#Headers],[3-5 Years]],IF(tblSalaries[[#This Row],[5-10 Years]]=1,tblSalaries[[#Headers],[5-10 Years]],IF(tblSalaries[[#This Row],[11-15 Years]]=1,tblSalaries[[#Headers],[11-15 Years]],IF(tblSalaries[[#This Row],[16-20 Years]]=1,tblSalaries[[#Headers],[16-20 Years]],IF(tblSalaries[[#This Row],[20+ Years]]=1,tblSalaries[[#Headers],[20+ Years]],"")))))) ->  | U46: =IF(tblSalaries[[#This Row],[Job Type]]=tblSalaries[[#Headers],[Accountant]],tblSalaries[[#This Row],[Salary in USD]],"") ->  | V46: =IF(tblSalaries[[#This Row],[Job Type]]=tblSalaries[[#Headers],[Analyst]],tblSalaries[[#This Row],[Salary in USD]],"") ->  | W46: =IF(tblSalaries[[#This Row],[Job Type]]=tblSalaries[[#Headers],[Consultant]],tblSalaries[[#This Row],[Salary in USD]],"") ->  | X46: =IF(tblSalaries[[#This Row],[Job Type]]=tblSalaries[[#Headers],[Controller]],tblSalaries[[#This Row],[Salary in USD]],"") ->  | Y46: =IF(tblSalaries[[#This Row],[Job Type]]=tblSalaries[[#Headers],[CXO or Top Mgmt.]],tblSalaries[[#This Row],[clean Salary (in local currency)]],"") ->  | Z46: =IF(tblSalaries[[#This Row],[Job Type]]=tblSalaries[[#Headers],[Engineer]],tblSalaries[[#This Row],[Salary in USD]],"") -> 68835.30661 | AA46: =IF(tblSalaries[[#This Row],[Job Type]]=tblSalaries[[#Headers],[Manager]],tblSalaries[[#This Row],[Salary in USD]],"") ->  | AB46: =IF(tblSalaries[[#This Row],[Job Type]]=tblSalaries[[#Headers],[Misc.]],tblSalaries[[#This Row],[Salary in USD]],"") ->  | AC46: =IF(tblSalaries[[#This Row],[Job Type]]=tblSalaries[[#Headers],[Reporting]],tblSalaries[[#This Row],[Salary in USD]],"") ->  | AD46: =IF(tblSalaries[[#This Row],[Job Type]]=tblSalaries[[#Headers],[Specialist]],tblSalaries[[#This Row],[Salary in USD]],"") -> 
B47: ID0044 | C47: 2012-05-25T05:35:28 | D47: 58000 | E47: 58000 | F47: USD | G47: =tblSalaries[[#This Row],[clean Salary (in local currency)]]*VLOOKUP(tblSalaries[[#This Row],[Currency]],tblXrate[],2,FALSE) -> 58000 | H47: Senior Accountant | I47: Accountant | J47: USA | K47: =VLOOKUP(tblSalaries[[#This Row],[Where do you work]],tblCountries[[Actual]:[Mapping]],2,FALSE) -> USA | L47: 4 to 6 hours a day | N47: =IF(tblSalaries[[#This Row],[Years of Experience]]="","",IF(tblSalaries[[#This Row],[Years of Experience]]<=2,1,"")) ->  | O47: =IF(tblSalaries[[#This Row],[Years of Experience]]="","",IF(AND(tblSalaries[[#This Row],[Years of Experience]]>2,tblSalaries[[#This Row],[Years of Experience]]<=5),1,"")) ->  | P47: =IF(tblSalaries[[#This Row],[Years of Experience]]="","",IF(AND(tblSalaries[[#This Row],[Years of Experience]]>5,tblSalaries[[#This Row],[Years of Experience]]<=10),1,"")) ->  | Q47: =IF(tblSalaries[[#This Row],[Years of Experience]]="","",IF(AND(tblSalaries[[#This Row],[Years of Experience]]>10,tblSalaries[[#This Row],[Years of Experience]]<=15),1,"")) ->  | R47: =IF(tblSalaries[[#This Row],[Years of Experience]]="","",IF(AND(tblSalaries[[#This Row],[Years of Experience]]>16,tblSalaries[[#This Row],[Years of Experience]]<=20),1,"")) ->  | S47: =IF(tblSalaries[[#This Row],[Years of Experience]]="","",IF(tblSalaries[[#This Row],[Years of Experience]]>20,1,"")) ->  | T47: =IF(tblSalaries[[#This Row],[0-2 Years]]=1,tblSalaries[[#Headers],[0-2 Years]],IF(tblSalaries[[#This Row],[3-5 Years]]=1,tblSalaries[[#Headers],[3-5 Years]],IF(tblSalaries[[#This Row],[5-10 Years]]=1,tblSalaries[[#Headers],[5-10 Years]],IF(tblSalaries[[#This Row],[11-15 Years]]=1,tblSalaries[[#Headers],[11-15 Years]],IF(tblSalaries[[#This Row],[16-20 Years]]=1,tblSalaries[[#Headers],[16-20 Years]],IF(tblSalaries[[#This Row],[20+ Years]]=1,tblSalaries[[#Headers],[20+ Years]],"")))))) ->  | U47: =IF(tblSalaries[[#This Row],[Job Type]]=tblSalaries[[#Headers],[Accountant]],tblSalaries[[#This Row],[Salary in USD]],"") -> 58000 | V47: =IF(tblSalaries[[#This Row],[Job Type]]=tblSalaries[[#Headers],[Analyst]],tblSalaries[[#This Row],[Salary in USD]],"") ->  | W47: =IF(tblSalaries[[#This Row],[Job Type]]=tblSalaries[[#Headers],[Consultant]],tblSalaries[[#This Row],[Salary in USD]],"") ->  | X47: =IF(tblSalaries[[#This Row],[Job Type]]=tblSalaries[[#Headers],[Controller]],tblSalaries[[#This Row],[Salary in USD]],"") ->  | Y47: =IF(tblSalaries[[#This Row],[Job Type]]=tblSalaries[[#Headers],[CXO or Top Mgmt.]],tblSalaries[[#This Row],[clean Salary (in local currency)]],"") ->  | Z47: =IF(tblSalaries[[#This Row],[Job Type]]=tblSalaries[[#Headers],[Engineer]],tblSalaries[[#This Row],[Salary in USD]],"") ->  | AA47: =IF(tblSalaries[[#This Row],[Job Type]]=tblSalaries[[#Headers],[Manager]],tblSalaries[[#This Row],[Salary in USD]],"") ->  | AB47: =IF(tblSalaries[[#This Row],[Job Type]]=tblSalaries[[#Headers],[Misc.]],tblSalaries[[#This Row],[Salary in USD]],"") ->  | AC47: =IF(tblSalaries[[#This Row],[Job Type]]=tblSalaries[[#Headers],[Reporting]],tblSalaries[[#This Row],[Salary in USD]],"") ->  | AD47: =IF(tblSalaries[[#This Row],[Job Type]]=tblSalaries[[#Headers],[Specialist]],tblSalaries[[#This Row],[Salary in USD]],"") -> 
B48: ID0045 | C48: 2012-05-25T05:45:01 | D48: 90000 | E48: 90000 | F48: USD | G48: =tblSalaries[[#This Row],[clean Salary (in local currency)]]*VLOOKUP(tblSalaries[[#This Row],[Currency]],tblXrate[],2,FALSE) -> 90000 | H48: Scientist | I48: Misc. | J48: USA | K48: =VLOOKUP(tblSalaries[[#This Row],[Where do you work]],tblCountries[[Actual]:[Mapping]],2,FALSE) -> USA | L48: 1 or 2 hours a day | N48: =IF(tblSalaries[[#This Row],[Years of Experience]]="","",IF(tblSalaries[[#This Row],[Years of Experience]]<=2,1,"")) ->  | O48: =IF(tblSalaries[[#This Row],[Years of Experience]]="","",IF(AND(tblSalaries[[#This Row],[Years of Experience]]>2,tblSalaries[[#This Row],[Years of Experience]]<=5),1,"")) ->  | P48: =IF(tblSalaries[[#This Row],[Years of Experience]]="","",IF(AND(tblSalaries[[#This Row],[Years of Experience]]>5,tblSalaries[[#This Row],[Years of Experience]]<=10),1,"")) ->  | Q48: =IF(tblSalaries[[#This Row],[Years of Experience]]="","",IF(AND(tblSalaries[[#This Row],[Years of Experience]]>10,tblSalaries[[#This Row],[Years of Experience]]<=15),1,"")) ->  | R48: =IF(tblSalaries[[#This Row],[Years of Experience]]="","",IF(AND(tblSalaries[[#This Row],[Years of Experience]]>16,tblSalaries[[#This Row],[Years of Experience]]<=20),1,"")) ->  | S48: =IF(tblSalaries[[#This Row],[Years of Experience]]="","",IF(tblSalaries[[#This Row],[Years of Experience]]>20,1,"")) ->  | T48: =IF(tblSalaries[[#This Row],[0-2 Years]]=1,tblSalaries[[#Headers],[0-2 Years]],IF(tblSalaries[[#This Row],[3-5 Years]]=1,tblSalaries[[#Headers],[3-5 Years]],IF(tblSalaries[[#This Row],[5-10 Years]]=1,tblSalaries[[#Headers],[5-10 Years]],IF(tblSalaries[[#This Row],[11-15 Years]]=1,tblSalaries[[#Headers],[11-15 Years]],IF(tblSalaries[[#This Row],[16-20 Years]]=1,tblSalaries[[#Headers],[16-20 Years]],IF(tblSalaries[[#This Row],[20+ Years]]=1,tblSalaries[[#Headers],[20+ Years]],"")))))) ->  | U48: =IF(tblSalaries[[#This Row],[Job Type]]=tblSalaries[[#Headers],[Accountant]],tblSalaries[[#This Row],[Salary in USD]],"") ->  | V48: =IF(tblSalaries[[#This Row],[Job Type]]=tblSalaries[[#Headers],[Analyst]],tblSalaries[[#This Row],[Salary in USD]],"") ->  | W48: =IF(tblSalaries[[#This Row],[Job Type]]=tblSalaries[[#Headers],[Consultant]],tblSalaries[[#This Row],[Salary in USD]],"") ->  | X48: =IF(tblSalaries[[#This Row],[Job Type]]=tblSalaries[[#Headers],[Controller]],tblSalaries[[#This Row],[Salary in USD]],"") ->  | Y48: =IF(tblSalaries[[#This Row],[Job Type]]=tblSalaries[[#Headers],[CXO or Top Mgmt.]],tblSalaries[[#This Row],[clean Salary (in local currency)]],"") ->  | Z48: =IF(tblSalaries[[#This Row],[Job Type]]=tblSalaries[[#Headers],[Engineer]],tblSalaries[[#This Row],[Salary in USD]],"") ->  | AA48: =IF(tblSalaries[[#This Row],[Job Type]]=tblSalaries[[#Headers],[Manager]],tblSalaries[[#This Row],[Salary in USD]],"") ->  | AB48: =IF(tblSalaries[[#This Row],[Job Type]]=tblSalaries[[#Headers],[Misc.]],tblSalaries[[#This Row],[Salary in USD]],"") -> 90000 | AC48: =IF(tblSalaries[[#This Row],[Job Type]]=tblSalaries[[#Headers],[Reporting]],tblSalaries[[#This Row],[Salary in USD]],"") ->  | AD48: =IF(tblSalaries[[#This Row],[Job Type]]=tblSalaries[[#Headers],[Specialist]],tblSalaries[[#This Row],[Salary in USD]],"") -> 
B49: ID0046 | C49: 2012-05-25T05:46:47 | D49: 800000 | E49: 800000 | F49: INR | G49: =tblSalaries[[#This Row],[clean Salary (in local currency)]]*VLOOKUP(tblSalaries[[#This Row],[Currency]],tblXrate[],2,FALSE) -> 14246.33335 | H49: Team Lead | I49: Manager | J49: India | K49: =VLOOKUP(tblSalaries[[#This Row],[Where do you work]],tblCountries[[Actual]:[Mapping]],2,FALSE) -> India | L49: 2 to 3 hours per day | N49: =IF(tblSalaries[[#This Row],[Years of Experience]]="","",IF(tblSalaries[[#This Row],[Years of Experience]]<=2,1,"")) ->  | O49: =IF(tblSalaries[[#This Row],[Years of Experience]]="","",IF(AND(tblSalaries[[#This Row],[Years of Experience]]>2,tblSalaries[[#This Row],[Years of Experience]]<=5),1,"")) ->  | P49: =IF(tblSalaries[[#This Row],[Years of Experience]]="","",IF(AND(tblSalaries[[#This Row],[Years of Experience]]>5,tblSalaries[[#This Row],[Years of Experience]]<=10),1,"")) ->  | Q49: =IF(tblSalaries[[#This Row],[Years of Experience]]="","",IF(AND(tblSalaries[[#This Row],[Years of Experience]]>10,tblSalaries[[#This Row],[Years of Experience]]<=15),1,"")) ->  | R49: =IF(tblSalaries[[#This Row],[Years of Experience]]="","",IF(AND(tblSalaries[[#This Row],[Years of Experience]]>16,tblSalaries[[#This Row],[Years of Experience]]<=20),1,"")) ->  | S49: =IF(tblSalaries[[#This Row],[Years of Experience]]="","",IF(tblSalaries[[#This Row],[Years of Experience]]>20,1,"")) ->  | T49: =IF(tblSalaries[[#This Row],[0-2 Years]]=1,tblSalaries[[#Headers],[0-2 Years]],IF(tblSalaries[[#This Row],[3-5 Years]]=1,tblSalaries[[#Headers],[3-5 Years]],IF(tblSalaries[[#This Row],[5-10 Years]]=1,tblSalaries[[#Headers],[5-10 Years]],IF(tblSalaries[[#This Row],[11-15 Years]]=1,tblSalaries[[#Headers],[11-15 Years]],IF(tblSalaries[[#This Row],[16-20 Years]]=1,tblSalaries[[#Headers],[16-20 Years]],IF(tblSalaries[[#This Row],[20+ Years]]=1,tblSalaries[[#Headers],[20+ Years]],"")))))) ->  | U49: =IF(tblSalaries[[#This Row],[Job Type]]=tblSalaries[[#Headers],[Accountant]],tblSalaries[[#This Row],[Salary in USD]],"") ->  | V49: =IF(tblSalaries[[#This Row],[Job Type]]=tblSalaries[[#Headers],[Analyst]],tblSalaries[[#This Row],[Salary in USD]],"") ->  | W49: =IF(tblSalaries[[#This Row],[Job Type]]=tblSalaries[[#Headers],[Consultant]],tblSalaries[[#This Row],[Salary in USD]],"") ->  | X49: =IF(tblSalaries[[#This Row],[Job Type]]=tblSalaries[[#Headers],[Controller]],tblSalaries[[#This Row],[Salary in USD]],"") ->  | Y49: =IF(tblSalaries[[#This Row],[Job Type]]=tblSalaries[[#Headers],[CXO or Top Mgmt.]],tblSalaries[[#This Row],[clean Salary (in local currency)]],"") ->  | Z49: =IF(tblSalaries[[#This Row],[Job Type]]=tblSalaries[[#Headers],[Engineer]],tblSalaries[[#This Row],[Salary in USD]],"") ->  | AA49: =IF(tblSalaries[[#This Row],[Job Type]]=tblSalaries[[#Headers],[Manager]],tblSalaries[[#This Row],[Salary in USD]],"") -> 14246.33335 | AB49: =IF(tblSalaries[[#This Row],[Job Type]]=tblSalaries[[#Headers],[Misc.]],tblSalaries[[#This Row],[Salary in USD]],"") ->  | AC49: =IF(tblSalaries[[#This Row],[Job Type]]=tblSalaries[[#Headers],[Reporting]],tblSalaries[[#This Row],[Salary in USD]],"") ->  | AD49: =IF(tblSalaries[[#This Row],[Job Type]]=tblSalaries[[#Headers],[Specialist]],tblSalaries[[#This Row],[Salary in USD]],"") -> 
B50: ID0047 | C50: 2012-05-25T05:47:10 | D50: 32000 | E50: 32000 | F50: GBP | G50: =tblSalaries[[#This Row],[clean Salary (in local currency)]]*VLOOKUP(tblSalaries[[#This Row],[Currency]],tblXrate[],2,FALSE) -> 50437.70471 | H50: Senior intelligence analyst | I50: Analyst | J50: UK | K50: =VLOOKUP(tblSalaries[[#This Row],[Where do you work]],tblCountries[[Actual]:[Mapping]],2,FALSE) -> UK | L50: 4 to 6 hours a day | N50: =IF(tblSalaries[[#This Row],[Years of Experience]]="","",IF(tblSalaries[[#This Row],[Years of Experience]]<=2,1,"")) ->  | O50: =IF(tblSalaries[[#This Row],[Years of Experience]]="","",IF(AND(tblSalaries[[#This Row],[Years of Experience]]>2,tblSalaries[[#This Row],[Years of Experience]]<=5),1,"")) ->  | P50: =IF(tblSalaries[[#This Row],[Years of Experience]]="","",IF(AND(tblSalaries[[#This Row],[Years of Experience]]>5,tblSalaries[[#This Row],[Years of Experience]]<=10),1,"")) ->  | Q50: =IF(tblSalaries[[#This Row],[Years of Experience]]="","",IF(AND(tblSalaries[[#This Row],[Years of Experience]]>10,tblSalaries[[#This Row],[Years of Experience]]<=15),1,"")) ->  | R50: =IF(tblSalaries[[#This Row],[Years of Experience]]="","",IF(AND(tblSalaries[[#This Row],[Years of Experience]]>16,tblSalaries[[#This Row],[Years of Experience]]<=20),1,"")) ->  | S50: =IF(tblSalaries[[#This Row],[Years of Experience]]="","",IF(tblSalaries[[#This Row],[Years of Experience]]>20,1,"")) ->  | T50: =IF(tblSalaries[[#This Row],[0-2 Years]]=1,tblSalaries[[#Headers],[0-2 Years]],IF(tblSalaries[[#This Row],[3-5 Years]]=1,tblSalaries[[#Headers],[3-5 Years]],IF(tblSalaries[[#This Row],[5-10 Years]]=1,tblSalaries[[#Headers],[5-10 Years]],IF(tblSalaries[[#This Row],[11-15 Years]]=1,tblSalaries[[#Headers],[11-15 Years]],IF(tblSalaries[[#This Row],[16-20 Years]]=1,tblSalaries[[#Headers],[16-20 Years]],IF(tblSalaries[[#This Row],[20+ Years]]=1,tblSalaries[[#Headers],[20+ Years]],"")))))) ->  | U50: =IF(tblSalaries[[#This Row],[Job Type]]=tblSalaries[[#Headers],[Accountant]],tblSalaries[[#This Row],[Salary in USD]],"") ->  | V50: =IF(tblSalaries[[#This Row],[Job Type]]=tblSalaries[[#Headers],[Analyst]],tblSalaries[[#This Row],[Salary in USD]],"") -> 50437.70471 | W50: =IF(tblSalaries[[#This Row],[Job Type]]=tblSalaries[[#Headers],[Consultant]],tblSalaries[[#This Row],[Salary in USD]],"") ->  | X50: =IF(tblSalaries[[#This Row],[Job Type]]=tblSalaries[[#Headers],[Controller]],tblSalaries[[#This Row],[Salary in USD]],"") ->  | Y50: =IF(tblSalaries[[#This Row],[Job Type]]=tblSalaries[[#Headers],[CXO or Top Mgmt.]],tblSalaries[[#This Row],[clean Salary (in local currency)]],"") ->  | Z50: =IF(tblSalaries[[#This Row],[Job Type]]=tblSalaries[[#Headers],[Engineer]],tblSalaries[[#This Row],[Salary in USD]],"") ->  | AA50: =IF(tblSalaries[[#This Row],[Job Type]]=tblSalaries[[#Headers],[Manager]],tblSalaries[[#This Row],[Salary in USD]],"") ->  | AB50: =IF(tblSalaries[[#This Row],[Job Type]]=tblSalaries[[#Headers],[Misc.]],tblSalaries[[#This Row],[Salary in USD]],"") ->  | AC50: =IF(tblSalaries[[#This Row],[Job Type]]=tblSalaries[[#Headers],[Reporting]],tblSalaries[[#This Row],[Salary in USD]],"") ->  | AD50: =IF(tblSalaries[[#This Row],[Job Type]]=tblSalaries[[#Headers],[Specialist]],tblSalaries[[#This Row],[Salary in USD]],"") -> 
B51: ID0048 | C51: 2012-05-25T05:47:52 | D51: 1000 | E51: 12000 | F51: USD | G51: =tblSalaries[[#This Row],[clean Salary (in local currency)]]*VLOOKUP(tblSalaries[[#This Row],[Currency]],tblXrate[],2,FALSE) -> 12000 | H51: Freelance consultant | I51: Consultant | J51: USA | K51: =VLOOKUP(tblSalaries[[#This Row],[Where do you work]],tblCountries[[Actual]:[Mapping]],2,FALSE) -> USA | L51: 1 or 2 hours a day | N51: =IF(tblSalaries[[#This Row],[Years of Experience]]="","",IF(tblSalaries[[#This Row],[Years of Experience]]<=2,1,"")) ->  | O51: =IF(tblSalaries[[#This Row],[Years of Experience]]="","",IF(AND(tblSalaries[[#This Row],[Years of Experience]]>2,tblSalaries[[#This Row],[Years of Experience]]<=5),1,"")) ->  | P51: =IF(tblSalaries[[#This Row],[Years of Experience]]="","",IF(AND(tblSalaries[[#This Row],[Years of Experience]]>5,tblSalaries[[#This Row],[Years of Experience]]<=10),1,"")) ->  | Q51: =IF(tblSalaries[[#This Row],[Years of Experience]]="","",IF(AND(tblSalaries[[#This Row],[Years of Experience]]>10,tblSalaries[[#This Row],[Years of Experience]]<=15),1,"")) ->  | R51: =IF(tblSalaries[[#This Row],[Years of Experience]]="","",IF(AND(tblSalaries[[#This Row],[Years of Experience]]>16,tblSalaries[[#This Row],[Years of Experience]]<=20),1,"")) ->  | S51: =IF(tblSalaries[[#This Row],[Years of Experience]]="","",IF(tblSalaries[[#This Row],[Years of Experience]]>20,1,"")) ->  | T51: =IF(tblSalaries[[#This Row],[0-2 Years]]=1,tblSalaries[[#Headers],[0-2 Years]],IF(tblSalaries[[#This Row],[3-5 Years]]=1,tblSalaries[[#Headers],[3-5 Years]],IF(tblSalaries[[#This Row],[5-10 Years]]=1,tblSalaries[[#Headers],[5-10 Years]],IF(tblSalaries[[#This Row],[11-15 Years]]=1,tblSalaries[[#Headers],[11-15 Years]],IF(tblSalaries[[#This Row],[16-20 Years]]=1,tblSalaries[[#Headers],[16-20 Years]],IF(tblSalaries[[#This Row],[20+ Years]]=1,tblSalaries[[#Headers],[20+ Years]],"")))))) ->  | U51: =IF(tblSalaries[[#This Row],[Job Type]]=tblSalaries[[#Headers],[Accountant]],tblSalaries[[#This Row],[Salary in USD]],"") ->  | V51: =IF(tblSalaries[[#This Row],[Job Type]]=tblSalaries[[#Headers],[Analyst]],tblSalaries[[#This Row],[Salary in USD]],"") ->  | W51: =IF(tblSalaries[[#This Row],[Job Type]]=tblSalaries[[#Headers],[Consultant]],tblSalaries[[#This Row],[Salary in USD]],"") -> 12000 | X51: =IF(tblSalaries[[#This Row],[Job Type]]=tblSalaries[[#Headers],[Controller]],tblSalaries[[#This Row],[Salary in USD]],"") ->  | Y51: =IF(tblSalaries[[#This Row],[Job Type]]=tblSalaries[[#Headers],[CXO or Top Mgmt.]],tblSalaries[[#This Row],[clean Salary (in local currency)]],"") ->  | Z51: =IF(tblSalaries[[#This Row],[Job Type]]=tblSalaries[[#Headers],[Engineer]],tblSalaries[[#This Row],[Salary in USD]],"") ->  | AA51: =IF(tblSalaries[[#This Row],[Job Type]]=tblSalaries[[#Headers],[Manager]],tblSalaries[[#This Row],[Salary in USD]],"") ->  | AB51: =IF(tblSalaries[[#This Row],[Job Type]]=tblSalaries[[#Headers],[Misc.]],tblSalaries[[#This Row],[Salary in USD]],"") ->  | AC51: =IF(tblSalaries[[#This Row],[Job Type]]=tblSalaries[[#Headers],[Reporting]],tblSalaries[[#This Row],[Salary in USD]],"") ->  | AD51: =IF(tblSalaries[[#This Row],[Job Type]]=tblSalaries[[#Headers],[Specialist]],tblSalaries[[#This Row],[Salary in USD]],"") -> 
B52: ID0049 | C52: 2012-05-25T06:04:42 | D52: â‚¬ 45 | E52: 45000 | F52: EUR | G52: =tblSalaries[[#This Row],[clean Salary (in local currency)]]*VLOOKUP(tblSalaries[[#This Row],[Currency]],tblXrate[],2,FALSE) -> 57167.97475 | H52: Online Traffic Manager / Web Analist | I52: Manager | J52: The Netherlands | K52: =VLOOKUP(tblSalaries[[#This Row],[Where do you work]],tblCountries[[Actual]:[Mapping]],2,FALSE) -> Netherlands | L52: 4 to 6 hours a day | N52: =IF(tblSalaries[[#This Row],[Years of Experience]]="","",IF(tblSalaries[[#This Row],[Years of Experience]]<=2,1,"")) ->  | O52: =IF(tblSalaries[[#This Row],[Years of Experience]]="","",IF(AND(tblSalaries[[#This Row],[Years of Experience]]>2,tblSalaries[[#This Row],[Years of Experience]]<=5),1,"")) ->  | P52: =IF(tblSalaries[[#This Row],[Years of Experience]]="","",IF(AND(tblSalaries[[#This Row],[Years of Experience]]>5,tblSalaries[[#This Row],[Years of Experience]]<=10),1,"")) ->  | Q52: =IF(tblSalaries[[#This Row],[Years of Experience]]="","",IF(AND(tblSalaries[[#This Row],[Years of Experience]]>10,tblSalaries[[#This Row],[Years of Experience]]<=15),1,"")) ->  | R52: =IF(tblSalaries[[#This Row],[Years of Experience]]="","",IF(AND(tblSalaries[[#This Row],[Years of Experience]]>16,tblSalaries[[#This Row],[Years of Experience]]<=20),1,"")) ->  | S52: =IF(tblSalaries[[#This Row],[Years of Experience]]="","",IF(tblSalaries[[#This Row],[Years of Experience]]>20,1,"")) ->  | T52: =IF(tblSalaries[[#This Row],[0-2 Years]]=1,tblSalaries[[#Headers],[0-2 Years]],IF(tblSalaries[[#This Row],[3-5 Years]]=1,tblSalaries[[#Headers],[3-5 Years]],IF(tblSalaries[[#This Row],[5-10 Years]]=1,tblSalaries[[#Headers],[5-10 Years]],IF(tblSalaries[[#This Row],[11-15 Years]]=1,tblSalaries[[#Headers],[11-15 Years]],IF(tblSalaries[[#This Row],[16-20 Years]]=1,tblSalaries[[#Headers],[16-20 Years]],IF(tblSalaries[[#This Row],[20+ Years]]=1,tblSalaries[[#Headers],[20+ Years]],"")))))) ->  | U52: =IF(tblSalaries[[#This Row],[Job Type]]=tblSalaries[[#Headers],[Accountant]],tblSalaries[[#This Row],[Salary in USD]],"") ->  | V52: =IF(tblSalaries[[#This Row],[Job Type]]=tblSalaries[[#Headers],[Analyst]],tblSalaries[[#This Row],[Salary in USD]],"") ->  | W52: =IF(tblSalaries[[#This Row],[Job Type]]=tblSalaries[[#Headers],[Consultant]],tblSalaries[[#This Row],[Salary in USD]],"") ->  | X52: =IF(tblSalaries[[#This Row],[Job Type]]=tblSalaries[[#Headers],[Controller]],tblSalaries[[#This Row],[Salary in USD]],"") ->  | Y52: =IF(tblSalaries[[#This Row],[Job Type]]=tblSalaries[[#Headers],[CXO or Top Mgmt.]],tblSalaries[[#This Row],[clean Salary (in local currency)]],"") ->  | Z52: =IF(tblSalaries[[#This Row],[Job Type]]=tblSalaries[[#Headers],[Engineer]],tblSalaries[[#This Row],[Salary in USD]],"") ->  | AA52: =IF(tblSalaries[[#This Row],[Job Type]]=tblSalaries[[#Headers],[Manager]],tblSalaries[[#This Row],[Salary in USD]],"") -> 57167.97475 | AB52: =IF(tblSalaries[[#This Row],[Job Type]]=tblSalaries[[#Headers],[Misc.]],tblSalaries[[#This Row],[Salary in USD]],"") ->  | AC52: =IF(tblSalaries[[#This Row],[Job Type]]=tblSalaries[[#Headers],[Reporting]],tblSalaries[[#This Row],[Salary in USD]],"") ->  | AD52: =IF(tblSalaries[[#This Row],[Job Type]]=tblSalaries[[#Headers],[Specialist]],tblSalaries[[#This Row],[Salary in USD]],"") -> 
B53: ID0050 | C53: 2012-05-25T06:04:57 | D53: 100000 USD | E53: 100000 | F53: USD | G53: =tblSalaries[[#This Row],[clean Salary (in local currency)]]*VLOOKUP(tblSalaries[[#This Row],[Currency]],tblXrate[],2,FALSE) -> 100000 | H53: Seinor Financial Analyst | I53: Analyst | J53: Germany | K53: =VLOOKUP(tblSalaries[[#This Row],[Where do you work]],tblCountries[[Actual]:[Mapping]],2,FALSE) -> Germany | L53: All the 8 hours baby, all the 8! | N53: =IF(tblSalaries[[#This Row],[Years of Experience]]="","",IF(tblSalaries[[#This Row],[Years of Experience]]<=2,1,"")) ->  | O53: =IF(tblSalaries[[#This Row],[Years of Experience]]="","",IF(AND(tblSalaries[[#This Row],[Years of Experience]]>2,tblSalaries[[#This Row],[Years of Experience]]<=5),1,"")) ->  | P53: =IF(tblSalaries[[#This Row],[Years of Experience]]="","",IF(AND(tblSalaries[[#This Row],[Years of Experience]]>5,tblSalaries[[#This Row],[Years of Experience]]<=10),1,"")) ->  | Q53: =IF(tblSalaries[[#This Row],[Years of Experience]]="","",IF(AND(tblSalaries[[#This Row],[Years of Experience]]>10,tblSalaries[[#This Row],[Years of Experience]]<=15),1,"")) ->  | R53: =IF(tblSalaries[[#This Row],[Years of Experience]]="","",IF(AND(tblSalaries[[#This Row],[Years of Experience]]>16,tblSalaries[[#This Row],[Years of Experience]]<=20),1,"")) ->  | S53: =IF(tblSalaries[[#This Row],[Years of Experience]]="","",IF(tblSalaries[[#This Row],[Years of Experience]]>20,1,"")) ->  | T53: =IF(tblSalaries[[#This Row],[0-2 Years]]=1,tblSalaries[[#Headers],[0-2 Years]],IF(tblSalaries[[#This Row],[3-5 Years]]=1,tblSalaries[[#Headers],[3-5 Years]],IF(tblSalaries[[#This Row],[5-10 Years]]=1,tblSalaries[[#Headers],[5-10 Years]],IF(tblSalaries[[#This Row],[11-15 Years]]=1,tblSalaries[[#Headers],[11-15 Years]],IF(tblSalaries[[#This Row],[16-20 Years]]=1,tblSalaries[[#Headers],[16-20 Years]],IF(tblSalaries[[#This Row],[20+ Years]]=1,tblSalaries[[#Headers],[20+ Years]],"")))))) ->  | U53: =IF(tblSalaries[[#This Row],[Job Type]]=tblSalaries[[#Headers],[Accountant]],tblSalaries[[#This Row],[Salary in USD]],"") ->  | V53: =IF(tblSalaries[[#This Row],[Job Type]]=tblSalaries[[#Headers],[Analyst]],tblSalaries[[#This Row],[Salary in USD]],"") -> 100000 | W53: =IF(tblSalaries[[#This Row],[Job Type]]=tblSalaries[[#Headers],[Consultant]],tblSalaries[[#This Row],[Salary in USD]],"") ->  | X53: =IF(tblSalaries[[#This Row],[Job Type]]=tblSalaries[[#Headers],[Controller]],tblSalaries[[#This Row],[Salary in USD]],"") ->  | Y53: =IF(tblSalaries[[#This Row],[Job Type]]=tblSalaries[[#Headers],[CXO or Top Mgmt.]],tblSalaries[[#This Row],[clean Salary (in local currency)]],"") ->  | Z53: =IF(tblSalaries[[#This Row],[Job Type]]=tblSalaries[[#Headers],[Engineer]],tblSalaries[[#This Row],[Salary in USD]],"") ->  | AA53: =IF(tblSalaries[[#This Row],[Job Type]]=tblSalaries[[#Headers],[Manager]],tblSalaries[[#This Row],[Salary in USD]],"") ->  | AB53: =IF(tblSalaries[[#This Row],[Job Type]]=tblSalaries[[#Headers],[Misc.]],tblSalaries[[#This Row],[Salary in USD]],"") ->  | AC53: =IF(tblSalaries[[#This Row],[Job Type]]=tblSalaries[[#Headers],[Reporting]],tblSalaries[[#This Row],[Salary in USD]],"") ->  | AD53: =IF(tblSalaries[[#This Row],[Job Type]]=tblSalaries[[#Headers],[Specialist]],tblSalaries[[#This Row],[Salary in USD]],"") -> 
B54: ID0051 | C54: 2012-05-25T06:05:17 | D54: 57000 | E54: 57000 | F54: USD | G54: =tblSalaries[[#This Row],[clean Salary (in local currency)]]*VLOOKUP(tblSalaries[[#This Row],[Currency]],tblXrate[],2,FALSE) -> 57000 | H54: Senior Accounting Supervisor | I54: Accountant | J54: USA | K54: =VLOOKUP(tblSalaries[[#This Row],[Where do you work]],tblCountries[[Actual]:[Mapping]],2,FALSE) -> USA | L54: 2 to 3 hours per day | N54: =IF(tblSalaries[[#This Row],[Years of Experience]]="","",IF(tblSalaries[[#This Row],[Years of Experience]]<=2,1,"")) ->  | O54: =IF(tblSalaries[[#This Row],[Years of Experience]]="","",IF(AND(tblSalaries[[#This Row],[Years of Experience]]>2,tblSalaries[[#This Row],[Years of Experience]]<=5),1,"")) ->  | P54: =IF(tblSalaries[[#This Row],[Years of Experience]]="","",IF(AND(tblSalaries[[#This Row],[Years of Experience]]>5,tblSalaries[[#This Row],[Years of Experience]]<=10),1,"")) ->  | Q54: =IF(tblSalaries[[#This Row],[Years of Experience]]="","",IF(AND(tblSalaries[[#This Row],[Years of Experience]]>10,tblSalaries[[#This Row],[Years of Experience]]<=15),1,"")) ->  | R54: =IF(tblSalaries[[#This Row],[Years of Experience]]="","",IF(AND(tblSalaries[[#This Row],[Years of Experience]]>16,tblSalaries[[#This Row],[Years of Experience]]<=20),1,"")) ->  | S54: =IF(tblSalaries[[#This Row],[Years of Experience]]="","",IF(tblSalaries[[#This Row],[Years of Experience]]>20,1,"")) ->  | T54: =IF(tblSalaries[[#This Row],[0-2 Years]]=1,tblSalaries[[#Headers],[0-2 Years]],IF(tblSalaries[[#This Row],[3-5 Years]]=1,tblSalaries[[#Headers],[3-5 Years]],IF(tblSalaries[[#This Row],[5-10 Years]]=1,tblSalaries[[#Headers],[5-10 Years]],IF(tblSalaries[[#This Row],[11-15 Years]]=1,tblSalaries[[#Headers],[11-15 Years]],IF(tblSalaries[[#This Row],[16-20 Years]]=1,tblSalaries[[#Headers],[16-20 Years]],IF(tblSalaries[[#This Row],[20+ Years]]=1,tblSalaries[[#Headers],[20+ Years]],"")))))) ->  | U54: =IF(tblSalaries[[#This Row],[Job Type]]=tblSalaries[[#Headers],[Accountant]],tblSalaries[[#This Row],[Salary in USD]],"") -> 57000 | V54: =IF(tblSalaries[[#This Row],[Job Type]]=tblSalaries[[#Headers],[Analyst]],tblSalaries[[#This Row],[Salary in USD]],"") ->  | W54: =IF(tblSalaries[[#This Row],[Job Type]]=tblSalaries[[#Headers],[Consultant]],tblSalaries[[#This Row],[Salary in USD]],"") ->  | X54: =IF(tblSalaries[[#This Row],[Job Type]]=tblSalaries[[#Headers],[Controller]],tblSalaries[[#This Row],[Salary in USD]],"") ->  | Y54: =IF(tblSalaries[[#This Row],[Job Type]]=tblSalaries[[#Headers],[CXO or Top Mgmt.]],tblSalaries[[#This Row],[clean Salary (in local currency)]],"") ->  | Z54: =IF(tblSalaries[[#This Row],[Job Type]]=tblSalaries[[#Headers],[Engineer]],tblSalaries[[#This Row],[Salary in USD]],"") ->  | AA54: =IF(tblSalaries[[#This Row],[Job Type]]=tblSalaries[[#Headers],[Manager]],tblSalaries[[#This Row],[Salary in USD]],"") ->  | AB54: =IF(tblSalaries[[#This Row],[Job Type]]=tblSalaries[[#Headers],[Misc.]],tblSalaries[[#This Row],[Salary in USD]],"") ->  | AC54: =IF(tblSalaries[[#This Row],[Job Type]]=tblSalaries[[#Headers],[Reporting]],tblSalaries[[#This Row],[Salary in USD]],"") ->  | AD54: =IF(tblSalaries[[#This Row],[Job Type]]=tblSalaries[[#Headers],[Specialist]],tblSalaries[[#This Row],[Salary in USD]],"") -> 
B55: ID0052 | C55: 2012-05-25T06:07:15 | D55: 40000 | E55: 40000 | F55: GBP | G55: =tblSalaries[[#This Row],[clean Salary (in local currency)]]*VLOOKUP(tblSalaries[[#This Row],[Currency]],tblXrate[],2,FALSE) -> 63047.13088 | H55: Senior Accountant | I55: Accountant | J55: UK | K55: =VLOOKUP(tblSalaries[[#This Row],[Where do you work]],tblCountries[[Actual]:[Mapping]],2,FALSE) -> UK | L55: 4 to 6 hours a day | N55: =IF(tblSalaries[[#This Row],[Years of Experience]]="","",IF(tblSalaries[[#This Row],[Years of Experience]]<=2,1,"")) ->  | O55: =IF(tblSalaries[[#This Row],[Years of Experience]]="","",IF(AND(tblSalaries[[#This Row],[Years of Experience]]>2,tblSalaries[[#This Row],[Years of Experience]]<=5),1,"")) ->  | P55: =IF(tblSalaries[[#This Row],[Years of Experience]]="","",IF(AND(tblSalaries[[#This Row],[Years of Experience]]>5,tblSalaries[[#This Row],[Years of Experience]]<=10),1,"")) ->  | Q55: =IF(tblSalaries[[#This Row],[Years of Experience]]="","",IF(AND(tblSalaries[[#This Row],[Years of Experience]]>10,tblSalaries[[#This Row],[Years of Experience]]<=15),1,"")) ->  | R55: =IF(tblSalaries[[#This Row],[Years of Experience]]="","",IF(AND(tblSalaries[[#This Row],[Years of Experience]]>16,tblSalaries[[#This Row],[Years of Experience]]<=20),1,"")) ->  | S55: =IF(tblSalaries[[#This Row],[Years of Experience]]="","",IF(tblSalaries[[#This Row],[Years of Experience]]>20,1,"")) ->  | T55: =IF(tblSalaries[[#This Row],[0-2 Years]]=1,tblSalaries[[#Headers],[0-2 Years]],IF(tblSalaries[[#This Row],[3-5 Years]]=1,tblSalaries[[#Headers],[3-5 Years]],IF(tblSalaries[[#This Row],[5-10 Years]]=1,tblSalaries[[#Headers],[5-10 Years]],IF(tblSalaries[[#This Row],[11-15 Years]]=1,tblSalaries[[#Headers],[11-15 Years]],IF(tblSalaries[[#This Row],[16-20 Years]]=1,tblSalaries[[#Headers],[16-20 Years]],IF(tblSalaries[[#This Row],[20+ Years]]=1,tblSalaries[[#Headers],[20+ Years]],"")))))) ->  | U55: =IF(tblSalaries[[#This Row],[Job Type]]=tblSalaries[[#Headers],[Accountant]],tblSalaries[[#This Row],[Salary in USD]],"") -> 63047.13088 | V55: =IF(tblSalaries[[#This Row],[Job Type]]=tblSalaries[[#Headers],[Analyst]],tblSalaries[[#This Row],[Salary in USD]],"") ->  | W55: =IF(tblSalaries[[#This Row],[Job Type]]=tblSalaries[[#Headers],[Consultant]],tblSalaries[[#This Row],[Salary in USD]],"") ->  | X55: =IF(tblSalaries[[#This Row],[Job Type]]=tblSalaries[[#Headers],[Controller]],tblSalaries[[#This Row],[Salary in USD]],"") ->  | Y55: =IF(tblSalaries[[#This Row],[Job Type]]=tblSalaries[[#Headers],[CXO or Top Mgmt.]],tblSalaries[[#This Row],[clean Salary (in local currency)]],"") ->  | Z55: =IF(tblSalaries[[#This Row],[Job Type]]=tblSalaries[[#Headers],[Engineer]],tblSalaries[[#This Row],[Salary in USD]],"") ->  | AA55: =IF(tblSalaries[[#This Row],[Job Type]]=tblSalaries[[#Headers],[Manager]],tblSalaries[[#This Row],[Salary in USD]],"") ->  | AB55: =IF(tblSalaries[[#This Row],[Job Type]]=tblSalaries[[#Headers],[Misc.]],tblSalaries[[#This Row],[Salary in USD]],"") ->  | AC55: =IF(tblSalaries[[#This Row],[Job Type]]=tblSalaries[[#Headers],[Reporting]],tblSalaries[[#This Row],[Salary in USD]],"") ->  | AD55: =IF(tblSalaries[[#This Row],[Job Type]]=tblSalaries[[#Headers],[Specialist]],tblSalaries[[#This Row],[Salary in USD]],"") -> 
B56: ID0053 | C56: 2012-05-25T06:09:44 | D56: 2000 Euros | E56: 24000 | F56: EUR | G56: =tblSalaries[[#This Row],[clean Salary (in local currency)]]*VLOOKUP(tblSalaries[[#This Row],[Currency]],tblXrate[],2,FALSE) -> 30489.58654 | H56: PPC Manager | I56: Manager | J56: Germany | K56: =VLOOKUP(tblSalaries[[#This Row],[Where do you work]],tblCountries[[Actual]:[Mapping]],2,FALSE) -> Germany | L56: All the 8 hours baby, all the 8! | N56: =IF(tblSalaries[[#This Row],[Years of Experience]]="","",IF(tblSalaries[[#This Row],[Years of Experience]]<=2,1,"")) ->  | O56: =IF(tblSalaries[[#This Row],[Years of Experience]]="","",IF(AND(tblSalaries[[#This Row],[Years of Experience]]>2,tblSalaries[[#This Row],[Years of Experience]]<=5),1,"")) ->  | P56: =IF(tblSalaries[[#This Row],[Years of Experience]]="","",IF(AND(tblSalaries[[#This Row],[Years of Experience]]>5,tblSalaries[[#This Row],[Years of Experience]]<=10),1,"")) ->  | Q56: =IF(tblSalaries[[#This Row],[Years of Experience]]="","",IF(AND(tblSalaries[[#This Row],[Years of Experience]]>10,tblSalaries[[#This Row],[Years of Experience]]<=15),1,"")) ->  | R56: =IF(tblSalaries[[#This Row],[Years of Experience]]="","",IF(AND(tblSalaries[[#This Row],[Years of Experience]]>16,tblSalaries[[#This Row],[Years of Experience]]<=20),1,"")) ->  | S56: =IF(tblSalaries[[#This Row],[Years of Experience]]="","",IF(tblSalaries[[#This Row],[Years of Experience]]>20,1,"")) ->  | T56: =IF(tblSalaries[[#This Row],[0-2 Years]]=1,tblSalaries[[#Headers],[0-2 Years]],IF(tblSalaries[[#This Row],[3-5 Years]]=1,tblSalaries[[#Headers],[3-5 Years]],IF(tblSalaries[[#This Row],[5-10 Years]]=1,tblSalaries[[#Headers],[5-10 Years]],IF(tblSalaries[[#This Row],[11-15 Years]]=1,tblSalaries[[#Headers],[11-15 Years]],IF(tblSalaries[[#This Row],[16-20 Years]]=1,tblSalaries[[#Headers],[16-20 Years]],IF(tblSalaries[[#This Row],[20+ Years]]=1,tblSalaries[[#Headers],[20+ Years]],"")))))) ->  | U56: =IF(tblSalaries[[#This Row],[Job Type]]=tblSalaries[[#Headers],[Accountant]],tblSalaries[[#This Row],[Salary in USD]],"") ->  | V56: =IF(tblSalaries[[#This Row],[Job Type]]=tblSalaries[[#Headers],[Analyst]],tblSalaries[[#This Row],[Salary in USD]],"") ->  | W56: =IF(tblSalaries[[#This Row],[Job Type]]=tblSalaries[[#Headers],[Consultant]],tblSalaries[[#This Row],[Salary in USD]],"") ->  | X56: =IF(tblSalaries[[#This Row],[Job Type]]=tblSalaries[[#Headers],[Controller]],tblSalaries[[#This Row],[Salary in USD]],"") ->  | Y56: =IF(tblSalaries[[#This Row],[Job Type]]=tblSalaries[[#Headers],[CXO or Top Mgmt.]],tblSalaries[[#This Row],[clean Salary (in local currency)]],"") ->  | Z56: =IF(tblSalaries[[#This Row],[Job Type]]=tblSalaries[[#Headers],[Engineer]],tblSalaries[[#This Row],[Salary in USD]],"") ->  | AA56: =IF(tblSalaries[[#This Row],[Job Type]]=tblSalaries[[#Headers],[Manager]],tblSalaries[[#This Row],[Salary in USD]],"") -> 30489.58654 | AB56: =IF(tblSalaries[[#This Row],[Job Type]]=tblSalaries[[#Headers],[Misc.]],tblSalaries[[#This Row],[Salary in USD]],"") ->  | AC56: =IF(tblSalaries[[#This Row],[Job Type]]=tblSalaries[[#Headers],[Reporting]],tblSalaries[[#This Row],[Salary in USD]],"") ->  | AD56: =IF(tblSalaries[[#This Row],[Job Type]]=tblSalaries[[#Headers],[Specialist]],tblSalaries[[#This Row],[Salary in USD]],"") -> 
B57: ID0054 | C57: 2012-05-25T06:10:18 | D57: 4320 | E57: 4320 | F57: USD | G57: =tblSalaries[[#This Row],[clean Salary (in local currency)]]*VLOOKUP(tblSalaries[[#This Row],[Currency]],tblXrate[],2,FALSE) -> 4320 | H57: Financial Planner | I57: Accountant | J57: India | K57: =VLOOKUP(tblSalaries[[#This Row],[Where do you work]],tblCountries[[Actual]:[Mapping]],2,FALSE) -> India | L57: 2 to 3 hours per day | N57: =IF(tblSalaries[[#This Row],[Years of Experience]]="","",IF(tblSalaries[[#This Row],[Years of Experience]]<=2,1,"")) ->  | O57: =IF(tblSalaries[[#This Row],[Years of Experience]]="","",IF(AND(tblSalaries[[#This Row],[Years of Experience]]>2,tblSalaries[[#This Row],[Years of Experience]]<=5),1,"")) ->  | P57: =IF(tblSalaries[[#This Row],[Years of Experience]]="","",IF(AND(tblSalaries[[#This Row],[Years of Experience]]>5,tblSalaries[[#This Row],[Years of Experience]]<=10),1,"")) ->  | Q57: =IF(tblSalaries[[#This Row],[Years of Experience]]="","",IF(AND(tblSalaries[[#This Row],[Years of Experience]]>10,tblSalaries[[#This Row],[Years of Experience]]<=15),1,"")) ->  | R57: =IF(tblSalaries[[#This Row],[Years of Experience]]="","",IF(AND(tblSalaries[[#This Row],[Years of Experience]]>16,tblSalaries[[#This Row],[Years of Experience]]<=20),1,"")) ->  | S57: =IF(tblSalaries[[#This Row],[Years of Experience]]="","",IF(tblSalaries[[#This Row],[Years of Experience]]>20,1,"")) ->  | T57: =IF(tblSalaries[[#This Row],[0-2 Years]]=1,tblSalaries[[#Headers],[0-2 Years]],IF(tblSalaries[[#This Row],[3-5 Years]]=1,tblSalaries[[#Headers],[3-5 Years]],IF(tblSalaries[[#This Row],[5-10 Years]]=1,tblSalaries[[#Headers],[5-10 Years]],IF(tblSalaries[[#This Row],[11-15 Years]]=1,tblSalaries[[#Headers],[11-15 Years]],IF(tblSalaries[[#This Row],[16-20 Years]]=1,tblSalaries[[#Headers],[16-20 Years]],IF(tblSalaries[[#This Row],[20+ Years]]=1,tblSalaries[[#Headers],[20+ Years]],"")))))) ->  | U57: =IF(tblSalaries[[#This Row],[Job Type]]=tblSalaries[[#Headers],[Accountant]],tblSalaries[[#This Row],[Salary in USD]],"") -> 4320 | V57: =IF(tblSalaries[[#This Row],[Job Type]]=tblSalaries[[#Headers],[Analyst]],tblSalaries[[#This Row],[Salary in USD]],"") ->  | W57: =IF(tblSalaries[[#This Row],[Job Type]]=tblSalaries[[#Headers],[Consultant]],tblSalaries[[#This Row],[Salary in USD]],"") ->  | X57: =IF(tblSalaries[[#This Row],[Job Type]]=tblSalaries[[#Headers],[Controller]],tblSalaries[[#This Row],[Salary in USD]],"") ->  | Y57: =IF(tblSalaries[[#This Row],[Job Type]]=tblSalaries[[#Headers],[CXO or Top Mgmt.]],tblSalaries[[#This Row],[clean Salary (in local currency)]],"") ->  | Z57: =IF(tblSalaries[[#This Row],[Job Type]]=tblSalaries[[#Headers],[Engineer]],tblSalaries[[#This Row],[Salary in USD]],"") ->  | AA57: =IF(tblSalaries[[#This Row],[Job Type]]=tblSalaries[[#Headers],[Manager]],tblSalaries[[#This Row],[Salary in USD]],"") ->  | AB57: =IF(tblSalaries[[#This Row],[Job Type]]=tblSalaries[[#Headers],[Misc.]],tblSalaries[[#This Row],[Salary in USD]],"") ->  | AC57: =IF(tblSalaries[[#This Row],[Job Type]]=tblSalaries[[#Headers],[Reporting]],tblSalaries[[#This Row],[Salary in USD]],"") ->  | AD57: =IF(tblSalaries[[#This Row],[Job Type]]=tblSalaries[[#Headers],[Specialist]],tblSalaries[[#This Row],[Salary in USD]],"") -> 
B58: ID0055 | C58: 2012-05-25T06:15:42 | D58: 62000 | E58: 62000 | F58: USD | G58: =tblSalaries[[#This Row],[clean Salary (in local currency)]]*VLOOKUP(tblSalaries[[#This Row],[Currency]],tblXrate[],2,FALSE) -> 62000 | H58: Analyst | I58: Analyst | J58: USA | K58: =VLOOKUP(tblSalaries[[#This Row],[Where do you work]],tblCountries[[Actual]:[Mapping]],2,FALSE) -> USA | L58: 4 to 6 hours a day | N58: =IF(tblSalaries[[#This Row],[Years of Experience]]="","",IF(tblSalaries[[#This Row],[Years of Experience]]<=2,1,"")) ->  | O58: =IF(tblSalaries[[#This Row],[Years of Experience]]="","",IF(AND(tblSalaries[[#This Row],[Years of Experience]]>2,tblSalaries[[#This Row],[Years of Experience]]<=5),1,"")) ->  | P58: =IF(tblSalaries[[#This Row],[Years of Experience]]="","",IF(AND(tblSalaries[[#This Row],[Years of Experience]]>5,tblSalaries[[#This Row],[Years of Experience]]<=10),1,"")) ->  | Q58: =IF(tblSalaries[[#This Row],[Years of Experience]]="","",IF(AND(tblSalaries[[#This Row],[Years of Experience]]>10,tblSalaries[[#This Row],[Years of Experience]]<=15),1,"")) ->  | R58: =IF(tblSalaries[[#This Row],[Years of Experience]]="","",IF(AND(tblSalaries[[#This Row],[Years of Experience]]>16,tblSalaries[[#This Row],[Years of Experience]]<=20),1,"")) ->  | S58: =IF(tblSalaries[[#This Row],[Years of Experience]]="","",IF(tblSalaries[[#This Row],[Years of Experience]]>20,1,"")) ->  | T58: =IF(tblSalaries[[#This Row],[0-2 Years]]=1,tblSalaries[[#Headers],[0-2 Years]],IF(tblSalaries[[#This Row],[3-5 Years]]=1,tblSalaries[[#Headers],[3-5 Years]],IF(tblSalaries[[#This Row],[5-10 Years]]=1,tblSalaries[[#Headers],[5-10 Years]],IF(tblSalaries[[#This Row],[11-15 Years]]=1,tblSalaries[[#Headers],[11-15 Years]],IF(tblSalaries[[#This Row],[16-20 Years]]=1,tblSalaries[[#Headers],[16-20 Years]],IF(tblSalaries[[#This Row],[20+ Years]]=1,tblSalaries[[#Headers],[20+ Years]],"")))))) ->  | U58: =IF(tblSalaries[[#This Row],[Job Type]]=tblSalaries[[#Headers],[Accountant]],tblSalaries[[#This Row],[Salary in USD]],"") ->  | V58: =IF(tblSalaries[[#This Row],[Job Type]]=tblSalaries[[#Headers],[Analyst]],tblSalaries[[#This Row],[Salary in USD]],"") -> 62000 | W58: =IF(tblSalaries[[#This Row],[Job Type]]=tblSalaries[[#Headers],[Consultant]],tblSalaries[[#This Row],[Salary in USD]],"") ->  | X58: =IF(tblSalaries[[#This Row],[Job Type]]=tblSalaries[[#Headers],[Controller]],tblSalaries[[#This Row],[Salary in USD]],"") ->  | Y58: =IF(tblSalaries[[#This Row],[Job Type]]=tblSalaries[[#Headers],[CXO or Top Mgmt.]],tblSalaries[[#This Row],[clean Salary (in local currency)]],"") ->  | Z58: =IF(tblSalaries[[#This Row],[Job Type]]=tblSalaries[[#Headers],[Engineer]],tblSalaries[[#This Row],[Salary in USD]],"") ->  | AA58: =IF(tblSalaries[[#This Row],[Job Type]]=tblSalaries[[#Headers],[Manager]],tblSalaries[[#This Row],[Salary in USD]],"") ->  | AB58: =IF(tblSalaries[[#This Row],[Job Type]]=tblSalaries[[#Headers],[Misc.]],tblSalaries[[#This Row],[Salary in USD]],"") ->  | AC58: =IF(tblSalaries[[#This Row],[Job Type]]=tblSalaries[[#Headers],[Reporting]],tblSalaries[[#This Row],[Salary in USD]],"") ->  | AD58: =IF(tblSalaries[[#This Row],[Job Type]]=tblSalaries[[#Headers],[Specialist]],tblSalaries[[#This Row],[Salary in USD]],"") -> 
B59: ID0056 | C59: 2012-05-25T06:26:44 | D59: 7500 | E59: 7500 | F59: USD | G59: =tblSalaries[[#This Row],[clean Salary (in local currency)]]*VLOOKUP(tblSalaries[[#This Row],[Currency]],tblXrate[],2,FALSE) -> 7500 | H59: Analyst | I59: Analyst | J59: India | K59: =VLOOKUP(tblSalaries[[#This Row],[Where do you work]],tblCountries[[Actual]:[Mapping]],2,FALSE) -> India | L59: 4 to 6 hours a day | N59: =IF(tblSalaries[[#This Row],[Years of Experience]]="","",IF(tblSalaries[[#This Row],[Years of Experience]]<=2,1,"")) ->  | O59: =IF(tblSalaries[[#This Row],[Years of Experience]]="","",IF(AND(tblSalaries[[#This Row],[Years of Experience]]>2,tblSalaries[[#This Row],[Years of Experience]]<=5),1,"")) ->  | P59: =IF(tblSalaries[[#This Row],[Years of Experience]]="","",IF(AND(tblSalaries[[#This Row],[Years of Experience]]>5,tblSalaries[[#This Row],[Years of Experience]]<=10),1,"")) ->  | Q59: =IF(tblSalaries[[#This Row],[Years of Experience]]="","",IF(AND(tblSalaries[[#This Row],[Years of Experience]]>10,tblSalaries[[#This Row],[Years of Experience]]<=15),1,"")) ->  | R59: =IF(tblSalaries[[#This Row],[Years of Experience]]="","",IF(AND(tblSalaries[[#This Row],[Years of Experience]]>16,tblSalaries[[#This Row],[Years of Experience]]<=20),1,"")) ->  | S59: =IF(tblSalaries[[#This Row],[Years of Experience]]="","",IF(tblSalaries[[#This Row],[Years of Experience]]>20,1,"")) ->  | T59: =IF(tblSalaries[[#This Row],[0-2 Years]]=1,tblSalaries[[#Headers],[0-2 Years]],IF(tblSalaries[[#This Row],[3-5 Years]]=1,tblSalaries[[#Headers],[3-5 Years]],IF(tblSalaries[[#This Row],[5-10 Years]]=1,tblSalaries[[#Headers],[5-10 Years]],IF(tblSalaries[[#This Row],[11-15 Years]]=1,tblSalaries[[#Headers],[11-15 Years]],IF(tblSalaries[[#This Row],[16-20 Years]]=1,tblSalaries[[#Headers],[16-20 Years]],IF(tblSalaries[[#This Row],[20+ Years]]=1,tblSalaries[[#Headers],[20+ Years]],"")))))) ->  | U59: =IF(tblSalaries[[#This Row],[Job Type]]=tblSalaries[[#Headers],[Accountant]],tblSalaries[[#This Row],[Salary in USD]],"") ->  | V59: =IF(tblSalaries[[#This Row],[Job Type]]=tblSalaries[[#Headers],[Analyst]],tblSalaries[[#This Row],[Salary in USD]],"") -> 7500 | W59: =IF(tblSalaries[[#This Row],[Job Type]]=tblSalaries[[#Headers],[Consultant]],tblSalaries[[#This Row],[Salary in USD]],"") ->  | X59: =IF(tblSalaries[[#This Row],[Job Type]]=tblSalaries[[#Headers],[Controller]],tblSalaries[[#This Row],[Salary in USD]],"") ->  | Y59: =IF(tblSalaries[[#This Row],[Job Type]]=tblSalaries[[#Headers],[CXO or Top Mgmt.]],tblSalaries[[#This Row],[clean Salary (in local currency)]],"") ->  | Z59: =IF(tblSalaries[[#This Row],[Job Type]]=tblSalaries[[#Headers],[Engineer]],tblSalaries[[#This Row],[Salary in USD]],"") ->  | AA59: =IF(tblSalaries[[#This Row],[Job Type]]=tblSalaries[[#Headers],[Manager]],tblSalaries[[#This Row],[Salary in USD]],"") ->  | AB59: =IF(tblSalaries[[#This Row],[Job Type]]=tblSalaries[[#Headers],[Misc.]],tblSalaries[[#This Row],[Salary in USD]],"") ->  | AC59: =IF(tblSalaries[[#This Row],[Job Type]]=tblSalaries[[#Headers],[Reporting]],tblSalaries[[#This Row],[Salary in USD]],"") ->  | AD59: =IF(tblSalaries[[#This Row],[Job Type]]=tblSalaries[[#Headers],[Specialist]],tblSalaries[[#This Row],[Salary in USD]],"") -> 
B60: ID0057 | C60: 2012-05-25T06:27:29 | D60: Â£18000 | E60: 18000 | F60: GBP | G60: =tblSalaries[[#This Row],[clean Salary (in local currency)]]*VLOOKUP(tblSalaries[[#This Row],[Currency]],tblXrate[],2,FALSE) -> 28371.2089 | H60: Building Design and Performance Researcher | I60: Manager | J60: UK | K60: =VLOOKUP(tblSalaries[[#This Row],[Where do you work]],tblCountries[[Actual]:[Mapping]],2,FALSE) -> UK | L60: 1 or 2 hours a day | N60: =IF(tblSalaries[[#This Row],[Years of Experience]]="","",IF(tblSalaries[[#This Row],[Years of Experience]]<=2,1,"")) ->  | O60: =IF(tblSalaries[[#This Row],[Years of Experience]]="","",IF(AND(tblSalaries[[#This Row],[Years of Experience]]>2,tblSalaries[[#This Row],[Years of Experience]]<=5),1,"")) ->  | P60: =IF(tblSalaries[[#This Row],[Years of Experience]]="","",IF(AND(tblSalaries[[#This Row],[Years of Experience]]>5,tblSalaries[[#This Row],[Years of Experience]]<=10),1,"")) ->  | Q60: =IF(tblSalaries[[#This Row],[Years of Experience]]="","",IF(AND(tblSalaries[[#This Row],[Years of Experience]]>10,tblSalaries[[#This Row],[Years of Experience]]<=15),1,"")) ->  | R60: =IF(tblSalaries[[#This Row],[Years of Experience]]="","",IF(AND(tblSalaries[[#This Row],[Years of Experience]]>16,tblSalaries[[#This Row],[Years of Experience]]<=20),1,"")) ->  | S60: =IF(tblSalaries[[#This Row],[Years of Experience]]="","",IF(tblSalaries[[#This Row],[Years of Experience]]>20,1,"")) ->  | T60: =IF(tblSalaries[[#This Row],[0-2 Years]]=1,tblSalaries[[#Headers],[0-2 Years]],IF(tblSalaries[[#This Row],[3-5 Years]]=1,tblSalaries[[#Headers],[3-5 Years]],IF(tblSalaries[[#This Row],[5-10 Years]]=1,tblSalaries[[#Headers],[5-10 Years]],IF(tblSalaries[[#This Row],[11-15 Years]]=1,tblSalaries[[#Headers],[11-15 Years]],IF(tblSalaries[[#This Row],[16-20 Years]]=1,tblSalaries[[#Headers],[16-20 Years]],IF(tblSalaries[[#This Row],[20+ Years]]=1,tblSalaries[[#Headers],[20+ Years]],"")))))) ->  | U60: =IF(tblSalaries[[#This Row],[Job Type]]=tblSalaries[[#Headers],[Accountant]],tblSalaries[[#This Row],[Salary in USD]],"") ->  | V60: =IF(tblSalaries[[#This Row],[Job Type]]=tblSalaries[[#Headers],[Analyst]],tblSalaries[[#This Row],[Salary in USD]],"") ->  | W60: =IF(tblSalaries[[#This Row],[Job Type]]=tblSalaries[[#Headers],[Consultant]],tblSalaries[[#This Row],[Salary in USD]],"") ->  | X60: =IF(tblSalaries[[#This Row],[Job Type]]=tblSalaries[[#Headers],[Controller]],tblSalaries[[#This Row],[Salary in USD]],"") ->  | Y60: =IF(tblSalaries[[#This Row],[Job Type]]=tblSalaries[[#Headers],[CXO or Top Mgmt.]],tblSalaries[[#This Row],[clean Salary (in local currency)]],"") ->  | Z60: =IF(tblSalaries[[#This Row],[Job Type]]=tblSalaries[[#Headers],[Engineer]],tblSalaries[[#This Row],[Salary in USD]],"") ->  | AA60: =IF(tblSalaries[[#This Row],[Job Type]]=tblSalaries[[#Headers],[Manager]],tblSalaries[[#This Row],[Salary in USD]],"") -> 28371.2089 | AB60: =IF(tblSalaries[[#This Row],[Job Type]]=tblSalaries[[#Headers],[Misc.]],tblSalaries[[#This Row],[Salary in USD]],"") ->  | AC60: =IF(tblSalaries[[#This Row],[Job Type]]=tblSalaries[[#Headers],[Reporting]],tblSalaries[[#This Row],[Salary in USD]],"") ->  | AD60: =IF(tblSalaries[[#This Row],[Job Type]]=tblSalaries[[#Headers],[Specialist]],tblSalaries[[#This Row],[Salary in USD]],"") -> 
B61: ID0058 | C61: 2012-05-25T06:49:25 | D61: 49000 | E61: 49000 | F61: EUR | G61: =tblSalaries[[#This Row],[clean Salary (in local currency)]]*VLOOKUP(tblSalaries[[#This Row],[Currency]],tblXrate[],2,FALSE) -> 62249.57251 | H61: Project leader | I61: Manager | J61: France | K61: =VLOOKUP(tblSalaries[[#This Row],[Where do you work]],tblCountries[[Actual]:[Mapping]],2,FALSE) -> France | L61: 2 to 3 hours per day | N61: =IF(tblSalaries[[#This Row],[Years of Experience]]="","",IF(tblSalaries[[#This Row],[Years of Experience]]<=2,1,"")) ->  | O61: =IF(tblSalaries[[#This Row],[Years of Experience]]="","",IF(AND(tblSalaries[[#This Row],[Years of Experience]]>2,tblSalaries[[#This Row],[Years of Experience]]<=5),1,"")) ->  | P61: =IF(tblSalaries[[#This Row],[Years of Experience]]="","",IF(AND(tblSalaries[[#This Row],[Years of Experience]]>5,tblSalaries[[#This Row],[Years of Experience]]<=10),1,"")) ->  | Q61: =IF(tblSalaries[[#This Row],[Years of Experience]]="","",IF(AND(tblSalaries[[#This Row],[Years of Experience]]>10,tblSalaries[[#This Row],[Years of Experience]]<=15),1,"")) ->  | R61: =IF(tblSalaries[[#This Row],[Years of Experience]]="","",IF(AND(tblSalaries[[#This Row],[Years of Experience]]>16,tblSalaries[[#This Row],[Years of Experience]]<=20),1,"")) ->  | S61: =IF(tblSalaries[[#This Row],[Years of Experience]]="","",IF(tblSalaries[[#This Row],[Years of Experience]]>20,1,"")) ->  | T61: =IF(tblSalaries[[#This Row],[0-2 Years]]=1,tblSalaries[[#Headers],[0-2 Years]],IF(tblSalaries[[#This Row],[3-5 Years]]=1,tblSalaries[[#Headers],[3-5 Years]],IF(tblSalaries[[#This Row],[5-10 Years]]=1,tblSalaries[[#Headers],[5-10 Years]],IF(tblSalaries[[#This Row],[11-15 Years]]=1,tblSalaries[[#Headers],[11-15 Years]],IF(tblSalaries[[#This Row],[16-20 Years]]=1,tblSalaries[[#Headers],[16-20 Years]],IF(tblSalaries[[#This Row],[20+ Years]]=1,tblSalaries[[#Headers],[20+ Years]],"")))))) ->  | U61: =IF(tblSalaries[[#This Row],[Job Type]]=tblSalaries[[#Headers],[Accountant]],tblSalaries[[#This Row],[Salary in USD]],"") ->  | V61: =IF(tblSalaries[[#This Row],[Job Type]]=tblSalaries[[#Headers],[Analyst]],tblSalaries[[#This Row],[Salary in USD]],"") ->  | W61: =IF(tblSalaries[[#This Row],[Job Type]]=tblSalaries[[#Headers],[Consultant]],tblSalaries[[#This Row],[Salary in USD]],"") ->  | X61: =IF(tblSalaries[[#This Row],[Job Type]]=tblSalaries[[#Headers],[Controller]],tblSalaries[[#This Row],[Salary in USD]],"") ->  | Y61: =IF(tblSalaries[[#This Row],[Job Type]]=tblSalaries[[#Headers],[CXO or Top Mgmt.]],tblSalaries[[#This Row],[clean Salary (in local currency)]],"") ->  | Z61: =IF(tblSalaries[[#This Row],[Job Type]]=tblSalaries[[#Headers],[Engineer]],tblSalaries[[#This Row],[Salary in USD]],"") ->  | AA61: =IF(tblSalaries[[#This Row],[Job Type]]=tblSalaries[[#Headers],[Manager]],tblSalaries[[#This Row],[Salary in USD]],"") -> 62249.57251 | AB61: =IF(tblSalaries[[#This Row],[Job Type]]=tblSalaries[[#Headers],[Misc.]],tblSalaries[[#This Row],[Salary in USD]],"") ->  | AC61: =IF(tblSalaries[[#This Row],[Job Type]]=tblSalaries[[#Headers],[Reporting]],tblSalaries[[#This Row],[Salary in USD]],"") ->  | AD61: =IF(tblSalaries[[#This Row],[Job Type]]=tblSalaries[[#Headers],[Specialist]],tblSalaries[[#This Row],[Salary in USD]],"") -> 
B62: ID0059 | C62: 2012-05-25T06:57:52 | D62: 38000 | E62: 38000 | F62: USD | G62: =tblSalaries[[#This Row],[clean Salary (in local currency)]]*VLOOKUP(tblSalaries[[#This Row],[Currency]],tblXrate[],2,FALSE) -> 38000 | H62: Senior Analyst | I62: Analyst | J62: USA | K62: =VLOOKUP(tblSalaries[[#This Row],[Where do you work]],tblCountries[[Actual]:[Mapping]],2,FALSE) -> USA | L62: 4 to 6 hours a day | N62: =IF(tblSalaries[[#This Row],[Years of Experience]]="","",IF(tblSalaries[[#This Row],[Years of Experience]]<=2,1,"")) ->  | O62: =IF(tblSalaries[[#This Row],[Years of Experience]]="","",IF(AND(tblSalaries[[#This Row],[Years of Experience]]>2,tblSalaries[[#This Row],[Years of Experience]]<=5),1,"")) ->  | P62: =IF(tblSalaries[[#This Row],[Years of Experience]]="","",IF(AND(tblSalaries[[#This Row],[Years of Experience]]>5,tblSalaries[[#This Row],[Years of Experience]]<=10),1,"")) ->  | Q62: =IF(tblSalaries[[#This Row],[Years of Experience]]="","",IF(AND(tblSalaries[[#This Row],[Years of Experience]]>10,tblSalaries[[#This Row],[Years of Experience]]<=15),1,"")) ->  | R62: =IF(tblSalaries[[#This Row],[Years of Experience]]="","",IF(AND(tblSalaries[[#This Row],[Years of Experience]]>16,tblSalaries[[#This Row],[Years of Experience]]<=20),1,"")) ->  | S62: =IF(tblSalaries[[#This Row],[Years of Experience]]="","",IF(tblSalaries[[#This Row],[Years of Experience]]>20,1,"")) ->  | T62: =IF(tblSalaries[[#This Row],[0-2 Years]]=1,tblSalaries[[#Headers],[0-2 Years]],IF(tblSalaries[[#This Row],[3-5 Years]]=1,tblSalaries[[#Headers],[3-5 Years]],IF(tblSalaries[[#This Row],[5-10 Years]]=1,tblSalaries[[#Headers],[5-10 Years]],IF(tblSalaries[[#This Row],[11-15 Years]]=1,tblSalaries[[#Headers],[11-15 Years]],IF(tblSalaries[[#This Row],[16-20 Years]]=1,tblSalaries[[#Headers],[16-20 Years]],IF(tblSalaries[[#This Row],[20+ Years]]=1,tblSalaries[[#Headers],[20+ Years]],"")))))) ->  | U62: =IF(tblSalaries[[#This Row],[Job Type]]=tblSalaries[[#Headers],[Accountant]],tblSalaries[[#This Row],[Salary in USD]],"") ->  | V62: =IF(tblSalaries[[#This Row],[Job Type]]=tblSalaries[[#Headers],[Analyst]],tblSalaries[[#This Row],[Salary in USD]],"") -> 38000 | W62: =IF(tblSalaries[[#This Row],[Job Type]]=tblSalaries[[#Headers],[Consultant]],tblSalaries[[#This Row],[Salary in USD]],"") ->  | X62: =IF(tblSalaries[[#This Row],[Job Type]]=tblSalaries[[#Headers],[Controller]],tblSalaries[[#This Row],[Salary in USD]],"") ->  | Y62: =IF(tblSalaries[[#This Row],[Job Type]]=tblSalaries[[#Headers],[CXO or Top Mgmt.]],tblSalaries[[#This Row],[clean Salary (in local currency)]],"") ->  | Z62: =IF(tblSalaries[[#This Row],[Job Type]]=tblSalaries[[#Headers],[Engineer]],tblSalaries[[#This Row],[Salary in USD]],"") ->  | AA62: =IF(tblSalaries[[#This Row],[Job Type]]=tblSalaries[[#Headers],[Manager]],tblSalaries[[#This Row],[Salary in USD]],"") ->  | AB62: =IF(tblSalaries[[#This Row],[Job Type]]=tblSalaries[[#Headers],[Misc.]],tblSalaries[[#This Row],[Salary in USD]],"") ->  | AC62: =IF(tblSalaries[[#This Row],[Job Type]]=tblSalaries[[#Headers],[Reporting]],tblSalaries[[#This Row],[Salary in USD]],"") ->  | AD62: =IF(tblSalaries[[#This Row],[Job Type]]=tblSalaries[[#Headers],[Specialist]],tblSalaries[[#This Row],[Salary in USD]],"") -> 
B63: ID0060 | C63: 2012-05-25T07:00:52 | D63: 41000 | E63: 41000 | F63: USD | G63: =tblSalaries[[#This Row],[clean Salary (in local currency)]]*VLOOKUP(tblSalaries[[#This Row],[Currency]],tblXrate[],2,FALSE) -> 41000 | H63: Specialist | I63: Specialist | J63: USA | K63: =VLOOKUP(tblSalaries[[#This Row],[Where do you work]],tblCountries[[Actual]:[Mapping]],2,FALSE) -> USA | L63: 4 to 6 hours a day | N63: =IF(tblSalaries[[#This Row],[Years of Experience]]="","",IF(tblSalaries[[#This Row],[Years of Experience]]<=2,1,"")) ->  | O63: =IF(tblSalaries[[#This Row],[Years of Experience]]="","",IF(AND(tblSalaries[[#This Row],[Years of Experience]]>2,tblSalaries[[#This Row],[Years of Experience]]<=5),1,"")) ->  | P63: =IF(tblSalaries[[#This Row],[Years of Experience]]="","",IF(AND(tblSalaries[[#This Row],[Years of Experience]]>5,tblSalaries[[#This Row],[Years of Experience]]<=10),1,"")) ->  | Q63: =IF(tblSalaries[[#This Row],[Years of Experience]]="","",IF(AND(tblSalaries[[#This Row],[Years of Experience]]>10,tblSalaries[[#This Row],[Years of Experience]]<=15),1,"")) ->  | R63: =IF(tblSalaries[[#This Row],[Years of Experience]]="","",IF(AND(tblSalaries[[#This Row],[Years of Experience]]>16,tblSalaries[[#This Row],[Years of Experience]]<=20),1,"")) ->  | S63: =IF(tblSalaries[[#This Row],[Years of Experience]]="","",IF(tblSalaries[[#This Row],[Years of Experience]]>20,1,"")) ->  | T63: =IF(tblSalaries[[#This Row],[0-2 Years]]=1,tblSalaries[[#Headers],[0-2 Years]],IF(tblSalaries[[#This Row],[3-5 Years]]=1,tblSalaries[[#Headers],[3-5 Years]],IF(tblSalaries[[#This Row],[5-10 Years]]=1,tblSalaries[[#Headers],[5-10 Years]],IF(tblSalaries[[#This Row],[11-15 Years]]=1,tblSalaries[[#Headers],[11-15 Years]],IF(tblSalaries[[#This Row],[16-20 Years]]=1,tblSalaries[[#Headers],[16-20 Years]],IF(tblSalaries[[#This Row],[20+ Years]]=1,tblSalaries[[#Headers],[20+ Years]],"")))))) ->  | U63: =IF(tblSalaries[[#This Row],[Job Type]]=tblSalaries[[#Headers],[Accountant]],tblSalaries[[#This Row],[Salary in USD]],"") ->  | V63: =IF(tblSalaries[[#This Row],[Job Type]]=tblSalaries[[#Headers],[Analyst]],tblSalaries[[#This Row],[Salary in USD]],"") ->  | W63: =IF(tblSalaries[[#This Row],[Job Type]]=tblSalaries[[#Headers],[Consultant]],tblSalaries[[#This Row],[Salary in USD]],"") ->  | X63: =IF(tblSalaries[[#This Row],[Job Type]]=tblSalaries[[#Headers],[Controller]],tblSalaries[[#This Row],[Salary in USD]],"") ->  | Y63: =IF(tblSalaries[[#This Row],[Job Type]]=tblSalaries[[#Headers],[CXO or Top Mgmt.]],tblSalaries[[#This Row],[clean Salary (in local currency)]],"") ->  | Z63: =IF(tblSalaries[[#This Row],[Job Type]]=tblSalaries[[#Headers],[Engineer]],tblSalaries[[#This Row],[Salary in USD]],"") ->  | AA63: =IF(tblSalaries[[#This Row],[Job Type]]=tblSalaries[[#Headers],[Manager]],tblSalaries[[#This Row],[Salary in USD]],"") ->  | AB63: =IF(tblSalaries[[#This Row],[Job Type]]=tblSalaries[[#Headers],[Misc.]],tblSalaries[[#This Row],[Salary in USD]],"") ->  | AC63: =IF(tblSalaries[[#This Row],[Job Type]]=tblSalaries[[#Headers],[Reporting]],tblSalaries[[#This Row],[Salary in USD]],"") ->  | AD63: =IF(tblSalaries[[#This Row],[Job Type]]=tblSalaries[[#Headers],[Specialist]],tblSalaries[[#This Row],[Salary in USD]],"") -> 41000
B64: ID0061 | C64: 2012-05-25T07:11:09 | D64: 68000 | E64: 68000 | F64: USD | G64: =tblSalaries[[#This Row],[clean Salary (in local currency)]]*VLOOKUP(tblSalaries[[#This Row],[Currency]],tblXrate[],2,FALSE) -> 68000 | H64: Engineering Data Analyst | I64: Analyst | J64: USA | K64: =VLOOKUP(tblSalaries[[#This Row],[Where do you work]],tblCountries[[Actual]:[Mapping]],2,FALSE) -> USA | L64: All the 8 hours baby, all the 8! | N64: =IF(tblSalaries[[#This Row],[Years of Experience]]="","",IF(tblSalaries[[#This Row],[Years of Experience]]<=2,1,"")) ->  | O64: =IF(tblSalaries[[#This Row],[Years of Experience]]="","",IF(AND(tblSalaries[[#This Row],[Years of Experience]]>2,tblSalaries[[#This Row],[Years of Experience]]<=5),1,"")) ->  | P64: =IF(tblSalaries[[#This Row],[Years of Experience]]="","",IF(AND(tblSalaries[[#This Row],[Years of Experience]]>5,tblSalaries[[#This Row],[Years of Experience]]<=10),1,"")) ->  | Q64: =IF(tblSalaries[[#This Row],[Years of Experience]]="","",IF(AND(tblSalaries[[#This Row],[Years of Experience]]>10,tblSalaries[[#This Row],[Years of Experience]]<=15),1,"")) ->  | R64: =IF(tblSalaries[[#This Row],[Years of Experience]]="","",IF(AND(tblSalaries[[#This Row],[Years of Experience]]>16,tblSalaries[[#This Row],[Years of Experience]]<=20),1,"")) ->  | S64: =IF(tblSalaries[[#This Row],[Years of Experience]]="","",IF(tblSalaries[[#This Row],[Years of Experience]]>20,1,"")) ->  | T64: =IF(tblSalaries[[#This Row],[0-2 Years]]=1,tblSalaries[[#Headers],[0-2 Years]],IF(tblSalaries[[#This Row],[3-5 Years]]=1,tblSalaries[[#Headers],[3-5 Years]],IF(tblSalaries[[#This Row],[5-10 Years]]=1,tblSalaries[[#Headers],[5-10 Years]],IF(tblSalaries[[#This Row],[11-15 Years]]=1,tblSalaries[[#Headers],[11-15 Years]],IF(tblSalaries[[#This Row],[16-20 Years]]=1,tblSalaries[[#Headers],[16-20 Years]],IF(tblSalaries[[#This Row],[20+ Years]]=1,tblSalaries[[#Headers],[20+ Years]],"")))))) ->  | U64: =IF(tblSalaries[[#This Row],[Job Type]]=tblSalaries[[#Headers],[Accountant]],tblSalaries[[#This Row],[Salary in USD]],"") ->  | V64: =IF(tblSalaries[[#This Row],[Job Type]]=tblSalaries[[#Headers],[Analyst]],tblSalaries[[#This Row],[Salary in USD]],"") -> 68000 | W64: =IF(tblSalaries[[#This Row],[Job Type]]=tblSalaries[[#Headers],[Consultant]],tblSalaries[[#This Row],[Salary in USD]],"") ->  | X64: =IF(tblSalaries[[#This Row],[Job Type]]=tblSalaries[[#Headers],[Controller]],tblSalaries[[#This Row],[Salary in USD]],"") ->  | Y64: =IF(tblSalaries[[#This Row],[Job Type]]=tblSalaries[[#Headers],[CXO or Top Mgmt.]],tblSalaries[[#This Row],[clean Salary (in local currency)]],"") ->  | Z64: =IF(tblSalaries[[#This Row],[Job Type]]=tblSalaries[[#Headers],[Engineer]],tblSalaries[[#This Row],[Salary in USD]],"") ->  | AA64: =IF(tblSalaries[[#This Row],[Job Type]]=tblSalaries[[#Headers],[Manager]],tblSalaries[[#This Row],[Salary in USD]],"") ->  | AB64: =IF(tblSalaries[[#This Row],[Job Type]]=tblSalaries[[#Headers],[Misc.]],tblSalaries[[#This Row],[Salary in USD]],"") ->  | AC64: =IF(tblSalaries[[#This Row],[Job Type]]=tblSalaries[[#Headers],[Reporting]],tblSalaries[[#This Row],[Salary in USD]],"") ->  | AD64: =IF(tblSalaries[[#This Row],[Job Type]]=tblSalaries[[#Headers],[Specialist]],tblSalaries[[#This Row],[Salary in USD]],"") -> 
B65: ID0062 | C65: 2012-05-25T07:13:31 | D65: 56000 | E65: 56000 | F65: CAD | G65: =tblSalaries[[#This Row],[clean Salary (in local currency)]]*VLOOKUP(tblSalaries[[#This Row],[Currency]],tblXrate[],2,FALSE) -> 55068.24529 | H65: Sales Analyst | I65: Analyst | J65: CANADA | K65: =VLOOKUP(tblSalaries[[#This Row],[Where do you work]],tblCountries[[Actual]:[Mapping]],2,FALSE) -> Canada | L65: All the 8 hours baby, all the 8! | N65: =IF(tblSalaries[[#This Row],[Years of Experience]]="","",IF(tblSalaries[[#This Row],[Years of Experience]]<=2,1,"")) ->  | O65: =IF(tblSalaries[[#This Row],[Years of Experience]]="","",IF(AND(tblSalaries[[#This Row],[Years of Experience]]>2,tblSalaries[[#This Row],[Years of Experience]]<=5),1,"")) ->  | P65: =IF(tblSalaries[[#This Row],[Years of Experience]]="","",IF(AND(tblSalaries[[#This Row],[Years of Experience]]>5,tblSalaries[[#This Row],[Years of Experience]]<=10),1,"")) ->  | Q65: =IF(tblSalaries[[#This Row],[Years of Experience]]="","",IF(AND(tblSalaries[[#This Row],[Years of Experience]]>10,tblSalaries[[#This Row],[Years of Experience]]<=15),1,"")) ->  | R65: =IF(tblSalaries[[#This Row],[Years of Experience]]="","",IF(AND(tblSalaries[[#This Row],[Years of Experience]]>16,tblSalaries[[#This Row],[Years of Experience]]<=20),1,"")) ->  | S65: =IF(tblSalaries[[#This Row],[Years of Experience]]="","",IF(tblSalaries[[#This Row],[Years of Experience]]>20,1,"")) ->  | T65: =IF(tblSalaries[[#This Row],[0-2 Years]]=1,tblSalaries[[#Headers],[0-2 Years]],IF(tblSalaries[[#This Row],[3-5 Years]]=1,tblSalaries[[#Headers],[3-5 Years]],IF(tblSalaries[[#This Row],[5-10 Years]]=1,tblSalaries[[#Headers],[5-10 Years]],IF(tblSalaries[[#This Row],[11-15 Years]]=1,tblSalaries[[#Headers],[11-15 Years]],IF(tblSalaries[[#This Row],[16-20 Years]]=1,tblSalaries[[#Headers],[16-20 Years]],IF(tblSalaries[[#This Row],[20+ Years]]=1,tblSalaries[[#Headers],[20+ Years]],"")))))) ->  | U65: =IF(tblSalaries[[#This Row],[Job Type]]=tblSalaries[[#Headers],[Accountant]],tblSalaries[[#This Row],[Salary in USD]],"") ->  | V65: =IF(tblSalaries[[#This Row],[Job Type]]=tblSalaries[[#Headers],[Analyst]],tblSalaries[[#This Row],[Salary in USD]],"") -> 55068.24529 | W65: =IF(tblSalaries[[#This Row],[Job Type]]=tblSalaries[[#Headers],[Consultant]],tblSalaries[[#This Row],[Salary in USD]],"") ->  | X65: =IF(tblSalaries[[#This Row],[Job Type]]=tblSalaries[[#Headers],[Controller]],tblSalaries[[#This Row],[Salary in USD]],"") ->  | Y65: =IF(tblSalaries[[#This Row],[Job Type]]=tblSalaries[[#Headers],[CXO or Top Mgmt.]],tblSalaries[[#This Row],[clean Salary (in local currency)]],"") ->  | Z65: =IF(tblSalaries[[#This Row],[Job Type]]=tblSalaries[[#Headers],[Engineer]],tblSalaries[[#This Row],[Salary in USD]],"") ->  | AA65: =IF(tblSalaries[[#This Row],[Job Type]]=tblSalaries[[#Headers],[Manager]],tblSalaries[[#This Row],[Salary in USD]],"") ->  | AB65: =IF(tblSalaries[[#This Row],[Job Type]]=tblSalaries[[#Headers],[Misc.]],tblSalaries[[#This Row],[Salary in USD]],"") ->  | AC65: =IF(tblSalaries[[#This Row],[Job Type]]=tblSalaries[[#Headers],[Reporting]],tblSalaries[[#This Row],[Salary in USD]],"") ->  | AD65: =IF(tblSalaries[[#This Row],[Job Type]]=tblSalaries[[#Headers],[Specialist]],tblSalaries[[#This Row],[Salary in USD]],"") -> 
B66: ID0063 | C66: 2012-05-25T07:15:12 | D66: 61000 | E66: 61000 | F66: USD | G66: =tblSalaries[[#This Row],[clean Salary (in local currency)]]*VLOOKUP(tblSalaries[[#This Row],[Currency]],tblXrate[],2,FALSE) -> 61000 | H66: Coordinator Of Costa and Buget | I66: Manager | J66: Brasil | K66: =VLOOKUP(tblSalaries[[#This Row],[Where do you work]],tblCountries[[Actual]:[Mapping]],2,FALSE) -> Brazil | L66: All the 8 hours baby, all the 8! | N66: =IF(tblSalaries[[#This Row],[Years of Experience]]="","",IF(tblSalaries[[#This Row],[Years of Experience]]<=2,1,"")) ->  | O66: =IF(tblSalaries[[#This Row],[Years of Experience]]="","",IF(AND(tblSalaries[[#This Row],[Years of Experience]]>2,tblSalaries[[#This Row],[Years of Experience]]<=5),1,"")) ->  | P66: =IF(tblSalaries[[#This Row],[Years of Experience]]="","",IF(AND(tblSalaries[[#This Row],[Years of Experience]]>5,tblSalaries[[#This Row],[Years of Experience]]<=10),1,"")) ->  | Q66: =IF(tblSalaries[[#This Row],[Years of Experience]]="","",IF(AND(tblSalaries[[#This Row],[Years of Experience]]>10,tblSalaries[[#This Row],[Years of Experience]]<=15),1,"")) ->  | R66: =IF(tblSalaries[[#This Row],[Years of Experience]]="","",IF(AND(tblSalaries[[#This Row],[Years of Experience]]>16,tblSalaries[[#This Row],[Years of Experience]]<=20),1,"")) ->  | S66: =IF(tblSalaries[[#This Row],[Years of Experience]]="","",IF(tblSalaries[[#This Row],[Years of Experience]]>20,1,"")) ->  | T66: =IF(tblSalaries[[#This Row],[0-2 Years]]=1,tblSalaries[[#Headers],[0-2 Years]],IF(tblSalaries[[#This Row],[3-5 Years]]=1,tblSalaries[[#Headers],[3-5 Years]],IF(tblSalaries[[#This Row],[5-10 Years]]=1,tblSalaries[[#Headers],[5-10 Years]],IF(tblSalaries[[#This Row],[11-15 Years]]=1,tblSalaries[[#Headers],[11-15 Years]],IF(tblSalaries[[#This Row],[16-20 Years]]=1,tblSalaries[[#Headers],[16-20 Years]],IF(tblSalaries[[#This Row],[20+ Years]]=1,tblSalaries[[#Headers],[20+ Years]],"")))))) ->  | U66: =IF(tblSalaries[[#This Row],[Job Type]]=tblSalaries[[#Headers],[Accountant]],tblSalaries[[#This Row],[Salary in USD]],"") ->  | V66: =IF(tblSalaries[[#This Row],[Job Type]]=tblSalaries[[#Headers],[Analyst]],tblSalaries[[#This Row],[Salary in USD]],"") ->  | W66: =IF(tblSalaries[[#This Row],[Job Type]]=tblSalaries[[#Headers],[Consultant]],tblSalaries[[#This Row],[Salary in USD]],"") ->  | X66: =IF(tblSalaries[[#This Row],[Job Type]]=tblSalaries[[#Headers],[Controller]],tblSalaries[[#This Row],[Salary in USD]],"") ->  | Y66: =IF(tblSalaries[[#This Row],[Job Type]]=tblSalaries[[#Headers],[CXO or Top Mgmt.]],tblSalaries[[#This Row],[clean Salary (in local currency)]],"") ->  | Z66: =IF(tblSalaries[[#This Row],[Job Type]]=tblSalaries[[#Headers],[Engineer]],tblSalaries[[#This Row],[Salary in USD]],"") ->  | AA66: =IF(tblSalaries[[#This Row],[Job Type]]=tblSalaries[[#Headers],[Manager]],tblSalaries[[#This Row],[Salary in USD]],"") -> 61000 | AB66: =IF(tblSalaries[[#This Row],[Job Type]]=tblSalaries[[#Headers],[Misc.]],tblSalaries[[#This Row],[Salary in USD]],"") ->  | AC66: =IF(tblSalaries[[#This Row],[Job Type]]=tblSalaries[[#Headers],[Reporting]],tblSalaries[[#This Row],[Salary in USD]],"") ->  | AD66: =IF(tblSalaries[[#This Row],[Job Type]]=tblSalaries[[#Headers],[Specialist]],tblSalaries[[#This Row],[Salary in USD]],"") -> 
B67: ID0064 | C67: 2012-05-25T07:18:53 | D67: 43000 | E67: 43000 | F67: EUR | G67: =tblSalaries[[#This Row],[clean Salary (in local currency)]]*VLOOKUP(tblSalaries[[#This Row],[Currency]],tblXrate[],2,FALSE) -> 54627.17588 | H67: SAP consultant | I67: Consultant | J67: FR | K67: =VLOOKUP(tblSalaries[[#This Row],[Where do you work]],tblCountries[[Actual]:[Mapping]],2,FALSE) -> France | L67: 4 to 6 hours a day | N67: =IF(tblSalaries[[#This Row],[Years of Experience]]="","",IF(tblSalaries[[#This Row],[Years of Experience]]<=2,1,"")) ->  | O67: =IF(tblSalaries[[#This Row],[Years of Experience]]="","",IF(AND(tblSalaries[[#This Row],[Years of Experience]]>2,tblSalaries[[#This Row],[Years of Experience]]<=5),1,"")) ->  | P67: =IF(tblSalaries[[#This Row],[Years of Experience]]="","",IF(AND(tblSalaries[[#This Row],[Years of Experience]]>5,tblSalaries[[#This Row],[Years of Experience]]<=10),1,"")) ->  | Q67: =IF(tblSalaries[[#This Row],[Years of Experience]]="","",IF(AND(tblSalaries[[#This Row],[Years of Experience]]>10,tblSalaries[[#This Row],[Years of Experience]]<=15),1,"")) ->  | R67: =IF(tblSalaries[[#This Row],[Years of Experience]]="","",IF(AND(tblSalaries[[#This Row],[Years of Experience]]>16,tblSalaries[[#This Row],[Years of Experience]]<=20),1,"")) ->  | S67: =IF(tblSalaries[[#This Row],[Years of Experience]]="","",IF(tblSalaries[[#This Row],[Years of Experience]]>20,1,"")) ->  | T67: =IF(tblSalaries[[#This Row],[0-2 Years]]=1,tblSalaries[[#Headers],[0-2 Years]],IF(tblSalaries[[#This Row],[3-5 Years]]=1,tblSalaries[[#Headers],[3-5 Years]],IF(tblSalaries[[#This Row],[5-10 Years]]=1,tblSalaries[[#Headers],[5-10 Years]],IF(tblSalaries[[#This Row],[11-15 Years]]=1,tblSalaries[[#Headers],[11-15 Years]],IF(tblSalaries[[#This Row],[16-20 Years]]=1,tblSalaries[[#Headers],[16-20 Years]],IF(tblSalaries[[#This Row],[20+ Years]]=1,tblSalaries[[#Headers],[20+ Years]],"")))))) ->  | U67: =IF(tblSalaries[[#This Row],[Job Type]]=tblSalaries[[#Headers],[Accountant]],tblSalaries[[#This Row],[Salary in USD]],"") ->  | V67: =IF(tblSalaries[[#This Row],[Job Type]]=tblSalaries[[#Headers],[Analyst]],tblSalaries[[#This Row],[Salary in USD]],"") ->  | W67: =IF(tblSalaries[[#This Row],[Job Type]]=tblSalaries[[#Headers],[Consultant]],tblSalaries[[#This Row],[Salary in USD]],"") -> 54627.17588 | X67: =IF(tblSalaries[[#This Row],[Job Type]]=tblSalaries[[#Headers],[Controller]],tblSalaries[[#This Row],[Salary in USD]],"") ->  | Y67: =IF(tblSalaries[[#This Row],[Job Type]]=tblSalaries[[#Headers],[CXO or Top Mgmt.]],tblSalaries[[#This Row],[clean Salary (in local currency)]],"") ->  | Z67: =IF(tblSalaries[[#This Row],[Job Type]]=tblSalaries[[#Headers],[Engineer]],tblSalaries[[#This Row],[Salary in USD]],"") ->  | AA67: =IF(tblSalaries[[#This Row],[Job Type]]=tblSalaries[[#Headers],[Manager]],tblSalaries[[#This Row],[Salary in USD]],"") ->  | AB67: =IF(tblSalaries[[#This Row],[Job Type]]=tblSalaries[[#Headers],[Misc.]],tblSalaries[[#This Row],[Salary in USD]],"") ->  | AC67: =IF(tblSalaries[[#This Row],[Job Type]]=tblSalaries[[#Headers],[Reporting]],tblSalaries[[#This Row],[Salary in USD]],"") ->  | AD67: =IF(tblSalaries[[#This Row],[Job Type]]=tblSalaries[[#Headers],[Specialist]],tblSalaries[[#This Row],[Salary in USD]],"") -> 
B68: ID0065 | C68: 2012-05-25T07:20:08 | D68: 85000 | E68: 85000 | F68: USD | G68: =tblSalaries[[#This Row],[clean Salary (in local currency)]]*VLOOKUP(tblSalaries[[#This Row],[Currency]],tblXrate[],2,FALSE) -> 85000 | H68: Manager | I68: Manager | J68: USA | K68: =VLOOKUP(tblSalaries[[#This Row],[Where do you work]],tblCountries[[Actual]:[Mapping]],2,FALSE) -> USA | L68: 4 to 6 hours a day | N68: =IF(tblSalaries[[#This Row],[Years of Experience]]="","",IF(tblSalaries[[#This Row],[Years of Experience]]<=2,1,"")) ->  | O68: =IF(tblSalaries[[#This Row],[Years of Experience]]="","",IF(AND(tblSalaries[[#This Row],[Years of Experience]]>2,tblSalaries[[#This Row],[Years of Experience]]<=5),1,"")) ->  | P68: =IF(tblSalaries[[#This Row],[Years of Experience]]="","",IF(AND(tblSalaries[[#This Row],[Years of Experience]]>5,tblSalaries[[#This Row],[Years of Experience]]<=10),1,"")) ->  | Q68: =IF(tblSalaries[[#This Row],[Years of Experience]]="","",IF(AND(tblSalaries[[#This Row],[Years of Experience]]>10,tblSalaries[[#This Row],[Years of Experience]]<=15),1,"")) ->  | R68: =IF(tblSalaries[[#This Row],[Years of Experience]]="","",IF(AND(tblSalaries[[#This Row],[Years of Experience]]>16,tblSalaries[[#This Row],[Years of Experience]]<=20),1,"")) ->  | S68: =IF(tblSalaries[[#This Row],[Years of Experience]]="","",IF(tblSalaries[[#This Row],[Years of Experience]]>20,1,"")) ->  | T68: =IF(tblSalaries[[#This Row],[0-2 Years]]=1,tblSalaries[[#Headers],[0-2 Years]],IF(tblSalaries[[#This Row],[3-5 Years]]=1,tblSalaries[[#Headers],[3-5 Years]],IF(tblSalaries[[#This Row],[5-10 Years]]=1,tblSalaries[[#Headers],[5-10 Years]],IF(tblSalaries[[#This Row],[11-15 Years]]=1,tblSalaries[[#Headers],[11-15 Years]],IF(tblSalaries[[#This Row],[16-20 Years]]=1,tblSalaries[[#Headers],[16-20 Years]],IF(tblSalaries[[#This Row],[20+ Years]]=1,tblSalaries[[#Headers],[20+ Years]],"")))))) ->  | U68: =IF(tblSalaries[[#This Row],[Job Type]]=tblSalaries[[#Headers],[Accountant]],tblSalaries[[#This Row],[Salary in USD]],"") ->  | V68: =IF(tblSalaries[[#This Row],[Job Type]]=tblSalaries[[#Headers],[Analyst]],tblSalaries[[#This Row],[Salary in USD]],"") ->  | W68: =IF(tblSalaries[[#This Row],[Job Type]]=tblSalaries[[#Headers],[Consultant]],tblSalaries[[#This Row],[Salary in USD]],"") ->  | X68: =IF(tblSalaries[[#This Row],[Job Type]]=tblSalaries[[#Headers],[Controller]],tblSalaries[[#This Row],[Salary in USD]],"") ->  | Y68: =IF(tblSalaries[[#This Row],[Job Type]]=tblSalaries[[#Headers],[CXO or Top Mgmt.]],tblSalaries[[#This Row],[clean Salary (in local currency)]],"") ->  | Z68: =IF(tblSalaries[[#This Row],[Job Type]]=tblSalaries[[#Headers],[Engineer]],tblSalaries[[#This Row],[Salary in USD]],"") ->  | AA68: =IF(tblSalaries[[#This Row],[Job Type]]=tblSalaries[[#Headers],[Manager]],tblSalaries[[#This Row],[Salary in USD]],"") -> 85000 | AB68: =IF(tblSalaries[[#This Row],[Job Type]]=tblSalaries[[#Headers],[Misc.]],tblSalaries[[#This Row],[Salary in USD]],"") ->  | AC68: =IF(tblSalaries[[#This Row],[Job Type]]=tblSalaries[[#Headers],[Reporting]],tblSalaries[[#This Row],[Salary in USD]],"") ->  | AD68: =IF(tblSalaries[[#This Row],[Job Type]]=tblSalaries[[#Headers],[Specialist]],tblSalaries[[#This Row],[Salary in USD]],"") -> 
B69: ID0066 | C69: 2012-05-25T07:21:18 | D69: â‚¬ 38000 | E69: 38000 | F69: EUR | G69: =tblSalaries[[#This Row],[clean Salary (in local currency)]]*VLOOKUP(tblSalaries[[#This Row],[Currency]],tblXrate[],2,FALSE) -> 48275.17868 | H69: busines analist | I69: Analyst | J69: The Netherlands | K69: =VLOOKUP(tblSalaries[[#This Row],[Where do you work]],tblCountries[[Actual]:[Mapping]],2,FALSE) -> Netherlands | L69: 1 or 2 hours a day | N69: =IF(tblSalaries[[#This Row],[Years of Experience]]="","",IF(tblSalaries[[#This Row],[Years of Experience]]<=2,1,"")) ->  | O69: =IF(tblSalaries[[#This Row],[Years of Experience]]="","",IF(AND(tblSalaries[[#This Row],[Years of Experience]]>2,tblSalaries[[#This Row],[Years of Experience]]<=5),1,"")) ->  | P69: =IF(tblSalaries[[#This Row],[Years of Experience]]="","",IF(AND(tblSalaries[[#This Row],[Years of Experience]]>5,tblSalaries[[#This Row],[Years of Experience]]<=10),1,"")) ->  | Q69: =IF(tblSalaries[[#This Row],[Years of Experience]]="","",IF(AND(tblSalaries[[#This Row],[Years of Experience]]>10,tblSalaries[[#This Row],[Years of Experience]]<=15),1,"")) ->  | R69: =IF(tblSalaries[[#This Row],[Years of Experience]]="","",IF(AND(tblSalaries[[#This Row],[Years of Experience]]>16,tblSalaries[[#This Row],[Years of Experience]]<=20),1,"")) ->  | S69: =IF(tblSalaries[[#This Row],[Years of Experience]]="","",IF(tblSalaries[[#This Row],[Years of Experience]]>20,1,"")) ->  | T69: =IF(tblSalaries[[#This Row],[0-2 Years]]=1,tblSalaries[[#Headers],[0-2 Years]],IF(tblSalaries[[#This Row],[3-5 Years]]=1,tblSalaries[[#Headers],[3-5 Years]],IF(tblSalaries[[#This Row],[5-10 Years]]=1,tblSalaries[[#Headers],[5-10 Years]],IF(tblSalaries[[#This Row],[11-15 Years]]=1,tblSalaries[[#Headers],[11-15 Years]],IF(tblSalaries[[#This Row],[16-20 Years]]=1,tblSalaries[[#Headers],[16-20 Years]],IF(tblSalaries[[#This Row],[20+ Years]]=1,tblSalaries[[#Headers],[20+ Years]],"")))))) ->  | U69: =IF(tblSalaries[[#This Row],[Job Type]]=tblSalaries[[#Headers],[Accountant]],tblSalaries[[#This Row],[Salary in USD]],"") ->  | V69: =IF(tblSalaries[[#This Row],[Job Type]]=tblSalaries[[#Headers],[Analyst]],tblSalaries[[#This Row],[Salary in USD]],"") -> 48275.17868 | W69: =IF(tblSalaries[[#This Row],[Job Type]]=tblSalaries[[#Headers],[Consultant]],tblSalaries[[#This Row],[Salary in USD]],"") ->  | X69: =IF(tblSalaries[[#This Row],[Job Type]]=tblSalaries[[#Headers],[Controller]],tblSalaries[[#This Row],[Salary in USD]],"") ->  | Y69: =IF(tblSalaries[[#This Row],[Job Type]]=tblSalaries[[#Headers],[CXO or Top Mgmt.]],tblSalaries[[#This Row],[clean Salary (in local currency)]],"") ->  | Z69: =IF(tblSalaries[[#This Row],[Job Type]]=tblSalaries[[#Headers],[Engineer]],tblSalaries[[#This Row],[Salary in USD]],"") ->  | AA69: =IF(tblSalaries[[#This Row],[Job Type]]=tblSalaries[[#Headers],[Manager]],tblSalaries[[#This Row],[Salary in USD]],"") ->  | AB69: =IF(tblSalaries[[#This Row],[Job Type]]=tblSalaries[[#Headers],[Misc.]],tblSalaries[[#This Row],[Salary in USD]],"") ->  | AC69: =IF(tblSalaries[[#This Row],[Job Type]]=tblSalaries[[#Headers],[Reporting]],tblSalaries[[#This Row],[Salary in USD]],"") ->  | AD69: =IF(tblSalaries[[#This Row],[Job Type]]=tblSalaries[[#Headers],[Specialist]],tblSalaries[[#This Row],[Salary in USD]],"") -> 
B70: ID0067 | C70: 2012-05-25T07:25:12 | D70: 85000 | E70: 85000 | F70: AUD | G70: =tblSalaries[[#This Row],[clean Salary (in local currency)]]*VLOOKUP(tblSalaries[[#This Row],[Currency]],tblXrate[],2,FALSE) -> 86692.32079 | H70: head of data | I70: CXO or Top Mgmt. | J70: Australia | K70: =VLOOKUP(tblSalaries[[#This Row],[Where do you work]],tblCountries[[Actual]:[Mapping]],2,FALSE) -> Australia | L70: 4 to 6 hours a day | N70: =IF(tblSalaries[[#This Row],[Years of Experience]]="","",IF(tblSalaries[[#This Row],[Years of Experience]]<=2,1,"")) ->  | O70: =IF(tblSalaries[[#This Row],[Years of Experience]]="","",IF(AND(tblSalaries[[#This Row],[Years of Experience]]>2,tblSalaries[[#This Row],[Years of Experience]]<=5),1,"")) ->  | P70: =IF(tblSalaries[[#This Row],[Years of Experience]]="","",IF(AND(tblSalaries[[#This Row],[Years of Experience]]>5,tblSalaries[[#This Row],[Years of Experience]]<=10),1,"")) ->  | Q70: =IF(tblSalaries[[#This Row],[Years of Experience]]="","",IF(AND(tblSalaries[[#This Row],[Years of Experience]]>10,tblSalaries[[#This Row],[Years of Experience]]<=15),1,"")) ->  | R70: =IF(tblSalaries[[#This Row],[Years of Experience]]="","",IF(AND(tblSalaries[[#This Row],[Years of Experience]]>16,tblSalaries[[#This Row],[Years of Experience]]<=20),1,"")) ->  | S70: =IF(tblSalaries[[#This Row],[Years of Experience]]="","",IF(tblSalaries[[#This Row],[Years of Experience]]>20,1,"")) ->  | T70: =IF(tblSalaries[[#This Row],[0-2 Years]]=1,tblSalaries[[#Headers],[0-2 Years]],IF(tblSalaries[[#This Row],[3-5 Years]]=1,tblSalaries[[#Headers],[3-5 Years]],IF(tblSalaries[[#This Row],[5-10 Years]]=1,tblSalaries[[#Headers],[5-10 Years]],IF(tblSalaries[[#This Row],[11-15 Years]]=1,tblSalaries[[#Headers],[11-15 Years]],IF(tblSalaries[[#This Row],[16-20 Years]]=1,tblSalaries[[#Headers],[16-20 Years]],IF(tblSalaries[[#This Row],[20+ Years]]=1,tblSalaries[[#Headers],[20+ Years]],"")))))) ->  | U70: =IF(tblSalaries[[#This Row],[Job Type]]=tblSalaries[[#Headers],[Accountant]],tblSalaries[[#This Row],[Salary in USD]],"") ->  | V70: =IF(tblSalaries[[#This Row],[Job Type]]=tblSalaries[[#Headers],[Analyst]],tblSalaries[[#This Row],[Salary in USD]],"") ->  | W70: =IF(tblSalaries[[#This Row],[Job Type]]=tblSalaries[[#Headers],[Consultant]],tblSalaries[[#This Row],[Salary in USD]],"") ->  | X70: =IF(tblSalaries[[#This Row],[Job Type]]=tblSalaries[[#Headers],[Controller]],tblSalaries[[#This Row],[Salary in USD]],"") ->  | Y70: =IF(tblSalaries[[#This Row],[Job Type]]=tblSalaries[[#Headers],[CXO or Top Mgmt.]],tblSalaries[[#This Row],[clean Salary (in local currency)]],"") -> 85000 | Z70: =IF(tblSalaries[[#This Row],[Job Type]]=tblSalaries[[#Headers],[Engineer]],tblSalaries[[#This Row],[Salary in USD]],"") ->  | AA70: =IF(tblSalaries[[#This Row],[Job Type]]=tblSalaries[[#Headers],[Manager]],tblSalaries[[#This Row],[Salary in USD]],"") ->  | AB70: =IF(tblSalaries[[#This Row],[Job Type]]=tblSalaries[[#Headers],[Misc.]],tblSalaries[[#This Row],[Salary in USD]],"") ->  | AC70: =IF(tblSalaries[[#This Row],[Job Type]]=tblSalaries[[#Headers],[Reporting]],tblSalaries[[#This Row],[Salary in USD]],"") ->  | AD70: =IF(tblSalaries[[#This Row],[Job Type]]=tblSalaries[[#Headers],[Specialist]],tblSalaries[[#This Row],[Salary in USD]],"") -> 
B71: ID0068 | C71: 2012-05-25T07:29:12 | D71: 85087 | E71: 85087 | F71: USD | G71: =tblSalaries[[#This Row],[clean Salary (in local currency)]]*VLOOKUP(tblSalaries[[#This Row],[Currency]],tblXrate[],2,FALSE) -> 85087 | H71: Business Systems Analyst | I71: Analyst | J71: USA | K71: =VLOOKUP(tblSalaries[[#This Row],[Where do you work]],tblCountries[[Actual]:[Mapping]],2,FALSE) -> USA | L71: 2 to 3 hours per day | N71: =IF(tblSalaries[[#This Row],[Years of Experience]]="","",IF(tblSalaries[[#This Row],[Years of Experience]]<=2,1,"")) ->  | O71: =IF(tblSalaries[[#This Row],[Years of Experience]]="","",IF(AND(tblSalaries[[#This Row],[Years of Experience]]>2,tblSalaries[[#This Row],[Years of Experience]]<=5),1,"")) ->  | P71: =IF(tblSalaries[[#This Row],[Years of Experience]]="","",IF(AND(tblSalaries[[#This Row],[Years of Experience]]>5,tblSalaries[[#This Row],[Years of Experience]]<=10),1,"")) ->  | Q71: =IF(tblSalaries[[#This Row],[Years of Experience]]="","",IF(AND(tblSalaries[[#This Row],[Years of Experience]]>10,tblSalaries[[#This Row],[Years of Experience]]<=15),1,"")) ->  | R71: =IF(tblSalaries[[#This Row],[Years of Experience]]="","",IF(AND(tblSalaries[[#This Row],[Years of Experience]]>16,tblSalaries[[#This Row],[Years of Experience]]<=20),1,"")) ->  | S71: =IF(tblSalaries[[#This Row],[Years of Experience]]="","",IF(tblSalaries[[#This Row],[Years of Experience]]>20,1,"")) ->  | T71: =IF(tblSalaries[[#This Row],[0-2 Years]]=1,tblSalaries[[#Headers],[0-2 Years]],IF(tblSalaries[[#This Row],[3-5 Years]]=1,tblSalaries[[#Headers],[3-5 Years]],IF(tblSalaries[[#This Row],[5-10 Years]]=1,tblSalaries[[#Headers],[5-10 Years]],IF(tblSalaries[[#This Row],[11-15 Years]]=1,tblSalaries[[#Headers],[11-15 Years]],IF(tblSalaries[[#This Row],[16-20 Years]]=1,tblSalaries[[#Headers],[16-20 Years]],IF(tblSalaries[[#This Row],[20+ Years]]=1,tblSalaries[[#Headers],[20+ Years]],"")))))) ->  | U71: =IF(tblSalaries[[#This Row],[Job Type]]=tblSalaries[[#Headers],[Accountant]],tblSalaries[[#This Row],[Salary in USD]],"") ->  | V71: =IF(tblSalaries[[#This Row],[Job Type]]=tblSalaries[[#Headers],[Analyst]],tblSalaries[[#This Row],[Salary in USD]],"") -> 85087 | W71: =IF(tblSalaries[[#This Row],[Job Type]]=tblSalaries[[#Headers],[Consultant]],tblSalaries[[#This Row],[Salary in USD]],"") ->  | X71: =IF(tblSalaries[[#This Row],[Job Type]]=tblSalaries[[#Headers],[Controller]],tblSalaries[[#This Row],[Salary in USD]],"") ->  | Y71: =IF(tblSalaries[[#This Row],[Job Type]]=tblSalaries[[#Headers],[CXO or Top Mgmt.]],tblSalaries[[#This Row],[clean Salary (in local currency)]],"") ->  | Z71: =IF(tblSalaries[[#This Row],[Job Type]]=tblSalaries[[#Headers],[Engineer]],tblSalaries[[#This Row],[Salary in USD]],"") ->  | AA71: =IF(tblSalaries[[#This Row],[Job Type]]=tblSalaries[[#Headers],[Manager]],tblSalaries[[#This Row],[Salary in USD]],"") ->  | AB71: =IF(tblSalaries[[#This Row],[Job Type]]=tblSalaries[[#Headers],[Misc.]],tblSalaries[[#This Row],[Salary in USD]],"") ->  | AC71: =IF(tblSalaries[[#This Row],[Job Type]]=tblSalaries[[#Headers],[Reporting]],tblSalaries[[#This Row],[Salary in USD]],"") ->  | AD71: =IF(tblSalaries[[#This Row],[Job Type]]=tblSalaries[[#Headers],[Specialist]],tblSalaries[[#This Row],[Salary in USD]],"") -> 
B72: ID0069 | C72: 2012-05-25T07:38:22 | D72: 50000 | E72: 50000 | F72: USD | G72: =tblSalaries[[#This Row],[clean Salary (in local currency)]]*VLOOKUP(tblSalaries[[#This Row],[Currency]],tblXrate[],2,FALSE) -> 50000 | H72: Financial Analyst II | I72: Analyst | J72: USA | K72: =VLOOKUP(tblSalaries[[#This Row],[Where do you work]],tblCountries[[Actual]:[Mapping]],2,FALSE) -> USA | L72: All the 8 hours baby, all the 8! | N72: =IF(tblSalaries[[#This Row],[Years of Experience]]="","",IF(tblSalaries[[#This Row],[Years of Experience]]<=2,1,"")) ->  | O72: =IF(tblSalaries[[#This Row],[Years of Experience]]="","",IF(AND(tblSalaries[[#This Row],[Years of Experience]]>2,tblSalaries[[#This Row],[Years of Experience]]<=5),1,"")) ->  | P72: =IF(tblSalaries[[#This Row],[Years of Experience]]="","",IF(AND(tblSalaries[[#This Row],[Years of Experience]]>5,tblSalaries[[#This Row],[Years of Experience]]<=10),1,"")) ->  | Q72: =IF(tblSalaries[[#This Row],[Years of Experience]]="","",IF(AND(tblSalaries[[#This Row],[Years of Experience]]>10,tblSalaries[[#This Row],[Years of Experience]]<=15),1,"")) ->  | R72: =IF(tblSalaries[[#This Row],[Years of Experience]]="","",IF(AND(tblSalaries[[#This Row],[Years of Experience]]>16,tblSalaries[[#This Row],[Years of Experience]]<=20),1,"")) ->  | S72: =IF(tblSalaries[[#This Row],[Years of Experience]]="","",IF(tblSalaries[[#This Row],[Years of Experience]]>20,1,"")) ->  | T72: =IF(tblSalaries[[#This Row],[0-2 Years]]=1,tblSalaries[[#Headers],[0-2 Years]],IF(tblSalaries[[#This Row],[3-5 Years]]=1,tblSalaries[[#Headers],[3-5 Years]],IF(tblSalaries[[#This Row],[5-10 Years]]=1,tblSalaries[[#Headers],[5-10 Years]],IF(tblSalaries[[#This Row],[11-15 Years]]=1,tblSalaries[[#Headers],[11-15 Years]],IF(tblSalaries[[#This Row],[16-20 Years]]=1,tblSalaries[[#Headers],[16-20 Years]],IF(tblSalaries[[#This Row],[20+ Years]]=1,tblSalaries[[#Headers],[20+ Years]],"")))))) ->  | U72: =IF(tblSalaries[[#This Row],[Job Type]]=tblSalaries[[#Headers],[Accountant]],tblSalaries[[#This Row],[Salary in USD]],"") ->  | V72: =IF(tblSalaries[[#This Row],[Job Type]]=tblSalaries[[#Headers],[Analyst]],tblSalaries[[#This Row],[Salary in USD]],"") -> 50000 | W72: =IF(tblSalaries[[#This Row],[Job Type]]=tblSalaries[[#Headers],[Consultant]],tblSalaries[[#This Row],[Salary in USD]],"") ->  | X72: =IF(tblSalaries[[#This Row],[Job Type]]=tblSalaries[[#Headers],[Controller]],tblSalaries[[#This Row],[Salary in USD]],"") ->  | Y72: =IF(tblSalaries[[#This Row],[Job Type]]=tblSalaries[[#Headers],[CXO or Top Mgmt.]],tblSalaries[[#This Row],[clean Salary (in local currency)]],"") ->  | Z72: =IF(tblSalaries[[#This Row],[Job Type]]=tblSalaries[[#Headers],[Engineer]],tblSalaries[[#This Row],[Salary in USD]],"") ->  | AA72: =IF(tblSalaries[[#This Row],[Job Type]]=tblSalaries[[#Headers],[Manager]],tblSalaries[[#This Row],[Salary in USD]],"") ->  | AB72: =IF(tblSalaries[[#This Row],[Job Type]]=tblSalaries[[#Headers],[Misc.]],tblSalaries[[#This Row],[Salary in USD]],"") ->  | AC72: =IF(tblSalaries[[#This Row],[Job Type]]=tblSalaries[[#Headers],[Reporting]],tblSalaries[[#This Row],[Salary in USD]],"") ->  | AD72: =IF(tblSalaries[[#This Row],[Job Type]]=tblSalaries[[#Headers],[Specialist]],tblSalaries[[#This Row],[Salary in USD]],"") -> 
B73: ID0070 | C73: 2012-05-25T07:47:00 | D73: 100000 | E73: 100000 | F73: USD | G73: =tblSalaries[[#This Row],[clean Salary (in local currency)]]*VLOOKUP(tblSalaries[[#This Row],[Currency]],tblXrate[],2,FALSE) -> 100000 | H73: Mngr MI | I73: Manager | J73: RSA | K73: =VLOOKUP(tblSalaries[[#This Row],[Where do you work]],tblCountries[[Actual]:[Mapping]],2,FALSE) -> South Africa | L73: 4 to 6 hours a day | N73: =IF(tblSalaries[[#This Row],[Years of Experience]]="","",IF(tblSalaries[[#This Row],[Years of Experience]]<=2,1,"")) ->  | O73: =IF(tblSalaries[[#This Row],[Years of Experience]]="","",IF(AND(tblSalaries[[#This Row],[Years of Experience]]>2,tblSalaries[[#This Row],[Years of Experience]]<=5),1,"")) ->  | P73: =IF(tblSalaries[[#This Row],[Years of Experience]]="","",IF(AND(tblSalaries[[#This Row],[Years of Experience]]>5,tblSalaries[[#This Row],[Years of Experience]]<=10),1,"")) ->  | Q73: =IF(tblSalaries[[#This Row],[Years of Experience]]="","",IF(AND(tblSalaries[[#This Row],[Years of Experience]]>10,tblSalaries[[#This Row],[Years of Experience]]<=15),1,"")) ->  | R73: =IF(tblSalaries[[#This Row],[Years of Experience]]="","",IF(AND(tblSalaries[[#This Row],[Years of Experience]]>16,tblSalaries[[#This Row],[Years of Experience]]<=20),1,"")) ->  | S73: =IF(tblSalaries[[#This Row],[Years of Experience]]="","",IF(tblSalaries[[#This Row],[Years of Experience]]>20,1,"")) ->  | T73: =IF(tblSalaries[[#This Row],[0-2 Years]]=1,tblSalaries[[#Headers],[0-2 Years]],IF(tblSalaries[[#This Row],[3-5 Years]]=1,tblSalaries[[#Headers],[3-5 Years]],IF(tblSalaries[[#This Row],[5-10 Years]]=1,tblSalaries[[#Headers],[5-10 Years]],IF(tblSalaries[[#This Row],[11-15 Years]]=1,tblSalaries[[#Headers],[11-15 Years]],IF(tblSalaries[[#This Row],[16-20 Years]]=1,tblSalaries[[#Headers],[16-20 Years]],IF(tblSalaries[[#This Row],[20+ Years]]=1,tblSalaries[[#Headers],[20+ Years]],"")))))) ->  | U73: =IF(tblSalaries[[#This Row],[Job Type]]=tblSalaries[[#Headers],[Accountant]],tblSalaries[[#This Row],[Salary in USD]],"") ->  | V73: =IF(tblSalaries[[#This Row],[Job Type]]=tblSalaries[[#Headers],[Analyst]],tblSalaries[[#This Row],[Salary in USD]],"") ->  | W73: =IF(tblSalaries[[#This Row],[Job Type]]=tblSalaries[[#Headers],[Consultant]],tblSalaries[[#This Row],[Salary in USD]],"") ->  | X73: =IF(tblSalaries[[#This Row],[Job Type]]=tblSalaries[[#Headers],[Controller]],tblSalaries[[#This Row],[Salary in USD]],"") ->  | Y73: =IF(tblSalaries[[#This Row],[Job Type]]=tblSalaries[[#Headers],[CXO or Top Mgmt.]],tblSalaries[[#This Row],[clean Salary (in local currency)]],"") ->  | Z73: =IF(tblSalaries[[#This Row],[Job Type]]=tblSalaries[[#Headers],[Engineer]],tblSalaries[[#This Row],[Salary in USD]],"") ->  | AA73: =IF(tblSalaries[[#This Row],[Job Type]]=tblSalaries[[#Headers],[Manager]],tblSalaries[[#This Row],[Salary in USD]],"") -> 100000 | AB73: =IF(tblSalaries[[#This Row],[Job Type]]=tblSalaries[[#Headers],[Misc.]],tblSalaries[[#This Row],[Salary in USD]],"") ->  | AC73: =IF(tblSalaries[[#This Row],[Job Type]]=tblSalaries[[#Headers],[Reporting]],tblSalaries[[#This Row],[Salary in USD]],"") ->  | AD73: =IF(tblSalaries[[#This Row],[Job Type]]=tblSalaries[[#Headers],[Specialist]],tblSalaries[[#This Row],[Salary in USD]],"") -> 
B74: ID0071 | C74: 2012-05-25T22:49:00 | D74: 57000 | E74: 57000 | F74: USD | G74: =tblSalaries[[#This Row],[clean Salary (in local currency)]]*VLOOKUP(tblSalaries[[#This Row],[Currency]],tblXrate[],2,FALSE) -> 57000 | H74: sales analyst | I74: Analyst | J74: USA | K74: =VLOOKUP(tblSalaries[[#This Row],[Where do you work]],tblCountries[[Actual]:[Mapping]],2,FALSE) -> USA | L74: 4 to 6 hours a day | N74: =IF(tblSalaries[[#This Row],[Years of Experience]]="","",IF(tblSalaries[[#This Row],[Years of Experience]]<=2,1,"")) ->  | O74: =IF(tblSalaries[[#This Row],[Years of Experience]]="","",IF(AND(tblSalaries[[#This Row],[Years of Experience]]>2,tblSalaries[[#This Row],[Years of Experience]]<=5),1,"")) ->  | P74: =IF(tblSalaries[[#This Row],[Years of Experience]]="","",IF(AND(tblSalaries[[#This Row],[Years of Experience]]>5,tblSalaries[[#This Row],[Years of Experience]]<=10),1,"")) ->  | Q74: =IF(tblSalaries[[#This Row],[Years of Experience]]="","",IF(AND(tblSalaries[[#This Row],[Years of Experience]]>10,tblSalaries[[#This Row],[Years of Experience]]<=15),1,"")) ->  | R74: =IF(tblSalaries[[#This Row],[Years of Experience]]="","",IF(AND(tblSalaries[[#This Row],[Years of Experience]]>16,tblSalaries[[#This Row],[Years of Experience]]<=20),1,"")) ->  | S74: =IF(tblSalaries[[#This Row],[Years of Experience]]="","",IF(tblSalaries[[#This Row],[Years of Experience]]>20,1,"")) ->  | T74: =IF(tblSalaries[[#This Row],[0-2 Years]]=1,tblSalaries[[#Headers],[0-2 Years]],IF(tblSalaries[[#This Row],[3-5 Years]]=1,tblSalaries[[#Headers],[3-5 Years]],IF(tblSalaries[[#This Row],[5-10 Years]]=1,tblSalaries[[#Headers],[5-10 Years]],IF(tblSalaries[[#This Row],[11-15 Years]]=1,tblSalaries[[#Headers],[11-15 Years]],IF(tblSalaries[[#This Row],[16-20 Years]]=1,tblSalaries[[#Headers],[16-20 Years]],IF(tblSalaries[[#This Row],[20+ Years]]=1,tblSalaries[[#Headers],[20+ Years]],"")))))) ->  | U74: =IF(tblSalaries[[#This Row],[Job Type]]=tblSalaries[[#Headers],[Accountant]],tblSalaries[[#This Row],[Salary in USD]],"") ->  | V74: =IF(tblSalaries[[#This Row],[Job Type]]=tblSalaries[[#Headers],[Analyst]],tblSalaries[[#This Row],[Salary in USD]],"") -> 57000 | W74: =IF(tblSalaries[[#This Row],[Job Type]]=tblSalaries[[#Headers],[Consultant]],tblSalaries[[#This Row],[Salary in USD]],"") ->  | X74: =IF(tblSalaries[[#This Row],[Job Type]]=tblSalaries[[#Headers],[Controller]],tblSalaries[[#This Row],[Salary in USD]],"") ->  | Y74: =IF(tblSalaries[[#This Row],[Job Type]]=tblSalaries[[#Headers],[CXO or Top Mgmt.]],tblSalaries[[#This Row],[clean Salary (in local currency)]],"") ->  | Z74: =IF(tblSalaries[[#This Row],[Job Type]]=tblSalaries[[#Headers],[Engineer]],tblSalaries[[#This Row],[Salary in USD]],"") ->  | AA74: =IF(tblSalaries[[#This Row],[Job Type]]=tblSalaries[[#Headers],[Manager]],tblSalaries[[#This Row],[Salary in USD]],"") ->  | AB74: =IF(tblSalaries[[#This Row],[Job Type]]=tblSalaries[[#Headers],[Misc.]],tblSalaries[[#This Row],[Salary in USD]],"") ->  | AC74: =IF(tblSalaries[[#This Row],[Job Type]]=tblSalaries[[#Headers],[Reporting]],tblSalaries[[#This Row],[Salary in USD]],"") ->  | AD74: =IF(tblSalaries[[#This Row],[Job Type]]=tblSalaries[[#Headers],[Specialist]],tblSalaries[[#This Row],[Salary in USD]],"") -> 
B75: ID0072 | C75: 2012-05-25T22:52:28 | D75: 75000 | E75: 75000 | F75: USD | G75: =tblSalaries[[#This Row],[clean Salary (in local currency)]]*VLOOKUP(tblSalaries[[#This Row],[Currency]],tblXrate[],2,FALSE) -> 75000 | H75: Consumer Research Program Manager | I75: Manager | J75: USA | K75: =VLOOKUP(tblSalaries[[#This Row],[Where do you work]],tblCountries[[Actual]:[Mapping]],2,FALSE) -> USA | L75: All the 8 hours baby, all the 8! | N75: =IF(tblSalaries[[#This Row],[Years of Experience]]="","",IF(tblSalaries[[#This Row],[Years of Experience]]<=2,1,"")) ->  | O75: =IF(tblSalaries[[#This Row],[Years of Experience]]="","",IF(AND(tblSalaries[[#This Row],[Years of Experience]]>2,tblSalaries[[#This Row],[Years of Experience]]<=5),1,"")) ->  | P75: =IF(tblSalaries[[#This Row],[Years of Experience]]="","",IF(AND(tblSalaries[[#This Row],[Years of Experience]]>5,tblSalaries[[#This Row],[Years of Experience]]<=10),1,"")) ->  | Q75: =IF(tblSalaries[[#This Row],[Years of Experience]]="","",IF(AND(tblSalaries[[#This Row],[Years of Experience]]>10,tblSalaries[[#This Row],[Years of Experience]]<=15),1,"")) ->  | R75: =IF(tblSalaries[[#This Row],[Years of Experience]]="","",IF(AND(tblSalaries[[#This Row],[Years of Experience]]>16,tblSalaries[[#This Row],[Years of Experience]]<=20),1,"")) ->  | S75: =IF(tblSalaries[[#This Row],[Years of Experience]]="","",IF(tblSalaries[[#This Row],[Years of Experience]]>20,1,"")) ->  | T75: =IF(tblSalaries[[#This Row],[0-2 Years]]=1,tblSalaries[[#Headers],[0-2 Years]],IF(tblSalaries[[#This Row],[3-5 Years]]=1,tblSalaries[[#Headers],[3-5 Years]],IF(tblSalaries[[#This Row],[5-10 Years]]=1,tblSalaries[[#Headers],[5-10 Years]],IF(tblSalaries[[#This Row],[11-15 Years]]=1,tblSalaries[[#Headers],[11-15 Years]],IF(tblSalaries[[#This Row],[16-20 Years]]=1,tblSalaries[[#Headers],[16-20 Years]],IF(tblSalaries[[#This Row],[20+ Years]]=1,tblSalaries[[#Headers],[20+ Years]],"")))))) ->  | U75: =IF(tblSalaries[[#This Row],[Job Type]]=tblSalaries[[#Headers],[Accountant]],tblSalaries[[#This Row],[Salary in USD]],"") ->  | V75: =IF(tblSalaries[[#This Row],[Job Type]]=tblSalaries[[#Headers],[Analyst]],tblSalaries[[#This Row],[Salary in USD]],"") ->  | W75: =IF(tblSalaries[[#This Row],[Job Type]]=tblSalaries[[#Headers],[Consultant]],tblSalaries[[#This Row],[Salary in USD]],"") ->  | X75: =IF(tblSalaries[[#This Row],[Job Type]]=tblSalaries[[#Headers],[Controller]],tblSalaries[[#This Row],[Salary in USD]],"") ->  | Y75: =IF(tblSalaries[[#This Row],[Job Type]]=tblSalaries[[#Headers],[CXO or Top Mgmt.]],tblSalaries[[#This Row],[clean Salary (in local currency)]],"") ->  | Z75: =IF(tblSalaries[[#This Row],[Job Type]]=tblSalaries[[#Headers],[Engineer]],tblSalaries[[#This Row],[Salary in USD]],"") ->  | AA75: =IF(tblSalaries[[#This Row],[Job Type]]=tblSalaries[[#Headers],[Manager]],tblSalaries[[#This Row],[Salary in USD]],"") -> 75000 | AB75: =IF(tblSalaries[[#This Row],[Job Type]]=tblSalaries[[#Headers],[Misc.]],tblSalaries[[#This Row],[Salary in USD]],"") ->  | AC75: =IF(tblSalaries[[#This Row],[Job Type]]=tblSalaries[[#Headers],[Reporting]],tblSalaries[[#This Row],[Salary in USD]],"") ->  | AD75: =IF(tblSalaries[[#This Row],[Job Type]]=tblSalaries[[#Headers],[Specialist]],tblSalaries[[#This Row],[Salary in USD]],"") -> 
B76: ID0073 | C76: 2012-05-25T22:59:05 | D76: $AUD100000 | E76: 100000 | F76: AUD | G76: =tblSalaries[[#This Row],[clean Salary (in local currency)]]*VLOOKUP(tblSalaries[[#This Row],[Currency]],tblXrate[],2,FALSE) -> 101990.9656 | H76: technical trainer | I76: Manager | J76: Australia | K76: =VLOOKUP(tblSalaries[[#This Row],[Where do you work]],tblCountries[[Actual]:[Mapping]],2,FALSE) -> Australia | L76: 4 to 6 hours a day | N76: =IF(tblSalaries[[#This Row],[Years of Experience]]="","",IF(tblSalaries[[#This Row],[Years of Experience]]<=2,1,"")) ->  | O76: =IF(tblSalaries[[#This Row],[Years of Experience]]="","",IF(AND(tblSalaries[[#This Row],[Years of Experience]]>2,tblSalaries[[#This Row],[Years of Experience]]<=5),1,"")) ->  | P76: =IF(tblSalaries[[#This Row],[Years of Experience]]="","",IF(AND(tblSalaries[[#This Row],[Years of Experience]]>5,tblSalaries[[#This Row],[Years of Experience]]<=10),1,"")) ->  | Q76: =IF(tblSalaries[[#This Row],[Years of Experience]]="","",IF(AND(tblSalaries[[#This Row],[Years of Experience]]>10,tblSalaries[[#This Row],[Years of Experience]]<=15),1,"")) ->  | R76: =IF(tblSalaries[[#This Row],[Years of Experience]]="","",IF(AND(tblSalaries[[#This Row],[Years of Experience]]>16,tblSalaries[[#This Row],[Years of Experience]]<=20),1,"")) ->  | S76: =IF(tblSalaries[[#This Row],[Years of Experience]]="","",IF(tblSalaries[[#This Row],[Years of Experience]]>20,1,"")) ->  | T76: =IF(tblSalaries[[#This Row],[0-2 Years]]=1,tblSalaries[[#Headers],[0-2 Years]],IF(tblSalaries[[#This Row],[3-5 Years]]=1,tblSalaries[[#Headers],[3-5 Years]],IF(tblSalaries[[#This Row],[5-10 Years]]=1,tblSalaries[[#Headers],[5-10 Years]],IF(tblSalaries[[#This Row],[11-15 Years]]=1,tblSalaries[[#Headers],[11-15 Years]],IF(tblSalaries[[#This Row],[16-20 Years]]=1,tblSalaries[[#Headers],[16-20 Years]],IF(tblSalaries[[#This Row],[20+ Years]]=1,tblSalaries[[#Headers],[20+ Years]],"")))))) ->  | U76: =IF(tblSalaries[[#This Row],[Job Type]]=tblSalaries[[#Headers],[Accountant]],tblSalaries[[#This Row],[Salary in USD]],"") ->  | V76: =IF(tblSalaries[[#This Row],[Job Type]]=tblSalaries[[#Headers],[Analyst]],tblSalaries[[#This Row],[Salary in USD]],"") ->  | W76: =IF(tblSalaries[[#This Row],[Job Type]]=tblSalaries[[#Headers],[Consultant]],tblSalaries[[#This Row],[Salary in USD]],"") ->  | X76: =IF(tblSalaries[[#This Row],[Job Type]]=tblSalaries[[#Headers],[Controller]],tblSalaries[[#This Row],[Salary in USD]],"") ->  | Y76: =IF(tblSalaries[[#This Row],[Job Type]]=tblSalaries[[#Headers],[CXO or Top Mgmt.]],tblSalaries[[#This Row],[clean Salary (in local currency)]],"") ->  | Z76: =IF(tblSalaries[[#This Row],[Job Type]]=tblSalaries[[#Headers],[Engineer]],tblSalaries[[#This Row],[Salary in USD]],"") ->  | AA76: =IF(tblSalaries[[#This Row],[Job Type]]=tblSalaries[[#Headers],[Manager]],tblSalaries[[#This Row],[Salary in USD]],"") -> 101990.9656 | AB76: =IF(tblSalaries[[#This Row],[Job Type]]=tblSalaries[[#Headers],[Misc.]],tblSalaries[[#This Row],[Salary in USD]],"") ->  | AC76: =IF(tblSalaries[[#This Row],[Job Type]]=tblSalaries[[#Headers],[Reporting]],tblSalaries[[#This Row],[Salary in USD]],"") ->  | AD76: =IF(tblSalaries[[#This Row],[Job Type]]=tblSalaries[[#Headers],[Specialist]],tblSalaries[[#This Row],[Salary in USD]],"") -> 
B77: ID0074 | C77: 2012-05-25T23:01:20 | D77: 2785 | E77: 33420 | F77: USD | G77: =tblSalaries[[#This Row],[clean Salary (in local currency)]]*VLOOKUP(tblSalaries[[#This Row],[Currency]],tblXrate[],2,FALSE) -> 33420 | H77: Process Flow Coordinator | I77: Manager | J77: United Arab Emirates | K77: =VLOOKUP(tblSalaries[[#This Row],[Where do you work]],tblCountries[[Actual]:[Mapping]],2,FALSE) -> UAE | L77: All the 8 hours baby, all the 8! | N77: =IF(tblSalaries[[#This Row],[Years of Experience]]="","",IF(tblSalaries[[#This Row],[Years of Experience]]<=2,1,"")) ->  | O77: =IF(tblSalaries[[#This Row],[Years of Experience]]="","",IF(AND(tblSalaries[[#This Row],[Years of Experience]]>2,tblSalaries[[#This Row],[Years of Experience]]<=5),1,"")) ->  | P77: =IF(tblSalaries[[#This Row],[Years of Experience]]="","",IF(AND(tblSalaries[[#This Row],[Years of Experience]]>5,tblSalaries[[#This Row],[Years of Experience]]<=10),1,"")) ->  | Q77: =IF(tblSalaries[[#This Row],[Years of Experience]]="","",IF(AND(tblSalaries[[#This Row],[Years of Experience]]>10,tblSalaries[[#This Row],[Years of Experience]]<=15),1,"")) ->  | R77: =IF(tblSalaries[[#This Row],[Years of Experience]]="","",IF(AND(tblSalaries[[#This Row],[Years of Experience]]>16,tblSalaries[[#This Row],[Years of Experience]]<=20),1,"")) ->  | S77: =IF(tblSalaries[[#This Row],[Years of Experience]]="","",IF(tblSalaries[[#This Row],[Years of Experience]]>20,1,"")) ->  | T77: =IF(tblSalaries[[#This Row],[0-2 Years]]=1,tblSalaries[[#Headers],[0-2 Years]],IF(tblSalaries[[#This Row],[3-5 Years]]=1,tblSalaries[[#Headers],[3-5 Years]],IF(tblSalaries[[#This Row],[5-10 Years]]=1,tblSalaries[[#Headers],[5-10 Years]],IF(tblSalaries[[#This Row],[11-15 Years]]=1,tblSalaries[[#Headers],[11-15 Years]],IF(tblSalaries[[#This Row],[16-20 Years]]=1,tblSalaries[[#Headers],[16-20 Years]],IF(tblSalaries[[#This Row],[20+ Years]]=1,tblSalaries[[#Headers],[20+ Years]],"")))))) ->  | U77: =IF(tblSalaries[[#This Row],[Job Type]]=tblSalaries[[#Headers],[Accountant]],tblSalaries[[#This Row],[Salary in USD]],"") ->  | V77: =IF(tblSalaries[[#This Row],[Job Type]]=tblSalaries[[#Headers],[Analyst]],tblSalaries[[#This Row],[Salary in USD]],"") ->  | W77: =IF(tblSalaries[[#This Row],[Job Type]]=tblSalaries[[#Headers],[Consultant]],tblSalaries[[#This Row],[Salary in USD]],"") ->  | X77: =IF(tblSalaries[[#This Row],[Job Type]]=tblSalaries[[#Headers],[Controller]],tblSalaries[[#This Row],[Salary in USD]],"") ->  | Y77: =IF(tblSalaries[[#This Row],[Job Type]]=tblSalaries[[#Headers],[CXO or Top Mgmt.]],tblSalaries[[#This Row],[clean Salary (in local currency)]],"") ->  | Z77: =IF(tblSalaries[[#This Row],[Job Type]]=tblSalaries[[#Headers],[Engineer]],tblSalaries[[#This Row],[Salary in USD]],"") ->  | AA77: =IF(tblSalaries[[#This Row],[Job Type]]=tblSalaries[[#Headers],[Manager]],tblSalaries[[#This Row],[Salary in USD]],"") -> 33420 | AB77: =IF(tblSalaries[[#This Row],[Job Type]]=tblSalaries[[#Headers],[Misc.]],tblSalaries[[#This Row],[Salary in USD]],"") ->  | AC77: =IF(tblSalaries[[#This Row],[Job Type]]=tblSalaries[[#Headers],[Reporting]],tblSalaries[[#This Row],[Salary in USD]],"") ->  | AD77: =IF(tblSalaries[[#This Row],[Job Type]]=tblSalaries[[#Headers],[Specialist]],tblSalaries[[#This Row],[Salary in USD]],"") -> 
B78: ID0075 | C78: 2012-05-25T23:03:00 | D78: 59450 | E78: 59450 | F78: CAD | G78: =tblSalaries[[#This Row],[clean Salary (in local currency)]]*VLOOKUP(tblSalaries[[#This Row],[Currency]],tblXrate[],2,FALSE) -> 58460.84254 | H78: Process Improvement Specialist | I78: Specialist | J78: Canada | K78: =VLOOKUP(tblSalaries[[#This Row],[Where do you work]],tblCountries[[Actual]:[Mapping]],2,FALSE) -> Canada | L78: All the 8 hours baby, all the 8! | N78: =IF(tblSalaries[[#This Row],[Years of Experience]]="","",IF(tblSalaries[[#This Row],[Years of Experience]]<=2,1,"")) ->  | O78: =IF(tblSalaries[[#This Row],[Years of Experience]]="","",IF(AND(tblSalaries[[#This Row],[Years of Experience]]>2,tblSalaries[[#This Row],[Years of Experience]]<=5),1,"")) ->  | P78: =IF(tblSalaries[[#This Row],[Years of Experience]]="","",IF(AND(tblSalaries[[#This Row],[Years of Experience]]>5,tblSalaries[[#This Row],[Years of Experience]]<=10),1,"")) ->  | Q78: =IF(tblSalaries[[#This Row],[Years of Experience]]="","",IF(AND(tblSalaries[[#This Row],[Years of Experience]]>10,tblSalaries[[#This Row],[Years of Experience]]<=15),1,"")) ->  | R78: =IF(tblSalaries[[#This Row],[Years of Experience]]="","",IF(AND(tblSalaries[[#This Row],[Years of Experience]]>16,tblSalaries[[#This Row],[Years of Experience]]<=20),1,"")) ->  | S78: =IF(tblSalaries[[#This Row],[Years of Experience]]="","",IF(tblSalaries[[#This Row],[Years of Experience]]>20,1,"")) ->  | T78: =IF(tblSalaries[[#This Row],[0-2 Years]]=1,tblSalaries[[#Headers],[0-2 Years]],IF(tblSalaries[[#This Row],[3-5 Years]]=1,tblSalaries[[#Headers],[3-5 Years]],IF(tblSalaries[[#This Row],[5-10 Years]]=1,tblSalaries[[#Headers],[5-10 Years]],IF(tblSalaries[[#This Row],[11-15 Years]]=1,tblSalaries[[#Headers],[11-15 Years]],IF(tblSalaries[[#This Row],[16-20 Years]]=1,tblSalaries[[#Headers],[16-20 Years]],IF(tblSalaries[[#This Row],[20+ Years]]=1,tblSalaries[[#Headers],[20+ Years]],"")))))) ->  | U78: =IF(tblSalaries[[#This Row],[Job Type]]=tblSalaries[[#Headers],[Accountant]],tblSalaries[[#This Row],[Salary in USD]],"") ->  | V78: =IF(tblSalaries[[#This Row],[Job Type]]=tblSalaries[[#Headers],[Analyst]],tblSalaries[[#This Row],[Salary in USD]],"") ->  | W78: =IF(tblSalaries[[#This Row],[Job Type]]=tblSalaries[[#Headers],[Consultant]],tblSalaries[[#This Row],[Salary in USD]],"") ->  | X78: =IF(tblSalaries[[#This Row],[Job Type]]=tblSalaries[[#Headers],[Controller]],tblSalaries[[#This Row],[Salary in USD]],"") ->  | Y78: =IF(tblSalaries[[#This Row],[Job Type]]=tblSalaries[[#Headers],[CXO or Top Mgmt.]],tblSalaries[[#This Row],[clean Salary (in local currency)]],"") ->  | Z78: =IF(tblSalaries[[#This Row],[Job Type]]=tblSalaries[[#Headers],[Engineer]],tblSalaries[[#This Row],[Salary in USD]],"") ->  | AA78: =IF(tblSalaries[[#This Row],[Job Type]]=tblSalaries[[#Headers],[Manager]],tblSalaries[[#This Row],[Salary in USD]],"") ->  | AB78: =IF(tblSalaries[[#This Row],[Job Type]]=tblSalaries[[#Headers],[Misc.]],tblSalaries[[#This Row],[Salary in USD]],"") ->  | AC78: =IF(tblSalaries[[#This Row],[Job Type]]=tblSalaries[[#Headers],[Reporting]],tblSalaries[[#This Row],[Salary in USD]],"") ->  | AD78: =IF(tblSalaries[[#This Row],[Job Type]]=tblSalaries[[#Headers],[Specialist]],tblSalaries[[#This Row],[Salary in USD]],"") -> 58460.84254
B79: ID0076 | C79: 2012-05-25T23:12:29 | D79: 15000 | E79: 15000 | F79: USD | G79: =tblSalaries[[#This Row],[clean Salary (in local currency)]]*VLOOKUP(tblSalaries[[#This Row],[Currency]],tblXrate[],2,FALSE) -> 15000 | H79: Excel Programmer Consultant | I79: Consultant | J79: USA | K79: =VLOOKUP(tblSalaries[[#This Row],[Where do you work]],tblCountries[[Actual]:[Mapping]],2,FALSE) -> USA | L79: All the 8 hours baby, all the 8! | N79: =IF(tblSalaries[[#This Row],[Years of Experience]]="","",IF(tblSalaries[[#This Row],[Years of Experience]]<=2,1,"")) ->  | O79: =IF(tblSalaries[[#This Row],[Years of Experience]]="","",IF(AND(tblSalaries[[#This Row],[Years of Experience]]>2,tblSalaries[[#This Row],[Years of Experience]]<=5),1,"")) ->  | P79: =IF(tblSalaries[[#This Row],[Years of Experience]]="","",IF(AND(tblSalaries[[#This Row],[Years of Experience]]>5,tblSalaries[[#This Row],[Years of Experience]]<=10),1,"")) ->  | Q79: =IF(tblSalaries[[#This Row],[Years of Experience]]="","",IF(AND(tblSalaries[[#This Row],[Years of Experience]]>10,tblSalaries[[#This Row],[Years of Experience]]<=15),1,"")) ->  | R79: =IF(tblSalaries[[#This Row],[Years of Experience]]="","",IF(AND(tblSalaries[[#This Row],[Years of Experience]]>16,tblSalaries[[#This Row],[Years of Experience]]<=20),1,"")) ->  | S79: =IF(tblSalaries[[#This Row],[Years of Experience]]="","",IF(tblSalaries[[#This Row],[Years of Experience]]>20,1,"")) ->  | T79: =IF(tblSalaries[[#This Row],[0-2 Years]]=1,tblSalaries[[#Headers],[0-2 Years]],IF(tblSalaries[[#This Row],[3-5 Years]]=1,tblSalaries[[#Headers],[3-5 Years]],IF(tblSalaries[[#This Row],[5-10 Years]]=1,tblSalaries[[#Headers],[5-10 Years]],IF(tblSalaries[[#This Row],[11-15 Years]]=1,tblSalaries[[#Headers],[11-15 Years]],IF(tblSalaries[[#This Row],[16-20 Years]]=1,tblSalaries[[#Headers],[16-20 Years]],IF(tblSalaries[[#This Row],[20+ Years]]=1,tblSalaries[[#Headers],[20+ Years]],"")))))) ->  | U79: =IF(tblSalaries[[#This Row],[Job Type]]=tblSalaries[[#Headers],[Accountant]],tblSalaries[[#This Row],[Salary in USD]],"") ->  | V79: =IF(tblSalaries[[#This Row],[Job Type]]=tblSalaries[[#Headers],[Analyst]],tblSalaries[[#This Row],[Salary in USD]],"") ->  | W79: =IF(tblSalaries[[#This Row],[Job Type]]=tblSalaries[[#Headers],[Consultant]],tblSalaries[[#This Row],[Salary in USD]],"") -> 15000 | X79: =IF(tblSalaries[[#This Row],[Job Type]]=tblSalaries[[#Headers],[Controller]],tblSalaries[[#This Row],[Salary in USD]],"") ->  | Y79: =IF(tblSalaries[[#This Row],[Job Type]]=tblSalaries[[#Headers],[CXO or Top Mgmt.]],tblSalaries[[#This Row],[clean Salary (in local currency)]],"") ->  | Z79: =IF(tblSalaries[[#This Row],[Job Type]]=tblSalaries[[#Headers],[Engineer]],tblSalaries[[#This Row],[Salary in USD]],"") ->  | AA79: =IF(tblSalaries[[#This Row],[Job Type]]=tblSalaries[[#Headers],[Manager]],tblSalaries[[#This Row],[Salary in USD]],"") ->  | AB79: =IF(tblSalaries[[#This Row],[Job Type]]=tblSalaries[[#Headers],[Misc.]],tblSalaries[[#This Row],[Salary in USD]],"") ->  | AC79: =IF(tblSalaries[[#This Row],[Job Type]]=tblSalaries[[#Headers],[Reporting]],tblSalaries[[#This Row],[Salary in USD]],"") ->  | AD79: =IF(tblSalaries[[#This Row],[Job Type]]=tblSalaries[[#Headers],[Specialist]],tblSalaries[[#This Row],[Salary in USD]],"") -> 
B80: ID0077 | C80: 2012-05-25T23:15:34 | D80: US $60,000 | E80: 60000 | F80: USD | G80: =tblSalaries[[#This Row],[clean Salary (in local currency)]]*VLOOKUP(tblSalaries[[#This Row],[Currency]],tblXrate[],2,FALSE) -> 60000 | H80: Statistical Analyst | I80: Analyst | J80: Canada | K80: =VLOOKUP(tblSalaries[[#This Row],[Where do you work]],tblCountries[[Actual]:[Mapping]],2,FALSE) -> Canada | L80: 1 or 2 hours a day | N80: =IF(tblSalaries[[#This Row],[Years of Experience]]="","",IF(tblSalaries[[#This Row],[Years of Experience]]<=2,1,"")) ->  | O80: =IF(tblSalaries[[#This Row],[Years of Experience]]="","",IF(AND(tblSalaries[[#This Row],[Years of Experience]]>2,tblSalaries[[#This Row],[Years of Experience]]<=5),1,"")) ->  | P80: =IF(tblSalaries[[#This Row],[Years of Experience]]="","",IF(AND(tblSalaries[[#This Row],[Years of Experience]]>5,tblSalaries[[#This Row],[Years of Experience]]<=10),1,"")) ->  | Q80: =IF(tblSalaries[[#This Row],[Years of Experience]]="","",IF(AND(tblSalaries[[#This Row],[Years of Experience]]>10,tblSalaries[[#This Row],[Years of Experience]]<=15),1,"")) ->  | R80: =IF(tblSalaries[[#This Row],[Years of Experience]]="","",IF(AND(tblSalaries[[#This Row],[Years of Experience]]>16,tblSalaries[[#This Row],[Years of Experience]]<=20),1,"")) ->  | S80: =IF(tblSalaries[[#This Row],[Years of Experience]]="","",IF(tblSalaries[[#This Row],[Years of Experience]]>20,1,"")) ->  | T80: =IF(tblSalaries[[#This Row],[0-2 Years]]=1,tblSalaries[[#Headers],[0-2 Years]],IF(tblSalaries[[#This Row],[3-5 Years]]=1,tblSalaries[[#Headers],[3-5 Years]],IF(tblSalaries[[#This Row],[5-10 Years]]=1,tblSalaries[[#Headers],[5-10 Years]],IF(tblSalaries[[#This Row],[11-15 Years]]=1,tblSalaries[[#Headers],[11-15 Years]],IF(tblSalaries[[#This Row],[16-20 Years]]=1,tblSalaries[[#Headers],[16-20 Years]],IF(tblSalaries[[#This Row],[20+ Years]]=1,tblSalaries[[#Headers],[20+ Years]],"")))))) ->  | U80: =IF(tblSalaries[[#This Row],[Job Type]]=tblSalaries[[#Headers],[Accountant]],tblSalaries[[#This Row],[Salary in USD]],"") ->  | V80: =IF(tblSalaries[[#This Row],[Job Type]]=tblSalaries[[#Headers],[Analyst]],tblSalaries[[#This Row],[Salary in USD]],"") -> 60000 | W80: =IF(tblSalaries[[#This Row],[Job Type]]=tblSalaries[[#Headers],[Consultant]],tblSalaries[[#This Row],[Salary in USD]],"") ->  | X80: =IF(tblSalaries[[#This Row],[Job Type]]=tblSalaries[[#Headers],[Controller]],tblSalaries[[#This Row],[Salary in USD]],"") ->  | Y80: =IF(tblSalaries[[#This Row],[Job Type]]=tblSalaries[[#Headers],[CXO or Top Mgmt.]],tblSalaries[[#This Row],[clean Salary (in local currency)]],"") ->  | Z80: =IF(tblSalaries[[#This Row],[Job Type]]=tblSalaries[[#Headers],[Engineer]],tblSalaries[[#This Row],[Salary in USD]],"") ->  | AA80: =IF(tblSalaries[[#This Row],[Job Type]]=tblSalaries[[#Headers],[Manager]],tblSalaries[[#This Row],[Salary in USD]],"") ->  | AB80: =IF(tblSalaries[[#This Row],[Job Type]]=tblSalaries[[#Headers],[Misc.]],tblSalaries[[#This Row],[Salary in USD]],"") ->  | AC80: =IF(tblSalaries[[#This Row],[Job Type]]=tblSalaries[[#Headers],[Reporting]],tblSalaries[[#This Row],[Salary in USD]],"") ->  | AD80: =IF(tblSalaries[[#This Row],[Job Type]]=tblSalaries[[#Headers],[Specialist]],tblSalaries[[#This Row],[Salary in USD]],"") -> 
B81: ID0078 | C81: 2012-05-25T23:18:45 | D81: 100000 | E81: 100000 | F81: GBP | G81: =tblSalaries[[#This Row],[clean Salary (in local currency)]]*VLOOKUP(tblSalaries[[#This Row],[Currency]],tblXrate[],2,FALSE) -> 157617.8272 | H81: Analyst | I81: Analyst | J81: UK | K81: =VLOOKUP(tblSalaries[[#This Row],[Where do you work]],tblCountries[[Actual]:[Mapping]],2,FALSE) -> UK | L81: 2 to 3 hours per day | N81: =IF(tblSalaries[[#This Row],[Years of Experience]]="","",IF(tblSalaries[[#This Row],[Years of Experience]]<=2,1,"")) ->  | O81: =IF(tblSalaries[[#This Row],[Years of Experience]]="","",IF(AND(tblSalaries[[#This Row],[Years of Experience]]>2,tblSalaries[[#This Row],[Years of Experience]]<=5),1,"")) ->  | P81: =IF(tblSalaries[[#This Row],[Years of Experience]]="","",IF(AND(tblSalaries[[#This Row],[Years of Experience]]>5,tblSalaries[[#This Row],[Years of Experience]]<=10),1,"")) ->  | Q81: =IF(tblSalaries[[#This Row],[Years of Experience]]="","",IF(AND(tblSalaries[[#This Row],[Years of Experience]]>10,tblSalaries[[#This Row],[Years of Experience]]<=15),1,"")) ->  | R81: =IF(tblSalaries[[#This Row],[Years of Experience]]="","",IF(AND(tblSalaries[[#This Row],[Years of Experience]]>16,tblSalaries[[#This Row],[Years of Experience]]<=20),1,"")) ->  | S81: =IF(tblSalaries[[#This Row],[Years of Experience]]="","",IF(tblSalaries[[#This Row],[Years of Experience]]>20,1,"")) ->  | T81: =IF(tblSalaries[[#This Row],[0-2 Years]]=1,tblSalaries[[#Headers],[0-2 Years]],IF(tblSalaries[[#This Row],[3-5 Years]]=1,tblSalaries[[#Headers],[3-5 Years]],IF(tblSalaries[[#This Row],[5-10 Years]]=1,tblSalaries[[#Headers],[5-10 Years]],IF(tblSalaries[[#This Row],[11-15 Years]]=1,tblSalaries[[#Headers],[11-15 Years]],IF(tblSalaries[[#This Row],[16-20 Years]]=1,tblSalaries[[#Headers],[16-20 Years]],IF(tblSalaries[[#This Row],[20+ Years]]=1,tblSalaries[[#Headers],[20+ Years]],"")))))) ->  | U81: =IF(tblSalaries[[#This Row],[Job Type]]=tblSalaries[[#Headers],[Accountant]],tblSalaries[[#This Row],[Salary in USD]],"") ->  | V81: =IF(tblSalaries[[#This Row],[Job Type]]=tblSalaries[[#Headers],[Analyst]],tblSalaries[[#This Row],[Salary in USD]],"") -> 157617.8272 | W81: =IF(tblSalaries[[#This Row],[Job Type]]=tblSalaries[[#Headers],[Consultant]],tblSalaries[[#This Row],[Salary in USD]],"") ->  | X81: =IF(tblSalaries[[#This Row],[Job Type]]=tblSalaries[[#Headers],[Controller]],tblSalaries[[#This Row],[Salary in USD]],"") ->  | Y81: =IF(tblSalaries[[#This Row],[Job Type]]=tblSalaries[[#Headers],[CXO or Top Mgmt.]],tblSalaries[[#This Row],[clean Salary (in local currency)]],"") ->  | Z81: =IF(tblSalaries[[#This Row],[Job Type]]=tblSalaries[[#Headers],[Engineer]],tblSalaries[[#This Row],[Salary in USD]],"") ->  | AA81: =IF(tblSalaries[[#This Row],[Job Type]]=tblSalaries[[#Headers],[Manager]],tblSalaries[[#This Row],[Salary in USD]],"") ->  | AB81: =IF(tblSalaries[[#This Row],[Job Type]]=tblSalaries[[#Headers],[Misc.]],tblSalaries[[#This Row],[Salary in USD]],"") ->  | AC81: =IF(tblSalaries[[#This Row],[Job Type]]=tblSalaries[[#Headers],[Reporting]],tblSalaries[[#This Row],[Salary in USD]],"") ->  | AD81: =IF(tblSalaries[[#This Row],[Job Type]]=tblSalaries[[#Headers],[Specialist]],tblSalaries[[#This Row],[Salary in USD]],"") -> 
B82: ID0079 | C82: 2012-05-25T23:20:46 | D82: Us$ 18000 | E82: 18000 | F82: USD | G82: =tblSalaries[[#This Row],[clean Salary (in local currency)]]*VLOOKUP(tblSalaries[[#This Row],[Currency]],tblXrate[],2,FALSE) -> 18000 | H82: Operational Analyst | I82: Analyst | J82: Saudi Arabia | K82: =VLOOKUP(tblSalaries[[#This Row],[Where do you work]],tblCountries[[Actual]:[Mapping]],2,FALSE) -> Saudi Arabia | L82: All the 8 hours baby, all the 8! | N82: =IF(tblSalaries[[#This Row],[Years of Experience]]="","",IF(tblSalaries[[#This Row],[Years of Experience]]<=2,1,"")) ->  | O82: =IF(tblSalaries[[#This Row],[Years of Experience]]="","",IF(AND(tblSalaries[[#This Row],[Years of Experience]]>2,tblSalaries[[#This Row],[Years of Experience]]<=5),1,"")) ->  | P82: =IF(tblSalaries[[#This Row],[Years of Experience]]="","",IF(AND(tblSalaries[[#This Row],[Years of Experience]]>5,tblSalaries[[#This Row],[Years of Experience]]<=10),1,"")) ->  | Q82: =IF(tblSalaries[[#This Row],[Years of Experience]]="","",IF(AND(tblSalaries[[#This Row],[Years of Experience]]>10,tblSalaries[[#This Row],[Years of Experience]]<=15),1,"")) ->  | R82: =IF(tblSalaries[[#This Row],[Years of Experience]]="","",IF(AND(tblSalaries[[#This Row],[Years of Experience]]>16,tblSalaries[[#This Row],[Years of Experience]]<=20),1,"")) ->  | S82: =IF(tblSalaries[[#This Row],[Years of Experience]]="","",IF(tblSalaries[[#This Row],[Years of Experience]]>20,1,"")) ->  | T82: =IF(tblSalaries[[#This Row],[0-2 Years]]=1,tblSalaries[[#Headers],[0-2 Years]],IF(tblSalaries[[#This Row],[3-5 Years]]=1,tblSalaries[[#Headers],[3-5 Years]],IF(tblSalaries[[#This Row],[5-10 Years]]=1,tblSalaries[[#Headers],[5-10 Years]],IF(tblSalaries[[#This Row],[11-15 Years]]=1,tblSalaries[[#Headers],[11-15 Years]],IF(tblSalaries[[#This Row],[16-20 Years]]=1,tblSalaries[[#Headers],[16-20 Years]],IF(tblSalaries[[#This Row],[20+ Years]]=1,tblSalaries[[#Headers],[20+ Years]],"")))))) ->  | U82: =IF(tblSalaries[[#This Row],[Job Type]]=tblSalaries[[#Headers],[Accountant]],tblSalaries[[#This Row],[Salary in USD]],"") ->  | V82: =IF(tblSalaries[[#This Row],[Job Type]]=tblSalaries[[#Headers],[Analyst]],tblSalaries[[#This Row],[Salary in USD]],"") -> 18000 | W82: =IF(tblSalaries[[#This Row],[Job Type]]=tblSalaries[[#Headers],[Consultant]],tblSalaries[[#This Row],[Salary in USD]],"") ->  | X82: =IF(tblSalaries[[#This Row],[Job Type]]=tblSalaries[[#Headers],[Controller]],tblSalaries[[#This Row],[Salary in USD]],"") ->  | Y82: =IF(tblSalaries[[#This Row],[Job Type]]=tblSalaries[[#Headers],[CXO or Top Mgmt.]],tblSalaries[[#This Row],[clean Salary (in local currency)]],"") ->  | Z82: =IF(tblSalaries[[#This Row],[Job Type]]=tblSalaries[[#Headers],[Engineer]],tblSalaries[[#This Row],[Salary in USD]],"") ->  | AA82: =IF(tblSalaries[[#This Row],[Job Type]]=tblSalaries[[#Headers],[Manager]],tblSalaries[[#This Row],[Salary in USD]],"") ->  | AB82: =IF(tblSalaries[[#This Row],[Job Type]]=tblSalaries[[#Headers],[Misc.]],tblSalaries[[#This Row],[Salary in USD]],"") ->  | AC82: =IF(tblSalaries[[#This Row],[Job Type]]=tblSalaries[[#Headers],[Reporting]],tblSalaries[[#This Row],[Salary in USD]],"") ->  | AD82: =IF(tblSalaries[[#This Row],[Job Type]]=tblSalaries[[#Headers],[Specialist]],tblSalaries[[#This Row],[Salary in USD]],"") -> 
B83: ID0080 | C83: 2012-05-25T23:31:16 | D83: 50000 | E83: 50000 | F83: USD | G83: =tblSalaries[[#This Row],[clean Salary (in local currency)]]*VLOOKUP(tblSalaries[[#This Row],[Currency]],tblXrate[],2,FALSE) -> 50000 | H83: Exceler | I83: Manager | J83: USA | K83: =VLOOKUP(tblSalaries[[#This Row],[Where do you work]],tblCountries[[Actual]:[Mapping]],2,FALSE) -> USA | L83: 2 to 3 hours per day | N83: =IF(tblSalaries[[#This Row],[Years of Experience]]="","",IF(tblSalaries[[#This Row],[Years of Experience]]<=2,1,"")) ->  | O83: =IF(tblSalaries[[#This Row],[Years of Experience]]="","",IF(AND(tblSalaries[[#This Row],[Years of Experience]]>2,tblSalaries[[#This Row],[Years of Experience]]<=5),1,"")) ->  | P83: =IF(tblSalaries[[#This Row],[Years of Experience]]="","",IF(AND(tblSalaries[[#This Row],[Years of Experience]]>5,tblSalaries[[#This Row],[Years of Experience]]<=10),1,"")) ->  | Q83: =IF(tblSalaries[[#This Row],[Years of Experience]]="","",IF(AND(tblSalaries[[#This Row],[Years of Experience]]>10,tblSalaries[[#This Row],[Years of Experience]]<=15),1,"")) ->  | R83: =IF(tblSalaries[[#This Row],[Years of Experience]]="","",IF(AND(tblSalaries[[#This Row],[Years of Experience]]>16,tblSalaries[[#This Row],[Years of Experience]]<=20),1,"")) ->  | S83: =IF(tblSalaries[[#This Row],[Years of Experience]]="","",IF(tblSalaries[[#This Row],[Years of Experience]]>20,1,"")) ->  | T83: =IF(tblSalaries[[#This Row],[0-2 Years]]=1,tblSalaries[[#Headers],[0-2 Years]],IF(tblSalaries[[#This Row],[3-5 Years]]=1,tblSalaries[[#Headers],[3-5 Years]],IF(tblSalaries[[#This Row],[5-10 Years]]=1,tblSalaries[[#Headers],[5-10 Years]],IF(tblSalaries[[#This Row],[11-15 Years]]=1,tblSalaries[[#Headers],[11-15 Years]],IF(tblSalaries[[#This Row],[16-20 Years]]=1,tblSalaries[[#Headers],[16-20 Years]],IF(tblSalaries[[#This Row],[20+ Years]]=1,tblSalaries[[#Headers],[20+ Years]],"")))))) ->  | U83: =IF(tblSalaries[[#This Row],[Job Type]]=tblSalaries[[#Headers],[Accountant]],tblSalaries[[#This Row],[Salary in USD]],"") ->  | V83: =IF(tblSalaries[[#This Row],[Job Type]]=tblSalaries[[#Headers],[Analyst]],tblSalaries[[#This Row],[Salary in USD]],"") ->  | W83: =IF(tblSalaries[[#This Row],[Job Type]]=tblSalaries[[#Headers],[Consultant]],tblSalaries[[#This Row],[Salary in USD]],"") ->  | X83: =IF(tblSalaries[[#This Row],[Job Type]]=tblSalaries[[#Headers],[Controller]],tblSalaries[[#This Row],[Salary in USD]],"") ->  | Y83: =IF(tblSalaries[[#This Row],[Job Type]]=tblSalaries[[#Headers],[CXO or Top Mgmt.]],tblSalaries[[#This Row],[clean Salary (in local currency)]],"") ->  | Z83: =IF(tblSalaries[[#This Row],[Job Type]]=tblSalaries[[#Headers],[Engineer]],tblSalaries[[#This Row],[Salary in USD]],"") ->  | AA83: =IF(tblSalaries[[#This Row],[Job Type]]=tblSalaries[[#Headers],[Manager]],tblSalaries[[#This Row],[Salary in USD]],"") -> 50000 | AB83: =IF(tblSalaries[[#This Row],[Job Type]]=tblSalaries[[#Headers],[Misc.]],tblSalaries[[#This Row],[Salary in USD]],"") ->  | AC83: =IF(tblSalaries[[#This Row],[Job Type]]=tblSalaries[[#Headers],[Reporting]],tblSalaries[[#This Row],[Salary in USD]],"") ->  | AD83: =IF(tblSalaries[[#This Row],[Job Type]]=tblSalaries[[#Headers],[Specialist]],tblSalaries[[#This Row],[Salary in USD]],"") -> 
B84: ID0081 | C84: 2012-05-25T23:33:15 | D84: 26000 | E84: 26000 | F84: USD | G84: =tblSalaries[[#This Row],[clean Salary (in local currency)]]*VLOOKUP(tblSalaries[[#This Row],[Currency]],tblXrate[],2,FALSE) -> 26000 | H84: Marketing Analyst | I84: Analyst | J84: Panama | K84: =VLOOKUP(tblSalaries[[#This Row],[Where do you work]],tblCountries[[Actual]:[Mapping]],2,FALSE) -> Panama | L84: All the 8 hours baby, all the 8! | N84: =IF(tblSalaries[[#This Row],[Years of Experience]]="","",IF(tblSalaries[[#This Row],[Years of Experience]]<=2,1,"")) ->  | O84: =IF(tblSalaries[[#This Row],[Years of Experience]]="","",IF(AND(tblSalaries[[#This Row],[Years of Experience]]>2,tblSalaries[[#This Row],[Years of Experience]]<=5),1,"")) ->  | P84: =IF(tblSalaries[[#This Row],[Years of Experience]]="","",IF(AND(tblSalaries[[#This Row],[Years of Experience]]>5,tblSalaries[[#This Row],[Years of Experience]]<=10),1,"")) ->  | Q84: =IF(tblSalaries[[#This Row],[Years of Experience]]="","",IF(AND(tblSalaries[[#This Row],[Years of Experience]]>10,tblSalaries[[#This Row],[Years of Experience]]<=15),1,"")) ->  | R84: =IF(tblSalaries[[#This Row],[Years of Experience]]="","",IF(AND(tblSalaries[[#This Row],[Years of Experience]]>16,tblSalaries[[#This Row],[Years of Experience]]<=20),1,"")) ->  | S84: =IF(tblSalaries[[#This Row],[Years of Experience]]="","",IF(tblSalaries[[#This Row],[Years of Experience]]>20,1,"")) ->  | T84: =IF(tblSalaries[[#This Row],[0-2 Years]]=1,tblSalaries[[#Headers],[0-2 Years]],IF(tblSalaries[[#This Row],[3-5 Years]]=1,tblSalaries[[#Headers],[3-5 Years]],IF(tblSalaries[[#This Row],[5-10 Years]]=1,tblSalaries[[#Headers],[5-10 Years]],IF(tblSalaries[[#This Row],[11-15 Years]]=1,tblSalaries[[#Headers],[11-15 Years]],IF(tblSalaries[[#This Row],[16-20 Years]]=1,tblSalaries[[#Headers],[16-20 Years]],IF(tblSalaries[[#This Row],[20+ Years]]=1,tblSalaries[[#Headers],[20+ Years]],"")))))) ->  | U84: =IF(tblSalaries[[#This Row],[Job Type]]=tblSalaries[[#Headers],[Accountant]],tblSalaries[[#This Row],[Salary in USD]],"") ->  | V84: =IF(tblSalaries[[#This Row],[Job Type]]=tblSalaries[[#Headers],[Analyst]],tblSalaries[[#This Row],[Salary in USD]],"") -> 26000 | W84: =IF(tblSalaries[[#This Row],[Job Type]]=tblSalaries[[#Headers],[Consultant]],tblSalaries[[#This Row],[Salary in USD]],"") ->  | X84: =IF(tblSalaries[[#This Row],[Job Type]]=tblSalaries[[#Headers],[Controller]],tblSalaries[[#This Row],[Salary in USD]],"") ->  | Y84: =IF(tblSalaries[[#This Row],[Job Type]]=tblSalaries[[#Headers],[CXO or Top Mgmt.]],tblSalaries[[#This Row],[clean Salary (in local currency)]],"") ->  | Z84: =IF(tblSalaries[[#This Row],[Job Type]]=tblSalaries[[#Headers],[Engineer]],tblSalaries[[#This Row],[Salary in USD]],"") ->  | AA84: =IF(tblSalaries[[#This Row],[Job Type]]=tblSalaries[[#Headers],[Manager]],tblSalaries[[#This Row],[Salary in USD]],"") ->  | AB84: =IF(tblSalaries[[#This Row],[Job Type]]=tblSalaries[[#Headers],[Misc.]],tblSalaries[[#This Row],[Salary in USD]],"") ->  | AC84: =IF(tblSalaries[[#This Row],[Job Type]]=tblSalaries[[#Headers],[Reporting]],tblSalaries[[#This Row],[Salary in USD]],"") ->  | AD84: =IF(tblSalaries[[#This Row],[Job Type]]=tblSalaries[[#Headers],[Specialist]],tblSalaries[[#This Row],[Salary in USD]],"") -> 
B85: ID0082 | C85: 2012-05-25T23:49:27 | D85: Â£30000 | E85: 30000 | F85: GBP | G85: =tblSalaries[[#This Row],[clean Salary (in local currency)]]*VLOOKUP(tblSalaries[[#This Row],[Currency]],tblXrate[],2,FALSE) -> 47285.34816 | H85: Database Manager | I85: Manager | J85: UK | K85: =VLOOKUP(tblSalaries[[#This Row],[Where do you work]],tblCountries[[Actual]:[Mapping]],2,FALSE) -> UK | L85: 4 to 6 hours a day | N85: =IF(tblSalaries[[#This Row],[Years of Experience]]="","",IF(tblSalaries[[#This Row],[Years of Experience]]<=2,1,"")) ->  | O85: =IF(tblSalaries[[#This Row],[Years of Experience]]="","",IF(AND(tblSalaries[[#This Row],[Years of Experience]]>2,tblSalaries[[#This Row],[Years of Experience]]<=5),1,"")) ->  | P85: =IF(tblSalaries[[#This Row],[Years of Experience]]="","",IF(AND(tblSalaries[[#This Row],[Years of Experience]]>5,tblSalaries[[#This Row],[Years of Experience]]<=10),1,"")) ->  | Q85: =IF(tblSalaries[[#This Row],[Years of Experience]]="","",IF(AND(tblSalaries[[#This Row],[Years of Experience]]>10,tblSalaries[[#This Row],[Years of Experience]]<=15),1,"")) ->  | R85: =IF(tblSalaries[[#This Row],[Years of Experience]]="","",IF(AND(tblSalaries[[#This Row],[Years of Experience]]>16,tblSalaries[[#This Row],[Years of Experience]]<=20),1,"")) ->  | S85: =IF(tblSalaries[[#This Row],[Years of Experience]]="","",IF(tblSalaries[[#This Row],[Years of Experience]]>20,1,"")) ->  | T85: =IF(tblSalaries[[#This Row],[0-2 Years]]=1,tblSalaries[[#Headers],[0-2 Years]],IF(tblSalaries[[#This Row],[3-5 Years]]=1,tblSalaries[[#Headers],[3-5 Years]],IF(tblSalaries[[#This Row],[5-10 Years]]=1,tblSalaries[[#Headers],[5-10 Years]],IF(tblSalaries[[#This Row],[11-15 Years]]=1,tblSalaries[[#Headers],[11-15 Years]],IF(tblSalaries[[#This Row],[16-20 Years]]=1,tblSalaries[[#Headers],[16-20 Years]],IF(tblSalaries[[#This Row],[20+ Years]]=1,tblSalaries[[#Headers],[20+ Years]],"")))))) ->  | U85: =IF(tblSalaries[[#This Row],[Job Type]]=tblSalaries[[#Headers],[Accountant]],tblSalaries[[#This Row],[Salary in USD]],"") ->  | V85: =IF(tblSalaries[[#This Row],[Job Type]]=tblSalaries[[#Headers],[Analyst]],tblSalaries[[#This Row],[Salary in USD]],"") ->  | W85: =IF(tblSalaries[[#This Row],[Job Type]]=tblSalaries[[#Headers],[Consultant]],tblSalaries[[#This Row],[Salary in USD]],"") ->  | X85: =IF(tblSalaries[[#This Row],[Job Type]]=tblSalaries[[#Headers],[Controller]],tblSalaries[[#This Row],[Salary in USD]],"") ->  | Y85: =IF(tblSalaries[[#This Row],[Job Type]]=tblSalaries[[#Headers],[CXO or Top Mgmt.]],tblSalaries[[#This Row],[clean Salary (in local currency)]],"") ->  | Z85: =IF(tblSalaries[[#This Row],[Job Type]]=tblSalaries[[#Headers],[Engineer]],tblSalaries[[#This Row],[Salary in USD]],"") ->  | AA85: =IF(tblSalaries[[#This Row],[Job Type]]=tblSalaries[[#Headers],[Manager]],tblSalaries[[#This Row],[Salary in USD]],"") -> 47285.34816 | AB85: =IF(tblSalaries[[#This Row],[Job Type]]=tblSalaries[[#Headers],[Misc.]],tblSalaries[[#This Row],[Salary in USD]],"") ->  | AC85: =IF(tblSalaries[[#This Row],[Job Type]]=tblSalaries[[#Headers],[Reporting]],tblSalaries[[#This Row],[Salary in USD]],"") ->  | AD85: =IF(tblSalaries[[#This Row],[Job Type]]=tblSalaries[[#Headers],[Specialist]],tblSalaries[[#This Row],[Salary in USD]],"") -> 
B86: ID0083 | C86: 2012-05-26T00:00:52 | D86: 150000 | E86: 150000 | F86: USD | G86: =tblSalaries[[#This Row],[clean Salary (in local currency)]]*VLOOKUP(tblSalaries[[#This Row],[Currency]],tblXrate[],2,FALSE) -> 150000 | H86: Director | I86: CXO or Top Mgmt. | J86: USA | K86: =VLOOKUP(tblSalaries[[#This Row],[Where do you work]],tblCountries[[Actual]:[Mapping]],2,FALSE) -> USA | L86: All the 8 hours baby, all the 8! | N86: =IF(tblSalaries[[#This Row],[Years of Experience]]="","",IF(tblSalaries[[#This Row],[Years of Experience]]<=2,1,"")) ->  | O86: =IF(tblSalaries[[#This Row],[Years of Experience]]="","",IF(AND(tblSalaries[[#This Row],[Years of Experience]]>2,tblSalaries[[#This Row],[Years of Experience]]<=5),1,"")) ->  | P86: =IF(tblSalaries[[#This Row],[Years of Experience]]="","",IF(AND(tblSalaries[[#This Row],[Years of Experience]]>5,tblSalaries[[#This Row],[Years of Experience]]<=10),1,"")) ->  | Q86: =IF(tblSalaries[[#This Row],[Years of Experience]]="","",IF(AND(tblSalaries[[#This Row],[Years of Experience]]>10,tblSalaries[[#This Row],[Years of Experience]]<=15),1,"")) ->  | R86: =IF(tblSalaries[[#This Row],[Years of Experience]]="","",IF(AND(tblSalaries[[#This Row],[Years of Experience]]>16,tblSalaries[[#This Row],[Years of Experience]]<=20),1,"")) ->  | S86: =IF(tblSalaries[[#This Row],[Years of Experience]]="","",IF(tblSalaries[[#This Row],[Years of Experience]]>20,1,"")) ->  | T86: =IF(tblSalaries[[#This Row],[0-2 Years]]=1,tblSalaries[[#Headers],[0-2 Years]],IF(tblSalaries[[#This Row],[3-5 Years]]=1,tblSalaries[[#Headers],[3-5 Years]],IF(tblSalaries[[#This Row],[5-10 Years]]=1,tblSalaries[[#Headers],[5-10 Years]],IF(tblSalaries[[#This Row],[11-15 Years]]=1,tblSalaries[[#Headers],[11-15 Years]],IF(tblSalaries[[#This Row],[16-20 Years]]=1,tblSalaries[[#Headers],[16-20 Years]],IF(tblSalaries[[#This Row],[20+ Years]]=1,tblSalaries[[#Headers],[20+ Years]],"")))))) ->  | U86: =IF(tblSalaries[[#This Row],[Job Type]]=tblSalaries[[#Headers],[Accountant]],tblSalaries[[#This Row],[Salary in USD]],"") ->  | V86: =IF(tblSalaries[[#This Row],[Job Type]]=tblSalaries[[#Headers],[Analyst]],tblSalaries[[#This Row],[Salary in USD]],"") ->  | W86: =IF(tblSalaries[[#This Row],[Job Type]]=tblSalaries[[#Headers],[Consultant]],tblSalaries[[#This Row],[Salary in USD]],"") ->  | X86: =IF(tblSalaries[[#This Row],[Job Type]]=tblSalaries[[#Headers],[Controller]],tblSalaries[[#This Row],[Salary in USD]],"") ->  | Y86: =IF(tblSalaries[[#This Row],[Job Type]]=tblSalaries[[#Headers],[CXO or Top Mgmt.]],tblSalaries[[#This Row],[clean Salary (in local currency)]],"") -> 150000 | Z86: =IF(tblSalaries[[#This Row],[Job Type]]=tblSalaries[[#Headers],[Engineer]],tblSalaries[[#This Row],[Salary in USD]],"") ->  | AA86: =IF(tblSalaries[[#This Row],[Job Type]]=tblSalaries[[#Headers],[Manager]],tblSalaries[[#This Row],[Salary in USD]],"") ->  | AB86: =IF(tblSalaries[[#This Row],[Job Type]]=tblSalaries[[#Headers],[Misc.]],tblSalaries[[#This Row],[Salary in USD]],"") ->  | AC86: =IF(tblSalaries[[#This Row],[Job Type]]=tblSalaries[[#Headers],[Reporting]],tblSalaries[[#This Row],[Salary in USD]],"") ->  | AD86: =IF(tblSalaries[[#This Row],[Job Type]]=tblSalaries[[#Headers],[Specialist]],tblSalaries[[#This Row],[Salary in USD]],"") -> 
B87: ID0084 | C87: 2012-05-26T00:05:45 | D87: 120000 | E87: 120000 | F87: USD | G87: =tblSalaries[[#This Row],[clean Salary (in local currency)]]*VLOOKUP(tblSalaries[[#This Row],[Currency]],tblXrate[],2,FALSE) -> 120000 | H87: Manager, Forecasts & Budgets | I87: Manager | J87: USA | K87: =VLOOKUP(tblSalaries[[#This Row],[Where do you work]],tblCountries[[Actual]:[Mapping]],2,FALSE) -> USA | L87: 4 to 6 hours a day | N87: =IF(tblSalaries[[#This Row],[Years of Experience]]="","",IF(tblSalaries[[#This Row],[Years of Experience]]<=2,1,"")) ->  | O87: =IF(tblSalaries[[#This Row],[Years of Experience]]="","",IF(AND(tblSalaries[[#This Row],[Years of Experience]]>2,tblSalaries[[#This Row],[Years of Experience]]<=5),1,"")) ->  | P87: =IF(tblSalaries[[#This Row],[Years of Experience]]="","",IF(AND(tblSalaries[[#This Row],[Years of Experience]]>5,tblSalaries[[#This Row],[Years of Experience]]<=10),1,"")) ->  | Q87: =IF(tblSalaries[[#This Row],[Years of Experience]]="","",IF(AND(tblSalaries[[#This Row],[Years of Experience]]>10,tblSalaries[[#This Row],[Years of Experience]]<=15),1,"")) ->  | R87: =IF(tblSalaries[[#This Row],[Years of Experience]]="","",IF(AND(tblSalaries[[#This Row],[Years of Experience]]>16,tblSalaries[[#This Row],[Years of Experience]]<=20),1,"")) ->  | S87: =IF(tblSalaries[[#This Row],[Years of Experience]]="","",IF(tblSalaries[[#This Row],[Years of Experience]]>20,1,"")) ->  | T87: =IF(tblSalaries[[#This Row],[0-2 Years]]=1,tblSalaries[[#Headers],[0-2 Years]],IF(tblSalaries[[#This Row],[3-5 Years]]=1,tblSalaries[[#Headers],[3-5 Years]],IF(tblSalaries[[#This Row],[5-10 Years]]=1,tblSalaries[[#Headers],[5-10 Years]],IF(tblSalaries[[#This Row],[11-15 Years]]=1,tblSalaries[[#Headers],[11-15 Years]],IF(tblSalaries[[#This Row],[16-20 Years]]=1,tblSalaries[[#Headers],[16-20 Years]],IF(tblSalaries[[#This Row],[20+ Years]]=1,tblSalaries[[#Headers],[20+ Years]],"")))))) ->  | U87: =IF(tblSalaries[[#This Row],[Job Type]]=tblSalaries[[#Headers],[Accountant]],tblSalaries[[#This Row],[Salary in USD]],"") ->  | V87: =IF(tblSalaries[[#This Row],[Job Type]]=tblSalaries[[#Headers],[Analyst]],tblSalaries[[#This Row],[Salary in USD]],"") ->  | W87: =IF(tblSalaries[[#This Row],[Job Type]]=tblSalaries[[#Headers],[Consultant]],tblSalaries[[#This Row],[Salary in USD]],"") ->  | X87: =IF(tblSalaries[[#This Row],[Job Type]]=tblSalaries[[#Headers],[Controller]],tblSalaries[[#This Row],[Salary in USD]],"") ->  | Y87: =IF(tblSalaries[[#This Row],[Job Type]]=tblSalaries[[#Headers],[CXO or Top Mgmt.]],tblSalaries[[#This Row],[clean Salary (in local currency)]],"") ->  | Z87: =IF(tblSalaries[[#This Row],[Job Type]]=tblSalaries[[#Headers],[Engineer]],tblSalaries[[#This Row],[Salary in USD]],"") ->  | AA87: =IF(tblSalaries[[#This Row],[Job Type]]=tblSalaries[[#Headers],[Manager]],tblSalaries[[#This Row],[Salary in USD]],"") -> 120000 | AB87: =IF(tblSalaries[[#This Row],[Job Type]]=tblSalaries[[#Headers],[Misc.]],tblSalaries[[#This Row],[Salary in USD]],"") ->  | AC87: =IF(tblSalaries[[#This Row],[Job Type]]=tblSalaries[[#Headers],[Reporting]],tblSalaries[[#This Row],[Salary in USD]],"") ->  | AD87: =IF(tblSalaries[[#This Row],[Job Type]]=tblSalaries[[#Headers],[Specialist]],tblSalaries[[#This Row],[Salary in USD]],"") -> 
B88: ID0085 | C88: 2012-05-26T00:10:17 | D88: 500000 | E88: 500000 | F88: INR | G88: =tblSalaries[[#This Row],[clean Salary (in local currency)]]*VLOOKUP(tblSalaries[[#This Row],[Currency]],tblXrate[],2,FALSE) -> 8903.958344 | H88: Senior Consultant | I88: Consultant | J88: India | K88: =VLOOKUP(tblSalaries[[#This Row],[Where do you work]],tblCountries[[Actual]:[Mapping]],2,FALSE) -> India | L88: All the 8 hours baby, all the 8! | N88: =IF(tblSalaries[[#This Row],[Years of Experience]]="","",IF(tblSalaries[[#This Row],[Years of Experience]]<=2,1,"")) ->  | O88: =IF(tblSalaries[[#This Row],[Years of Experience]]="","",IF(AND(tblSalaries[[#This Row],[Years of Experience]]>2,tblSalaries[[#This Row],[Years of Experience]]<=5),1,"")) ->  | P88: =IF(tblSalaries[[#This Row],[Years of Experience]]="","",IF(AND(tblSalaries[[#This Row],[Years of Experience]]>5,tblSalaries[[#This Row],[Years of Experience]]<=10),1,"")) ->  | Q88: =IF(tblSalaries[[#This Row],[Years of Experience]]="","",IF(AND(tblSalaries[[#This Row],[Years of Experience]]>10,tblSalaries[[#This Row],[Years of Experience]]<=15),1,"")) ->  | R88: =IF(tblSalaries[[#This Row],[Years of Experience]]="","",IF(AND(tblSalaries[[#This Row],[Years of Experience]]>16,tblSalaries[[#This Row],[Years of Experience]]<=20),1,"")) ->  | S88: =IF(tblSalaries[[#This Row],[Years of Experience]]="","",IF(tblSalaries[[#This Row],[Years of Experience]]>20,1,"")) ->  | T88: =IF(tblSalaries[[#This Row],[0-2 Years]]=1,tblSalaries[[#Headers],[0-2 Years]],IF(tblSalaries[[#This Row],[3-5 Years]]=1,tblSalaries[[#Headers],[3-5 Years]],IF(tblSalaries[[#This Row],[5-10 Years]]=1,tblSalaries[[#Headers],[5-10 Years]],IF(tblSalaries[[#This Row],[11-15 Years]]=1,tblSalaries[[#Headers],[11-15 Years]],IF(tblSalaries[[#This Row],[16-20 Years]]=1,tblSalaries[[#Headers],[16-20 Years]],IF(tblSalaries[[#This Row],[20+ Years]]=1,tblSalaries[[#Headers],[20+ Years]],"")))))) ->  | U88: =IF(tblSalaries[[#This Row],[Job Type]]=tblSalaries[[#Headers],[Accountant]],tblSalaries[[#This Row],[Salary in USD]],"") ->  | V88: =IF(tblSalaries[[#This Row],[Job Type]]=tblSalaries[[#Headers],[Analyst]],tblSalaries[[#This Row],[Salary in USD]],"") ->  | W88: =IF(tblSalaries[[#This Row],[Job Type]]=tblSalaries[[#Headers],[Consultant]],tblSalaries[[#This Row],[Salary in USD]],"") -> 8903.958344 | X88: =IF(tblSalaries[[#This Row],[Job Type]]=tblSalaries[[#Headers],[Controller]],tblSalaries[[#This Row],[Salary in USD]],"") ->  | Y88: =IF(tblSalaries[[#This Row],[Job Type]]=tblSalaries[[#Headers],[CXO or Top Mgmt.]],tblSalaries[[#This Row],[clean Salary (in local currency)]],"") ->  | Z88: =IF(tblSalaries[[#This Row],[Job Type]]=tblSalaries[[#Headers],[Engineer]],tblSalaries[[#This Row],[Salary in USD]],"") ->  | AA88: =IF(tblSalaries[[#This Row],[Job Type]]=tblSalaries[[#Headers],[Manager]],tblSalaries[[#This Row],[Salary in USD]],"") ->  | AB88: =IF(tblSalaries[[#This Row],[Job Type]]=tblSalaries[[#Headers],[Misc.]],tblSalaries[[#This Row],[Salary in USD]],"") ->  | AC88: =IF(tblSalaries[[#This Row],[Job Type]]=tblSalaries[[#Headers],[Reporting]],tblSalaries[[#This Row],[Salary in USD]],"") ->  | AD88: =IF(tblSalaries[[#This Row],[Job Type]]=tblSalaries[[#Headers],[Specialist]],tblSalaries[[#This Row],[Salary in USD]],"") -> 
B89: ID0086 | C89: 2012-05-26T00:11:21 | D89: US $ 31330.00 | E89: 31330 | F89: USD | G89: =tblSalaries[[#This Row],[clean Salary (in local currency)]]*VLOOKUP(tblSalaries[[#This Row],[Currency]],tblXrate[],2,FALSE) -> 31330 | H89: VBA Analyst | I89: Analyst | J89: Brazil | K89: =VLOOKUP(tblSalaries[[#This Row],[Where do you work]],tblCountries[[Actual]:[Mapping]],2,FALSE) -> Brazil | L89: All the 8 hours baby, all the 8! | N89: =IF(tblSalaries[[#This Row],[Years of Experience]]="","",IF(tblSalaries[[#This Row],[Years of Experience]]<=2,1,"")) ->  | O89: =IF(tblSalaries[[#This Row],[Years of Experience]]="","",IF(AND(tblSalaries[[#This Row],[Years of Experience]]>2,tblSalaries[[#This Row],[Years of Experience]]<=5),1,"")) ->  | P89: =IF(tblSalaries[[#This Row],[Years of Experience]]="","",IF(AND(tblSalaries[[#This Row],[Years of Experience]]>5,tblSalaries[[#This Row],[Years of Experience]]<=10),1,"")) ->  | Q89: =IF(tblSalaries[[#This Row],[Years of Experience]]="","",IF(AND(tblSalaries[[#This Row],[Years of Experience]]>10,tblSalaries[[#This Row],[Years of Experience]]<=15),1,"")) ->  | R89: =IF(tblSalaries[[#This Row],[Years of Experience]]="","",IF(AND(tblSalaries[[#This Row],[Years of Experience]]>16,tblSalaries[[#This Row],[Years of Experience]]<=20),1,"")) ->  | S89: =IF(tblSalaries[[#This Row],[Years of Experience]]="","",IF(tblSalaries[[#This Row],[Years of Experience]]>20,1,"")) ->  | T89: =IF(tblSalaries[[#This Row],[0-2 Years]]=1,tblSalaries[[#Headers],[0-2 Years]],IF(tblSalaries[[#This Row],[3-5 Years]]=1,tblSalaries[[#Headers],[3-5 Years]],IF(tblSalaries[[#This Row],[5-10 Years]]=1,tblSalaries[[#Headers],[5-10 Years]],IF(tblSalaries[[#This Row],[11-15 Years]]=1,tblSalaries[[#Headers],[11-15 Years]],IF(tblSalaries[[#This Row],[16-20 Years]]=1,tblSalaries[[#Headers],[16-20 Years]],IF(tblSalaries[[#This Row],[20+ Years]]=1,tblSalaries[[#Headers],[20+ Years]],"")))))) ->  | U89: =IF(tblSalaries[[#This Row],[Job Type]]=tblSalaries[[#Headers],[Accountant]],tblSalaries[[#This Row],[Salary in USD]],"") ->  | V89: =IF(tblSalaries[[#This Row],[Job Type]]=tblSalaries[[#Headers],[Analyst]],tblSalaries[[#This Row],[Salary in USD]],"") -> 31330 | W89: =IF(tblSalaries[[#This Row],[Job Type]]=tblSalaries[[#Headers],[Consultant]],tblSalaries[[#This Row],[Salary in USD]],"") ->  | X89: =IF(tblSalaries[[#This Row],[Job Type]]=tblSalaries[[#Headers],[Controller]],tblSalaries[[#This Row],[Salary in USD]],"") ->  | Y89: =IF(tblSalaries[[#This Row],[Job Type]]=tblSalaries[[#Headers],[CXO or Top Mgmt.]],tblSalaries[[#This Row],[clean Salary (in local currency)]],"") ->  | Z89: =IF(tblSalaries[[#This Row],[Job Type]]=tblSalaries[[#Headers],[Engineer]],tblSalaries[[#This Row],[Salary in USD]],"") ->  | AA89: =IF(tblSalaries[[#This Row],[Job Type]]=tblSalaries[[#Headers],[Manager]],tblSalaries[[#This Row],[Salary in USD]],"") ->  | AB89: =IF(tblSalaries[[#This Row],[Job Type]]=tblSalaries[[#Headers],[Misc.]],tblSalaries[[#This Row],[Salary in USD]],"") ->  | AC89: =IF(tblSalaries[[#This Row],[Job Type]]=tblSalaries[[#Headers],[Reporting]],tblSalaries[[#This Row],[Salary in USD]],"") ->  | AD89: =IF(tblSalaries[[#This Row],[Job Type]]=tblSalaries[[#Headers],[Specialist]],tblSalaries[[#This Row],[Salary in USD]],"") -> 
B90: ID0087 | C90: 2012-05-26T00:15:17 | D90: 110000 | E90: 110000 | F90: USD | G90: =tblSalaries[[#This Row],[clean Salary (in local currency)]]*VLOOKUP(tblSalaries[[#This Row],[Currency]],tblXrate[],2,FALSE) -> 110000 | H90: Senior Scheduling Engineer | I90: Engineer | J90: USA | K90: =VLOOKUP(tblSalaries[[#This Row],[Where do you work]],tblCountries[[Actual]:[Mapping]],2,FALSE) -> USA | L90: 2 to 3 hours per day | N90: =IF(tblSalaries[[#This Row],[Years of Experience]]="","",IF(tblSalaries[[#This Row],[Years of Experience]]<=2,1,"")) ->  | O90: =IF(tblSalaries[[#This Row],[Years of Experience]]="","",IF(AND(tblSalaries[[#This Row],[Years of Experience]]>2,tblSalaries[[#This Row],[Years of Experience]]<=5),1,"")) ->  | P90: =IF(tblSalaries[[#This Row],[Years of Experience]]="","",IF(AND(tblSalaries[[#This Row],[Years of Experience]]>5,tblSalaries[[#This Row],[Years of Experience]]<=10),1,"")) ->  | Q90: =IF(tblSalaries[[#This Row],[Years of Experience]]="","",IF(AND(tblSalaries[[#This Row],[Years of Experience]]>10,tblSalaries[[#This Row],[Years of Experience]]<=15),1,"")) ->  | R90: =IF(tblSalaries[[#This Row],[Years of Experience]]="","",IF(AND(tblSalaries[[#This Row],[Years of Experience]]>16,tblSalaries[[#This Row],[Years of Experience]]<=20),1,"")) ->  | S90: =IF(tblSalaries[[#This Row],[Years of Experience]]="","",IF(tblSalaries[[#This Row],[Years of Experience]]>20,1,"")) ->  | T90: =IF(tblSalaries[[#This Row],[0-2 Years]]=1,tblSalaries[[#Headers],[0-2 Years]],IF(tblSalaries[[#This Row],[3-5 Years]]=1,tblSalaries[[#Headers],[3-5 Years]],IF(tblSalaries[[#This Row],[5-10 Years]]=1,tblSalaries[[#Headers],[5-10 Years]],IF(tblSalaries[[#This Row],[11-15 Years]]=1,tblSalaries[[#Headers],[11-15 Years]],IF(tblSalaries[[#This Row],[16-20 Years]]=1,tblSalaries[[#Headers],[16-20 Years]],IF(tblSalaries[[#This Row],[20+ Years]]=1,tblSalaries[[#Headers],[20+ Years]],"")))))) ->  | U90: =IF(tblSalaries[[#This Row],[Job Type]]=tblSalaries[[#Headers],[Accountant]],tblSalaries[[#This Row],[Salary in USD]],"") ->  | V90: =IF(tblSalaries[[#This Row],[Job Type]]=tblSalaries[[#Headers],[Analyst]],tblSalaries[[#This Row],[Salary in USD]],"") ->  | W90: =IF(tblSalaries[[#This Row],[Job Type]]=tblSalaries[[#Headers],[Consultant]],tblSalaries[[#This Row],[Salary in USD]],"") ->  | X90: =IF(tblSalaries[[#This Row],[Job Type]]=tblSalaries[[#Headers],[Controller]],tblSalaries[[#This Row],[Salary in USD]],"") ->  | Y90: =IF(tblSalaries[[#This Row],[Job Type]]=tblSalaries[[#Headers],[CXO or Top Mgmt.]],tblSalaries[[#This Row],[clean Salary (in local currency)]],"") ->  | Z90: =IF(tblSalaries[[#This Row],[Job Type]]=tblSalaries[[#Headers],[Engineer]],tblSalaries[[#This Row],[Salary in USD]],"") -> 110000 | AA90: =IF(tblSalaries[[#This Row],[Job Type]]=tblSalaries[[#Headers],[Manager]],tblSalaries[[#This Row],[Salary in USD]],"") ->  | AB90: =IF(tblSalaries[[#This Row],[Job Type]]=tblSalaries[[#Headers],[Misc.]],tblSalaries[[#This Row],[Salary in USD]],"") ->  | AC90: =IF(tblSalaries[[#This Row],[Job Type]]=tblSalaries[[#Headers],[Reporting]],tblSalaries[[#This Row],[Salary in USD]],"") ->  | AD90: =IF(tblSalaries[[#This Row],[Job Type]]=tblSalaries[[#Headers],[Specialist]],tblSalaries[[#This Row],[Salary in USD]],"") -> 
B91: ID0088 | C91: 2012-05-26T00:22:49 | D91: 81,000USD | E91: 81000 | F91: USD | G91: =tblSalaries[[#This Row],[clean Salary (in local currency)]]*VLOOKUP(tblSalaries[[#This Row],[Currency]],tblXrate[],2,FALSE) -> 81000 | H91: Strategy Consultant | I91: Consultant | J91: UK | K91: =VLOOKUP(tblSalaries[[#This Row],[Where do you work]],tblCountries[[Actual]:[Mapping]],2,FALSE) -> UK | L91: 4 to 6 hours a day | N91: =IF(tblSalaries[[#This Row],[Years of Experience]]="","",IF(tblSalaries[[#This Row],[Years of Experience]]<=2,1,"")) ->  | O91: =IF(tblSalaries[[#This Row],[Years of Experience]]="","",IF(AND(tblSalaries[[#This Row],[Years of Experience]]>2,tblSalaries[[#This Row],[Years of Experience]]<=5),1,"")) ->  | P91: =IF(tblSalaries[[#This Row],[Years of Experience]]="","",IF(AND(tblSalaries[[#This Row],[Years of Experience]]>5,tblSalaries[[#This Row],[Years of Experience]]<=10),1,"")) ->  | Q91: =IF(tblSalaries[[#This Row],[Years of Experience]]="","",IF(AND(tblSalaries[[#This Row],[Years of Experience]]>10,tblSalaries[[#This Row],[Years of Experience]]<=15),1,"")) ->  | R91: =IF(tblSalaries[[#This Row],[Years of Experience]]="","",IF(AND(tblSalaries[[#This Row],[Years of Experience]]>16,tblSalaries[[#This Row],[Years of Experience]]<=20),1,"")) ->  | S91: =IF(tblSalaries[[#This Row],[Years of Experience]]="","",IF(tblSalaries[[#This Row],[Years of Experience]]>20,1,"")) ->  | T91: =IF(tblSalaries[[#This Row],[0-2 Years]]=1,tblSalaries[[#Headers],[0-2 Years]],IF(tblSalaries[[#This Row],[3-5 Years]]=1,tblSalaries[[#Headers],[3-5 Years]],IF(tblSalaries[[#This Row],[5-10 Years]]=1,tblSalaries[[#Headers],[5-10 Years]],IF(tblSalaries[[#This Row],[11-15 Years]]=1,tblSalaries[[#Headers],[11-15 Years]],IF(tblSalaries[[#This Row],[16-20 Years]]=1,tblSalaries[[#Headers],[16-20 Years]],IF(tblSalaries[[#This Row],[20+ Years]]=1,tblSalaries[[#Headers],[20+ Years]],"")))))) ->  | U91: =IF(tblSalaries[[#This Row],[Job Type]]=tblSalaries[[#Headers],[Accountant]],tblSalaries[[#This Row],[Salary in USD]],"") ->  | V91: =IF(tblSalaries[[#This Row],[Job Type]]=tblSalaries[[#Headers],[Analyst]],tblSalaries[[#This Row],[Salary in USD]],"") ->  | W91: =IF(tblSalaries[[#This Row],[Job Type]]=tblSalaries[[#Headers],[Consultant]],tblSalaries[[#This Row],[Salary in USD]],"") -> 81000 | X91: =IF(tblSalaries[[#This Row],[Job Type]]=tblSalaries[[#Headers],[Controller]],tblSalaries[[#This Row],[Salary in USD]],"") ->  | Y91: =IF(tblSalaries[[#This Row],[Job Type]]=tblSalaries[[#Headers],[CXO or Top Mgmt.]],tblSalaries[[#This Row],[clean Salary (in local currency)]],"") ->  | Z91: =IF(tblSalaries[[#This Row],[Job Type]]=tblSalaries[[#Headers],[Engineer]],tblSalaries[[#This Row],[Salary in USD]],"") ->  | AA91: =IF(tblSalaries[[#This Row],[Job Type]]=tblSalaries[[#Headers],[Manager]],tblSalaries[[#This Row],[Salary in USD]],"") ->  | AB91: =IF(tblSalaries[[#This Row],[Job Type]]=tblSalaries[[#Headers],[Misc.]],tblSalaries[[#This Row],[Salary in USD]],"") ->  | AC91: =IF(tblSalaries[[#This Row],[Job Type]]=tblSalaries[[#Headers],[Reporting]],tblSalaries[[#This Row],[Salary in USD]],"") ->  | AD91: =IF(tblSalaries[[#This Row],[Job Type]]=tblSalaries[[#Headers],[Specialist]],tblSalaries[[#This Row],[Salary in USD]],"") -> 
B92: ID0089 | C92: 2012-05-26T00:39:04 | D92: 40000 | E92: 40000 | F92: USD | G92: =tblSalaries[[#This Row],[clean Salary (in local currency)]]*VLOOKUP(tblSalaries[[#This Row],[Currency]],tblXrate[],2,FALSE) -> 40000 | H92: Admin | I92: Analyst | J92: USA | K92: =VLOOKUP(tblSalaries[[#This Row],[Where do you work]],tblCountries[[Actual]:[Mapping]],2,FALSE) -> USA | L92: 4 to 6 hours a day | N92: =IF(tblSalaries[[#This Row],[Years of Experience]]="","",IF(tblSalaries[[#This Row],[Years of Experience]]<=2,1,"")) ->  | O92: =IF(tblSalaries[[#This Row],[Years of Experience]]="","",IF(AND(tblSalaries[[#This Row],[Years of Experience]]>2,tblSalaries[[#This Row],[Years of Experience]]<=5),1,"")) ->  | P92: =IF(tblSalaries[[#This Row],[Years of Experience]]="","",IF(AND(tblSalaries[[#This Row],[Years of Experience]]>5,tblSalaries[[#This Row],[Years of Experience]]<=10),1,"")) ->  | Q92: =IF(tblSalaries[[#This Row],[Years of Experience]]="","",IF(AND(tblSalaries[[#This Row],[Years of Experience]]>10,tblSalaries[[#This Row],[Years of Experience]]<=15),1,"")) ->  | R92: =IF(tblSalaries[[#This Row],[Years of Experience]]="","",IF(AND(tblSalaries[[#This Row],[Years of Experience]]>16,tblSalaries[[#This Row],[Years of Experience]]<=20),1,"")) ->  | S92: =IF(tblSalaries[[#This Row],[Years of Experience]]="","",IF(tblSalaries[[#This Row],[Years of Experience]]>20,1,"")) ->  | T92: =IF(tblSalaries[[#This Row],[0-2 Years]]=1,tblSalaries[[#Headers],[0-2 Years]],IF(tblSalaries[[#This Row],[3-5 Years]]=1,tblSalaries[[#Headers],[3-5 Years]],IF(tblSalaries[[#This Row],[5-10 Years]]=1,tblSalaries[[#Headers],[5-10 Years]],IF(tblSalaries[[#This Row],[11-15 Years]]=1,tblSalaries[[#Headers],[11-15 Years]],IF(tblSalaries[[#This Row],[16-20 Years]]=1,tblSalaries[[#Headers],[16-20 Years]],IF(tblSalaries[[#This Row],[20+ Years]]=1,tblSalaries[[#Headers],[20+ Years]],"")))))) ->  | U92: =IF(tblSalaries[[#This Row],[Job Type]]=tblSalaries[[#Headers],[Accountant]],tblSalaries[[#This Row],[Salary in USD]],"") ->  | V92: =IF(tblSalaries[[#This Row],[Job Type]]=tblSalaries[[#Headers],[Analyst]],tblSalaries[[#This Row],[Salary in USD]],"") -> 40000 | W92: =IF(tblSalaries[[#This Row],[Job Type]]=tblSalaries[[#Headers],[Consultant]],tblSalaries[[#This Row],[Salary in USD]],"") ->  | X92: =IF(tblSalaries[[#This Row],[Job Type]]=tblSalaries[[#Headers],[Controller]],tblSalaries[[#This Row],[Salary in USD]],"") ->  | Y92: =IF(tblSalaries[[#This Row],[Job Type]]=tblSalaries[[#Headers],[CXO or Top Mgmt.]],tblSalaries[[#This Row],[clean Salary (in local currency)]],"") ->  | Z92: =IF(tblSalaries[[#This Row],[Job Type]]=tblSalaries[[#Headers],[Engineer]],tblSalaries[[#This Row],[Salary in USD]],"") ->  | AA92: =IF(tblSalaries[[#This Row],[Job Type]]=tblSalaries[[#Headers],[Manager]],tblSalaries[[#This Row],[Salary in USD]],"") ->  | AB92: =IF(tblSalaries[[#This Row],[Job Type]]=tblSalaries[[#Headers],[Misc.]],tblSalaries[[#This Row],[Salary in USD]],"") ->  | AC92: =IF(tblSalaries[[#This Row],[Job Type]]=tblSalaries[[#Headers],[Reporting]],tblSalaries[[#This Row],[Salary in USD]],"") ->  | AD92: =IF(tblSalaries[[#This Row],[Job Type]]=tblSalaries[[#Headers],[Specialist]],tblSalaries[[#This Row],[Salary in USD]],"") -> 
B93: ID0090 | C93: 2012-05-26T00:39:28 | D93: 42000 | E93: 42000 | F93: CAD | G93: =tblSalaries[[#This Row],[clean Salary (in local currency)]]*VLOOKUP(tblSalaries[[#This Row],[Currency]],tblXrate[],2,FALSE) -> 41301.18397 | H93: IT Asset Administrator | I93: Analyst | J93: Canada | K93: =VLOOKUP(tblSalaries[[#This Row],[Where do you work]],tblCountries[[Actual]:[Mapping]],2,FALSE) -> Canada | L93: 4 to 6 hours a day | N93: =IF(tblSalaries[[#This Row],[Years of Experience]]="","",IF(tblSalaries[[#This Row],[Years of Experience]]<=2,1,"")) ->  | O93: =IF(tblSalaries[[#This Row],[Years of Experience]]="","",IF(AND(tblSalaries[[#This Row],[Years of Experience]]>2,tblSalaries[[#This Row],[Years of Experience]]<=5),1,"")) ->  | P93: =IF(tblSalaries[[#This Row],[Years of Experience]]="","",IF(AND(tblSalaries[[#This Row],[Years of Experience]]>5,tblSalaries[[#This Row],[Years of Experience]]<=10),1,"")) ->  | Q93: =IF(tblSalaries[[#This Row],[Years of Experience]]="","",IF(AND(tblSalaries[[#This Row],[Years of Experience]]>10,tblSalaries[[#This Row],[Years of Experience]]<=15),1,"")) ->  | R93: =IF(tblSalaries[[#This Row],[Years of Experience]]="","",IF(AND(tblSalaries[[#This Row],[Years of Experience]]>16,tblSalaries[[#This Row],[Years of Experience]]<=20),1,"")) ->  | S93: =IF(tblSalaries[[#This Row],[Years of Experience]]="","",IF(tblSalaries[[#This Row],[Years of Experience]]>20,1,"")) ->  | T93: =IF(tblSalaries[[#This Row],[0-2 Years]]=1,tblSalaries[[#Headers],[0-2 Years]],IF(tblSalaries[[#This Row],[3-5 Years]]=1,tblSalaries[[#Headers],[3-5 Years]],IF(tblSalaries[[#This Row],[5-10 Years]]=1,tblSalaries[[#Headers],[5-10 Years]],IF(tblSalaries[[#This Row],[11-15 Years]]=1,tblSalaries[[#Headers],[11-15 Years]],IF(tblSalaries[[#This Row],[16-20 Years]]=1,tblSalaries[[#Headers],[16-20 Years]],IF(tblSalaries[[#This Row],[20+ Years]]=1,tblSalaries[[#Headers],[20+ Years]],"")))))) ->  | U93: =IF(tblSalaries[[#This Row],[Job Type]]=tblSalaries[[#Headers],[Accountant]],tblSalaries[[#This Row],[Salary in USD]],"") ->  | V93: =IF(tblSalaries[[#This Row],[Job Type]]=tblSalaries[[#Headers],[Analyst]],tblSalaries[[#This Row],[Salary in USD]],"") -> 41301.18397 | W93: =IF(tblSalaries[[#This Row],[Job Type]]=tblSalaries[[#Headers],[Consultant]],tblSalaries[[#This Row],[Salary in USD]],"") ->  | X93: =IF(tblSalaries[[#This Row],[Job Type]]=tblSalaries[[#Headers],[Controller]],tblSalaries[[#This Row],[Salary in USD]],"") ->  | Y93: =IF(tblSalaries[[#This Row],[Job Type]]=tblSalaries[[#Headers],[CXO or Top Mgmt.]],tblSalaries[[#This Row],[clean Salary (in local currency)]],"") ->  | Z93: =IF(tblSalaries[[#This Row],[Job Type]]=tblSalaries[[#Headers],[Engineer]],tblSalaries[[#This Row],[Salary in USD]],"") ->  | AA93: =IF(tblSalaries[[#This Row],[Job Type]]=tblSalaries[[#Headers],[Manager]],tblSalaries[[#This Row],[Salary in USD]],"") ->  | AB93: =IF(tblSalaries[[#This Row],[Job Type]]=tblSalaries[[#Headers],[Misc.]],tblSalaries[[#This Row],[Salary in USD]],"") ->  | AC93: =IF(tblSalaries[[#This Row],[Job Type]]=tblSalaries[[#Headers],[Reporting]],tblSalaries[[#This Row],[Salary in USD]],"") ->  | AD93: =IF(tblSalaries[[#This Row],[Job Type]]=tblSalaries[[#Headers],[Specialist]],tblSalaries[[#This Row],[Salary in USD]],"") -> 
